Workbook

Sheet Readme
B1: How to Assess the Benefits of Nonperforming Loan Disposal in Sub-Saharan Africa Using a Simple Analytical Framework
B2: June, 2021
B3: Irina Bunda, Luc Eyraud, and Zhangrui Wang
B5: This template consists of: 1. One "Readme" sheet with instructions; 2. Several "Input" sheets for data and parameter inputs; 3. One "Output" sheet that visualize the results; 4. Several intermediate "Calculation" sheets. Generally, users are not recommended to modify the content of the "Output" and "Calculation" sheets. The Data Input sheets can be updated with various level of difficulty depending on the data source. Users should review and possibly re-calibrate the parameters in the Parameter Input sheet.
B7: Tab category | C7: Tab name | D7: Description | H7: Difficulty/Necessity to update
B8: Instruction | C8: Readme | D8: Provide information on the workflow and how to use the template.
B9: Input | C9: Input_Data_WEO | D9: This Input sheet contains nominal GDP (national currency, millions) data from the IMF World Economic Outlook database. The GDP data is used as the denominator when measuring the size of capital relief and additional performing loans. | H9: Easy, possible to update.
C10: Input_Data_FSI | D10: This Input sheet contains gross loans, NPL, and provisions data from the IMF Financial Soundness Indicators database. | H10: Easy, possible to update.
C11: Input_Data_Fitch | D11: This Input sheet contains bank-level data on NPLs and other variables from the Fitch Connect database. The ratio CRWA/RWA is then calculated for each country, as explained in section "Structure and Calibration of the Template" of the How to Note. | H11: Difficult. The data are primarily used to calibrate the parameters, and will be time consuming to update.
C12: Input_Data_WB BRSS & Fitch | D12: This Input sheet contains country-level provision rate data from the World Bank Bank Regulation and Supervision Survey database, as well as NPL data by category (substandard, doubtful, loss) from the Fitch Connect database. These data are used to calculate the average provision rates (llr) in certain simulations, as explained in section "Structure and Calibration of the Template" of the How to Note. | H12: Difficult. The data are primarily used to calibrate the parameters, and will be time consuming to update.
C13: Input_Data_WB_Doing_Business | D13: This Input sheet contains data on legal cost to enforce contracts (l_cost) and remaining time to resolution (t) from the World Bank Doing Business Indicators database. As of June 2021, the World Bank has suspended the Doing Business report due to some data irregularities. The authors are aware of the risk and quality concerns over these indicators. However, there are no better alternatives presently. | H13: Easy, could be updated.
C14: Input_Parameters | D14: This Input sheet allow users to specify the calibration, including selecting countries, year, and assumptions for each scenario. It can also be used for policy experiments, e.g. simulation of legal cost to enforce contracts and resolution time. | H14: Necessary to update the calibration of the simulation.
B15: Output | C15: Output_Panel | D15: This Output sheet visualizes the main results, including: 1) capital relief and additional performing loans from NPL disposal; 2) haircut ratios; 3) descriptive statistics such as NPL ratios (in net and gross terms) or a breakdown by loan type (substandard, doubtful, loss). | H15: Do NOT modify.
B16: Calculation | C16: Calculation_SSA | D16: This is the master calculation sheet for all the SSA countries. | H16: Do NOT modify.
C17: Calculation_Comparators | D17: This is the master calculation sheet for the countries selected in sheet "Input_Parameters". | H17: Do NOT modify.
C18: Calculation_Haircut | D18: This sheet calculates the country-specific model-based haircut ratios for scenario 3, as explained in section "Model-based Haircut Formula" of the How to Note. It also calculates the provision rates (llr). | H18: Do NOT modify.
C19: Calculation_Loans & provisions | D19: This sheet integrates the loans and provisions data from FSI with extra data points collected by the authors from country authorities, IMF reports, etc. | H19: Do NOT modify.
B21: Instructions
B22: 1. Enable Macro. When opening the file, a security warning will pop up under the ribbons (see screenshot to the right). Click "Enable Content" to enable macro.
B24: 2. Make sure calculations are set to "Automatic Except for Data Tables" ("Formulas" tab --> "Calculation Options" --> "Automatic Except for Data Tables")
B26: 3. Review the blue Data Input sheets, and update if needed.
B27: To get started, go through and review each blue "Input" sheets. Update first the data inputs, if needed, following the "Difficulty/Necessity to Update" recommendations above in column H, and the instructions at the top of each data sheet. Note that the template can be applied without updating the data. Then, specify the parameters in the sheet called "Input_Parameters" (this sheet includes default parameters but it can be useful to change the existing parameters to better tailor the simulations’ calibration).
B29: 4. Calibrate the Parameter Input sheet as needed.
B31: 5. Sensitivity Analysis (optional)
B32: Click the button to the right, to activate the Sensitivity Analysis.
B33: 6. Review the results in sheet "Output_Panel".
B35: 7. Policy experiments (optional)
B36: Revisit sheet "Input_Parameter" for policy experiments. These are conducted in Step 5 of the parameter sheet. For instance, it is possible to simulate a negative haircut ratio in scenario 2, or a scenario with a reduction in the time and cost associated with contract enforcement.
B38: Additional information:
B39: List of Variables
B40: Variable | D40: Level | E40: Calculation, if applicable | F40: Source
B41: Gross Loans (volume, NC million) | D41: Country level | F41: IMF Financial Soundness Indicators Database
B42: Gross NPL (volume, NC million)
B43: NPL ratio (percent of total gross loans)
B44: Net NPL (volume, NC million)
B45: Provisions at year end (NC million) | E45: Gross NPLs - Net NPLs
B46: GDP (NC millions) | D46: Country level | F46: IMF World Economic Outlook Database
B47: Credit risk weighted assets | D47: Bank level | F47: Fitch Connect
B48: Total risk weighted assets
B49: CRWA/RWA | D49: Aggregated to country level | E49: Credit RWA/Total RWA
B50: Total Assets | D50: Bank level
B51: Gross NPLs
B52: Loan loss reserves
B53: Specific provisions/Total provisions
B54: Provision rate | D54: Aggregated to country level | E54: (Specific provisions/Total provisions)*Loan loss provisions/Gross NPLs
B55: Provision rate for substandard loans | D55: Country level | F55: World Bank Regulation and Supervision Survey
B56: Provision rate for doubtful loans
B57: Provision rate for loss loans
B58: Time to enforce contracts (Days) | D58: Country level | F58: World Bank Doing Business Indicators
B59: Time to enforce contracts (Years) | E59: Time to enforce contracts (Days)/365*0.75
B60: Time to resolve insolvency (Years) | E60: Time to resolve insolvency (Years)*0.75
B61: Attorney fees (% of claim)
B62: Court fees (% of claim)
B63: Enforcement fees (% of claim)
B64: Legal cost to enforce contracts | E64: (Attorney fees + Court fees*0.5 + Enforcement fees)/100*0.75

Sheet Input_Data_WEO
B2: This Input sheet contains country-level annual nominal GDP (national currency, millions) data. The GDP data is used as the denominator when measuring the size of capital relief and additional performing loans, etc. Downloaded on February 5, 2021. Difficulty/Necessity to update: Easy, possible to update. Source: IMF World Economic Outlook Database. Link: https://www.imf.org/en/Publications/SPROLLs/world-economic-outlook-databases#sort=%40imfdate%20descending
B3: Instructions: Update the cells highlighted in yellow. Data from other reliable sources other than the WEO database (e.g. country authorities) can also be used. The template uses the 2018 data by default, but Step 3 in sheet "Input_Paramters" offers options to use 2019 instead, or specify a year beyond 2019. Examples: 1. If initial year selected is 2018, users can override the 2018 GDP currently used in the template by entering hard-coded numbers in column M. Users can override the data for all the SSA countries, or just a few countries. 2. If initial year selected is any year other than 2018 or 2019, it is necessary to provide data for all SSA countries in column M.
B5: Year selected | C5: =IF(Year="Other", AltYear, Year) -> 2018 | M5: Override data | P5: Used in calculations
B6: IFS Code | C6: Country.ISO-3 code | D6: Country | E6: Indicator.Name | F6: Frequency | G6: Scale | H6: Display_scale | I6: 2017 | J6: 2018 | K6: 2019 | M6: =IF(Year="Other", AltYear, Year) -> 2018 | O6: Country | P6: =IF(Year="Other", AltYear, Year) -> 2018
B7: 614 | C7: AGO | D7: Angola | E7: Gross domestic product, current prices | F7: Annual | G7: Billions | H7: Millions | I7: 20262278.59 | J7: 26777992.44 | K7: 32689557.3 | O7: =C7 -> AGO | P7: =IF(ISNUMBER($M7), $M7, IF(Year=2018, $J7, IF(Year=2019, $K7, IF(Year="Other", IF(ISNUMBER($M7), $M7, ""))))) -> 26777992.44
B8: 638 | C8: BEN | D8: Benin | E8: Gross domestic product, current prices | F8: Annual | G8: Billions | H8: Millions | I8: 7375302.198 | J8: 7915660.272 | K8: 8432247.507 | O8: =C8 -> BEN | P8: 7915660.272
B9: 616 | C9: BWA | D9: Botswana | E9: Gross domestic product, current prices | F9: Annual | G9: Billions | H9: Millions | I9: 180102.9 | J9: 190365.3 | K9: 197268.7 | O9: BWA | P9: 190365.3
B10: 748 | C10: BFA | D10: Burkina Faso | E10: Gross domestic product, current prices | F10: Annual | G10: Billions | H10: Millions | I10: 8227851.174 | J10: 8997919.264 | K10: 9225643.42 | O10: BFA | P10: 8997919.264
B11: 618 | C11: BDI | D11: Burundi | E11: Gross domestic product, current prices | F11: Annual | G11: Billions | H11: Millions | I11: 5752769.311 | J11: 5678741.525 | K11: 5741124.425 | O11: BDI | P11: 5678741.525
B12: 622 | C12: CMR | D12: Cameroon | E12: Gross domestic product, current prices | F12: Annual | G12: Billions | H12: Millions | I12: 20328363 | J12: 21492534 | K12: 22769258.09 | O12: CMR | P12: 21492534
B13: 624 | C13: CPV | D13: Cabo Verde | E13: Gross domestic product, current prices | F13: Annual | G13: Billions | H13: Millions | I13: 173097.4012 | J13: 183697.9488 | K13: 195202.2926 | O13: CPV | P13: 183697.9488
B14: 626 | C14: CAF | D14: Central African Republic | E14: Gross domestic product, current prices | F14: Annual | G14: Billions | H14: Millions | I14: 1203324 | J14: 1265640.415 | K14: 1333985.15 | O14: CAF | P14: 1265640.415
B15: 628 | C15: TCD | D15: Chad | E15: Gross domestic product, current prices | F15: Annual | G15: Billions | H15: Millions | I15: 5854572.299 | J15: 6127318.177 | K15: 6406367.222 | O15: TCD | P15: 6127318.177
B16: 632 | C16: COM | D16: Comoros | E16: Gross domestic product, current prices | F16: Annual | G16: Billions | H16: Millions | I16: 469217 | J16: 490958 | K16: 523069.2529 | O16: COM | P16: 490958
B17: 636 | C17: COD | D17: Congo, Democratic Republic of the | E17: Gross domestic product, current prices | F17: Annual | G17: Billions | H17: Millions | I17: 55676093.13 | J17: 76495500.37 | K17: 83190158.9 | O17: COD | P17: 76495500.37
B18: 634 | C18: COG | D18: Congo, Republic of | E18: Gross domestic product, current prices | F18: Annual | G18: Billions | H18: Millions | I18: 6453235.434 | J18: 7440618.058 | K18: 7347988.042 | O18: COG | P18: 7440618.058
B19: 662 | C19: CIV | D19: Côte d'Ivoire | E19: Gross domestic product, current prices | F19: Annual | G19: Billions | H19: Millions | I19: 29955010 | J19: 32222266 | K19: 34298893 | O19: CIV | P19: 32222266
B20: 642 | C20: GNQ | D20: Equatorial Guinea | E20: Gross domestic product, current prices | F20: Annual | G20: Billions | H20: Millions | I20: 7084543 | J20: 7375490 | K20: 6459503.735 | O20: GNQ | P20: 7375490
B21: 643 | C21: ERI | D21: Eritrea | E21: Gross domestic product, current prices | F21: Annual | G21: Billions | H21: Millions | I21: 28702.3 | J21: 30235.3 | K21: 29876.495 | O21: ERI | P21: 30235.3
B22: 734 | C22: SWZ | D22: Eswatini | E22: Gross domestic product, current prices | F22: Annual | G22: Billions | H22: Millions | I22: 59285.38979 | J22: 62372.82804 | K22: 66288.70253 | O22: SWZ | P22: 62372.82804
B23: 644 | C23: ETH | D23: Ethiopia | E23: Gross domestic product, current prices | F23: Annual | G23: Billions | H23: Millions | I23: 1832785.962 | J23: 2200120.588 | K23: 2690751.351 | O23: ETH | P23: 2200120.588
B24: 646 | C24: GAB | D24: Gabon | E24: Gross domestic product, current prices | F24: Annual | G24: Billions | H24: Millions | I24: 8669067.777 | J24: 9368905.472 | K24: 9879247.286 | O24: GAB | P24: 9368905.472
B25: 648 | C25: GMB | D25: Gambia, The | E25: Gross domestic product, current prices | F25: Annual | G25: Billions | H25: Millions | I25: 70142.18825 | J25: 80445.79994 | K25: 91417.81659 | O25: GMB | P25: 80445.79994
B26: 652 | C26: GHA | D26: Ghana | E26: Gross domestic product, current prices | F26: Annual | G26: Billions | H26: Millions | I26: 256671 | J26: 300596 | K26: 349480 | O26: GHA | P26: 300596
B27: 656 | C27: GIN | D27: Guinea | E27: Gross domestic product, current prices | F27: Annual | G27: Billions | H27: Millions | I27: 93942415.04 | J27: 109760692.1 | K27: 126707176.5 | O27: GIN | P27: 109760692.1
B28: 654 | C28: GNB | D28: Guinea-Bissau | E28: Gross domestic product, current prices | F28: Annual | G28: Billions | H28: Millions | I28: 853553 | J28: 836013.0542 | K28: 843474.6459 | O28: GNB | P28: 836013.0542
B29: 664 | C29: KEN | D29: Kenya | E29: Gross domestic product, current prices | F29: Annual | G29: Billions | H29: Millions | I29: 8165842.2 | J29: 8892110.8 | K29: 9740359.9 | O29: KEN | P29: 8892110.8
B30: 666 | C30: LSO | D30: Lesotho | E30: Gross domestic product, current prices | F30: Annual | G30: Billions | H30: Millions | I30: 32131.96249 | J30: 34002.67555 | K30: 35899.89501 | O30: LSO | P30: 34002.67555
B31: 668 | C31: LBR | D31: Liberia | E31: Gross domestic product, current prices | F31: Annual | G31: Billions | H31: Millions | I31: 3283.990216 | J31: 3264.179254 | K31: 3175.918607 | O31: LBR | P31: 3264.179254
B32: 674 | C32: MDG | D32: Madagascar | E32: Gross domestic product, current prices | F32: Annual | G32: Billions | H32: Millions | I32: 41058841.43 | J32: 46188508.31 | K32: 51106729.77 | O32: MDG | P32: 46188508.31
B33: 676 | C33: MWI | D33: Malawi | E33: Gross domestic product, current prices | F33: Annual | G33: Billions | H33: Millions | I33: 4549721.954 | J33: 5060276.191 | K33: 5710672.909 | O33: MWI | P33: 5060276.191
B34: 678 | C34: MLI | D34: Mali | E34: Gross domestic product, current prices | F34: Annual | G34: Billions | H34: Millions | I34: 8921906.357 | J34: 9425955.694 | K34: 10150048.87 | O34: MLI | P34: 9425955.694
B35: 684 | C35: MUS | D35: Mauritius | E35: Gross domestic product, current prices | F35: Annual | G35: Billions | H35: Millions | I35: 457201 | J35: 481256 | K35: 498347 | O35: MUS | P35: 481256
B36: 688 | C36: MOZ | D36: Mozambique | E36: Gross domestic product, current prices | F36: Annual | G36: Billions | H36: Millions | I36: 840526.2194 | J36: 895566.7187 | K36: 956785.9146 | O36: MOZ | P36: 895566.7187
B37: 728 | C37: NAM | D37: Namibia | E37: Gross domestic product, current prices | F37: Annual | G37: Billions | H37: Millions | I37: 170699.3298 | J37: 179265.9857 | K37: 180249.3493 | O37: NAM | P37: 179265.9857
B38: 692 | C38: NER | D38: Niger | E38: Gross domestic product, current prices | F38: Annual | G38: Billions | H38: Millions | I38: 6497014.222 | J38: 7134254.054 | K38: 7564952.817 | O38: NER | P38: 7134254.054
B39: 694 | C39: NGA | D39: Nigeria | E39: Gross domestic product, current prices | F39: Annual | G39: Billions | H39: Millions | I39: 114899250.9 | J39: 129086908.2 | K39: 145639140.3 | O39: NGA | P39: 129086908.2
B40: 714 | C40: RWA | D40: Rwanda | E40: Gross domestic product, current prices | F40: Annual | G40: Billions | H40: Millions | I40: 7694000 | J40: 8291000 | K40: 9105000 | O40: RWA | P40: 8291000
B41: 716 | C41: STP | D41: São Tomé and Príncipe | E41: Gross domestic product, current prices | F41: Annual | G41: Billions | H41: Millions | I41: 8153.800341 | J41: 8618.990374 | K41: 9230.495607 | O41: STP | P41: 8618.990374
B42: 722 | C42: SEN | D42: Senegal | E42: Gross domestic product, current prices | F42: Annual | G42: Billions | H42: Millions | I42: 12191796 | J42: 12907359 | K42: 13814658.8 | O42: SEN | P42: 12907359
B43: 718 | C43: SYC | D43: Seychelles | E43: Gross domestic product, current prices | F43: Annual | G43: Billions | H43: Millions | I43: 20806.34831 | J43: 22063.76416 | K43: 23190.59272 | O43: SYC | P43: 22063.76416
B44: 724 | C44: SLE | D44: Sierra Leone | E44: Gross domestic product, current prices | F44: Annual | G44: Billions | H44: Millions | I44: 27465429.5 | J44: 32401626.14 | K44: 37990106.82 | O44: SLE | P44: 32401626.14
B45: 199 | C45: ZAF | D45: South Africa | E45: Gross domestic product, current prices | F45: Annual | G45: Billions | H45: Millions | I45: 4653578 | J45: 4873899 | K45: 5077625 | O45: ZAF | P45: 4873899
B46: 733 | C46: SSD | D46: South Sudan | E46: Gross domestic product, current prices | F46: Annual | G46: Billions | H46: Millions | I46: 397138.1188 | J46: 660314.592 | K46: 654852.9049 | O46: SSD | P46: 660314.592
B47: 738 | C47: TZA | D47: Tanzania | E47: Gross domestic product, current prices | F47: Annual | G47: Billions | H47: Millions | I47: 118744498.4 | J47: 129014828 | K47: 139893804.1 | O47: TZA | P47: 129014828
B48: 742 | C48: TGO | D48: Togo | E48: Gross domestic product, current prices | F48: Annual | G48: Billions | H48: Millions | I48: 3713600 | J48: 3951400 | K48: 4230600 | O48: TGO | P48: 3951400
B49: 746 | C49: UGA | D49: Uganda | E49: Gross domestic product, current prices | F49: Annual | G49: Billions | H49: Millions | I49: 113983000 | J49: 126646000 | K49: 139226000 | O49: UGA | P49: 126646000
B50: 754 | C50: ZMB | D50: Zambia | E50: Gross domestic product, current prices | F50: Annual | G50: Billions | H50: Millions | I50: 246251.7785 | J50: 282423.4889 | K50: 311353.3377 | O50: ZMB | P50: 282423.4889
B51: 698 | C51: ZWE | D51: Zimbabwe | E51: Gross domestic product, current prices | F51: Annual | G51: Billions | H51: Millions | I51: 27437.98634 | J51: 42468.1704 | K51: 159390.6561 | O51: ZWE | P51: 42468.1704

Sheet Input_Data_FSI
B2: This Input sheet contains country-level annual NPLs (in gross and net terms), NPL ratios, and gross loans data from the IMF Financial Soundness Indicators database. Downloaded on February 5, 2021. Difficulty/Necessity to update: Easy, possible to update. Source: IMF Financial Soundness Indicators database. Link: https://data.imf.org/?sk=51B096FA-2CD2-40C2-8D09-0699CC1764DA
B3: Instructions: Update the cells highlighted in yellow. Data from other reliable sources other than the FSI database (e.g. country authorities) can also be used. The template uses the 2018 data by default, but Step 3 in sheet "Input_Paramters" offers options to use 2019 instead, or specify a year beyond 2019. Examples: 1. If initial year selected is 2018, users can override the 2018 GDP currently used in the template by entering hard-coded numbers in column AE. Users can override the data for all the SSA countries, or just a few countries. 2. If initial year selected is any year other than 2018 or 2019, it is necessary to provide data for all SSA countries in column AE. | AB3: *2017 data is used when 2018 is n.a. | AC3: *2018 data is used when 2019 is n.a.
B5: Year selected | C5: =IF(Year="Other", AltYear, Year) -> 2018
B6: =E8 -> Financial Soundness Indicators, Core Set, Deposit Takers, Asset Quality, Total gross loans, National Currency | X6: IFS Code | Y6: Country | Z6: 2017 | AA6: 2018 | AB6: Final 2018 | AC6: Final 2019 | AE6: Override data | AG6: Used in calculations
B7: IFS Code | C7: Country.Name | D7: Country | E7: Indicator | F7: Frequency | G7: Display_scale | H7: 2005 | I7: 2006 | J7: 2007 | K7: 2008 | L7: 2009 | M7: 2010 | N7: 2011 | O7: 2012 | P7: 2013 | Q7: 2014 | R7: 2015 | S7: 2016 | T7: 2017 | U7: 2018 | V7: 2019 | AE7: =IF(Year="Other", AltYear, Year) -> 2018 | AG7: Country | AH7: =IF(Year="Other", AltYear, Year) -> 2018
B8: 614 | C8: Angola | D8: Angola | E8: Financial Soundness Indicators, Core Set, Deposit Takers, Asset Quality, Total gross loans, National Currency | F8: Annual | G8: Millions | M8: 1873180.785 | N8: 2705270.721 | O8: 3176329.688 | P8: 3615590.511 | Q8: 3595714.786 | R8: 3842080.695 | S8: 3943310.38 | T8: 4025720.48 | U8: 5040582.52 | X8: =B8 -> 614 | Y8: =C8 -> Angola | Z8: =IF(ISNUMBER(AA8), "", IF(ISNUMBER(T8), T8, "N.A")) ->  | AA8: =IF(ISNUMBER(U8), U8, "N.A.") -> 5040582.52 | AB8: =IF(ISNUMBER(AA8), AA8, IF(ISNUMBER(Z8), Z8, "n.a.")) -> 5040582.52 | AC8: =IF(ISNUMBER($V8), $V8, IF(ISNUMBER($U8), $U8, "n.a.")) -> 5040582.52 | AG8: =C8 -> Angola | AH8: =IF(ISNUMBER($AE8), $AE8, IF(Year=2018, $AB8, IF(Year=2019, $AC8, IF(Year="Other", IF(ISNUMBER($AE8), $AE8, ""))))) -> 5040582.52
B9: 638 | C9: Benin | X9: 638 | Y9: Benin | Z9: N.A | AA9: N.A. | AB9: n.a. | AC9: =IF(ISNUMBER($V9), $V9, IF(ISNUMBER($U9), $U9, "n.a.")) -> n.a. | AG9: =C9 -> Benin | AH9: n.a.
B10: 616 | C10: Botswana | D10: Botswana | E10: Financial Soundness Indicators, Core Set, Deposit Takers, Asset Quality, Total gross loans, National Currency | F10: Annual | G10: Millions | O10: 34394.002 | P10: 39604.89 | Q10: 45184.6 | R10: 49699.396 | S10: 51320.463 | T10: 54187.655 | U10: 55911.03761 | V10: 59083.764 | X10: 616 | Y10: Botswana | AA10: 55911.03761 | AB10: 55911.03761 | AC10: 59083.764 | AG10: Botswana | AH10: 55911.03761
B11: 748 | C11: Burkina Faso | X11: 748 | Y11: Burkina Faso | Z11: N.A | AA11: N.A. | AB11: n.a. | AC11: n.a. | AG11: Burkina Faso | AH11: n.a.
B12: 618 | C12: Burundi | D12: Burundi | E12: Financial Soundness Indicators, Core Set, Deposit Takers, Asset Quality, Total gross loans, National Currency | F12: Annual | G12: Millions | M12: 410493.1 | N12: 544070.3 | O12: 632392.2 | P12: 656570.4 | Q12: 767432.8 | R12: 742739.6 | S12: 729147.6 | T12: 710109.9 | X12: 618 | Y12: Burundi | Z12: 710109.9 | AA12: N.A. | AB12: 710109.9 | AC12: n.a. | AG12: Burundi | AH12: 710109.9
B13: 622 | C13: Cameroon | D13: Cameroon | E13: Financial Soundness Indicators, Core Set, Deposit Takers, Asset Quality, Total gross loans, National Currency | F13: Annual | G13: Millions | M13: 2077683 | N13: 2044928 | O13: 2056497 | P13: 2475287 | Q13: 2778558 | R13: 3243159 | S13: 3437039 | T13: 3512951 | U13: 3741342 | V13: 3818732 | X13: 622 | Y13: Cameroon | AA13: 3741342 | AB13: 3741342 | AC13: 3818732 | AG13: Cameroon | AH13: 3741342
B14: 624 | C14: Cabo Verde | X14: 624 | Y14: Cabo Verde | Z14: N.A | AA14: N.A. | AB14: n.a. | AC14: n.a. | AG14: Cabo Verde | AH14: n.a.
B15: 626 | C15: Central African Republic | D15: Central African Rep. | E15: Financial Soundness Indicators, Core Set, Deposit Takers, Asset Quality, Total gross loans, National Currency | F15: Annual | G15: Millions | M15: 121546 | N15: 131491 | O15: 158291 | P15: 133568 | Q15: 152620 | R15: 149060 | S15: 165657 | T15: 153722 | U15: 171918 | V15: 174787 | X15: 626 | Y15: Central African Republic | AA15: 171918 | AB15: 171918 | AC15: 174787 | AG15: Central African Republic | AH15: 171918
B16: 628 | C16: Chad | D16: Chad | E16: Financial Soundness Indicators, Core Set, Deposit Takers, Asset Quality, Total gross loans, National Currency | F16: Annual | G16: Millions | M16: 327161 | N16: 355728 | O16: 448038 | P16: 558975 | Q16: 658277 | R16: 686470 | S16: 731809 | T16: 710913 | U16: 723172 | V16: 761673 | X16: 628 | Y16: Chad | AA16: 723172 | AB16: 723172 | AC16: 761673 | AG16: Chad | AH16: 723172
B17: 632 | C17: Comoros | D17: Comoros, Union of the | E17: Financial Soundness Indicators, Core Set, Deposit Takers, Asset Quality, Total gross loans, National Currency | F17: Annual | G17: Millions | M17: 32812.49804 | N17: 35664.74944 | O17: 42996.98399 | P17: 49663.0271 | Q17: 54922.84764 | R17: 64013.20333 | S17: 74692.90249 | X17: 632 | Y17: Comoros | Z17: N.A | AA17: N.A. | AB17: n.a. | AC17: n.a. | AG17: Comoros | AH17: n.a.
B18: 636 | C18: Congo, Democratic Republic of the | X18: 636 | Y18: Congo, Democratic Republic of the | Z18: N.A | AA18: N.A. | AB18: n.a. | AC18: n.a. | AG18: Congo, Democratic Republic of the | AH18: n.a.
B19: 634 | C19: Congo, Republic of | D19: Congo, Rep. of | E19: Financial Soundness Indicators, Core Set, Deposit Takers, Asset Quality, Total gross loans, National Currency | F19: Annual | G19: Millions | M19: 463825 | N19: 619245 | O19: 924693 | P19: 1177834 | Q19: 1188278 | R19: 1424069 | S19: 1459795 | T19: 1400558 | U19: 1307962 | V19: 1166260 | X19: 634 | Y19: Congo, Republic of | AA19: 1307962 | AB19: 1307962 | AC19: 1166260 | AG19: Congo, Republic of | AH19: 1307962
B20: 662 | C20: Côte d'Ivoire | X20: 662 | Y20: Côte d'Ivoire | Z20: N.A | AA20: N.A. | AB20: n.a. | AC20: n.a. | AG20: Côte d'Ivoire | AH20: n.a.
B21: 642 | C21: Equatorial Guinea | D21: Equatorial Guinea, Rep. of | E21: Financial Soundness Indicators, Core Set, Deposit Takers, Asset Quality, Total gross loans, National Currency | F21: Annual | G21: Millions | M21: 750583 | N21: 808159 | O21: 692679 | P21: 894138 | Q21: 1026127 | R21: 1219392 | S21: 1269518 | T21: 1267930 | U21: 1283457 | V21: 1020694 | X21: 642 | Y21: Equatorial Guinea | AA21: 1283457 | AB21: 1283457 | AC21: 1020694 | AG21: Equatorial Guinea | AH21: 1283457
B22: 643 | C22: Eritrea | X22: 643 | Y22: Eritrea | Z22: N.A | AA22: N.A. | AB22: n.a. | AC22: n.a. | AG22: Eritrea | AH22: n.a.
B23: 734 | C23: Eswatini | D23: Eswatini, Kingdom of | E23: Financial Soundness Indicators, Core Set, Deposit Takers, Asset Quality, Total gross loans, National Currency | F23: Annual | G23: Millions | L23: 5174.676 | M23: 5266.725 | N23: 6858.275 | O23: 6603.693 | P23: 8187.979 | Q23: 8996.362642 | R23: 9292.952543 | S23: 10254.54235 | T23: 10779.12819 | U23: 11502.505 | V23: 12188.6901 | X23: 734 | Y23: Eswatini | AA23: 11502.505 | AB23: 11502.505 | AC23: 12188.6901 | AG23: Eswatini | AH23: 11502.505
B24: 644 | C24: Ethiopia | X24: 644 | Y24: Ethiopia | Z24: N.A | AA24: N.A. | AB24: n.a. | AC24: n.a. | AG24: Ethiopia | AH24: n.a.
B25: 646 | C25: Gabon | D25: Gabon | E25: Financial Soundness Indicators, Core Set, Deposit Takers, Asset Quality, Total gross loans, National Currency | F25: Annual | G25: Millions | M25: 1096009 | N25: 1313355 | O25: 1668166 | P25: 1870806 | Q25: 1895092 | R25: 1764337 | S25: 3437039 | T25: 3512951 | U25: 3741342 | V25: 3818732 | X25: 646 | Y25: Gabon | AA25: 3741342 | AB25: 3741342 | AC25: 3818732 | AG25: Gabon | AH25: 3741342
B26: 648 | C26: Gambia, The | D26: Gambia, The | E26: Financial Soundness Indicators, Core Set, Deposit Takers, Asset Quality, Total gross loans, National Currency | F26: Annual | G26: Millions | H26: 1989281 | I26: 2393740 | J26: 2646260 | K26: 3547230 | L26: 4435101 | M26: 5288457 | N26: 5448141 | O26: 5466299 | P26: 6052272 | Q26: 5422821 | R26: 4913823 | S26: 4461007 | T26: 4171192 | U26: 5539864 | V26: 7350331 | X26: 648 | Y26: Gambia, The | AA26: 5539864 | AB26: 5539864 | AC26: 7350331 | AG26: Gambia, The | AH26: 5539864
B27: 652 | C27: Ghana | D27: Ghana | E27: Financial Soundness Indicators, Core Set, Deposit Takers, Asset Quality, Total gross loans, National Currency | F27: Annual | G27: Millions | K27: 5966.804132 | L27: 6920.849148 | M27: 7994.686325 | N27: 9352.424537 | O27: 13026.26996 | P27: 17043.43373 | Q27: 24103.74263 | R27: 30102.38588 | S27: 35504.06817 | T27: 37934.35679 | U27: 36543.14211 | V27: 45170.02181 | X27: 652 | Y27: Ghana | AA27: 36543.14211 | AB27: 36543.14211 | AC27: 45170.02181 | AG27: Ghana | AH27: 36543.14211
B28: 656 | C28: Guinea | D28: Guinea | E28: Financial Soundness Indicators, Core Set, Deposit Takers, Asset Quality, Total gross loans, National Currency | F28: Annual | G28: Millions | P28: 4198983.492 | Q28: 5988299.56 | R28: 7528667.698 | S28: 8030174.829 | T28: 8184476.388 | U28: 9744996.086 | V28: 12150765.04 | X28: 656 | Y28: Guinea | AA28: 9744996.086 | AB28: 9744996.086 | AC28: 12150765.04 | AG28: Guinea | AH28: 9744996.086
B29: 654 | C29: Guinea-Bissau | X29: 654 | Y29: Guinea-Bissau | Z29: N.A | AA29: N.A. | AB29: n.a. | AC29: n.a. | AG29: Guinea-Bissau | AH29: n.a.
B30: 664 | C30: Kenya | D30: Kenya | E30: Financial Soundness Indicators, Core Set, Deposit Takers, Asset Quality, Total gross loans, National Currency | F30: Annual | G30: Millions | I30: 494026 | J30: 559904.454 | K30: 682486.3526 | L30: 766292.2372 | M30: 919441.3321 | N30: 1198237.748 | O30: 1354251.832 | P30: 1597018.333 | Q30: 1963330.255 | R30: 2327464.804 | S30: 2465562.805 | T30: 2605116.449 | U30: 2640969.393 | V30: 2774649.493 | X30: 664 | Y30: Kenya | AA30: 2640969.393 | AB30: 2640969.393 | AC30: 2774649.493 | AG30: Kenya | AH30: 2640969.393
B31: 666 | C31: Lesotho | D31: Lesotho, Kingdom of | E31: Financial Soundness Indicators, Core Set, Deposit Takers, Asset Quality, Total gross loans, National Currency | F31: Annual | G31: Millions | L31: 3083.035092 | M31: 3447.064596 | N31: 3830.647224 | O31: 4871.316892 | P31: 4518.567128 | Q31: 5042.199135 | R31: 5460.232671 | S31: 5613.825802 | T31: 6172.466323 | U31: 6841.62437 | V31: 7410.642079 | X31: 666 | Y31: Lesotho | AA31: 6841.62437 | AB31: 6841.62437 | AC31: 7410.642079 | AG31: Lesotho | AH31: 6841.62437
B32: 668 | C32: Liberia | X32: 668 | Y32: Liberia | Z32: N.A | AA32: N.A. | AB32: n.a. | AC32: n.a. | AG32: Liberia | AH32: n.a.
B33: 674 | C33: Madagascar | D33: Madagascar, Rep. of | E33: Financial Soundness Indicators, Core Set, Deposit Takers, Asset Quality, Total gross loans, National Currency | F33: Annual | G33: Millions | H33: 1282561.931 | I33: 1664565.169 | J33: 1931913.356 | K33: 2483022.892 | L33: 2650725.652 | M33: 2898073.674 | N33: 3022024.47 | O33: 3052912.341 | P33: 3327038.699 | Q33: 3797482.908 | R33: 4540728.581 | S33: 4844906.28 | T33: 5693189.056 | U33: 6298167.978 | V33: 7423443.88 | X33: 674 | Y33: Madagascar | AA33: 6298167.978 | AB33: 6298167.978 | AC33: 7423443.88 | AG33: Madagascar | AH33: 6298167.978
B34: 676 | C34: Malawi | D34: Malawi | E34: Financial Soundness Indicators, Core Set, Deposit Takers, Asset Quality, Total gross loans, National Currency | F34: Annual | G34: Millions | R34: 481757.4786 | S34: 578397.9532 | T34: 701524.0691 | U34: 1111493.133 | X34: 676 | Y34: Malawi | AA34: 1111493.133 | AB34: 1111493.133 | AC34: 1111493.133 | AG34: Malawi | AH34: 1111493.133
B35: 678 | C35: Mali | X35: 678 | Y35: Mali | Z35: N.A | AA35: N.A. | AB35: n.a. | AC35: n.a. | AG35: Mali | AH35: n.a.
B36: 684 | C36: Mauritius | D36: Mauritius | E36: Financial Soundness Indicators, Core Set, Deposit Takers, Asset Quality, Total gross loans, National Currency | F36: Annual | G36: Millions | L36: 369234.0428 | M36: 427334.6087 | N36: 496998.6378 | O36: 572836.6461 | P36: 590129.4608 | Q36: 652051.6248 | R36: 638697.6266 | S36: 641564.6924 | T36: 679746.2101 | U36: 708938.2109 | V36: 728938.5296 | X36: 684 | Y36: Mauritius | AA36: 708938.2109 | AB36: 708938.2109 | AC36: 728938.5296 | AG36: Mauritius | AH36: 708938.2109
B37: 688 | C37: Mozambique | X37: 688 | Y37: Mozambique | Z37: N.A | AA37: N.A. | AB37: n.a. | AC37: n.a. | AG37: Mozambique | AH37: n.a.
B38: 728 | C38: Namibia | D38: Namibia | E38: Financial Soundness Indicators, Core Set, Deposit Takers, Asset Quality, Total gross loans, National Currency | F38: Annual | G38: Millions | M38: 38725.171 | N38: 43138.313 | O38: 50551.028 | P38: 58180.49687 | Q38: 67981.30098 | R38: 78172.55716 | S38: 85063.91006 | T38: 87528.01075 | U38: 96906.71789 | V38: 103866.3693 | X38: 728 | Y38: Namibia | AA38: 96906.71789 | AB38: 96906.71789 | AC38: 103866.3693 | AG38: Namibia | AH38: 96906.71789
B39: 692 | C39: Niger | X39: 692 | Y39: Niger | Z39: N.A | AA39: N.A. | AB39: n.a. | AC39: n.a. | AG39: Niger | AH39: n.a.
B40: 694 | C40: Nigeria | D40: Nigeria | E40: Financial Soundness Indicators, Core Set, Deposit Takers, Asset Quality, Total gross loans, National Currency | F40: Annual | G40: Millions | J40: 4082987.566 | U40: 0.9999688646 | V40: 0.999 | X40: 694 | Y40: Nigeria | AA40: 0.9999688646 | AB40: 0.9999688646 | AC40: 0.999 | AG40: Nigeria | AH40: 0.9999688646
B41: 714 | C41: Rwanda | D41: Rwanda | E41: Financial Soundness Indicators, Core Set, Deposit Takers, Asset Quality, Total gross loans, National Currency | F41: Annual | G41: Millions | K41: 506460.838 | L41: 566331.4079 | M41: 749195.6798 | N41: 903030.0792 | O41: 1020263.149 | P41: 1167814.688 | Q41: 1339778.97 | R41: 1516489.548 | S41: 1794863.392 | T41: 1982724.24 | U41: 2329910.893 | V41: 2487770.419 | X41: 714 | Y41: Rwanda | AA41: 2329910.893 | AB41: 2329910.893 | AC41: 2487770.419 | AG41: Rwanda | AH41: 2329910.893
B42: 716 | C42: São Tomé and Príncipe | X42: 716 | Y42: São Tomé and Príncipe | Z42: N.A | AA42: N.A. | AB42: n.a. | AC42: n.a. | AG42: São Tomé and Príncipe | AH42: n.a.
B43: 722 | C43: Senegal | X43: 722 | Y43: Senegal | Z43: N.A | AA43: N.A. | AB43: n.a. | AC43: n.a. | AG43: Senegal | AH43: n.a.
B44: 718 | C44: Seychelles | D44: Seychelles | E44: Financial Soundness Indicators, Core Set, Deposit Takers, Asset Quality, Total gross loans, National Currency | F44: Annual | G44: Millions | Q44: 5310.459916 | R44: 5953.876608 | S44: 6447.361727 | T44: 7368.645148 | U44: 7864.137943 | V44: 7924.137943 | X44: 718 | Y44: Seychelles | AA44: 7864.137943 | AB44: 7864.137943 | AC44: 7924.137943 | AG44: Seychelles | AH44: 7864.137943
B45: 724 | C45: Sierra Leone | X45: 724 | Y45: Sierra Leone | Z45: N.A | AA45: N.A. | AB45: n.a. | AC45: n.a. | AG45: Sierra Leone | AH45: n.a.
B46: 199 | C46: South Africa | D46: South Africa | E46: Financial Soundness Indicators, Core Set, Deposit Takers, Asset Quality, Total gross loans, National Currency | F46: Annual | G46: Millions | K46: 2316120.834 | L46: 2256940.179 | M46: 2312328.146 | N46: 2522158.918 | O46: 2753189.961 | P46: 2966725.533 | Q46: 3233902.183 | R46: 3600922.926 | S46: 3707641.131 | T46: 3800616.197 | U46: 4114628.319 | V46: 4283009.51 | X46: 199 | Y46: South Africa | AA46: 4114628.319 | AB46: 4114628.319 | AC46: 4283009.51 | AG46: South Africa | AH46: 4114628.319
B47: 733 | C47: South Sudan | D47: South Sudan, Rep. of | E47: Financial Soundness Indicators, Core Set, Deposit Takers, Asset Quality, Total gross loans, National Currency | F47: Annual | G47: Millions | X47: 733 | Y47: South Sudan | Z47: N.A | AA47: N.A. | AB47: n.a. | AC47: n.a. | AG47: South Sudan | AH47: n.a.
B48: 738 | C48: Tanzania | D48: Tanzania, United Rep. of | E48: Financial Soundness Indicators, Core Set, Deposit Takers, Asset Quality, Total gross loans, National Currency | F48: Annual | G48: Millions | M48: 6253284.443 | N48: 7803404.78 | O48: 9202115.942 | P48: 10574850.73 | Q48: 12561634.23 | R48: 15557510.24 | S48: 15922240.53 | T48: 16005150.56 | U48: 17661065.19 | V48: 19733432.56 | X48: 738 | Y48: Tanzania | AA48: 17661065.19 | AB48: 17661065.19 | AC48: 19733432.56 | AG48: Tanzania | AH48: 17661065.19
B49: 742 | C49: Togo | X49: 742 | Y49: Togo | Z49: N.A | AA49: N.A. | AB49: n.a. | AC49: n.a. | AG49: Togo | AH49: n.a.
B50: 746 | C50: Uganda | D50: Uganda | E50: Financial Soundness Indicators, Core Set, Deposit Takers, Asset Quality, Total gross loans, National Currency | F50: Annual | G50: Millions | H50: 1361807.591 | I50: 1823071.838 | J50: 2271131.483 | K50: 3578373.672 | L50: 4264371.751 | M50: 6218935.035 | N50: 7600489.636 | O50: 8114602.271 | P50: 8619167.621 | Q50: 9714792.217 | R50: 11183451.95 | S50: 11567894.88 | T50: 11917741.92 | U50: 13223288.73 | V50: 14772783.62 | X50: 746 | Y50: Uganda | AA50: 13223288.73 | AB50: 13223288.73 | AC50: 14772783.62 | AG50: Uganda | AH50: 13223288.73
B51: 754 | C51: Zambia | D51: Zambia | E51: Financial Soundness Indicators, Core Set, Deposit Takers, Asset Quality, Total gross loans, National Currency | F51: Annual | G51: Millions | M51: 9164.159051 | N51: 11979.11681 | O51: 16616.54498 | P51: 18980.38487 | Q51: 21664.97932 | R51: 26195.575 | S51: 23315.81 | T51: 24266.46 | U51: 28990.20529 | V51: 35472.64189 | X51: 754 | Y51: Zambia | AA51: 28990.20529 | AB51: 28990.20529 | AC51: 35472.64189 | AG51: Zambia | AH51: 28990.20529
B52: 698 | C52: Zimbabwe | X52: 698 | Y52: Zimbabwe | Z52: N.A | AA52: N.A. | AB52: n.a. | AC52: n.a. | AG52: Zimbabwe | AH52: n.a.
B54: =E56 -> Financial Soundness Indicators, Core Set, Deposit Takers, Asset Quality, Non-performing Loans to Total Gross Loans, Percent | X54: IFS Code | Y54: Country | Z54: 2017 | AA54: 2018 | AB54: Final 2018 | AC54: Final 2019 | AE54: Override data | AG54: Used in calculations
H55: 2005 | I55: 2006 | J55: 2007 | K55: 2008 | L55: 2009 | M55: 2010 | N55: 2011 | O55: 2012 | P55: 2013 | Q55: 2014 | R55: 2015 | S55: 2016 | T55: 2017 | U55: 2018 | V55: 2019 | AE55: =IF(Year="Other", AltYear, Year) -> 2018 | AG55: Country | AH55: =IF(Year="Other", AltYear, Year) -> 2018
B56: 614 | C56: Angola | D56: Angola | E56: Financial Soundness Indicators, Core Set, Deposit Takers, Asset Quality, Non-performing Loans to Total Gross Loans, Percent | F56: Annual | G56: Units | M56: 3.173050564 | N56: 2.014968215 | O56: 4.350118845 | P56: 7.97676918 | Q56: 10.19053207 | R56: 10.61123397 | S56: 11.28508581 | T56: 25.83606103 | U56: 23.24050574 | X56: =B56 -> 614 | Y56: =C56 -> Angola | Z56: =IF(ISNUMBER(AA56), "", IF(ISNUMBER(T56), T56, "N.A")) ->  | AA56: =IF(ISNUMBER(U56), U56, "N.A.") -> 23.24050574 | AB56: =IF(ISNUMBER(AA56), AA56, IF(ISNUMBER(Z56), Z56, "n.a.")) -> 23.24050574 | AC56: =IF(ISNUMBER($V56), $V56, IF(ISNUMBER($U56), $U56, "n.a.")) -> 23.24050574 | AG56: =C56 -> Angola | AH56: =IF(ISNUMBER($AE56), $AE56, IF(Year=2018, $AB56, IF(Year=2019, $AC56, IF(Year="Other", IF(ISNUMBER($AE56), $AE56, ""))))) -> 23.24050574
B57: 638 | C57: Benin | X57: 638 | Y57: Benin | Z57: N.A | AA57: N.A. | AB57: n.a. | AC57: =IF(ISNUMBER($V57), $V57, IF(ISNUMBER($U57), $U57, "n.a.")) -> n.a. | AG57: =C57 -> Benin | AH57: n.a.
B58: 616 | C58: Botswana | D58: Botswana | E58: Financial Soundness Indicators, Core Set, Deposit Takers, Asset Quality, Non-performing Loans to Total Gross Loans, Percent | F58: Annual | G58: Units | O58: 2.620608093 | P58: 3.613430059 | Q58: 3.549454903 | R58: 3.734355242 | S58: 4.852641333 | T58: 5.276903014 | U58: 5.426319239 | V58: 4.787974207 | X58: 616 | Y58: Botswana | AA58: 5.426319239 | AB58: 5.426319239 | AC58: 4.787974207 | AG58: Botswana | AH58: 5.426319239
B59: 748 | C59: Burkina Faso | X59: 748 | Y59: Burkina Faso | Z59: N.A | AA59: N.A. | AB59: n.a. | AC59: n.a. | AG59: Burkina Faso | AH59: n.a.
B60: 618 | C60: Burundi | D60: Burundi | E60: Financial Soundness Indicators, Core Set, Deposit Takers, Asset Quality, Non-performing Loans to Total Gross Loans, Percent | F60: Annual | G60: Units | M60: 9.315235749 | N60: 7.393107104 | O60: 8.168285441 | P60: 9.886951955 | Q60: 10.82291505 | R60: 17.91669651 | S60: 21.0565186 | T60: 14.19008522 | X60: 618 | Y60: Burundi | Z60: 14.19008522 | AA60: N.A. | AB60: 14.19008522 | AC60: n.a. | AG60: Burundi | AH60: 14.19008522
B61: 622 | C61: Cameroon | D61: Cameroon | E61: Financial Soundness Indicators, Core Set, Deposit Takers, Asset Quality, Non-performing Loans to Total Gross Loans, Percent | F61: Annual | G61: Units | M61: 10.10134847 | N61: 11.44671108 | O61: 11.55280071 | P61: 10.29533141 | Q61: 9.70168699 | R61: 9.315176962 | S61: 10.65187215 | T61: 10.83590406 | U61: 12.39271898 | V61: 12.81048264 | X61: 622 | Y61: Cameroon | AA61: 12.39271898 | AB61: 12.39271898 | AC61: 12.81048264 | AG61: Cameroon | AH61: 12.39271898
B62: 624 | C62: Cabo Verde | X62: 624 | Y62: Cabo Verde | Z62: N.A | AA62: N.A. | AB62: n.a. | AC62: n.a. | AG62: Cabo Verde | AH62: n.a.
B63: 626 | C63: Central African Republic | D63: Central African Rep. | E63: Financial Soundness Indicators, Core Set, Deposit Takers, Asset Quality, Non-performing Loans to Total Gross Loans, Percent | F63: Annual | G63: Units | M63: 12.63801359 | N63: 11.9962583 | O63: 9.58298324 | P63: 28.50158721 | Q63: 27.66216747 | R63: 30.86475245 | S63: 25.61074992 | T63: 22.9381611 | U63: 15.59115392 | V63: 12.58274357 | X63: 626 | Y63: Central African Republic | AA63: 15.59115392 | AB63: 15.59115392 | AC63: 12.58274357 | AG63: Central African Republic | AH63: 15.59115392
B64: 628 | C64: Chad | D64: Chad | E64: Financial Soundness Indicators, Core Set, Deposit Takers, Asset Quality, Non-performing Loans to Total Gross Loans, Percent | F64: Annual | G64: Units | M64: 9.919275219 | N64: 7.647697117 | O64: 7.373928104 | P64: 9.777181448 | Q64: 11.73776389 | R64: 17.01079435 | S64: 20.87771536 | T64: 25.81019056 | U64: 28.62624659 | V64: 22.85757799 | X64: 628 | Y64: Chad | AA64: 28.62624659 | AB64: 28.62624659 | AC64: 22.85757799 | AG64: Chad | AH64: 28.62624659
B65: 632 | C65: Comoros | D65: Comoros, Union of the | E65: Financial Soundness Indicators, Core Set, Deposit Takers, Asset Quality, Non-performing Loans to Total Gross Loans, Percent | F65: Annual | G65: Units | M65: 15.65958378 | N65: 17.62427566 | O65: 19.78331354 | P65: 18.86195978 | Q65: 20.29872135 | R65: 20.54764962 | S65: 21.67501073 | X65: 632 | Y65: Comoros | Z65: N.A | AA65: N.A. | AB65: n.a. | AC65: n.a. | AG65: Comoros | AH65: n.a.
B66: 636 | C66: Congo, Democratic Republic of the | X66: 636 | Y66: Congo, Democratic Republic of the | Z66: N.A | AA66: N.A. | AB66: n.a. | AC66: n.a. | AG66: Congo, Democratic Republic of the | AH66: n.a.
B67: 634 | C67: Congo, Republic of | D67: Congo, Rep. of | E67: Financial Soundness Indicators, Core Set, Deposit Takers, Asset Quality, Non-performing Loans to Total Gross Loans, Percent | F67: Annual | G67: Units | M67: 0.9643723387 | N67: 1.078087025 | O67: 1.519315059 | P67: 1.224875492 | Q67: 2.506063396 | R67: 3.572579699 | S67: 4.84773547 | T67: 13.2901315 | U67: 18.19747057 | V67: 23.07392863 | X67: 634 | Y67: Congo, Republic of | AA67: 18.19747057 | AB67: 18.19747057 | AC67: 23.07392863 | AG67: Congo, Republic of | AH67: 18.19747057
B68: 662 | C68: Côte d'Ivoire | X68: 662 | Y68: Côte d'Ivoire | Z68: N.A | AA68: N.A. | AB68: n.a. | AC68: n.a. | AG68: Côte d'Ivoire | AH68: n.a.
B69: 642 | C69: Equatorial Guinea | D69: Equatorial Guinea, Rep. of | E69: Financial Soundness Indicators, Core Set, Deposit Takers, Asset Quality, Non-performing Loans to Total Gross Loans, Percent | F69: Annual | G69: Units | M69: 4.72033073 | N69: 4.417818771 | O69: 5.767751007 | P69: 20.13022598 | Q69: 19.73517898 | R69: 16.79902771 | S69: 24.64187195 | T69: 27.20331564 | U69: 36.67750458 | V69: 48.81276857 | X69: 642 | Y69: Equatorial Guinea | AA69: 36.67750458 | AB69: 36.67750458 | AC69: 48.81276857 | AG69: Equatorial Guinea | AH69: 36.67750458
B70: 643 | C70: Eritrea | X70: 643 | Y70: Eritrea | Z70: N.A | AA70: N.A. | AB70: n.a. | AC70: n.a. | AG70: Eritrea | AH70: n.a.
B71: 734 | C71: Eswatini | D71: Eswatini, Kingdom of | E71: Financial Soundness Indicators, Core Set, Deposit Takers, Asset Quality, Non-performing Loans to Total Gross Loans, Percent | F71: Annual | G71: Units | L71: 5.869101756 | M71: 7.807413525 | N71: 3.52727008 | O71: 10.6707565 | P71: 6.793422406 | Q71: 6.870687906 | R71: 6.630271672 | S71: 9.621050685 | T71: 7.916834517 | U71: 9.315518663 | V71: 9.445937102 | X71: 734 | Y71: Eswatini | AA71: 9.315518663 | AB71: 9.315518663 | AC71: 9.445937102 | AG71: Eswatini | AH71: 9.315518663
B72: 644 | C72: Ethiopia | X72: 644 | Y72: Ethiopia | Z72: N.A | AA72: N.A. | AB72: n.a. | AC72: n.a. | AG72: Ethiopia | AH72: n.a.
B73: 646 | C73: Gabon | D73: Gabon | E73: Financial Soundness Indicators, Core Set, Deposit Takers, Asset Quality, Non-performing Loans to Total Gross Loans, Percent | F73: Annual | G73: Units | M73: 3.159006906 | N73: 2.778456701 | O73: 2.549806194 | P73: 2.742400869 | Q73: 4.067032102 | R73: 5.259199348 | S73: 10.65187215 | T73: 10.83590406 | U73: 12.39271898 | V73: 12.81048264 | X73: 646 | Y73: Gabon | AA73: 12.39271898 | AB73: 12.39271898 | AC73: 12.81048264 | AG73: Gabon | AH73: 12.39271898
B74: 648 | C74: Gambia, The | D74: Gambia, The | E74: Financial Soundness Indicators, Core Set, Deposit Takers, Asset Quality, Non-performing Loans to Total Gross Loans, Percent | F74: Annual | G74: Units | H74: 12.56851093 | I74: 13.18723002 | J74: 10.43608716 | K74: 13.67534668 | L74: 12.3091898 | M74: 14.51595428 | N74: 12.14590445 | O74: 12.03900482 | P74: 19.07047469 | Q74: 7.22312243 | R74: 6.486070011 | S74: 9.322760534 | T74: 7.33747092 | U74: 3.152658621 | V74: 4.546706808 | X74: 648 | Y74: Gambia, The | AA74: 3.152658621 | AB74: 3.152658621 | AC74: 4.546706808 | AG74: Gambia, The | AH74: 3.152658621
B75: 652 | C75: Ghana | D75: Ghana | E75: Financial Soundness Indicators, Core Set, Deposit Takers, Asset Quality, Non-performing Loans to Total Gross Loans, Percent | F75: Annual | G75: Units | K75: 7.677725668 | L75: 16.20000001 | M75: 18.0818565 | N75: 14.14598929 | O75: 13.19667147 | P75: 11.99893516 | Q75: 11.26917303 | R75: 14.67361734 | S75: 17.29440057 | T75: 21.59124922 | U75: 18.18715299 | V75: 13.94191126 | X75: 652 | Y75: Ghana | AA75: 18.18715299 | AB75: 18.18715299 | AC75: 13.94191126 | AG75: Ghana | AH75: 18.18715299
B76: 656 | C76: Guinea | D76: Guinea | E76: Financial Soundness Indicators, Core Set, Deposit Takers, Asset Quality, Non-performing Loans to Total Gross Loans, Percent | F76: Annual | G76: Units | P76: 6.202335649 | R76: 6.071753255 | S76: 9.442344658 | T76: 10.67558596 | U76: 11.8135088 | V76: 10.38581225 | X76: 656 | Y76: Guinea | AA76: 11.8135088 | AB76: 11.8135088 | AC76: 10.38581225 | AG76: Guinea | AH76: 11.8135088
B77: 654 | C77: Guinea-Bissau | X77: 654 | Y77: Guinea-Bissau | Z77: N.A | AA77: N.A. | AB77: n.a. | AC77: n.a. | AG77: Guinea-Bissau | AH77: n.a.
B78: 664 | C78: Kenya | D78: Kenya | E78: Financial Soundness Indicators, Core Set, Deposit Takers, Asset Quality, Non-performing Loans to Total Gross Loans, Percent | F78: Annual | G78: Units | I78: 19.35060098 | J78: 10.22965983 | K78: 9.006773508 | L78: 7.999081816 | M78: 6.291488753 | N78: 4.428670361 | O78: 4.594229561 | P78: 5.046417709 | Q78: 5.455119724 | R78: 5.988764074 | S78: 11.66126002 | T78: 9.949128289 | U78: 11.69122013 | V78: 12.01409248 | X78: 664 | Y78: Kenya | AA78: 11.69122013 | AB78: 11.69122013 | AC78: 12.01409248 | AG78: Kenya | AH78: 11.69122013
B79: 666 | C79: Lesotho | D79: Lesotho, Kingdom of | E79: Financial Soundness Indicators, Core Set, Deposit Takers, Asset Quality, Non-performing Loans to Total Gross Loans, Percent | F79: Annual | G79: Units | L79: 3.019809607 | M79: 3.034467085 | N79: 2.09514417 | O79: 2.464773514 | P79: 3.788017084 | Q79: 4.23976923 | R79: 4.037792202 | S79: 3.694411877 | T79: 4.416400172 | U79: 3.660464914 | V79: 3.299057371 | X79: 666 | Y79: Lesotho | AA79: 3.660464914 | AB79: 3.660464914 | AC79: 3.299057371 | AG79: Lesotho | AH79: 3.660464914
B80: 668 | C80: Liberia | X80: 668 | Y80: Liberia | Z80: N.A | AA80: N.A. | AB80: n.a. | AC80: n.a. | AG80: Liberia | AH80: n.a.
B81: 674 | C81: Madagascar | D81: Madagascar, Rep. of | E81: Financial Soundness Indicators, Core Set, Deposit Takers, Asset Quality, Non-performing Loans to Total Gross Loans, Percent | F81: Annual | G81: Units | H81: 7.606197091 | I81: 6.146283692 | J81: 6.697344487 | K81: 6.397523639 | L81: 8.103987647 | M81: 9.620968888 | N81: 10.69357547 | O81: 11.12574115 | P81: 11.62585083 | Q81: 10.11964791 | R81: 9.00695637 | S81: 8.363893243 | T81: 7.672621204 | U81: 7.269692181 | V81: 6.757445175 | X81: 674 | Y81: Madagascar | AA81: 7.269692181 | AB81: 7.269692181 | AC81: 6.757445175 | AG81: Madagascar | AH81: 7.269692181
B82: 676 | C82: Malawi | D82: Malawi | E82: Financial Soundness Indicators, Core Set, Deposit Takers, Asset Quality, Non-performing Loans to Total Gross Loans, Percent | F82: Annual | G82: Units | R82: 7.271711652 | S82: 10.29958033 | T82: 8.554333172 | U82: 2.82843527 | X82: 676 | Y82: Malawi | AA82: 2.82843527 | AB82: 2.82843527 | AC82: 2.82843527 | AG82: Malawi | AH82: 2.82843527
B83: 678 | C83: Mali | X83: 678 | Y83: Mali | Z83: N.A | AA83: N.A. | AB83: n.a. | AC83: n.a. | AG83: Mali | AH83: n.a.
B84: 684 | C84: Mauritius | D84: Mauritius | E84: Financial Soundness Indicators, Core Set, Deposit Takers, Asset Quality, Non-performing Loans to Total Gross Loans, Percent | F84: Annual | G84: Units | L84: 3.292428577 | M84: 2.764982333 | N84: 2.807577147 | O84: 3.637078983 | P84: 4.150372411 | Q84: 4.919750552 | R84: 7.19532078 | S84: 7.75660165 | T84: 7.029470394 | U84: 6.521797715 | V84: 4.940320713 | X84: 684 | Y84: Mauritius | AA84: 6.521797715 | AB84: 6.521797715 | AC84: 4.940320713 | AG84: Mauritius | AH84: 6.521797715
B85: 688 | C85: Mozambique | X85: 688 | Y85: Mozambique | Z85: N.A | AA85: N.A. | AB85: n.a. | AC85: n.a. | AG85: Mozambique | AH85: n.a.
B86: 728 | C86: Namibia | D86: Namibia | E86: Financial Soundness Indicators, Core Set, Deposit Takers, Asset Quality, Non-performing Loans to Total Gross Loans, Percent | F86: Annual | G86: Units | M86: 1.964727283 | N86: 1.486349269 | O86: 1.337351636 | P86: 1.285561383 | Q86: 1.453340824 | R86: 1.551695434 | S86: 1.544549224 | T86: 2.585572598 | U86: 3.579172902 | V86: 4.564924858 | X86: 728 | Y86: Namibia | AA86: 3.579172902 | AB86: 3.579172902 | AC86: 4.564924858 | AG86: Namibia | AH86: 3.579172902
B87: 692 | C87: Niger | X87: 692 | Y87: Niger | Z87: N.A | AA87: N.A. | AB87: n.a. | AC87: n.a. | AG87: Niger | AH87: n.a.
B88: 694 | C88: Nigeria | D88: Nigeria | E88: Financial Soundness Indicators, Core Set, Deposit Takers, Asset Quality, Non-performing Loans to Total Gross Loans, Percent | F88: Annual | G88: Units | J88: 9.502621235 | K88: 7.193590138 | L88: 37.25328727 | M88: 20.14309961 | N88: 5.771628604 | O88: 3.705224907 | P88: 3.393391176 | Q88: 2.959538371 | R88: 4.860885562 | S88: 12.81506412 | T88: 14.80962968 | U88: 11.67452611 | V88: 6.034723401 | X88: 694 | Y88: Nigeria | AA88: 11.67452611 | AB88: 11.67452611 | AC88: 6.034723401 | AG88: Nigeria | AH88: 11.67452611
B89: 714 | C89: Rwanda | D89: Rwanda | E89: Financial Soundness Indicators, Core Set, Deposit Takers, Asset Quality, Non-performing Loans to Total Gross Loans, Percent | F89: Annual | G89: Units | K89: 10.27102878 | L89: 8.583120497 | M89: 7.332349078 | N89: 5.592805084 | O89: 5.106210268 | P89: 5.932765129 | Q89: 5.223726418 | R89: 5.906127141 | S89: 7.616837479 | T89: 7.224935872 | U89: 5.811302934 | V89: 4.381527402 | X89: 714 | Y89: Rwanda | AA89: 5.811302934 | AB89: 5.811302934 | AC89: 4.381527402 | AG89: Rwanda | AH89: 5.811302934
B90: 716 | C90: São Tomé and Príncipe | X90: 716 | Y90: São Tomé and Príncipe | Z90: N.A | AA90: N.A. | AB90: n.a. | AC90: n.a. | AG90: São Tomé and Príncipe | AH90: n.a.
B91: 722 | C91: Senegal | X91: 722 | Y91: Senegal | Z91: N.A | AA91: N.A. | AB91: n.a. | AC91: n.a. | AG91: Senegal | AH91: n.a.
B92: 718 | C92: Seychelles | D92: Seychelles | E92: Financial Soundness Indicators, Core Set, Deposit Takers, Asset Quality, Non-performing Loans to Total Gross Loans, Percent | F92: Annual | G92: Units | I92: 4.364406989 | J92: 2.329894523 | K92: 2.028692283 | L92: 3.776282301 | M92: 5.466063659 | N92: 8.122779315 | O92: 9.008871749 | P92: 9.221476699 | Q92: 7.989879981 | R92: 7.587524255 | S92: 6.752184657 | T92: 8.122550965 | U92: 4.431036123 | V92: 3.490404514 | X92: 718 | Y92: Seychelles | AA92: 4.431036123 | AB92: 4.431036123 | AC92: 3.490404514 | AG92: Seychelles | AH92: 4.431036123
B93: 724 | C93: Sierra Leone | X93: 724 | Y93: Sierra Leone | Z93: N.A | AA93: N.A. | AB93: n.a. | AC93: n.a. | AG93: Sierra Leone | AH93: n.a.
B94: 199 | C94: South Africa | D94: South Africa | E94: Financial Soundness Indicators, Core Set, Deposit Takers, Asset Quality, Non-performing Loans to Total Gross Loans, Percent | F94: Annual | G94: Units | K94: 3.921515176 | L94: 5.936110059 | M94: 5.79213812 | N94: 4.680856038 | O94: 4.042891794 | P94: 3.641286725 | Q94: 3.244846693 | R94: 3.121685643 | S94: 2.857807896 | T94: 2.842000044 | U94: 3.728020835 | V94: 3.892390382 | X94: 199 | Y94: South Africa | AA94: 3.728020835 | AB94: 3.728020835 | AC94: 3.892390382 | AG94: South Africa | AH94: 3.728020835
B95: 733 | C95: South Sudan | D95: South Sudan, Rep. of | E95: Financial Soundness Indicators, Core Set, Deposit Takers, Asset Quality, Non-performing Loans to Total Gross Loans, Percent | F95: Annual | G95: Units | X95: 733 | Y95: South Sudan | Z95: N.A | AA95: N.A. | AB95: n.a. | AC95: n.a. | AG95: South Sudan | AH95: n.a.
B96: 738 | C96: Tanzania | D96: Tanzania, United Rep. of | E96: Financial Soundness Indicators, Core Set, Deposit Takers, Asset Quality, Non-performing Loans to Total Gross Loans, Percent | F96: Annual | G96: Units | M96: 7.843761225 | N96: 5.396372302 | O96: 6.401885496 | P96: 5.115144866 | Q96: 6.583984712 | R96: 8.582502699 | S96: 9.608099459 | T96: 11.52356212 | U96: 9.930090794 | V96: 9.6137167 | X96: 738 | Y96: Tanzania | AA96: 9.930090794 | AB96: 9.930090794 | AC96: 9.6137167 | AG96: Tanzania | AH96: 9.930090794
B97: 742 | C97: Togo | X97: 742 | Y97: Togo | Z97: N.A | AA97: N.A. | AB97: n.a. | AC97: n.a. | AG97: Togo | AH97: n.a.
B98: 746 | C98: Uganda | D98: Uganda | E98: Financial Soundness Indicators, Core Set, Deposit Takers, Asset Quality, Non-performing Loans to Total Gross Loans, Percent | F98: Annual | G98: Units | H98: 2.138988584 | I98: 2.752464601 | J98: 3.932448106 | K98: 2.090217969 | L98: 3.973991213 | M98: 1.861581935 | N98: 2.032127725 | O98: 4.055849074 | P98: 5.756889077 | Q98: 4.010596622 | R98: 5.126955531 | S98: 10.40131075 | T98: 5.505776835 | U98: 3.335699891 | V98: 4.749979565 | X98: 746 | Y98: Uganda | AA98: 3.335699891 | AB98: 3.335699891 | AC98: 4.749979565 | AG98: Uganda | AH98: 3.335699891
B99: 754 | C99: Zambia | D99: Zambia | E99: Financial Soundness Indicators, Core Set, Deposit Takers, Asset Quality, Non-performing Loans to Total Gross Loans, Percent | F99: Annual | G99: Units | M99: 14.82359421 | N99: 10.37619288 | O99: 8.105391321 | P99: 6.958362271 | Q99: 6.104317825 | R99: 7.279210099 | S99: 9.664944087 | T99: 11.98370305 | U99: 10.95119815 | V99: 8.907277924 | X99: 754 | Y99: Zambia | AA99: 10.95119815 | AB99: 10.95119815 | AC99: 8.907277924 | AG99: Zambia | AH99: 10.95119815
B100: 698 | C100: Zimbabwe | X100: 698 | Y100: Zimbabwe | Z100: N.A | AA100: N.A. | AB100: =IF(ISNUMBER(AA100), AA100, IF(ISNUMBER(Z100), Z100, "n.a.")) -> n.a. | AC100: n.a. | AD100: =IFERROR(AVERAGE(H100:Q100), "") ->  | AF100: =IF(ISNUMBER(Q100), Q100, "") ->  | AG100: Zimbabwe | AH100: n.a.
B102: =E104 -> Financial Soundness Indicators, Core Set, Deposit Takers, Asset Quality, Non-performing Loans, National Currency | X102: IFS Code | Y102: Country | Z102: 2017 | AA102: 2018 | AB102: Final 2018 | AC102: Final 2019 | AE102: Override data | AG102: Used in calculations
H103: 2005 | I103: 2006 | J103: 2007 | K103: 2008 | L103: 2009 | M103: 2010 | N103: 2011 | O103: 2012 | P103: 2013 | Q103: 2014 | R103: 2015 | S103: 2016 | T103: 2017 | U103: 2018 | V103: 2019 | AE103: =IF(Year="Other", AltYear, Year) -> 2018 | AG103: Country | AH103: =IF(Year="Other", AltYear, Year) -> 2018
B104: 614 | C104: Angola | D104: Angola | E104: Financial Soundness Indicators, Core Set, Deposit Takers, Asset Quality, Non-performing Loans, National Currency | F104: Annual | G104: Millions | M104: 59436.97346 | N104: 54510.34516 | O104: 138174.1163 | P104: 288407.3096 | Q104: 366422.4685 | R104: 407692.1719 | S104: 445005.96 | T104: 1040087.6 | U104: 1171456.87 | X104: =B104 -> 614 | Y104: =C104 -> Angola | Z104: =IF(ISNUMBER(AA104), "", IF(ISNUMBER(T104), T104, "N.A")) ->  | AA104: =IF(ISNUMBER(U104), U104, "N.A.") -> 1171456.87 | AB104: =IF(ISNUMBER(AA104), AA104, IF(ISNUMBER(Z104), Z104, "n.a.")) -> 1171456.87 | AC104: =IF(ISNUMBER($V104), $V104, IF(ISNUMBER($U104), $U104, "n.a.")) -> 1171456.87 | AG104: =C104 -> Angola | AH104: =IF(ISNUMBER($AE104), $AE104, IF(Year=2018, $AB104, IF(Year=2019, $AC104, IF(Year="Other", IF(ISNUMBER($AE104), $AE104, ""))))) -> 1171456.87
B105: 638 | C105: Benin | X105: 638 | Y105: Benin | Z105: N.A | AA105: N.A. | AB105: n.a. | AC105: =IF(ISNUMBER($V105), $V105, IF(ISNUMBER($U105), $U105, "n.a.")) -> n.a. | AG105: =C105 -> Benin | AH105: n.a.
B106: 616 | C106: Botswana | D106: Botswana | E106: Financial Soundness Indicators, Core Set, Deposit Takers, Asset Quality, Non-performing Loans, National Currency | F106: Annual | G106: Millions | O106: 901.332 | P106: 1431.095 | Q106: 1603.807 | R106: 1855.952 | S106: 2490.398 | T106: 2859.43 | U106: 3165.835 | V106: 3006.097 | X106: 616 | Y106: Botswana | AA106: 3165.835 | AB106: 3165.835 | AC106: 3006.097 | AG106: Botswana | AH106: 3165.835
B107: 748 | C107: Burkina Faso | X107: 748 | Y107: Burkina Faso | Z107: N.A | AA107: N.A. | AB107: n.a. | AC107: n.a. | AG107: Burkina Faso | AH107: n.a.
B108: 618 | C108: Burundi | D108: Burundi | E108: Financial Soundness Indicators, Core Set, Deposit Takers, Asset Quality, Non-performing Loans, National Currency | F108: Annual | G108: Millions | M108: 38238.4 | N108: 40223.7 | O108: 51655.6 | P108: 64914.8 | Q108: 83058.6 | R108: 133074.4 | S108: 153533.1 | T108: 100765.2 | X108: 618 | Y108: Burundi | Z108: 100765.2 | AA108: N.A. | AB108: 100765.2 | AC108: n.a. | AG108: Burundi | AH108: 100765.2
B109: 622 | C109: Cameroon | D109: Cameroon | E109: Financial Soundness Indicators, Core Set, Deposit Takers, Asset Quality, Non-performing Loans, National Currency | F109: Annual | G109: Millions | M109: 209874 | N109: 234077 | O109: 237583 | P109: 254839 | Q109: 269567 | R109: 302106 | S109: 366109 | T109: 380660 | U109: 463654 | V109: 489198 | X109: 622 | Y109: Cameroon | AA109: 463654 | AB109: 463654 | AC109: 489198 | AG109: Cameroon | AH109: 463654
B110: 624 | C110: Cabo Verde | X110: 624 | Y110: Cabo Verde | Z110: N.A | AA110: N.A. | AB110: n.a. | AC110: n.a. | AG110: Cabo Verde | AH110: n.a.
B111: 626 | C111: Central African Republic | D111: Central African Rep. | E111: Financial Soundness Indicators, Core Set, Deposit Takers, Asset Quality, Non-performing Loans, National Currency | F111: Annual | G111: Millions | M111: 15361 | N111: 15774 | O111: 15169 | P111: 38069 | Q111: 42218 | R111: 46007 | S111: 42426 | T111: 35261 | U111: 26804 | V111: 21993 | X111: 626 | Y111: Central African Republic | AA111: 26804 | AB111: 26804 | AC111: 21993 | AG111: Central African Republic | AH111: 26804
B112: 628 | C112: Chad | D112: Chad | E112: Financial Soundness Indicators, Core Set, Deposit Takers, Asset Quality, Non-performing Loans, National Currency | F112: Annual | G112: Millions | M112: 32452 | N112: 27205 | O112: 33038 | P112: 54652 | Q112: 77267 | R112: 116774 | S112: 152785 | T112: 183488 | U112: 207017 | V112: 174100 | X112: 628 | Y112: Chad | AA112: 207017 | AB112: 207017 | AC112: 174100 | AG112: Chad | AH112: 207017
B113: 632 | C113: Comoros | D113: Comoros, Union of the | E113: Financial Soundness Indicators, Core Set, Deposit Takers, Asset Quality, Non-performing Loans, National Currency | F113: Annual | G113: Millions | M113: 5138.300621 | N113: 6285.653754 | O113: 8506.228158 | P113: 9367.420197 | Q113: 11148.6358 | R113: 13153.20873 | S113: 16189.69463 | X113: 632 | Y113: Comoros | Z113: N.A | AA113: N.A. | AB113: n.a. | AC113: n.a. | AG113: Comoros | AH113: n.a.
B114: 636 | C114: Congo, Democratic Republic of the | X114: 636 | Y114: Congo, Democratic Republic of the | Z114: N.A | AA114: N.A. | AB114: n.a. | AC114: n.a. | AG114: Congo, Democratic Republic of the | AH114: n.a.
B115: 634 | C115: Congo, Republic of | D115: Congo, Rep. of | E115: Financial Soundness Indicators, Core Set, Deposit Takers, Asset Quality, Non-performing Loans, National Currency | F115: Annual | G115: Millions | M115: 4473 | N115: 6676 | O115: 14049 | P115: 14427 | Q115: 29779 | R115: 50876 | S115: 70767 | T115: 186136 | U115: 238016 | V115: 269102 | X115: 634 | Y115: Congo, Republic of | AA115: 238016 | AB115: 238016 | AC115: 269102 | AG115: Congo, Republic of | AH115: 238016
B116: 662 | C116: Côte d'Ivoire | X116: 662 | Y116: Côte d'Ivoire | Z116: N.A | AA116: N.A. | AB116: n.a. | AC116: n.a. | AG116: Côte d'Ivoire | AH116: n.a.
B117: 642 | C117: Equatorial Guinea | D117: Equatorial Guinea, Rep. of | E117: Financial Soundness Indicators, Core Set, Deposit Takers, Asset Quality, Non-performing Loans, National Currency | F117: Annual | G117: Millions | M117: 35430 | N117: 35703 | O117: 39952 | P117: 179992 | Q117: 202508 | R117: 204846 | S117: 312833 | T117: 344919 | U117: 470740 | V117: 498229 | X117: 642 | Y117: Equatorial Guinea | AA117: 470740 | AB117: 470740 | AC117: 498229 | AG117: Equatorial Guinea | AH117: 470740
B118: 643 | C118: Eritrea | X118: 643 | Y118: Eritrea | Z118: N.A | AA118: N.A. | AB118: n.a. | AC118: n.a. | AG118: Eritrea | AH118: n.a.
B119: 734 | C119: Eswatini | D119: Eswatini, Kingdom of | E119: Financial Soundness Indicators, Core Set, Deposit Takers, Asset Quality, Non-performing Loans, National Currency | F119: Annual | G119: Millions | L119: 303.707 | M119: 411.195 | N119: 241.9098821 | O119: 704.664 | P119: 556.244 | Q119: 618.112 | R119: 616.148 | S119: 986.5947175 | T119: 853.3657409 | U119: 1071.518 | V119: 1151.336 | X119: 734 | Y119: Eswatini | AA119: 1071.518 | AB119: 1071.518 | AC119: 1151.336 | AG119: Eswatini | AH119: 1071.518
B120: 644 | C120: Ethiopia | X120: 644 | Y120: Ethiopia | Z120: N.A | AA120: N.A. | AB120: n.a. | AC120: n.a. | AG120: Ethiopia | AH120: n.a.
B121: 646 | C121: Gabon | D121: Gabon | E121: Financial Soundness Indicators, Core Set, Deposit Takers, Asset Quality, Non-performing Loans, National Currency | F121: Annual | G121: Millions | M121: 34623 | N121: 36491 | O121: 42535 | P121: 51305 | Q121: 77074 | R121: 92790 | S121: 366109 | T121: 380660 | U121: 463654 | V121: 489198 | X121: 646 | Y121: Gabon | AA121: 463654 | AB121: 463654 | AC121: 489198 | AG121: Gabon | AH121: 463654
B122: 648 | C122: Gambia, The | D122: Gambia, The | E122: Financial Soundness Indicators, Core Set, Deposit Takers, Asset Quality, Non-performing Loans, National Currency | F122: Annual | G122: Millions | H122: 250023 | I122: 315668 | J122: 276166 | K122: 485096 | L122: 545925 | M122: 767670 | N122: 661726 | O122: 658088 | P122: 1154197 | Q122: 391697 | R122: 318714 | S122: 415889 | T122: 306060 | U122: 174653 | V122: 334198 | X122: 648 | Y122: Gambia, The | AA122: 174653 | AB122: 174653 | AC122: 334198 | AG122: Gambia, The | AH122: 174653
B123: 652 | C123: Ghana | D123: Ghana | E123: Financial Soundness Indicators, Core Set, Deposit Takers, Asset Quality, Non-performing Loans, National Currency | F123: Annual | G123: Millions | K123: 458.1148524 | L123: 1121.177563 | M123: 1445.587709 | N123: 1322.992974 | O123: 1719.034051 | P123: 2045.030561 | Q123: 2716.292463 | R123: 4417.108915 | S123: 6140.216551 | T123: 8190.493516 | U123: 6646.157164 | V123: 6297.564357 | X123: 652 | Y123: Ghana | AA123: 6646.157164 | AB123: 6646.157164 | AC123: 6297.564357 | AG123: Ghana | AH123: 6646.157164
B124: 656 | C124: Guinea | D124: Guinea | E124: Financial Soundness Indicators, Core Set, Deposit Takers, Asset Quality, Non-performing Loans, National Currency | F124: Annual | G124: Millions | P124: 260435.05 | R124: 457122.126 | S124: 758236.784 | T124: 873740.812 | U124: 1151225.97 | V124: 1261955.644 | X124: 656 | Y124: Guinea | AA124: 1151225.97 | AB124: 1151225.97 | AC124: 1261955.644 | AG124: Guinea | AH124: 1151225.97
B125: 654 | C125: Guinea-Bissau | X125: 654 | Y125: Guinea-Bissau | Z125: N.A | AA125: N.A. | AB125: n.a. | AC125: n.a. | AG125: Guinea-Bissau | AH125: n.a.
B126: 664 | C126: Kenya | D126: Kenya | E126: Financial Soundness Indicators, Core Set, Deposit Takers, Asset Quality, Non-performing Loans, National Currency | F126: Annual | G126: Millions | I126: 95597 | J126: 57276.321 | K126: 61470 | L126: 61296.343 | M126: 57846.548 | N126: 53066 | O126: 62217.438 | P126: 80592.216 | Q126: 107102.016 | R126: 139386.376 | S126: 287515.6897 | T126: 259186.3776 | U126: 308761.5452 | V126: 333348.9562 | X126: 664 | Y126: Kenya | AA126: 308761.5452 | AB126: 308761.5452 | AC126: 333348.9562 | AG126: Kenya | AH126: 308761.5452
B127: 666 | C127: Lesotho | D127: Lesotho, Kingdom of | E127: Financial Soundness Indicators, Core Set, Deposit Takers, Asset Quality, Non-performing Loans, National Currency | F127: Annual | G127: Millions | L127: 53.697428 | M127: 65.90143942 | N127: 55.91477631 | O127: 92.39853004 | P127: 171.6018767 | Q127: 213.7776075 | R127: 220.472849 | S127: 207.3978472 | T127: 272.6008133 | U127: 250.4352596 | V127: 244.4813337 | X127: 666 | Y127: Lesotho | AA127: 250.4352596 | AB127: 250.4352596 | AC127: 244.4813337 | AG127: Lesotho | AH127: 250.4352596
B128: 668 | C128: Liberia | X128: 668 | Y128: Liberia | Z128: N.A | AA128: N.A. | AB128: n.a. | AC128: n.a. | AG128: Liberia | AH128: n.a.
B129: 674 | C129: Madagascar | D129: Madagascar, Rep. of | E129: Financial Soundness Indicators, Core Set, Deposit Takers, Asset Quality, Non-performing Loans, National Currency | F129: Annual | G129: Millions | H129: 97554.18828 | I129: 102308.8975 | J129: 129386.8927 | K129: 158851.9765 | L129: 214814.4794 | M129: 278822.7666 | N129: 323162.4676 | O129: 339659.1246 | P129: 386796.5563 | Q129: 384291.8998 | R129: 408981.4421 | S129: 405222.789 | T129: 436816.8307 | U129: 457857.4251 | V129: 501635.1503 | X129: 674 | Y129: Madagascar | AA129: 457857.4251 | AB129: 457857.4251 | AC129: 501635.1503 | AG129: Madagascar | AH129: 457857.4251
B130: 676 | C130: Malawi | D130: Malawi | E130: Financial Soundness Indicators, Core Set, Deposit Takers, Asset Quality, Non-performing Loans, National Currency | F130: Annual | G130: Millions | R130: 35032.0147 | S130: 59572.56181 | T130: 60010.70615 | U130: 31437.86398 | X130: 676 | Y130: Malawi | AA130: 31437.86398 | AB130: 31437.86398 | AC130: 31437.86398 | AG130: Malawi | AH130: 31437.86398
B131: 678 | C131: Mali | X131: 678 | Y131: Mali | Z131: N.A | AA131: N.A. | AB131: n.a. | AC131: n.a. | AG131: Mali | AH131: n.a.
B132: 684 | C132: Mauritius | D132: Mauritius | E132: Financial Soundness Indicators, Core Set, Deposit Takers, Asset Quality, Non-performing Loans, National Currency | F132: Annual | G132: Millions | L132: 12156.76714 | M132: 11815.72643 | N132: 13953.62017 | O132: 20834.52126 | P132: 24492.57033 | Q132: 32079.31341 | R132: 45956.34305 | S132: 49763.61751 | T132: 47782.55859 | U132: 46235.51604 | V132: 36011.90116 | X132: 684 | Y132: Mauritius | AA132: 46235.51604 | AB132: 46235.51604 | AC132: 36011.90116 | AG132: Mauritius | AH132: 46235.51604
B133: 688 | C133: Mozambique | X133: 688 | Y133: Mozambique | Z133: N.A | AA133: N.A. | AB133: n.a. | AC133: n.a. | AG133: Mozambique | AH133: n.a.
B134: 728 | C134: Namibia | D134: Namibia | E134: Financial Soundness Indicators, Core Set, Deposit Takers, Asset Quality, Non-performing Loans, National Currency | F134: Annual | G134: Millions | M134: 760.844 | N134: 641.186 | O134: 676.045 | P134: 747.946 | Q134: 988 | R134: 1213 | S134: 1313.853963 | T134: 2263.100262 | U134: 3468.458986 | V134: 4741.421711 | X134: 728 | Y134: Namibia | AA134: 3468.458986 | AB134: 3468.458986 | AC134: 4741.421711 | AG134: Namibia | AH134: 3468.458986
B135: 692 | C135: Niger | X135: 692 | Y135: Niger | Z135: N.A | AA135: N.A. | AB135: n.a. | AC135: n.a. | AG135: Niger | AH135: n.a.
B136: 694 | C136: Nigeria | D136: Nigeria | E136: Financial Soundness Indicators, Core Set, Deposit Takers, Asset Quality, Non-performing Loans, National Currency | F136: Annual | G136: Millions | J136: 387990.8435 | K136: 463489.1987 | L136: 3053815.125 | M136: 1413697.599 | N136: 383311.2801 | O136: 286088.8164 | P136: 321656.4198 | Q136: 354671.764 | R136: 645403.4811 | S136: 2083489.137 | T136: 2363476.671 | U136: 1792478.597 | V136: 1059907.88 | X136: 694 | Y136: Nigeria | AA136: 1792478.597 | AB136: 1792478.597 | AC136: 1059907.88 | AG136: Nigeria | AH136: 1792478.597
B137: 714 | C137: Rwanda | D137: Rwanda | E137: Financial Soundness Indicators, Core Set, Deposit Takers, Asset Quality, Non-performing Loans, National Currency | F137: Annual | G137: Millions | K137: 52018.73844 | L137: 48608.90715 | M137: 54933.64252 | N137: 50504.71218 | O137: 52096.7817 | P137: 69283.70261 | Q137: 69986.388 | R137: 89565.80077 | S137: 127146.6059 | T137: 143250.5549 | U137: 135398.1801 | V137: 109002.3426 | X137: 714 | Y137: Rwanda | AA137: 135398.1801 | AB137: 135398.1801 | AC137: 109002.3426 | AG137: Rwanda | AH137: 135398.1801
B138: 716 | C138: São Tomé and Príncipe | X138: 716 | Y138: São Tomé and Príncipe | Z138: N.A | AA138: N.A. | AB138: n.a. | AC138: n.a. | AG138: São Tomé and Príncipe | AH138: n.a.
B139: 722 | C139: Senegal | X139: 722 | Y139: Senegal | Z139: N.A | AA139: N.A. | AB139: n.a. | AC139: n.a. | AG139: Senegal | AH139: n.a.
B140: 718 | C140: Seychelles | D140: Seychelles | E140: Financial Soundness Indicators, Core Set, Deposit Takers, Asset Quality, Non-performing Loans, National Currency | F140: Annual | G140: Millions | I140: 68.546416 | J140: 49.358 | K140: 67.720708 | L140: 112.194247 | M140: 213.8422997 | N140: 325.5917182 | O140: 386.6978022 | P140: 415.8893955 | Q140: 424.9438363 | R140: 445.205619 | S140: 427.4931816 | T140: 450.1001912 | U140: 264.9522895 | V140: 252.3889261 | X140: 718 | Y140: Seychelles | AA140: 264.9522895 | AB140: 264.9522895 | AC140: 252.3889261 | AG140: Seychelles | AH140: 264.9522895
B141: 724 | C141: Sierra Leone | X141: 724 | Y141: Sierra Leone | Z141: N.A | AA141: N.A. | AB141: n.a. | AC141: n.a. | AG141: Sierra Leone | AH141: n.a.
B142: 199 | C142: South Africa | D142: South Africa | E142: Financial Soundness Indicators, Core Set, Deposit Takers, Asset Quality, Non-performing Loans, National Currency | F142: Annual | G142: Millions | K142: 90827.03 | L142: 133974.453 | M142: 133933.24 | N142: 118058.628 | O142: 111308.491 | P142: 108027 | Q142: 104990 | R142: 112409.494 | S142: 105957.261 | T142: 108013.514 | U142: 153394.201 | V142: 166711.4502 | X142: 199 | Y142: South Africa | AA142: 153394.201 | AB142: 153394.201 | AC142: 166711.4502 | AG142: South Africa | AH142: 153394.201
B143: 733 | C143: South Sudan | D143: South Sudan, Rep. of | E143: Financial Soundness Indicators, Core Set, Deposit Takers, Asset Quality, Non-performing Loans, National Currency | F143: Annual | G143: Millions | X143: 733 | Y143: South Sudan | Z143: N.A | AA143: N.A. | AB143: n.a. | AC143: n.a. | AG143: South Sudan | AH143: n.a.
B144: 738 | C144: Tanzania | D144: Tanzania, United Rep. of | E144: Financial Soundness Indicators, Core Set, Deposit Takers, Asset Quality, Non-performing Loans, National Currency | F144: Annual | G144: Millions | M144: 490492.7004 | N144: 421100.7741 | O144: 589108.9258 | P144: 540918.9341 | Q144: 833721.3267 | R144: 1378654.032 | S144: 1558815.833 | T144: 1871687.121 | U144: 1787132.112 | V144: 1941303.57 | X144: 738 | Y144: Tanzania | AA144: 1787132.112 | AB144: 1787132.112 | AC144: 1941303.57 | AG144: Tanzania | AH144: 1787132.112
B145: 742 | C145: Togo | X145: 742 | Y145: Togo | Z145: N.A | AA145: N.A. | AB145: n.a. | AC145: n.a. | AG145: Togo | AH145: n.a.
B146: 746 | C146: Uganda | D146: Uganda | E146: Financial Soundness Indicators, Core Set, Deposit Takers, Asset Quality, Non-performing Loans, National Currency | F146: Annual | G146: Millions | H146: 29128.9089 | I146: 50179.407 | J146: 89311.067 | K146: 74795.80951 | L146: 169465.7587 | M146: 115770.5712 | N146: 154451.6571 | O146: 329116.0211 | P146: 496195.9193 | Q146: 389621.1285 | R146: 573370.6082 | S146: 1203212.694 | T146: 656164.2742 | U146: 441089.2279 | V146: 701704.2032 | X146: 746 | Y146: Uganda | AA146: 441089.2279 | AB146: 441089.2279 | AC146: 701704.2032 | AG146: Uganda | AH146: 441089.2279
B147: 754 | C147: Zambia | D147: Zambia | E147: Financial Soundness Indicators, Core Set, Deposit Takers, Asset Quality, Non-performing Loans, National Currency | F147: Annual | G147: Millions | M147: 1358.45775 | N147: 1242.976265 | O147: 1346.835994 | P147: 1320.723939 | Q147: 1322.499194 | R147: 1906.830941 | S147: 2253.46 | T147: 2908.02 | U147: 3174.774825 | V147: 3159.6468 | X147: 754 | Y147: Zambia | AA147: 3174.774825 | AB147: 3174.774825 | AC147: 3159.6468 | AG147: Zambia | AH147: 3174.774825
B148: 698 | C148: Zimbabwe | X148: 698 | Y148: Zimbabwe | Z148: N.A | AA148: N.A. | AB148: n.a. | AC148: n.a. | AG148: Zimbabwe | AH148: n.a.
B150: =E152 -> Financial Soundness Indicators, Core Set, Deposit Takers, Capital Adequacy, Non-performing Loans Net of Provisions, National Currency | X150: IFS Code | Y150: Country | Z150: 2017 | AA150: 2018 | AB150: Final 2018 | AC150: Final 2019 | AE150: Override data | AG150: Used in calculations
H151: 2005 | I151: 2006 | J151: 2007 | K151: 2008 | L151: 2009 | M151: 2010 | N151: 2011 | O151: 2012 | P151: 2013 | Q151: 2014 | R151: 2015 | S151: 2016 | T151: 2017 | U151: 2018 | V151: 2019 | AE151: =IF(Year="Other", AltYear, Year) -> 2018 | AG151: Country | AH151: =IF(Year="Other", AltYear, Year) -> 2018
B152: 614 | C152: Angola | D152: Angola | E152: Financial Soundness Indicators, Core Set, Deposit Takers, Capital Adequacy, Non-performing Loans Net of Provisions, National Currency | F152: Annual | G152: Millions | M152: -39525.08485 | N152: -79789.58246 | O152: -24457.76118 | P152: 80911.96115 | Q152: 121878.3016 | R152: 49892.7936 | S152: 93124.14 | T152: 607874.42 | U152: 433018 | X152: =B152 -> 614 | Y152: =C152 -> Angola | Z152: =IF(ISNUMBER(AA152), "", IF(ISNUMBER(T152), T152, "N.A")) ->  | AA152: =IF(ISNUMBER(U152), U152, "N.A.") -> 433018 | AB152: =IF(ISNUMBER(AA152), AA152, IF(ISNUMBER(Z152), Z152, "n.a.")) -> 433018 | AC152: =IF(ISNUMBER($V152), $V152, IF(ISNUMBER($U152), $U152, "n.a.")) -> 433018 | AG152: =C152 -> Angola | AH152: =IF(ISNUMBER($AE152), $AE152, IF(Year=2018, $AB152, IF(Year=2019, $AC152, IF(Year="Other", IF(ISNUMBER($AE152), $AE152, ""))))) -> 433018
B153: 638 | C153: Benin | X153: 638 | Y153: Benin | Z153: N.A | AA153: N.A. | AB153: n.a. | AC153: =IF(ISNUMBER($V153), $V153, IF(ISNUMBER($U153), $U153, "n.a.")) -> n.a. | AG153: =C153 -> Benin | AH153: n.a.
B154: 616 | C154: Botswana | D154: Botswana | E154: Financial Soundness Indicators, Core Set, Deposit Takers, Capital Adequacy, Non-performing Loans Net of Provisions, National Currency | F154: Annual | G154: Millions | O154: 114.443 | P154: 510.986 | Q154: 832.345 | R154: 849.762 | S154: 1208.582 | T154: 1323.775 | U154: 1813.881 | V154: 1231.583963 | X154: 616 | Y154: Botswana | AA154: 1813.881 | AB154: 1813.881 | AC154: 1231.583963 | AG154: Botswana | AH154: 1813.881
B155: 748 | C155: Burkina Faso | X155: 748 | Y155: Burkina Faso | Z155: N.A | AA155: N.A. | AB155: n.a. | AC155: n.a. | AG155: Burkina Faso | AH155: n.a.
B156: 618 | C156: Burundi | D156: Burundi | E156: Financial Soundness Indicators, Core Set, Deposit Takers, Capital Adequacy, Non-performing Loans Net of Provisions, National Currency | F156: Annual | G156: Millions | M156: 4778.5 | N156: 7922.1 | O156: 11462.1 | P156: 10283.6 | Q156: 6729.1 | R156: 29659.8 | S156: 16343 | T156: 16165.2 | X156: 618 | Y156: Burundi | Z156: 16165.2 | AA156: N.A. | AB156: 16165.2 | AC156: n.a. | AG156: Burundi | AH156: 16165.2
B157: 622 | C157: Cameroon | D157: Cameroon | E157: Financial Soundness Indicators, Core Set, Deposit Takers, Capital Adequacy, Non-performing Loans Net of Provisions, National Currency | F157: Annual | G157: Millions | M157: 32517 | N157: 12564 | O157: 13295 | P157: 59498 | Q157: 35999 | R157: 33997 | S157: 44571 | T157: 24239 | U157: 37611 | V157: 39305 | X157: 622 | Y157: Cameroon | AA157: 37611 | AB157: 37611 | AC157: 39305 | AG157: Cameroon | AH157: 37611
B158: 624 | C158: Cabo Verde | X158: 624 | Y158: Cabo Verde | Z158: N.A | AA158: N.A. | AB158: n.a. | AC158: n.a. | AG158: Cabo Verde | AH158: n.a.
B159: 626 | C159: Central African Republic | D159: Central African Rep. | E159: Financial Soundness Indicators, Core Set, Deposit Takers, Capital Adequacy, Non-performing Loans Net of Provisions, National Currency | F159: Annual | G159: Millions | M159: 390 | N159: 1337 | O159: 691 | P159: 20267 | Q159: 18363 | R159: 14520 | S159: 7737 | T159: 2091 | U159: 332 | V159: 3547 | X159: 626 | Y159: Central African Republic | AA159: 332 | AB159: 332 | AC159: 3547 | AG159: Central African Republic | AH159: 332
B160: 628 | C160: Chad | D160: Chad | E160: Financial Soundness Indicators, Core Set, Deposit Takers, Capital Adequacy, Non-performing Loans Net of Provisions, National Currency | F160: Annual | G160: Millions | M160: 6123 | N160: 3004 | O160: 11734 | P160: 18949 | Q160: 24461 | R160: 48041 | S160: 66678 | T160: 85232 | U160: 89998 | V160: 61711 | X160: 628 | Y160: Chad | AA160: 89998 | AB160: 89998 | AC160: 61711 | AG160: Chad | AH160: 89998
B161: 632 | C161: Comoros | D161: Comoros, Union of the | E161: Financial Soundness Indicators, Core Set, Deposit Takers, Capital Adequacy, Non-performing Loans Net of Provisions, National Currency | F161: Annual | G161: Millions | M161: 2000.218486 | N161: 2563.055286 | O161: 2858.882705 | P161: 3187.304472 | Q161: 4364.510547 | R161: 5097.033212 | S161: 5236.227631 | X161: 632 | Y161: Comoros | Z161: N.A | AA161: N.A. | AB161: n.a. | AC161: n.a. | AG161: Comoros | AH161: n.a.
B162: 636 | C162: Congo, Democratic Republic of the | X162: 636 | Y162: Congo, Democratic Republic of the | Z162: N.A | AA162: N.A. | AB162: n.a. | AC162: n.a. | AG162: Congo, Democratic Republic of the | AH162: n.a.
B163: 634 | C163: Congo, Republic of | D163: Congo, Rep. of | E163: Financial Soundness Indicators, Core Set, Deposit Takers, Capital Adequacy, Non-performing Loans Net of Provisions, National Currency | F163: Annual | G163: Millions | M163: -241 | N163: 395 | O163: 1479 | P163: 596 | Q163: 10562 | R163: 13800 | S163: 25539 | T163: 107621 | U163: 132643 | V163: 157006 | X163: 634 | Y163: Congo, Republic of | AA163: 132643 | AB163: 132643 | AC163: 157006 | AG163: Congo, Republic of | AH163: 132643
B164: 662 | C164: Côte d'Ivoire | X164: 662 | Y164: Côte d'Ivoire | Z164: N.A | AA164: N.A. | AB164: n.a. | AC164: n.a. | AG164: Côte d'Ivoire | AH164: n.a.
B165: 642 | C165: Equatorial Guinea | D165: Equatorial Guinea, Rep. of | E165: Financial Soundness Indicators, Core Set, Deposit Takers, Capital Adequacy, Non-performing Loans Net of Provisions, National Currency | F165: Annual | G165: Millions | M165: -4418 | N165: -8858 | O165: -17144 | P165: 100179 | Q165: 105610 | R165: 93946 | S165: 188849 | T165: 204317 | U165: 303926 | V165: 327305 | X165: 642 | Y165: Equatorial Guinea | AA165: 303926 | AB165: 303926 | AC165: 327305 | AG165: Equatorial Guinea | AH165: 303926
B166: 643 | C166: Eritrea | X166: 643 | Y166: Eritrea | Z166: N.A | AA166: N.A. | AB166: n.a. | AC166: n.a. | AG166: Eritrea | AH166: n.a.
B167: 734 | C167: Eswatini | D167: Eswatini, Kingdom of | E167: Financial Soundness Indicators, Core Set, Deposit Takers, Capital Adequacy, Non-performing Loans Net of Provisions, National Currency | F167: Annual | G167: Millions | L167: 26.216 | M167: 250.486 | N167: 88.93688205 | O167: 572.509 | P167: 373.426 | Q167: 361.5509899 | R167: 441.1648897 | S167: 763.6535798 | T167: 640.2243733 | U167: 866.6445 | V167: 746.3309954 | X167: 734 | Y167: Eswatini | AA167: 866.6445 | AB167: 866.6445 | AC167: 746.3309954 | AG167: Eswatini | AH167: 866.6445
B168: 644 | C168: Ethiopia | X168: 644 | Y168: Ethiopia | Z168: N.A | AA168: N.A. | AB168: n.a. | AC168: n.a. | AG168: Ethiopia | AH168: n.a.
B169: 646 | C169: Gabon | D169: Gabon | E169: Financial Soundness Indicators, Core Set, Deposit Takers, Capital Adequacy, Non-performing Loans Net of Provisions, National Currency | F169: Annual | G169: Millions | M169: 3234 | N169: -7435 | O169: -4327 | P169: -957 | Q169: 498 | R169: 16533 | S169: 44571 | T169: 24239 | U169: 37611 | V169: 39305 | X169: 646 | Y169: Gabon | AA169: 37611 | AB169: 37611 | AC169: 39305 | AG169: Gabon | AH169: 37611
B170: 648 | C170: Gambia, The | D170: Gambia, The | E170: Financial Soundness Indicators, Core Set, Deposit Takers, Capital Adequacy, Non-performing Loans Net of Provisions, National Currency | F170: Annual | G170: Millions | H170: 96059.55 | I170: 116817.1 | J170: 93616.7 | K170: 272130.15 | L170: 323136.25 | M170: 417860.85 | N170: 345631.55 | O170: 388120 | P170: 236995.3 | Q170: 185235 | R170: 107019.1 | S170: 145263.75 | T170: 108990.6 | U170: 70012.7 | V170: 195564.2 | X170: 648 | Y170: Gambia, The | AA170: 70012.7 | AB170: 70012.7 | AC170: 195564.2 | AG170: Gambia, The | AH170: 70012.7
B171: 652 | C171: Ghana | D171: Ghana | E171: Financial Soundness Indicators, Core Set, Deposit Takers, Capital Adequacy, Non-performing Loans Net of Provisions, National Currency | F171: Annual | G171: Millions | K171: 85.25426192 | L171: 350.4517 | M171: 424.4295938 | N171: 314.5771996 | O171: 379.6602435 | P171: 443.8537163 | Q171: 828.2642904 | R171: 1353.983436 | S171: 1691.558157 | T171: 1824.884946 | U171: 1893.431786 | V171: 1087.106952 | X171: 652 | Y171: Ghana | AA171: 1893.431786 | AB171: 1893.431786 | AC171: 1087.106952 | AG171: Ghana | AH171: 1893.431786
B172: 656 | C172: Guinea | D172: Guinea | E172: Financial Soundness Indicators, Core Set, Deposit Takers, Capital Adequacy, Non-performing Loans Net of Provisions, National Currency | F172: Annual | G172: Millions | P172: 97658.558 | Q172: 122432.1425 | R172: 119172.468 | S172: 295215.917 | T172: 272014.097 | U172: 519638.4269 | V172: 484156.575 | X172: 656 | Y172: Guinea | AA172: 519638.4269 | AB172: 519638.4269 | AC172: 484156.575 | AG172: Guinea | AH172: 519638.4269
B173: 654 | C173: Guinea-Bissau | X173: 654 | Y173: Guinea-Bissau | Z173: N.A | AA173: N.A. | AB173: n.a. | AC173: n.a. | AG173: Guinea-Bissau | AH173: n.a.
B174: 664 | C174: Kenya | D174: Kenya | E174: Financial Soundness Indicators, Core Set, Deposit Takers, Capital Adequacy, Non-performing Loans Net of Provisions, National Currency | F174: Annual | G174: Millions | K174: 55338.70985 | L174: 54627.94211 | M174: 52141.32998 | N174: 44587.36766 | O174: 51849.87311 | P174: 68452.40983 | Q174: 42626.36015 | R174: 59905.38266 | S174: 151356.1382 | T174: 70466.68985 | U174: 61261.71491 | V174: 115544.1436 | X174: 664 | Y174: Kenya | AA174: 61261.71491 | AB174: 61261.71491 | AC174: 115544.1436 | AG174: Kenya | AH174: 61261.71491
B175: 666 | C175: Lesotho | D175: Lesotho, Kingdom of | E175: Financial Soundness Indicators, Core Set, Deposit Takers, Capital Adequacy, Non-performing Loans Net of Provisions, National Currency | F175: Annual | G175: Millions | L175: 19.46938 | M175: 27.54974062 | N175: 17.02022689 | O175: 25.80342262 | P175: 79.89674306 | Q175: 83.26783309 | R175: 82.39567615 | S175: 92.4150958 | T175: 122.4884042 | U175: 120.4314457 | V175: 108.4711261 | X175: 666 | Y175: Lesotho | AA175: 120.4314457 | AB175: 120.4314457 | AC175: 108.4711261 | AG175: Lesotho | AH175: 120.4314457
B176: 668 | C176: Liberia | X176: 668 | Y176: Liberia | Z176: N.A | AA176: N.A. | AB176: n.a. | AC176: n.a. | AG176: Liberia | AH176: n.a.
B177: 674 | C177: Madagascar | D177: Madagascar, Rep. of | E177: Financial Soundness Indicators, Core Set, Deposit Takers, Capital Adequacy, Non-performing Loans Net of Provisions, National Currency | F177: Annual | G177: Millions | H177: 44267.86274 | I177: 45540.23821 | J177: 62838.4462 | K177: 70369.90122 | L177: 96482.58793 | M177: 112153.6873 | N177: 124294.1224 | O177: 119810.1448 | P177: 151963.5449 | Q177: 145343.4974 | R177: 158612.8271 | S177: 143555.0497 | T177: 164468.3856 | U177: 177480.0724 | V177: 187859.1997 | X177: 674 | Y177: Madagascar | AA177: 177480.0724 | AB177: 177480.0724 | AC177: 187859.1997 | AG177: Madagascar | AH177: 177480.0724
B178: 676 | C178: Malawi | D178: Malawi | E178: Financial Soundness Indicators, Core Set, Deposit Takers, Capital Adequacy, Non-performing Loans Net of Provisions, National Currency | F178: Annual | G178: Millions | R178: 21546.22258 | S178: 40634.10561 | T178: 35717.18493 | U178: 18395.25144 | X178: 676 | Y178: Malawi | AA178: 18395.25144 | AB178: 18395.25144 | AC178: 18395.25144 | AG178: Malawi | AH178: 18395.25144
B179: 678 | C179: Mali | X179: 678 | Y179: Mali | Z179: N.A | AA179: N.A. | AB179: n.a. | AC179: n.a. | AG179: Mali | AH179: n.a.
B180: 684 | C180: Mauritius | D180: Mauritius | E180: Financial Soundness Indicators, Core Set, Deposit Takers, Capital Adequacy, Non-performing Loans Net of Provisions, National Currency | F180: Annual | G180: Millions | L180: 7536.232722 | M180: 6117.582652 | N180: 8168.483276 | O180: 12116.84252 | P180: 14121.85294 | Q180: 20093.58146 | R180: 25182.27515 | S180: 25774.05695 | T180: 23785.60353 | U180: 21825.48757 | V180: 18149.24056 | X180: 684 | Y180: Mauritius | AA180: 21825.48757 | AB180: 21825.48757 | AC180: 18149.24056 | AG180: Mauritius | AH180: 21825.48757
B181: 688 | C181: Mozambique | X181: 688 | Y181: Mozambique | Z181: N.A | AA181: N.A. | AB181: n.a. | AC181: n.a. | AG181: Mozambique | AH181: n.a.
B182: 728 | C182: Namibia | D182: Namibia | E182: Financial Soundness Indicators, Core Set, Deposit Takers, Capital Adequacy, Non-performing Loans Net of Provisions, National Currency | F182: Annual | G182: Millions | M182: 395.177 | N182: 324.948 | O182: 386.51 | P182: 420.593538 | Q182: 612.962174 | R182: 745.268087 | S182: 882.7145178 | T182: 1602.513262 | U182: 2368.620404 | V182: 3188.104772 | X182: 728 | Y182: Namibia | AA182: 2368.620404 | AB182: 2368.620404 | AC182: 3188.104772 | AG182: Namibia | AH182: 2368.620404
B183: 692 | C183: Niger | X183: 692 | Y183: Niger | Z183: N.A | AA183: N.A. | AB183: n.a. | AC183: n.a. | AG183: Niger | AH183: n.a.
B184: 694 | C184: Nigeria | D184: Nigeria | E184: Financial Soundness Indicators, Core Set, Deposit Takers, Capital Adequacy, Non-performing Loans Net of Provisions, National Currency | F184: Annual | G184: Millions | J184: 151730.8977 | K184: 155016.8525 | L184: 770649.4034 | M184: 282943.2685 | N184: 135809.9341 | O184: 84223.28869 | P184: 142112.5694 | Q184: 126171.6268 | R184: 179167.3388 | S184: 1127201 | T184: 540172.8082 | U184: 1792478.597 | V184: 1064064.608 | X184: 694 | Y184: Nigeria | AA184: 1792478.597 | AB184: 1792478.597 | AC184: 1064064.608 | AG184: Nigeria | AH184: 1792478.597
B185: 714 | C185: Rwanda | D185: Rwanda | E185: Financial Soundness Indicators, Core Set, Deposit Takers, Capital Adequacy, Non-performing Loans Net of Provisions, National Currency | F185: Annual | G185: Millions | K185: 28236.79644 | L185: 27783.0408 | M185: 34669.58749 | N185: 30828.87544 | O185: 34642.28477 | P185: 45822.4463 | Q185: 30215.36022 | R185: 48141.75151 | S185: 72825.12299 | T185: 76312.6499 | U185: 43119.02995 | V185: 20192.70907 | X185: 714 | Y185: Rwanda | AA185: 43119.02995 | AB185: 43119.02995 | AC185: 20192.70907 | AG185: Rwanda | AH185: 43119.02995
B186: 716 | C186: São Tomé and Príncipe | X186: 716 | Y186: São Tomé and Príncipe | Z186: N.A | AA186: N.A. | AB186: n.a. | AC186: n.a. | AG186: São Tomé and Príncipe | AH186: n.a.
B187: 722 | C187: Senegal | X187: 722 | Y187: Senegal | Z187: N.A | AA187: N.A. | AB187: n.a. | AC187: n.a. | AG187: Senegal | AH187: n.a.
B188: 718 | C188: Seychelles | D188: Seychelles | E188: Financial Soundness Indicators, Core Set, Deposit Takers, Capital Adequacy, Non-performing Loans Net of Provisions, National Currency | F188: Annual | G188: Millions | I188: 38.987416 | J188: 5.774 | K188: 27.82726 | L188: 74.272839 | M188: 280.5562579 | N188: 215.4607068 | O188: 272.7920111 | P188: 254.6228432 | Q188: 238.3818757 | R188: 263.6189608 | S188: 270.7434279 | T188: 289.2925153 | U188: 214.0202411 | V188: 189.0085519 | X188: 718 | Y188: Seychelles | AA188: 214.0202411 | AB188: 214.0202411 | AC188: 189.0085519 | AG188: Seychelles | AH188: 214.0202411
B189: 724 | C189: Sierra Leone | X189: 724 | Y189: Sierra Leone | Z189: N.A | AA189: N.A. | AB189: n.a. | AC189: n.a. | AG189: Sierra Leone | AH189: n.a.
B190: 199 | C190: South Africa | D190: South Africa | E190: Financial Soundness Indicators, Core Set, Deposit Takers, Capital Adequacy, Non-performing Loans Net of Provisions, National Currency | F190: Annual | G190: Millions | K190: 62328.446 | L190: 94365.221 | M190: 90311.463 | N190: 76892.36 | O190: 66507.086 | P190: 58507.29 | Q190: 53448.43 | R190: 58692.053 | S190: 59467.699 | T190: 62015.616 | U190: 83386.135 | V190: 91335.55997 | X190: 199 | Y190: South Africa | AA190: 83386.135 | AB190: 83386.135 | AC190: 91335.55997 | AG190: South Africa | AH190: 83386.135
B191: 733 | C191: South Sudan | D191: South Sudan, Rep. of | E191: Financial Soundness Indicators, Core Set, Deposit Takers, Capital Adequacy, Non-performing Loans Net of Provisions, National Currency | F191: Annual | G191: Millions | X191: 733 | Y191: South Sudan | Z191: N.A | AA191: N.A. | AB191: n.a. | AC191: n.a. | AG191: South Sudan | AH191: n.a.
B192: 738 | C192: Tanzania | D192: Tanzania, United Rep. of | E192: Financial Soundness Indicators, Core Set, Deposit Takers, Capital Adequacy, Non-performing Loans Net of Provisions, National Currency | F192: Annual | G192: Millions | M192: 229697.9345 | N192: 191596.1594 | O192: 339431.4761 | P192: 266331.8521 | Q192: 505316.9084 | R192: 974944.2063 | S192: 1052121.478 | T192: 1083995.298 | U192: 828612.247 | V192: 903687.3508 | X192: 738 | Y192: Tanzania | AA192: 828612.247 | AB192: 828612.247 | AC192: 903687.3508 | AG192: Tanzania | AH192: 828612.247
B193: 742 | C193: Togo | X193: 742 | Y193: Togo | Z193: N.A | AA193: N.A. | AB193: n.a. | AC193: n.a. | AG193: Togo | AH193: n.a.
B194: 746 | C194: Uganda | D194: Uganda | E194: Financial Soundness Indicators, Core Set, Deposit Takers, Capital Adequacy, Non-performing Loans Net of Provisions, National Currency | F194: Annual | G194: Millions | H194: 9672.479877 | I194: 29383.45924 | J194: 42446.72635 | K194: 16457.83017 | L194: 72558.44682 | M194: 40575.58211 | N194: 75765.32533 | O194: 178163.9894 | P194: 174562.8534 | Q194: 199264.1552 | R194: 334612.0577 | S194: 477071.9805 | T194: 298242.2312 | U194: 202615.7614 | V194: 394830.9033 | X194: 746 | Y194: Uganda | AA194: 202615.7614 | AB194: 202615.7614 | AC194: 394830.9033 | AG194: Uganda | AH194: 202615.7614
B195: 754 | C195: Zambia | D195: Zambia | E195: Financial Soundness Indicators, Core Set, Deposit Takers, Capital Adequacy, Non-performing Loans Net of Provisions, National Currency | F195: Annual | G195: Millions | M195: 267.7174004 | N195: 289.1024886 | O195: 354.4882989 | P195: 217.8968927 | Q195: 311.0459303 | R195: 562.5399182 | S195: 661.31 | T195: 974.68 | U195: 432.5008706 | V195: 266.3344126 | X195: 754 | Y195: Zambia | AA195: 432.5008706 | AB195: 432.5008706 | AC195: 266.3344126 | AG195: Zambia | AH195: 432.5008706
B196: 698 | C196: Zimbabwe | X196: 698 | Y196: Zimbabwe | Z196: N.A | AA196: N.A. | AB196: n.a. | AC196: n.a. | AG196: Zimbabwe | AH196: n.a.

Sheet Input_Data_Fitch
B2: This Input sheet contains bank-level data on NPLs and other variables from the Fitch Connect database. The ratio CRWA/RWA is then calculated for each country, as explained in section "Structure and Calibration of the Template" of the How to Note. Downloaded in May 2019. Difficulty/Necessity to update: Difficult. The data are primarily used to calibrate the parameters, and will be time consuming to update. Source: Fitch Connect. Instructions: Update the cells highlighted in yellow. For the countries under analysis, please check data availability for each bank in the Fitch Connect database (the list of banks is reported under fitchnickname), and import bank-level data to this sheet.
B4: fitchentityid | C4: fitchnickname | D4: country | E4: year | F4: nonperformingloansgrossloans | G4: totalassets | H4: riskweightedassetscreditrisk | I4: memototalweightedrisks | J4: riskweightedassetsmarketrisk | K4: riskweightedassetsoperationalmar | L4: riskweightedassetsother
C5: Fitch bank name | F5: NPL ratio | G5: TA | H5: Credit_RWA | I5: Total_RWA | J5: Market_RWA | K5: Operational_RWA | L5: Other_RWA | M5: CRWA/RWA | N5: RWA | O5: Specific LLR/ NPLs | P5: sLLR/NPLs* TA | Q5: gross NPLs | R5: LLR | S5: Specific LLR/Total Provisions | T5: Banks with sLLR available
B6: 1000152 | C6: afrifrs | D6: Angola | F6: 26.61 | G6: 8214.2 | I6: 4870.826842 | M6: =IF(H6<>"",IF(I6<>"",H6/I6,""),"") ->  | N6: =IF(M6<>"", IF(I6<>"",I6,""),"") ->  | O6: =IF(S6<>"",S6*R6/(Q6*100),"") -> 0.4682787969 | P6: =IF(O6<>"", IF(G6<>"",O6*G6,""),"") -> 3846.535694 | Q6: 730.7821809 | R6: 530.6401 | S6: 64.49 | T6: =IF(ISNUMBER(P6), D6, "") -> Angola
B7: 1097870 | C7: banbicif | D7: Angola | E7: 2017 | F7: 12.07 | G7: 6070.734 | O7: =IF(S7<>"",S7*R7/(Q7*100),"") ->  | Q7: 269.6345061 | R7: 527.6353
B8: 1432532 | C8: bancang | D8: Angola | E8: 2017 | F8: 45.43 | G8: 2213.711 | H8: 69.66647 | I8: 175.3503 | J8: 67.27775 | K8: 38.40612 | M8: =IF(H8<>"",IF(I8<>"",H8/I8,""),"") -> 0.3972988355 | N8: 175.3503 | O8: 0.5912933655 | P8: 1308.952628 | Q8: 223.7952217 | R8: 172.1908 | S8: 76.85 | T8: Angola
B9: 1009016 | C9: bapcsaif | D9: Angola | E9: 2017 | F9: 77.95 | G9: 11130.78 | I9: 9126.19469 | Q9: 6072.812455 | R9: 1011.577
B10: 1001198 | C10: bcaifrs | D10: Angola | E10: 2017 | F10: 3.5 | G10: 256.1164 | I10: 120.9538 | O10: 0.3205620022 | P10: 82.10118597 | Q10: 2.65871935 | R10: 1.777444 | S10: 47.95 | T10: Angola
B11: 1371815 | C11: bkwanz | D11: Angola | E11: 2017 | F11: 0.62 | G11: 103.6995 | O11: 0.9986933121 | P11: 103.5639971 | Q11: 0.0024026395 | R11: 0.0023995 | S11: 100 | T11: Angola
B12: 1190530 | C12: bnifrs | D12: Angola | E12: 2017 | F12: 12.16 | G12: 1600.449 | H12: 694.7858 | I12: 694.7858 | M12: 1 | N12: 694.7858 | O12: 1.181071833 | P12: 1890.245234 | Q12: 77.5194528 | R12: 97.96281 | S12: 93.46 | T12: Angola
B13: 1043287 | C13: bsolifrs | D13: Angola | E13: 2017 | F13: 15.63 | G13: 2851.086 | O13: 0.3089600592 | P13: 880.8716993 | Q13: 178.2698406 | R13: 100.015 | S13: 55.07 | T13: Angola
B14: 1271150 | C14: finibani | D14: Angola | E14: 2017 | F14: 7.26 | G14: 466.3365 | I14: 304.8938 | O14: 2.994723059 | P14: 1396.54867 | Q14: 11.63372892 | R14: 23.83023 | S14: 146.2 | T14: Angola
B15: 1004440 | C15: fomifrs | D15: Angola | E15: 2017 | F15: 6.08 | G15: 8656.655 | I15: 1942.713 | O15: 1.74247702 | P15: 15084.0224 | Q15: 77.8836448 | R15: 112.3617 | S15: 120.78 | T15: Angola
B16: 1004936 | C16: golifrs | D16: Angola | E16: 2017 | F16: 15.16 | G16: 1770.597 | O16: 0.09787045447 | P16: 173.2891331 | Q16: 84.63035132 | R16: 66.31554 | S16: 12.49 | T16: Angola
B17: 1193970 | C17: privatif | D17: Angola | E17: 2017 | F17: 7.26 | G17: 6416.685 | I17: 3524.338969 | O17: 1.359238009 | P17: 8721.802146 | Q17: 191.0899518 | R17: 258.2903 | S17: 100.56 | T17: Angola
B18: 1085591 | C18: regsarl | D18: Angola | E18: 2017 | F18: 30.56 | G18: 905.8596 | Q18: 124.4353082 | R18: 71.15537
B19: 1010098 | C19: sananif | D19: Angola | E19: 2017 | F19: 19.68 | G19: 5522.831 | I19: 3784.306452 | O19: 0.2494741999 | P19: 1377.803845 | Q19: 236.224944 | R19: 127.5309 | S19: 46.21 | T19: Angola
B20: 1326671 | C20: sbanifrs | D20: Angola | E20: 2017 | F20: 3.67 | G20: 1906.565 | H20: 22.55789 | I20: 42.27895 | J20: 3.437912 | K20: 16.28314 | M20: 0.5335489647 | N20: 42.27895 | O20: 0.3767878742 | P20: 718.3705734 | Q20: 8.04617039 | R20: 8.862027 | S20: 34.21 | T20: Angola
B21: 1477932 | C21: valorif | D21: Angola | E21: 2017 | F21: 11.05 | G21: 232.3755 | I21: 84.92381 | Q21: 5.46958425 | R21: 8.845831
B22: 115309 | C22: benin | D22: Benin | E22: 2017 | F22: 16.45 | G22: 1781.779 | I22: 613.4913 | Q22: 138.0590102 | R22: 106.7557
B23: 1003622 | C23: ecoben | D23: Benin | E23: 2017 | F23: 10.32 | G23: 1134.477 | Q23: 43.66661352 | R23: 43.44603
B24: 1001106 | C24: barbots | D24: Botswana | E24: 2017 | F24: 4.48 | G24: 1539.728 | H24: 962.9952 | I24: 1080.892 | J24: 18.85696 | K24: 99.03968 | M24: 0.890926383 | N24: 1080.892 | O24: 0.9552891398 | P24: 1470.885437 | Q24: 51.1540736 | R24: 52.61864 | S24: 92.87 | T24: Botswana
B25: 1011025 | C25: stanbot | D25: Botswana | E25: 2017 | F25: 7.07 | G25: 1524.01 | H25: 695.9295 | I25: 793.1404 | J25: 9.062719 | K25: 88.14816 | M25: 0.8774354452 | N25: 793.1404 | O25: 0.4720951359 | P25: 719.4777081 | Q25: 57.48147552 | R25: 41.91 | S25: 64.75 | T25: Botswana
B26: 1011919 | C26: ulc | D26: Botswana | E26: 2017 | F26: 3.63 | G26: 825.6321 | H26: 527.5479 | I26: 632.4803 | J26: 11.62304 | K26: 60.53328 | L26: 32.77616 | M26: 0.834093805 | N26: 632.4803 | O26: 0.1580592555 | P26: 130.498795 | Q26: 21.72094716 | R26: 9.560559 | S26: 35.91 | T26: Botswana
B27: 1000151 | C27: afribur | D27: Burkina Faso | E27: 2017 | F27: 5.21 | G27: 1384.34 | I27: 722.5634 | Q27: 41.92924119 | R27: 31.98099
B28: 1305570 | C28: cbiu | D28: Burkina Faso | E28: 2017 | F28: 5.13 | G28: 2069.679 | Q28: 52.7671287 | R28: 37.54274
B29: 1003624 | C29: ecofaso | D29: Burkina Faso | E29: 2017 | F29: 5.15 | G29: 1631.752 | Q29: 38.33530735 | R29: 42.71854
B30: 1004741 | C30: banfin | D30: Burundi | E30: 2017 | F30: 3.7 | G30: 57.83778 | M30: =IF(H30<>"",IF(I30<>"",H30/I30,""),"") ->  | Q30: 1.49086949 | R30: 1.490972
B31: 1002844 | C31: crebuj | D31: Burundi | E31: 2017 | F31: 0.56 | G31: 217.3131 | I31: 122.5964 | Q31: 0.439504408 | R31: 4.983132
B32: 1001060 | C32: bankiaif | D32: Cabo Verde | E32: 2017 | F32: 13.85 | G32: 278.8692 | I32: 151.9514 | Q32: 28.2310921 | R32: 13.94541
B33: 1001205 | C33: bcdai | D33: Cabo Verde | E33: 2017 | F33: 13.42 | G33: 964.3903 | I33: 331.951577 | Q33: 59.79899662 | R33: 44.55387
B34: 1001948 | C34: capii | D34: Cabo Verde | E34: 2017 | F34: 5.39 | G34: 782.1778 | I34: 283.6882763 | Q34: 29.43948469 | R34: 38.50816
B35: 1429411 | C35: ecocv | D35: Cabo Verde | E35: 2017 | F35: 0.45 | G35: 79.70908 | H35: 38.78523 | I35: 40.55803 | K35: 1.772804 | M35: 0.9562897902 | N35: 40.55803 | Q35: 0.09557559 | R35: 0.1504394
B36: 1024944 | C36: verdifrs | D36: Cabo Verde | E36: 2017 | F36: 14.73 | G36: 179.5002 | I36: 102.8064 | Q36: 17.15115537 | R36: 13.50816
B37: 1003623 | C37: ecocam | D37: Cameroon | E37: 2017 | F37: 5.2 | G37: 878.4922 | Q37: 21.9702184 | R37: 17.79714
B38: 1010773 | C38: sogcamer | D38: Cameroon | E38: 2017 | F38: 8.97 | G38: 1567.278 | Q38: 105.9687096 | R38: 81.58923
B39: 1011027 | C39: stanchca | D39: Cameroon | E39: 2017 | F39: 3.38 | G39: 409.6886 | Q39: 6.13940834 | R39: 6.112572
B40: 1266250 | C40: ubacamer | D40: Cameroon | E40: 2017 | F40: 19.73 | G40: 588.803 | Q40: 45.71452838 | R40: 12.00964
B41: 1418450 | C41: boardc | D41: Congo, Democratic Republic of the | E41: 2017 | F41: 10.35 | G41: 206.3112 | I41: 117.3708 | Q41: 13.43443455 | R41: 8.058258
B42: 1273951 | C42: ecordc | D42: Congo, Democratic Republic of the | E42: 2017 | F42: 6.8 | G42: 378.6197 | Q42: 9.0426128 | R42: 4.281705
B43: 1154990 | C43: procredu | D43: Congo, Democratic Republic of the | E43: 2017 | F43: 8.1 | G43: 408.9448 | Q43: 17.1870093 | R43: 5.385906
B44: 1375490 | C44: sofic | D44: Congo, Democratic Republic of the | E44: 2017 | F44: 1.26 | G44: 142.3573 | Q44: 0.921103596 | R44: 5.759416
B45: 1000153 | C45: africi | D45: Côte d'Ivoire | E45: 2017 | F45: 6.98 | G45: 1174.766 | I45: 561.9673 | Q45: 46.0020041 | R45: 34.3834
B46: 1002639 | C46: comdeco | D46: Côte d'Ivoire | E46: 2017 | F46: 11.02 | G46: 1041.233 | I46: 810.7717 | Q46: 84.75660524 | R46: 60.86334
B47: 1003620 | C47: ecob | D47: Côte d'Ivoire | E47: 2017 | F47: 3.07 | G47: 2382.171 | Q47: 33.5874578 | R47: 23.3127
B48: 1010353 | C48: scswaz | D48: Eswatini | E48: 2017 | F48: 4.23 | G48: 385.7965 | I48: 260.9404 | O48: 0.2523293574 | P48: 97.34778294 | Q48: 12.18246768 | R48: 7.880016 | S48: 39.01 | T48: Eswatini
B49: 1011056 | C49: staswaz | D49: Eswatini | E49: 2017 | F49: 4.59 | G49: 533.1091 | O49: 0.247120054 | P49: 131.7419496 | Q49: 11.07702405 | R49: 7.563843 | S49: 36.19 | T49: Eswatini
B50: 1139890 | C50: finbankg | D50: Gabon | E50: 2017 | F50: 14.31 | G50: 299.2532 | Q50: 35.00968689 | R50: 19.76441
B51: 1011733 | C51: trugamu | D51: Gambia, The | E51: 2017 | F51: 1.71 | G51: 128.5422 | I51: 48.03676 | O51: 0.8340104302 | P51: 107.2055355 | Q51: 0.342714267 | R51: 0.3780284 | S51: 75.61 | T51: Gambia, The
B52: 1302370 | C52: accbnke | D52: Ghana | E52: 2017 | F52: 15.36 | G52: 724.7035 | I52: 470.407 | O52: 0.2157121693 | P52: 156.3273641 | Q52: 33.07633152 | R52: 16.54677 | S52: 43.12 | T52: Ghana
B53: 1000159 | C53: agbankui | D53: Ghana | E53: 2017 | F53: 32.03 | G53: 802.9672 | I53: 384.3715 | O53: 0.5233466813 | P53: 420.2302193 | Q53: 108.1620109 | R53: 79.61495 | S53: 71.1 | T53: Ghana
B54: 1475435 | C54: akwapim | D54: Ghana | E54: 2017 | F54: 3.88 | G54: 13.74254 | Q54: 0.1332777672 | R54: 0.1189355
B55: 1503200 | C55: bangha | D55: Ghana | E55: 2017 | F55: 1.72 | G55: 87.93214 | I55: 49.75667 | O55: 0.209489952 | P55: 18.42089979 | Q55: 0.566382928 | R55: 0.467316 | S55: 25.39 | T55: Ghana
B56: 1432530 | C56: cityunc | D56: Ghana | E56: 2017 | F56: 50.34 | G56: 303.0837 | O56: 0.07718209767 | P56: 23.39263574 | Q56: 12.06407665 | R56: 3.59094 | S56: 25.93 | T56: Ghana
B57: 1364730 | C57: ebgli | D57: Ghana | E57: 2017 | F57: 19.99 | G57: 85.31248 | I57: 44.2899 | O57: 0.845449409 | P57: 72.1273858 | Q57: 4.926653441 | R57: 4.5294 | S57: 91.96 | T57: Ghana
B58: 1003621 | C58: ecobanui | D58: Ghana | E58: 2017 | F58: 15.29 | G58: 2060.861 | I58: 1350.26 | O58: 0.1794016512 | P58: 369.7218663 | Q58: 100.4776387 | R58: 48.81087 | S58: 36.93 | T58: Ghana
B59: 1004171 | C59: fideliti | D59: Ghana | E59: 2017 | F59: 27.64 | G59: 1218.12 | I59: 482.8086 | O59: 0.2948922499 | P59: 359.2141474 | Q59: 76.78472156 | R59: 45.23216 | S59: 50.06 | T59: Ghana
B60: 1001124 | C60: ghanbari | D60: Ghana | E60: 2017 | F60: 14.23 | G60: 1348.584 | I60: 939.9547 | O60: 0.06657220307 | P60: 89.7782079 | Q60: 73.06774864 | R60: 19.7735 | S60: 24.6 | T60: Ghana
B61: 1004853 | C61: ghancomi | D61: Ghana | E61: 2017 | F61: 9.91 | G61: 2164.938 | I61: 1033.681 | O61: 1.007719088 | P61: 2181.649347 | Q61: 53.02467393 | R61: 59.56965 | S61: 89.7 | T61: Ghana
B62: 1005389 | C62: hfclui | D62: Ghana | E62: 2017 | F62: 25.15 | G62: 470.9173 | I62: 237.5311 | O62: 0.3032477017 | P62: 142.8045889 | Q62: 54.13942415 | R62: 31.82333 | S62: 51.59 | T62: Ghana
B63: 1424493 | C63: leasa | D63: Ghana | E63: 2017 | F63: 6.93 | G63: 18.92029 | I63: 5.32231 | O63: 1.198180091 | P63: 22.6699148 | Q63: 0.3153895668 | R63: 0.3778935 | S63: 100 | T63: Ghana
B64: 1009146 | C64: prubanuc | D64: Ghana | E64: 2017 | F64: 15.44 | G64: 494.8664 | I64: 355.1626 | O64: 0.6867534126 | P64: 339.851189 | Q64: 37.53783608 | R64: 33.4231 | S64: 77.13 | T64: Ghana
B65: 1010255 | C65: scbu | D65: Ghana | E65: 2017 | F65: 42.43 | G65: 1081.993 | H65: 492.5255 | I65: 621.4722 | J65: 2.582106 | K65: 126.3647 | M65: 0.7925141302 | N65: 621.4722 | O65: 0.2264058432 | P65: 244.9695375 | Q65: 167.5672715 | R65: 81.06455 | S65: 46.8 | T65: Ghana
B66: 1010980 | C66: ssbgi | D66: Ghana | E66: 2017 | F66: 14.76 | G66: 631.8687 | I66: 587.9275 | O66: 0.4932360276 | P66: 311.6604076 | Q66: 52.72813692 | R66: 37.96149 | S66: 68.51 | T66: Ghana
B67: 1011024 | C67: stanbkui | D67: Ghana | E67: 2017 | F67: 22.96 | G67: 1192.118 | H67: 695.5833 | I67: 818.1201 | J67: 4.05436 | K67: 118.4824 | M67: 0.8502215017 | N67: 818.1201 | O67: 0.0434837337 | P67: 51.83774165 | Q67: 103.01578 | R67: 24.03171 | S67: 18.64 | T67: Ghana
B68: 1193511 | C68: trstbkgi | D68: Ghana | E68: 2017 | F68: 19.91 | G68: 424.4394 | I68: 202.4236 | K68: 54.26954 | L68: 148.154 | N68: =IF(M68<>"", IF(I68<>"",I68,""),"") ->  | O68: 0.0382132662 | P68: 16.21921578 | Q68: 18.77808265 | R68: 4.507361 | S68: 15.92 | T68: Ghana
B69: 1253230 | C69: uniafrgh | D69: Ghana | E69: 2017 | F69: 43.67 | G69: 671.1891 | I69: 427.5878 | O69: 0.09523966774 | P69: 63.92382687 | Q69: 126.084155 | R69: 39.84145 | S69: 30.14 | T69: Ghana
B70: 1151390 | C70: zenithbi | D70: Ghana | E70: 2017 | F70: 6.83 | G70: 1058.981 | I70: 654.6999 | O70: 0.5466981989 | P70: =IF(O70<>"", IF(G70<>"",O70*G70,""),"") -> 578.9430054 | Q70: 14.37316811 | R70: 11.82333 | S70: 66.46 | T70: =IF(ISNUMBER(P70), D70, "") -> Ghana
B71: 1003625 | C71: ecoguine | D71: Guinea | E71: 2017 | F71: 12.4 | G71: 463.366 | O71: =IF(S71<>"",S71*R71/(Q71*100),"") ->  | Q71: 15.1755664 | R71: 17.80279
B72: 1000023 | C72: abcl | D72: Kenya | E72: 2017 | F72: 18.44 | G72: 240.2789 | I72: 186.372 | Q72: 28.11432472 | R72: 3.449522
B73: 1011035 | C73: bicifrs | D73: Kenya | E73: 2017 | F73: 6.43 | G73: 2319.132 | H73: 1547.222 | I73: 2007.22 | J73: 152.2652 | K73: 307.732 | M73: 0.7708283098 | N73: 2007.22 | O73: 0.2240173444 | P73: 519.5257921 | Q73: 84.5856855 | R73: 50.99209 | S73: 37.16 | T73: Kenya
B74: 1054073 | C74: boakeny | D74: Kenya | E74: 2017 | F74: 24.39 | G74: 524.9482 | H74: 372.3265 | I74: 428.8857 | L74: 56.55918 | M74: 0.8681252371 | N74: 428.8857 | O74: 0.2973121763 | P74: 156.0734918 | Q74: 74.71254555 | R74: 41.01357 | S74: 54.16 | T74: Kenya
B75: 1288730 | C75: boikenya | D75: Kenya | E75: 2017 | F75: 2.06 | G75: 548.5786 | I75: 198.6647 | Q75: 4.14343868 | R75: 1.185682
B76: 1002095 | C76: cbl | D76: Kenya | E76: 2017 | F76: 7.02 | G76: 140.1227 | I76: 161.5667 | O76: 0.2530636573 | P76: 35.45996293 | Q76: 6.859739016 | R76: 3.767254 | S76: 46.08 | T76: Kenya
B77: 1133670 | C77: citiken | D77: Kenya | E77: 2017 | F77: 4.51 | G77: 951.5672 | I77: 749.2718 | J77: 42.50632 | K77: 151.8332 | L77: 554.9323 | O77: 0.1025916921 | P77: 97.62288919 | Q77: 16.68021696 | R77: 5.369475 | S77: 31.87 | T77: Kenya
B78: 114990 | C78: comafu | D78: Kenya | E78: 2017 | F78: 5.78 | G78: 2223.398 | H78: 1136.853 | I78: 1461.741 | J78: 74.78613 | K78: 250.1015 | M78: 0.7777390112 | N78: 1461.741 | O78: 0.4474554811 | P78: 994.8716217 | Q78: 59.1529246 | R78: 41.05522 | S78: 64.47 | T78: Kenya
B79: 1002709 | C79: conkenu | D79: Kenya | E79: 2017 | F79: 19.37 | G79: 130.3447 | I79: 113.1978 | O79: 0.06718801306 | P79: 8.757601406 | Q79: 16.66077815 | R79: 4.438559 | S79: 25.22 | T79: Kenya
B80: 1002734 | C80: coopken | D80: Kenya | E80: 2017 | F80: 6.77 | G80: 3708.45 | I80: 3461.244 | O80: 0.2267003653 | P80: 840.7069696 | Q80: 172.1838472 | R80: 98.72064 | S80: 39.54 | T80: Kenya
B81: 1003110 | C81: dbken | D81: Kenya | E81: 2017 | F81: 18.69 | G81: 158.09 | I81: 78.0797 | Q81: 18.70291479 | R81: 10.95109
B82: 1003206 | C82: delphu | D82: Kenya | E82: 2017 | F82: 9.89 | G82: 102.454 | H82: 69.95913 | I82: 84.39558 | J82: 3.744005 | K82: 10.69245 | M82: 0.828943056 | N82: 84.39558 | Q82: 7.176958387 | R82: 2.116598
B83: 114989 | C83: diamke | D83: Kenya | E83: 2017 | F83: 6.72 | G83: 2616.265 | I83: 1976.511 | O83: 0.571461343 | P83: 1495.094311 | Q83: 102.6252192 | R83: 88.49607 | S83: 66.27 | T83: Kenya
B84: 1003582 | C84: easten | D84: Kenya | E84: 2017 | F84: 39.34 | G84: 49.60685 | I84: 19.63157 | O84: 0.03401605554 | P84: 1.687429365 | Q84: 11.4001419 | R84: 2.154377 | S84: 18 | T84: Kenya
B85: 1003668 | C85: egcl | D85: Kenya | E85: 2017 | F85: 33.12 | G85: 107.9891 | I85: 92.38829 | Q85: 21.67057498 | R85: 14.68251
B86: 1466296 | C86: equitbk | D86: Kenya | E86: 2017 | F86: 6.71 | G86: 3936.785 | I86: 3624.943 | O86: 0.1081554164 | P86: 425.784621 | Q86: 142.871333 | R86: 51.52487 | S86: 29.99 | T86: Kenya
B87: 1232522 | C87: familkei | D87: Kenya | E87: 2017 | F87: 18.2 | G87: 668.8924 | I87: 641.3447 | O87: 0.08293435541 | P87: 55.47416004 | Q87: 80.9746392 | R87: 23.80567 | S87: 28.21 | T87: Kenya
B88: 1004056 | C88: fcbl | D88: Kenya | E88: 2017 | F88: 47.66 | G88: 113.7742 | I88: 61.33097 | O88: 0.5127738281 | P88: 58.34043207 | Q88: 31.07151759 | R88: 22.52603 | S88: 70.73 | T88: Kenya
B89: 1447323 | C89: fcblken | D89: Kenya | E89: 2017 | F89: 37.55 | G89: 168.1654 | I89: 127.6091 | Q89: 38.4231126 | R89: 8.102162
B90: 1004209 | C90: finab | D90: Kenya | E90: 2017 | F90: 8.45 | G90: 267.629 | I90: 192.995 | J90: 12.27046 | K90: 37.34899 | L90: 143.3755 | O90: 0.06571133867 | P90: 17.58625986 | Q90: 11.06094015 | R90: 2.992298 | S90: 24.29 | T90: Kenya
B91: 1141490 | C91: fualuk | D91: Kenya | E91: 2017 | F91: 16.49 | G91: 250.1707 | I91: 198.4082 | Q91: 28.14476922 | R91: 3.162053
B92: 1004744 | C92: gblu | D92: Kenya | E92: 2017 | F92: 9.58 | G92: 155.9269 | I92: 113.7199 | M92: =IF(H92<>"",IF(I92<>"",H92/I92,""),"") ->  | O92: 0.3337293487 | P92: 52.03738279 | Q92: 9.457623164 | R92: 5.626179 | S92: 56.1 | T92: Kenya
B93: 1260590 | C93: gulfafri | D93: Kenya | E93: 2017 | F93: 9.01 | G93: 303.3584 | I93: 289.1282 | Q93: 17.44069304 | R93: 5.796669
B94: 1005135 | C94: habhouse | D94: Kenya | E94: 2017 | F94: 36.73 | G94: 311.9 | Q94: 106.70065 | R94: 41.7
B95: 1479396 | C95: hfcltd | D95: Kenya | E95: 2017 | F95: 13.53 | G95: 601.8171 | I95: 518.984 | Q95: 67.32607827 | R95: 16.7497
B96: 1450765 | C96: jamii | D96: Kenya | E96: 2017 | F96: 12.39 | G96: 124.485 | I96: 117.7555 | Q96: 10.71669953 | R96: 5.986533
B97: 1001192 | C97: kbarken | D97: Kenya | E97: 2017 | F97: 3.94 | G97: 2635.557 | I97: 2360.98 | O97: 0.9982020219 | P97: 2630.818326 | Q97: 67.1189638 | R97: 72.27431 | S97: 92.7 | T97: Kenya
B98: 1479911 | C98: kcbken | D98: Kenya | E98: 2017 | F98: 7.32 | G98: 5382.361 | I98: 4688.349 | O98: 0.210799037 | P98: 1134.596516 | Q98: 284.926608 | R98: 134.4577 | S98: 44.67 | T98: Kenya
B99: 1006411 | C99: kiba | D99: Kenya | E99: 2017 | F99: 31.91 | G99: 517.8235 | I99: 363.2159 | Q99: 59.78258725 | R99: 28.76248
B100: 1006627 | C100: krep | D100: Kenya | E100: 2017 | F100: 19.46 | G100: 186.9755 | I100: 197.3929 | Q100: 22.78326204 | R100: 6.556126
B101: 1497650 | C101: mayfair | D101: Kenya | E101: 2017 | F101: 0 | G101: 34.36929 | I101: 11.98275 | Q101: 0
B102: 1007757 | C102: mount | D102: Kenya | E102: 2017 | F102: 6.46 | G102: 92.42606 | I102: 56.9544 | O102: 0.1194084237 | P102: 11.03645013 | Q102: 3.777626474 | R102: 1.304832 | S102: 34.57 | T102: Kenya
B103: 114986 | C103: nbk | D103: Kenya | E103: 2017 | F103: 38.39 | G103: 1065.002 | I103: 852.4291 | O103: 0.1648400435 | P103: 175.554976 | Q103: 231.3057004 | R103: 95.29728 | S103: 40.01 | T103: Kenya
B104: 1498599 | C104: nicken | D104: Kenya | E104: 2017 | F104: 10.28 | G104: 1867.807 | I104: 1604.615 | Q104: 116.7546888 | R104: 47.68884
B105: 1009082 | C105: primbank | D105: Kenya | E105: 2017 | F105: 5.4 | G105: 740.4528 | I105: 509.0946 | O105: 0.1762702505 | P105: 130.5198006 | Q105: 20.7284832 | R105: 13.28177 | S105: 27.51 | T105: Kenya
B106: 1009549 | C106: rodaken | D106: Kenya | E106: 2017 | F106: 5.66 | G106: 931.2266 | H106: 404.7274 | I106: 507.2531 | J106: 23.57706 | K106: 78.94862 | M106: 0.7978805847 | N106: 507.2531 | Q106: 23.98878366 | R106: 14.97021
B107: 1010648 | C107: sken | D107: Kenya | E107: 2017 | F107: 8.43 | G107: 2761.986 | H107: 1420.761 | I107: 2209.711 | J107: 271.9136 | K107: 517.0359 | M107: 0.6429623602 | N107: 2209.711 | O107: 0.4293732801 | P107: 1185.922988 | Q107: 109.6939419 | R107: 77.82493 | S107: 60.52 | T107: Kenya
B108: 1011530 | C108: tnbl | D108: Kenya | E108: 2017 | F108: 19.05 | G108: 99.2079 | I108: 99.21371 | Q108: 13.28514044 | R108: 5.764702
B109: 1464297 | C109: ubakeny | D109: Kenya | E109: 2017 | F109: 4.54 | G109: 63.01068 | I109: 54.00667 | O109: 0.1290116831 | P109: 8.129113881 | Q109: 1.471792182 | R109: 0.739114 | S109: 25.69 | T109: Kenya
B110: 1012319 | C110: viccb | D110: Kenya | E110: 2017 | F110: 0.09 | G110: 251.7173 | H110: 200.7378 | I110: 235.0489 | J110: 6.753739 | K110: 27.55743 | M110: 0.8540256942 | N110: 235.0489 | O110: 4.896190635 | P110: 1232.455887 | Q110: 0.16531902 | R110: 0.8941052 | S110: 90.53 | T110: Kenya
B111: 114988 | C111: yatta | D111: Kenya | E111: 2017 | F111: 13.92 | G111: 1781.938 | H111: 1341.648 | I111: 1680.25 | J111: 66.60454 | K111: 271.9978 | M111: 0.7984811784 | N111: 1680.25 | O111: 0.1091933435 | P111: 194.5757682 | Q111: 171.1741008 | R111: 60.90281 | S111: 30.69 | T111: Kenya
B112: 1122510 | C112: finabali | D112: Lesotho | E112: 2017 | F112: 7.54 | G112: 152.0231 | I112: 76.76154 | O112: 0.6738910511 | P112: 102.4470066 | Q112: 4.402200348 | R112: 4.661539 | S112: 63.64 | T112: Lesotho
B113: 1011036 | C113: stanlesu | D113: Lesotho | E113: 2017 | F113: 2.66 | G113: 664.6616 | I113: 348.6923 | O113: 0.7343314113 | P113: 488.0818907 | Q113: 6.9282759 | R113: 7.830769 | S113: 64.97 | T113: Lesotho
B114: 1003627 | C114: ecoifrs | D114: Liberia | E114: 2017 | F114: 13.68 | G114: 179.0809 | I114: 99.99681 | Q114: 14.30855496 | R114: 11.31128
B115: 1413213 | C115: guarlibi | D115: Liberia | E115: 2017 | F115: 39.11 | G115: 109.9856 | I115: 86.43443 | O115: 0.001422587102 | P115: 0.1564640959 | Q115: 30.63112799 | R115: 4.685532 | S115: 0.93 | T115: Liberia
B116: 1006941 | C116: liberi | D116: Liberia | E116: 2017 | F116: 19.74 | G116: 179.4859 | I116: 90.76524 | Q116: 17.83507816 | R116: 2.55002
B117: 1001471 | C117: bkafrica | D117: Madagascar | E117: 2017 | F117: 7.58 | G117: 720.6462 | I117: 390.4503 | Q117: 27.26502502 | R117: 10.25586
B118: 1011952 | C118: uncoma | D118: Madagascar | E118: 2017 | F118: 4.62 | G118: 113.179 | Q118: 2.779129584 | R118: 1.481482
B119: 1440461 | C119: cdhinv | D119: Malawi | E119: 2017 | F119: 13.64 | G119: 84.07817 | I119: 32.19181 | O119: 1.293125848 | P119: 108.7236549 | Q119: 2.846219244 | R119: 3.319372 | S119: 110.88 | T119: Malawi
B120: 1002633 | C120: combmal | D120: Malawi | E120: 2017 | F120: 13.37 | G120: 582.7531 | O120: 0.3369459399 | P120: 196.356291 | Q120: 18.85589818 | R120: 11.96726 | S120: 53.09 | T120: Malawi
B121: 1004064 | C121: fcmal | D121: Malawi | E121: 2017 | F121: 8.95 | G121: 49.69891 | I121: 26.2191 | O121: 3.342352517 | P121: 166.111277 | Q121: 0.8695785095 | R121: 1.996317 | S121: 145.59 | T121: Malawi
B122: 1004399 | C122: fmbl | D122: Malawi | E122: 2017 | F122: 8.88 | G122: 317.5866 | Q122: 5.691074784
B123: 1008017 | C123: nbmcon | D123: Malawi | E123: 2017 | F123: 5.6 | G123: 497.5607 | I123: 359.4161 | O123: 0.5497488156 | P123: 273.5334055 | Q123: 10.9659144 | R123: 8.132333 | S123: 74.13 | T123: Malawi
B124: 1057733 | C124: nbsmali | D124: Malawi | E124: 2017 | F124: 41.34 | G124: 152.9928 | O124: 0.2129250243 | P124: 32.57599566 | Q124: 12.85138234 | R124: 6.021965 | S124: 45.44 | T124: Malawi
B125: 1000154 | C125: afrimal | D125: Mali | E125: 2017 | F125: 15.47 | G125: 836.2667 | I125: 456.3398 | Q125: 76.95672166 | R125: 44.85054
B126: 1003545 | C126: dumali | D126: Mali | E126: 2017 | F126: 8.01 | G126: 1127.019 | Q126: 44.88780771
B127: 1003629 | C127: ecomali | D127: Mali | E127: 2017 | F127: 12.33 | G127: 973.8245 | Q127: 49.9128264 | R127: 64.27663
B128: 1453761 | C128: barcmau | D128: Mauritius | E128: 2017 | F128: 5.86 | G128: 3259.487 | I128: 1857.017 | K128: 178.9522 | L128: 1678.065 | O128: 0.349479121 | P128: 1139.122652 | Q128: 90.1931352 | R128: 60.47701 | S128: 52.12 | T128: Mauritius
B129: 1319192 | C129: centco | D129: Mauritius | E129: 2017 | F129: 7.89 | G129: 10.73654 | I129: 9.001368 | K129: 1.257324 | L129: 7.744043 | O129: 1.789289072 | P129: 19.21077369 | Q129: 0.4806980922 | R129: 0.6689802 | S129: 128.57 | T129: Mauritius
B130: 1004323 | C130: firmaur | D130: Mauritius | E130: 2017 | F130: 7.29 | G130: 947.0848 | H130: 653.3517 | I130: 697.152 | J130: 1.812817 | K130: 41.98747 | M130: 0.9371725248 | N130: 697.152 | O130: 0.2021225085 | P130: 191.4271556 | Q130: 40.1485815 | R130: 20.73839 | S130: 39.13 | T130: Mauritius
B131: 1046507 | C131: mascara | D131: Mauritius | E131: 2017 | F131: 7.7 | G131: 511.1337 | I131: 434.0606 | K131: 26.2515 | L131: 407.8091 | N131: =IF(M131<>"", IF(I131<>"",I131,""),"") ->  | O131: 0.458212571 | P131: 234.2078868 | Q131: 28.3759245 | R131: 21.52683 | S131: 60.4 | T131: Mauritius
B132: 1462101 | C132: stamau | D132: Mauritius | E132: 2017 | F132: 3.2 | G132: 5366.296 | I132: 3348.228 | O132: 0.6641002792 | P132: 3563.758672 | Q132: 99.63984 | R132: 102.1628 | S132: 64.77 | T132: Mauritius
B133: 1166050 | C133: stamaur | D133: Mauritius | E133: 2017 | F133: 7.34 | G133: 2503.6 | I133: 1283.1 | O133: 0.382756449 | P133: 958.2690456 | Q133: 61.289 | R133: 39.4 | S133: 59.54 | T133: Mauritius
B134: 1011038 | C134: stanmau | D134: Mauritius | E134: 2017 | F134: 0.64 | G134: 1280.8 | H134: 171.2 | I134: 227 | K134: 55.7 | L134: 0.1 | M134: 0.754185022 | N134: 227 | O134: 2.51610306 | P134: =IF(O134<>"", IF(G134<>"",O134*G134,""),"") -> 3222.624799 | Q134: 0.79488 | R134: 2 | S134: 100 | T134: =IF(ISNUMBER(P134), D134, "") -> Mauritius
B135: 1042767 | C135: abcms | D135: Mozambique | E135: 2017 | F135: 22.04 | G135: 197.8336 | I135: 105.8538 | O135: =IF(S135<>"",S135*R135/(Q135*100),"") ->  | Q135: 18.46359344 | R135: 9.245378
B136: 115037 | C136: austral | D136: Mozambique | E136: 2017 | F136: 3.09 | G136: 502.7294 | H136: 346.3698 | I136: 357.5832 | J136: 4.24874 | K136: 6.964706 | M136: 0.9686411442 | N136: 357.5832 | O136: 4.499750213 | P136: 2262.156725 | Q136: 5.76095583 | R136: 13.53109 | S136: 191.58 | T136: Mozambique
B137: 1002563 | C137: bimun | D137: Mozambique | E137: 2017 | F137: 5.55 | G137: 2268.572 | I137: 757.9983 | J137: 8.685715 | K137: 26.6437 | L137: 722.6689 | Q137: 63.413745 | R137: 110.437
B138: 1429510 | C138: bnisa | D138: Mozambique | E138: 2017 | F138: 29.5 | G138: 95.52437 | I138: 107.5781 | O138: 0.1310518836 | P138: 12.51864862 | Q138: 7.5971173 | R138: 2.847059 | S138: 34.97 | T138: Mozambique
B139: 1002668 | C139: commozui | D139: Mozambique | E139: 2017 | F139: 9.35 | G139: 2599.392 | H139: 811.4353 | I139: 811.4353 | M139: 1 | N139: 811.4353 | O139: 0.1147467706 | P139: 298.2718375 | Q139: 119.206516 | R139: 53.32773 | S139: 25.65 | T139: Mozambique
B140: 1277750 | C140: mozau | D140: Mozambique | E140: 2017 | F140: 9.45 | G140: 448.3361 | I140: 304.7109 | O140: 2.057973274 | P140: 922.6637116 | Q140: 28.950831 | R140: 49.53445 | S140: 120.28 | T140: Mozambique
B141: 1137052 | C141: socremoi | D141: Mozambique | E141: 2017 | F141: 1.14 | G141: 24.47395 | I141: 16.5395 | O141: 2.673381956 | P141: 65.42821633 | Q141: 0.197402058 | R141: 0.5277311 | S141: 100 | T141: Mozambique
B142: 115035 | C142: stanmoz | D142: Mozambique | E142: 2017 | F142: 4.9 | G142: 1469.385 | H142: 847.9681 | I142: 892.1479 | L142: 44.17983 | M142: 0.9504792871 | N142: 892.1479 | O142: 1.013938515 | P142: 1489.866046 | Q142: 19.5197086 | R142: 28.3916 | S142: 69.71 | T142: Mozambique
B143: 1253452 | C143: terra | D143: Mozambique | E143: 2017 | F143: 21.96 | G143: 63.4874 | H143: 43.69076 | I143: 47.40168 | J143: 2.951261 | K143: 0.7596639 | M143: 0.9217133232 | N143: 47.40168 | O143: 0.1093518713 | P143: 6.942465993 | Q143: 9.633243708 | R143: 3.45042 | S143: 30.53 | T143: Mozambique
B144: 1360171 | C144: unicomi | D144: Mozambique | E144: 2017 | F144: 3.63 | G144: 405.9444 | H144: 224.9834 | I144: 228.9959 | J144: 0.3110924 | K144: 3.701378 | M144: 0.9824778522 | N144: 228.9959 | Q144: 7.02231849 | R144: 12.45467
B145: 1002555 | C145: cobanni | D145: Namibia | E145: 2017 | F145: 2.6 | G145: 1259.416 | H145: 835.0057 | I145: 918.0797 | J145: 0.1669829 | K145: 82.90702 | M145: 0.9095133026 | N145: 918.0797 | O145: 0.1596571437 | P145: 201.0747612 | Q145: 23.6845674 | R145: 11.08918 | S145: 34.1 | T145: Namibia
B146: 1007911 | C146: namibiai | D146: Namibia | E146: 2017 | F146: 2.71 | G146: 2334.368 | H146: 1404.023 | I146: 1638.3 | J146: 28.10626 | K146: 206.1708 | M146: 0.856999939 | N146: 1638.3 | O146: 0.05218138491 | P146: 121.8105551 | Q146: 42.0125067 | R146: 11.48387 | S146: 19.09 | T146: Namibia
B147: 1008020 | C147: nboa | D147: Niger | E147: 2017 | F147: 3.5 | G147: 538.4391 | I147: 228.8071 | Q147: 11.228203 | R147: 9.924127
B148: 1476020 | C148: abbeymb | D148: Nigeria | E148: 2017 | F148: 14.07 | G148: 40.06874 | I148: 30.75286 | O148: 0.3764944457 | P148: 15.08565806 | Q148: 3.839659383 | R148: 2.873977 | S148: 50.3 | T148: Nigeria
B149: 1000080 | C149: accessi | D149: Nigeria | E149: 2017 | F149: 4.51 | G149: 11455.59 | I149: 7565.862 | O149: 0.2981646471 | P149: 3415.65195 | Q149: 269.7986632 | R149: 184.252 | S149: 43.66 | T149: Nigeria
B150: 1196191 | C150: accmbi | D150: Nigeria | E150: 2017 | F150: 1.1 | G150: 28.62848 | O150: 7.884910925 | P150: 225.7330147 | Q150: 0.27440589 | R150: 2.163666 | S150: 100 | T150: Nigeria
B151: 1008183 | C151: boiun | D151: Nigeria | E151: 2017 | F151: 12.03 | G151: 2334.347 | Q151: 0 | R151: 0.0261866
B152: 115044 | C152: cittifr | D152: Nigeria | E152: 2017 | F152: 1.85 | G152: 1950.268 | H152: 664.0557 | I152: 967.6595 | J152: 71.87561 | K152: 231.7283 | M152: 0.686249347 | N152: 967.6595 | O152: 0.6026636425 | P152: 1175.355617 | Q152: 89.22991449 | R152: 82.79542 | S152: 64.95 | T152: Nigeria
B153: 115043 | C153: diamoni | D153: Nigeria | E153: 2017 | F153: 14.73 | G153: 5550.111 | H153: 2848.363 | I153: 3788.815 | J153: 46.82161 | K153: 893.6301 | M153: 0.7517820216 | N153: 3788.815 | O153: 0.899853738 | P153: 4994.28813 | Q153: 6.07133 | R153: 6.775777 | S153: 80.63 | T153: Nigeria
B154: 1003619 | C154: ecobnkif | D154: Nigeria | E154: 2017 | F154: 14.49 | G154: 5989.398 | H154: 3979.411 | I154: 5063.329 | J154: 22.21604 | K154: 1061.702 | M154: =IF(H154<>"",IF(I154<>"",H154/I154,""),"") -> 0.7859277957 | N154: 5063.329 | O154: 0.220579111 | P154: 1321.136086 | Q154: 392.6483301 | R154: 192.6808 | S154: 44.95 | T154: Nigeria
B155: 1004065 | C155: fcmbalui | D155: Nigeria | E155: 2017 | F155: 4.77 | G155: 3697.381 | H155: 2502.226 | I155: 3159.931 | J155: 59.3126 | K155: 598.3928 | M155: 0.7918609615 | N155: 3159.931 | O155: 0.3035138527 | P155: 1122.206352 | Q155: 435.4437717 | R155: 283.126 | S155: 46.68 | T155: Nigeria
B156: 1004170 | C156: fidelifu | D156: Nigeria | E156: 2017 | F156: 3.89 | G156: 4514.612 | H156: 2845.578 | I156: 3662.147 | J156: 254.6187 | K156: 561.9509 | M156: 0.7770245159 | N156: 3662.147 | O156: 0.3530088555 | P156: 1593.698015 | Q156: 99.7315893 | R156: 77.42717 | S156: 45.47 | T156: Nigeria
B157: 139445 | C157: firstngu | D157: Nigeria | E157: 2017 | F157: 21.69 | G157: 12363.47 | H157: 6988.753 | I157: 9885.041 | J157: 2131.437 | K157: 764.8511 | M157: 0.707002935 | N157: 9885.041 | O157: 0.446807303 | P157: 5524.088686 | Q157: 101.2692647 | R157: 86.99836 | S157: 52.01 | T157: Nigeria
B158: 1406410 | C158: fsdhmelg | D158: Nigeria | E158: 2017 | F158: 13.45 | G158: 475.7741 | H158: 198.5499 | I158: 262.0982 | J158: 46.39935 | K158: 17.14894 | M158: 0.7575401128 | N158: 262.0982 | O158: 0.1501742337 | P158: 71.44901088 | Q158: 1304.605565 | R158: 585.0049 | S158: 33.49 | T158: Nigeria
B159: 1005063 | C159: gtbifrsu | D159: Nigeria | E159: 2017 | F159: 7.75 | G159: 9246.903 | H159: 4757.42 | I159: 5981.29 | J159: 9.050736 | K159: 1214.818 | M159: 0.7953836045 | N159: 5981.29 | O159: 0.2422713115 | P159: 2240.259317 | Q159: 17.95299275 | R159: 11.13257 | S159: 39.07 | T159: Nigeria
B160: 1470188 | C160: infibank | D160: Nigeria | E160: 2017 | F160: 0 | G160: 26.51391 | I160: 22.58592 | O160: 0.2420908132 | P160: 6.418774033 | Q160: 336.4466425 | R160: 197.3126 | S160: 41.28 | T160: Nigeria
B161: 115041 | C161: invigi | D161: Nigeria | E161: 2017 | F161: 7.85 | G161: 4362.432 | O161: 0.660760676 | P161: 2882.523517 | Q161: 103.772133 | R161: 103.9705 | S161: 65.95 | T161: Nigeria
B162: 1417336 | C162: jaiz | D162: Nigeria | E162: 2017 | F162: 11.37 | G162: 285.8036 | Q162: 14.52829038 | R162: 1.705401
B163: 1006243 | C163: kakawcu | D163: Nigeria | E163: 2017 | F163: 3.19 | G163: 453.9738 | H163: 179.0769 | I163: 251.8134 | J163: 34.35679 | K163: 38.3797 | M163: 0.7111492081 | N163: 251.8134 | O163: 0.1140243311 | P163: 51.76405888 | Q163: 4.13342655 | R163: 1.414075 | S163: 33.33 | T163: Nigeria
B164: 115040 | C164: namifrs | D164: Nigeria | E164: 2017 | F164: 3.63 | G164: 3498.521 | H164: 1755.214 | I164: 2317.885 | J164: 135.2111 | K164: 427.4599 | M164: 0.7572480947 | N164: 2317.885 | O164: 0.535406157 | P164: 1873.129684 | Q164: 73.3815027 | R164: 63.84288 | S164: 61.54 | T164: Nigeria
B165: 1492677 | C165: provi | D165: Nigeria | E165: 2017 | F165: 26.47 | G165: 173.8134 | H165: 89.3617 | I165: 90.01637 | J165: 0.6546645 | M165: 0.9927272117 | N165: 90.01637 | O165: 0.2468942601 | P165: 42.91353078 | Q165: 2.94592571 | R165: 1.636661 | S165: 44.44 | T165: Nigeria
B166: 1010254 | C166: scbnlif | D166: Nigeria | E166: 2017 | F166: 9.24 | G166: 3939.247 | H166: 1933.614 | I166: 2469.044 | J166: 75.02782 | K166: 460.4026 | M166: 0.7831427872 | N166: 2469.044 | O166: 0.3568281111 | P166: 1405.634066 | Q166: 104.7026904 | R166: 66.51391 | S166: 56.17 | T166: Nigeria
B167: 108671 | C167: ubauifrs | D167: Nigeria | E167: 2017 | F167: 4.59 | G167: 9596.812 | H167: 3030.275 | I167: 4141.038 | J167: 104.527 | K167: 1006.236 | M167: 0.7317670111 | N167: 4141.038 | O167: 0.1904906487 | P167: 1828.102943 | Q167: 180.9596025 | R167: 102.1669 | S167: 33.74 | T167: Nigeria
B168: 1011815 | C168: uboni | D168: Nigeria | E168: 2017 | F168: 20.81 | G168: 4369.627 | H168: 2111.823 | I168: 2535.178 | J168: 26.87725 | K168: 396.4779 | M168: 0.8330077809 | N168: 2535.178 | O168: 0.1279162996 | P168: 558.9465163 | Q168: 362.2554856 | R168: 141.5777 | S168: 32.73 | T168: Nigeria
B169: 1012629 | C169: wemani | D169: Nigeria | E169: 2017 | F169: 1.15 | G169: 1261.499 | I169: 572.1015 | O169: 1.478070662 | P169: 1864.584662 | Q169: 8.28436655 | R169: 13.86579 | S169: 88.31 | T169: Nigeria
B170: 115038 | C170: zenithuc | D170: Nigeria | E170: 2017 | F170: 4.33 | G170: 15822.12 | H170: 6765.83 | I170: 8740.583 | J170: 206.0753 | K170: 1768.678 | M170: 0.7740707914 | N170: 8740.583 | O170: 1.11183587 | P170: 17591.60056 | Q170: 300.062505 | R170: 447.1522 | S170: 74.61 | T170: Nigeria
B171: 1032325 | C171: bancor | D171: Rwanda | E171: 2017 | F171: 10.45 | G171: 98.05917 | I171: 55.23429 | Q171: 3.803389315
B172: 1002670 | C172: commrwi | D172: Rwanda | E172: 2017 | F172: 2.97 | G172: 309.7312 | I172: 181.1836 | O172: 0.3831779662 | P172: 118.6821713 | Q172: 5.28934428 | R172: 3.671667 | S172: 55.2 | T172: Rwanda
B173: 1006420 | C173: kigali | D173: Rwanda | E173: 2017 | F173: 6.64 | G173: 865.6671 | I173: 692.4075 | O173: 0.4586260027 | P173: 397.0174418 | Q173: 39.18482456 | R173: 28.58012 | S173: 62.88 | T173: Rwanda
B174: 1009698 | C174: rwancdi | D174: Rwanda | E174: 2017 | F174: 21.91 | G174: 159.4559 | I174: 91.58309 | O174: 0.07838998661 | P174: 12.49974587 | Q174: 15.41728481 | R174: 4.7525 | S174: 25.43 | T174: Rwanda
B175: 1009700 | C175: rwandevi | D175: Rwanda | E175: 2017 | F175: 18.89 | G175: 257.28 | I175: 291.4736 | O175: 0.04401056861 | P175: 11.32303909 | Q175: 36.63951625 | R175: 8.993452 | S175: 17.93 | T175: Rwanda
B176: 1104332 | C176: unbanpoi | D176: Rwanda | E176: 2017 | F176: 9.15 | G176: 325.2394 | I176: 201.7829 | Q176: 18.96583635
B177: 1195973 | C177: urwegoi | D177: Rwanda | E177: 2017 | F177: 7.2 | G177: 25.40655 | I177: 15.07345 | O177: 0.1224564714 | P177: 3.111196462 | Q177: 0.93342024 | R177: 0.3851191 | S177: 29.68 | T177: Rwanda
B178: 1026822 | C178: boaseneg | D178: Senegal | E178: 2017 | F178: 13.28 | G178: 846.5266 | I178: 528.0118 | Q178: 62.25277552 | R178: 26.75016
B179: 1002924 | C179: cresen | D179: Senegal | E179: 2017 | F179: 5.25 | G179: 306.8764 | Q179: 9.41967075 | R179: 14.70884
B180: 1003633 | C180: ecosen | D180: Senegal | E180: 2017 | F180: 22.57 | G180: 1308.816 | Q180: 140.2439312 | R180: 46.79039
B181: 1003115 | C181: dbseyif | D181: Seychelles | E181: 2017 | F181: 13.87 | G181: 78.4855 | I181: 74.81159 | O181: 0.009122075169 | P181: 0.7159506307 | Q181: 9.059723108 | R181: 1.173913 | S181: 7.04 | T181: Seychelles
B182: 1012137 | C182: utbl | D182: Sierra Leone | E182: 2017 | F182: 33 | G182: 67.94158 | I182: 44.22021 | O182: 0.2531042905 | P182: 17.1963054 | Q182: 10.7473179 | R182: 5.406862 | S182: 50.31 | T182: Sierra Leone
B183: 1000257 | C183: albasaiu | D183: South Africa | E183: 2017 | F183: 1.23 | G183: 475.1763 | H183: 301.3376 | I183: 369.5663 | J183: 1.191731 | K183: 41.79976 | L183: 25.23713 | M183: 0.8153817055 | N183: 369.5663 | O183: 0.09478257595 | P183: 45.03843374 | Q183: 4.62075207 | R183: 2.49696 | S183: 17.54 | T183: South Africa
B184: 111721 | C184: firbifrs | D184: South Africa | E184: 2017 | F184: 2.17 | G184: 94070.94 | H184: 39075.8 | I184: 51064.05 | J184: 1459.262 | K184: 7782.732 | L184: 2746.25 | M184: 0.7652311166 | N184: 51064.05 | O184: 0.3081713944 | P184: 28989.97276 | Q184: 1503.999224 | R184: 1220.673 | S184: 37.97 | T184: South Africa
B185: 1005145 | C185: haboveri | D185: South Africa | E185: 2017 | F185: 5.17 | G185: 96.18159 | H185: 37.59222 | I185: 50.02027 | J185: 0.016214 | K185: 11.04175 | L185: 1.370085 | M185: 0.7515397258 | N185: 50.02027 | O185: 0.1643531771 | P185: 15.80774989 | Q185: 1.70964145 | R185: 0.8350223 | S185: 33.65 | T185: South Africa
B186: 1005296 | C186: hbzbnki | D186: South Africa | E186: 2017 | F186: 2.96 | G186: 394.1143 | H186: 181.7349 | I186: 216.214 | J186: 0.4539927 | K186: 31.58492 | L186: 2.440211 | M186: 0.840532528 | N186: 216.214 | O186: 0.04707761573 | P186: 18.55396157 | Q186: 3.54623984 | R186: 0.7863802 | S186: 21.23 | T186: South Africa
B187: 1314610 | C187: mainst | D187: South Africa | E187: 2017 | F187: 21.84 | G187: 128.5043 | Q187: 25.45373376 | R187: 7.766518
B188: 1007424 | C188: mercaci | D188: South Africa | E188: 2017 | F188: 3.49 | G188: 1039.724 | H188: 732.574 | I188: 945.3588 | J188: 4.53182 | K188: 117.9814 | L188: 90.27158 | M188: 0.7749163598 | N188: 945.3588 | O188: 0.1116898123 | P188: 116.1265784 | Q188: 25.97765097 | R188: 9.752736 | S188: 29.75 | T188: South Africa
B189: 1007655 | C189: mmbltdi | D189: South Africa | E189: 2017 | F189: 1.22 | G189: 1352.217 | I189: 725.229 | O189: 0.01763601207 | P189: 23.84771533 | Q189: 6.87017746 | R189: 2.772598 | S189: 4.37 | T189: South Africa
B190: 1457265 | C190: rcshl | D190: South Africa | E190: 2017 | F190: 10.75 | G190: 18.00567 | Q190: 1.897264275 | R190: 0.3972436
B191: 115453 | C191: sabathi | D191: South Africa | E191: 2017 | F191: 6.78 | G191: 190.9009 | H191: 119.6135 | I191: 143.0039 | J191: 0.1627077 | K191: 17.47037 | L191: 5.757276 | M191: 0.8364352301 | N191: 143.0039 | O191: 0.1009151362 | P191: 19.26479033 | Q191: 10.02413508 | R191: 4.147548 | S191: 24.39 | T191: South Africa
B192: 1188634 | C192: accessb | D192: Tanzania | E192: 2017 | F192: 11.58 | G192: 93.07507 | Q192: 8.264210592 | R192: 7.514148
B193: 1000155 | C193: afritani | D193: Tanzania | E193: 2017 | F193: 30.74 | G193: 178.826 | I193: 106.0612 | J193: 1.803629 | L193: 104.2576 | Q193: 30.64872064 | R193: 11.15033
B194: 1000232 | C194: akibai | D194: Tanzania | E194: 2017 | F194: 25.21 | G194: 81.89264 | I194: 66.10526 | J194: 0.0343937 | K194: 17.29949 | L194: 48.77138 | N194: =IF(M194<>"", IF(I194<>"",I194,""),"") ->  | O194: 0.3458489761 | P194: 28.32248569 | Q194: 13.53496413 | R194: 8.049963 | S194: 58.15 | T194: Tanzania
B195: 1373051 | C195: amanbnk | D195: Tanzania | E195: 2017 | F195: 5.66 | G195: 91.47906 | Q195: 3.422974428 | R195: 0.9596603
B196: 1191913 | C196: bkmtanzi | D196: Tanzania | E196: 2017 | F196: 12.96 | G196: 450.8565 | I196: 382.312 | O196: 0.0676595419 | P196: 30.50474425 | Q196: 47.25975456 | R196: 12.41294 | S196: 25.76 | T196: Tanzania
B197: 1454301 | C197: boitanz | D197: Tanzania | E197: 2017 | F197: 9.16 | G197: 78.11629 | Q197: 3.125899464 | R197: 0.5609714
B198: 1039847 | C198: cfubi | D198: Tanzania | E198: 2017 | F198: 8.47 | G198: 198.8536 | I198: 168.1991 | O198: 0.1640677288 | P198: =IF(O198<>"", IF(G198<>"",O198*G198,""),"") -> 32.62545851 | Q198: 12.33935857 | R198: 5.661327 | S198: 35.76 | T198: =IF(ISNUMBER(P198), D198, "") -> Tanzania
B199: 1002427 | C199: citanzi | D199: Tanzania | E199: 2017 | F199: 0.1 | G199: 288.8522 | I199: 161.278 | J199: 1.982234 | K199: 34.83646 | L199: 124.4593 | O199: =IF(S199<>"",S199*R199/(Q199*100),"") -> 3.414608373 | P199: 986.3171406 | Q199: 0.07395236 | R199: 0.2521905 | S199: 100.13 | T199: Tanzania
B200: 1190211 | C200: combktan | D200: Tanzania | E200: 2017 | F200: 30.21 | G200: 196.0063 | I200: 118.2909 | O200: 0.4983557294 | P200: 97.68086261 | Q200: 36.41779248 | R200: 25.95683 | S200: 69.92 | T200: Tanzania
B201: 1002834 | C201: crdbi | D201: Tanzania | E201: 2017 | F201: 12.79 | G201: 2603.565 | I201: 1756.282 | J201: 8.580935 | K201: 158.1702 | L201: 1589.531 | O201: 0.3233302466 | P201: 841.8113134 | Q201: 176.3717978 | R201: 103.3273 | S201: 55.19 | T201: Tanzania
B202: 1134450 | C202: dascifrs | D202: Tanzania | E202: 2017 | F202: 18.9 | G202: 70.92316 | Q202: 7.51857309 | R202: 2.77145
... 112 more rows

Sheet Input_Data_WB BRSS & Fitch
B2: This Input sheet contains country-level provision rate data from the World Bank Bank Regulation and Supervision Survey database, as well as NPL data by category (substandard, doubtful, loss) from the Fitch Connect database. These data are used to calculate the average provision rates (llr) in certain simulations, as explained in section "Structure and Calibration of the Template" of the How to Note. World Bank BRSS data downloaded on June 8, 2020; Fitch Connect bank-level data downloaded in May 2019. Difficulty/Necessity to update: Difficult. The data are primarily used to calibrate the parameters, and will be time consuming to update. Link to World Bank BRSS: https://www.worldbank.org/en/research/brief/BRSS Instructions: Update the cells highlighted in yellow. For each country, please retrieve the list of banks for which these series are available, compute the country median, and import country-level data to this sheet.
H3: In percent | L3: Original -median by country | O3: Adjusted to sum up to 1 | Q3: Assumption | W3: 9.2 After how many days is a loan in arrears classified as … ? Please, provide numbers for each of the three loan categories listed. | Z3: 9.10 What is the minimum provisioning required (as % loan face value) as loans become … Note: please provide answer in percentage (e.g. 50 means 50%). | AC3: 9.12 Do you require banks to write off non-performing loans after a specific time period? | AD3: 9.12.1 What is the maximum time (in months) that a loan or advance can be non-performing before it has to be written off?
B4: No of banks | C4: country | E4: NPL ratio | F4: LLR/TL | G4: LLP/TL (avg) | H4: Spec.LLR/NPLs | I4: Spec.LLR/NPLs | J4: Spec.LLR/Tprov | K4: Spec.LLR/TL | L4: SubstandL/NPLs | M4: DoubtL/NPLs | N4: LossL/NPLs | O4: SubstandL/NPLs | P4: DoubtL/NPLs | Q4: LossL/NPLs | R4: Restr L/TL | T4: Country | U4: IFS Code | V4: ISO 3 | W4: a. Sub-standard | X4: b. Doubtful | Y4: c. Loss | Z4: a. Sub-standard | AA4: b. Doubtful | AB4: c. Loss
B5: 16 | C5: Angola | D5: AGO | E5: 12.115 | F5: 12.43 | G5: 2.635 | H5: =IF(I5<>"",I5/100,"") -> 0.5297860812 | I5: 52.97860812 | J5: 70.67 | K5: 1.6459295 | R5: 0.1497638983 | T5: Angola | U5: 614 | V5: AGO | W5: 30 | X5: 90 | Y5: 180 | Z5: 5 | AA5: 50 | AB5: 100 | AC5: Yes | AD5: 6
B6: 2 | C6: Benin | D6: BEN | E6: 13.385 | F6: 11.495 | G6: 2.83 | H6: =IF(I6<>"",I6/100,"") ->  | M6: 0.8911638565 | O6: =(1-$P$6)/2 -> 0.05441807175 | P6: =M6 -> 0.8911638565 | Q6: =(1-$P$6)/2 -> 0.05441807175 | T6: Benin | U6: 638 | V6: BEN | W6: 90 | X6: 180 | Y6: --- | AA6: 100 | AB6: 100 | AC6: No
B7: 3 | C7: Botswana | D7: BWA | E7: 4.48 | F7: 4.61 | G7: 1.37 | H7: 0.4720951359 | I7: 47.20951359 | J7: 64.75 | K7: 1.272319 | L7: 0.4012189235 | M7: 0.2357466257 | N7: 0.4806446819 | O7: =L7/SUM(L7:N7) -> 0.358997182 | P7: =M7/SUM(L7:N7) -> 0.2109381421 | Q7: =N7/SUM(L7:N7) -> 0.430064676 | R7: 0.00774259275 | T7: Botswana | U7: 616 | V7: BWA | W7: 60 | X7: 90 | Y7: 180 | Z7: 20 | AA7: 50 | AB7: 100 | AC7: No
B8: 3 | C8: Burkina Faso | D8: BFA | E8: 5.15 | F8: 3.97 | G8: 1.355 | M8: 0.9252908518 | O8: =(1-$P$8)/2 -> 0.03735457412 | P8: =M8 -> 0.9252908518 | Q8: =(1-$P$8)/2 -> 0.03735457412 | T8: Burkina Faso | U8: 748 | V8: BFA | W8: 90 | X8: 180 | Y8: --- | AA8: 100 | AB8: 100 | AC8: No
B9: 2 | C9: Burundi | D9: BDI | E9: 2.13 | F9: 5.025 | G9: 4.205 | M9: 0.9995203507 | O9: =(1-$P$9)/2 -> 0.0002398246709 | P9: =M9 -> 0.9995203507 | Q9: =(1-$P$9)/2 -> 0.0002398246709 | T9: Burundi | U9: 618 | V9: BDI | W9: 90 | X9: 180 | Y9: 360 | Z9: 20 | AA9: 50 | AB9: 100 | AC9: Yes | AD9: 24
B10: 5 | C10: Cabo Verde | D10: CPV | E10: 13.42 | F10: 7.05 | G10: 0.87 | T10: Cameroon | U10: 622 | V10: CMR
B11: 4 | C11: Cameroon | D11: CMR | E11: 7.085 | F11: 4.695 | G11: 1.37 | M11: 0.9999659357 | O11: =(1-$P$11)/2 -> 1.703214748e-05 | P11: =M11 -> 0.9999659357 | Q11: =(1-$P$11)/2 -> 1.703214748e-05 | T11: Cabo Verde | U11: 624 | V11: CPV | AC11: Yes | AD11: 6
B12: 4 | C12: Congo, Democratic Republic of the | D12: COD | E12: 7.45 | F12: 4.715 | G12: 2.2 | L12: 0.3284812908 | M12: 0.7864723568 | N12: 0.5580699255 | O12: =L12/SUM(L12:N12) -> 0.1963399058 | P12: =M12/SUM(L12:N12) -> 0.4700904216 | Q12: =N12/SUM(L12:N12) -> 0.3335696726 | T12: Central African Republic | U12: 626 | V12: CAF
B13: 3 | C13: Côte d'Ivoire | D13: CIV | E13: 6.98 | F13: 5.22 | G13: 1.35 | M13: 0.9406438245 | O13: =(1-$P$13)/2 -> 0.02967808774 | P13: =M13 -> 0.9406438245 | Q13: =(1-$P$13)/2 -> 0.02967808774 | T13: Chad | U13: 628 | V13: TCD
B14: 2 | C14: Eswatini | D14: SWZ | E14: 4.41 | F14: 2.935 | G14: 1.15 | H14: 0.2497247057 | I14: 24.97247057 | J14: 37.6 | K14: 0.425773 | M14: 0.6213630998 | N14: 0.3776481825 | O14: =1-P14-Q14 -> 0.0009887177233 | P14: =M14 -> 0.6213630998 | Q14: =N14 -> 0.3776481825 | R14: 0.001970443567 | T14: Comoros | U14: 632 | V14: COM
B15: 1 | C15: Gabon | D15: GAB | E15: 14.31 | F15: 8.08 | G15: 3.02 | J15: 0 | T15: Congo, Democratic Republic of the | U15: 636 | V15: COD
B16: 1 | C16: Gambia, The | D16: GMB | E16: 1.71 | F16: 1.89 | G16: -3.69 | H16: 0.8340104302 | I16: 83.40104302 | J16: 75.61 | K16: -2.790009 | M16: 0.2559546201 | N16: 0.7434872853 | O16: =1-P16-Q16 -> 0.0005580946532 | P16: =M16 -> 0.2559546201 | Q16: =N16 -> 0.7434872853 | T16: Congo, Republic of | U16: 634 | V16: COG
B17: 23 | C17: Ghana | D17: GHA | E17: 15.44 | F17: 10.63 | G17: 2.94 | H17: 0.2290797416 | I17: 22.90797416 | J17: 46.8 | K17: 1.545998 | L17: 0.183023132 | M17: 0.1493393948 | N17: 0.8310355191 | O17: =L17/SUM(L17:N17) -> 0.1573177234 | P17: =M17/SUM(L17:N17) -> 0.1283648321 | Q17: =N17/SUM(L17:N17) -> 0.7143174445 | R17: 0.03678618359 | T17: Côte d'Ivoire | U17: 662 | V17: CIV | W17: 90 | X17: 180 | Y17: --- | AA17: 100 | AB17: 100 | AC17: No
B18: 1 | C18: Guinea | D18: GIN | E18: 12.4 | F18: 14.55 | G18: 2.88 | J18: 0 | M18: 1.000242732 | O18: =(1-$P$18)/2 -> 0 | P18: 1 | Q18: =(1-$P$18)/2 -> 0 | R18: 0 | T18: Equatorial Guinea | U18: 642 | V18: GNQ
B19: 41 | C19: Kenya | D19: KEN | E19: 9.77 | F19: 4.01 | G19: 1.14 | H19: 0.210799037 | I19: 21.0799037 | J19: 39.54 | K19: 0.27656 | L19: 0.2029163326 | M19: 0.6218699109 | N19: 0.1485470464 | O19: =L19/SUM(L19:N19) -> 0.2084756935 | P19: =M19/SUM(L19:N19) -> 0.6389074712 | Q19: =N19/SUM(L19:N19) -> 0.1526168353 | R19: 0.04609727902 | T19: Eritrea | U19: 643 | V19: ERI
B20: 2 | C20: Lesotho | D20: LSO | E20: 5.1 | F20: 5.495 | G20: 5.01 | H20: 0.7041112312 | I20: 70.41112312 | J20: 64.305 | K20: 3.1978735 | L20: 0.3286420796 | M20: 0.1987396316 | N20: 0.4751987432 | O20: =L20/SUM(L20:N20) -> 0.3277962164 | P20: =M20/SUM(L20:N20) -> 0.198228113 | Q20: =N20/SUM(L20:N20) -> 0.4739756706 | R20: 0.001447135565 | T20: Eswatini | U20: 734 | V20: SWZ | W20: 90 | X20: 180 | Y20: 360 | Z20: 15 | AA20: 50 | AB20: 100 | AC20: Yes | AD20: 12
B21: 3 | C21: Liberia | D21: LBR | E21: 29.425 | F21: 4.4 | G21: 2.78 | H21: 0.001422587102 | I21: 0.1422587102 | J21: 0.93 | K21: 0.048267 | L21: 0.1643726057 | M21: 0.1144559295 | N21: 0.322305991 | O21: =L21/SUM(L21:N21) -> 0.2734373065 | P21: =M21/SUM(L21:N21) -> 0.1903998598 | Q21: =N21/SUM(L21:N21) -> 0.5361628337 | T21: Ethiopia | U21: 644 | V21: ETH
B22: 2 | C22: Madagascar | D22: MDG | E22: 6.1 | F22: 2.655 | G22: -0.32 | M22: 0.9479540173 | O22: =(1-$P$22)/2 -> 0.02602299134 | P22: =M22 -> 0.9479540173 | Q22: =(1-$P$22)/2 -> 0.02602299134 | T22: Gabon | U22: 646 | V22: GAB
B23: 6 | C23: Malawi | D23: MWI | E23: 11.16 | F23: 15.91 | G23: 4.68 | H23: 0.5497488156 | I23: 54.97488156 | J23: 74.13 | K23: 3.355288 | L23: 0.02814481681 | M23: 0.2056771984 | N23: 0.7467362202 | O23: =L23/SUM(L23:N23) -> 0.02870285088 | P23: =M23/SUM(L23:N23) -> 0.2097552098 | Q23: =N23/SUM(L23:N23) -> 0.7615419393 | R23: 0.0479705087 | T23: Gambia, The | U23: 648 | V23: GMB | W23: 91 | X23: 181 | Y23: 361 | Z23: 20 | AA23: 50 | AB23: 100 | AC23: Yes | AD23: 24
B24: 3 | C24: Mali | D24: MLI | E24: 12.33 | F24: 12.45 | G24: 3.06 | M24: 0.8854762102 | O24: =(1-$P$24)/2 -> 0.0572618949 | P24: =M24 -> 0.8854762102 | Q24: =(1-$P$24)/2 -> 0.0572618949 | T24: Ghana | U24: 652 | V24: GHA | W24: 90 | X24: 180 | Y24: 360 | Z24: 25 | AA24: 50 | AB24: 100 | AC24: Yes | AD24: 36
B25: 8 | C25: Mauritius | D25: MUS | E25: 7.29 | F25: 3.93 | G25: 0.07 | H25: 0.458212571 | I25: 45.8212571 | J25: 60.4 | K25: 0.064285 | R25: 0.0391597899 | T25: Guinea | U25: 656 | V25: GIN
B26: 10 | C26: Mozambique | D26: MOZ | E26: 7.45 | F26: 7.565 | G26: 2.975 | H26: 1.013938515 | I26: 101.3938515 | J26: 69.71 | K26: 0.85158 | L26: 0.7082692823 | M26: 0.12872144 | N26: 0.1635063855 | O26: =L26/SUM(L26:N26) -> 0.707917371 | P26: =M26/SUM(L26:N26) -> 0.1286574834 | Q26: =N26/SUM(L26:N26) -> 0.1634251456 | R26: 0.1245063141 | T26: Guinea-Bissau | U26: 654 | V26: GNB | W26: 90 | X26: 180 | Y26: --- | AA26: 100 | AB26: 100 | AC26: No
B27: 2 | C27: Namibia | D27: NAM | E27: 2.655 | F27: 0.98 | G27: 0.505 | H27: 0.1059192643 | I27: 10.59192643 | J27: 26.595 | K27: 0.1354305 | L27: 0.1743404185 | M27: 0.1810249756 | N27: 0.6431625276 | O27: =L27/SUM(L27:N27) -> 0.1745974396 | P27: =M27/SUM(L27:N27) -> 0.1812918514 | Q27: =N27/SUM(L27:N27) -> 0.644110709 | R27: 0.01460962138 | T27: Kenya | U27: 664 | V27: KEN | W27: 91 | X27: 181 | Y27: 361 | Z27: 20 | AA27: 100 | AB27: 100 | AC27: Yes | AD27: 12
B28: 1 | C28: Niger | D28: NER | E28: 3.5 | F28: 3.09 | G28: 0.67 | J28: 0 | T28: Lesotho | U28: 666 | V28: LSO | W28: 90 | X28: 180 | Y28: 360 | Z28: 20 | AA28: 50 | AB28: 100 | AC28: Yes | AD28: 12
B29: 24 | C29: Nigeria | D29: NGA | E29: 7.79 | F29: 5.87 | G29: 1.785 | H29: 0.3530088555 | I29: 35.30088555 | J29: 46.68 | K29: 1.06723 | L29: 0.5414631783 | M29: 0.1994685874 | N29: 0.285788909 | O29: =L29/SUM(L29:N29) -> 0.5273714571 | P29: =M29/SUM(L29:N29) -> 0.1942773651 | Q29: =N29/SUM(L29:N29) -> 0.2783511777 | R29: 0.03342808059 | T29: Liberia | U29: 668 | V29: LBR | W29: 90 | X29: 180 | Y29: 360 | Z29: 20 | AA29: 50 | AB29: 100 | AC29: Yes | AD29: 36
B30: 8 | C30: Rwanda | D30: RWA | E30: 8.175 | F30: 4.64 | G30: 3.345 | H30: 0.1224564714 | I30: 12.24564714 | J30: 29.68 | K30: 1.41647 | L30: 0.2970843167 | M30: 0.288045337 | N30: 0.4155089335 | O30: =L30/SUM(L30:N30) -> 0.2968947236 | P30: =M30/SUM(L30:N30) -> 0.2878615123 | Q30: =N30/SUM(L30:N30) -> 0.4152437641 | T30: Madagascar | U30: 674 | V30: MDG | X30: 90 | AA30: 100 | AC30: No
B31: 3 | C31: Senegal | D31: SEN | E31: 13.28 | F31: 7.53 | G31: 0.72 | M31: 0.7315714241 | O31: =(1-$P$31)/2 -> 0.134214288 | P31: =M31 -> 0.7315714241 | Q31: =(1-$P$31)/2 -> 0.134214288 | T31: Malawi | U31: 676 | V31: MWI | W31: 91 | X31: 180 | Y31: 360 | Z31: 16.67 | AA31: 116.67 | AC31: No
B32: 1 | C32: Seychelles | D32: SYC | E32: 13.87 | F32: 1.8 | G32: 0.4 | H32: 0.009122075169 | I32: 0.9122075169 | J32: 7.04 | K32: 0.02816 | R32: 0 | T32: Mali | U32: 678 | V32: MLI | W32: 90 | X32: 180 | Y32: --- | AA32: 100 | AB32: 100 | AC32: No
B33: 1 | C33: Sierra Leone | D33: SLE | E33: 33 | F33: 16.6 | G33: 2.7 | H33: 0.2531042905 | I33: 25.31042905 | J33: 50.31 | K33: 1.35837 | L33: 0.4027290381 | M33: 0.5183457912 | N33: 0.07884609983 | O33: =L33/SUM(L33:N33) -> 0.4027608848 | P33: =M33/SUM(L33:N33) -> 0.5183867805 | Q33: =N33/SUM(L33:N33) -> 0.07885233475 | R33: 0 | T33: Mauritius | U33: 684 | V33: MUS | W33: 90 | X33: 180 | Y33: 365 | Z33: 20 | AA33: 50 | AB33: 100 | AC33: No
B34: 10 | C34: South Africa | D34: ZAF | E34: 3.415 | F34: 2.005 | G34: 0.48 | H34: 0.1063024742 | I34: 10.63024742 | J34: 27.07 | K34: 0.126452 | L34: 0.5806872798 | M34: 0.3175606433 | N34: 0.7049281964 | O34: 0.3622105349 | P34: 0.1980821941 | Q34: 0.439707271 | R34: 0.02063867704 | T34: Mozambique | U34: 688 | V34: MOZ | AC34: Yes | AD34: 24
B35: 34 | C35: Tanzania | D35: TZA | E35: 11.865 | F35: 4.685 | G35: 2.845 | H35: 0.27246989 | I35: 27.246989 | J35: 48.685 | K35: 1.2767615 | L35: 0.2142742272 | M35: 0.1974299244 | N35: 0.5180154174 | O35: 0.230471891 | P35: 0.2123542744 | Q35: 0.5571738346 | R35: 0.06690325629 | T35: Namibia | U35: 728 | V35: NAM | W35: 90 | X35: 180 | Y35: 360 | Z35: 10 | AA35: 50 | AB35: 100 | AC35: Yes | AD35: 360
B36: 2 | C36: Togo | D36: TGO | E36: 7.04 | F36: 6.185 | G36: 1.07 | T36: Niger | U36: 692 | V36: NER | W36: 90 | X36: 180 | Y36: --- | AA36: 100 | AB36: 100 | AC36: No
B37: 20 | C37: Uganda | D37: UGA | E37: 6.14 | F37: 2.87 | G37: 1.5 | H37: 0.2296903157 | I37: 22.96903157 | J37: 38.33 | K37: 0.3503485 | L37: 0.5153312141 | M37: 0.1821512594 | N37: 0.06773257182 | O37: =L37/SUM(L37:N37) -> 0.6734462649 | P37: =M37/SUM(L37:N37) -> 0.2380393074 | Q37: =N37/SUM(L37:N37) -> 0.08851442771 | R37: 0.07637018565 | T37: Nigeria | U37: 694 | V37: NGA | W37: 90 | X37: 180 | Y37: 360 | Z37: 10 | AA37: 50 | AB37: 100 | AC37: Yes | AD37: 12
B38: 10 | C38: Zambia | D38: ZMB | E38: 5.6 | F38: 4.44 | G38: 0.965 | H38: 0.2582386538 | I38: 25.82386538 | J38: 46.56 | K38: 0.644282 | L38: 0.2515548211 | M38: 0.3273144463 | N38: 0.9944185191 | O38: 0.1598911676 | P38: 0.2080448657 | Q38: 0.6320639667 | R38: 0.01502091237 | T38: Rwanda | U38: 714 | V38: RWA | W38: 90 | X38: 180 | Y38: 365 | Z38: 20 | AA38: 50 | AB38: 100 | AC38: Yes | AD38: 730
B39: 18 | C39: Zimbabwe | D39: ZWE | E39: 4.15 | F39: 4.88 | G39: 0.65 | H39: 0.4408308775 | I39: 44.08308775 | J39: 45.24 | K39: 0.37557 | L39: 0.2170995406 | M39: 0.1444290387 | N39: 0.7888047497 | O39: 0.1887275063 | P39: 0.1255540764 | Q39: 0.6857184173 | R39: 0.004776087074 | T39: São Tomé and Príncipe | U39: 716 | V39: STP | W39: 90 | X39: 180 | Y39: 360 | Z39: 25 | AA39: 50 | AB39: 100 | AC39: No
C40: Median | E40: =MEDIAN(E5:E39) -> 7.45 | F40: 4.715 | G40: 1.37 | H40: 0.2582386538 | I40: =MEDIAN(I5,I7,I14,I16,I17,I19:I21,I23,I25:I27,I29:I30,I32:I35,I37:I39) -> 25.82386538 | J40: 45.9 | K40: 0.644282 | L40: 0.2970843167 | M40: 0.3224375448 | N40: 0.4806446819 | O40: 0.2700357673 | P40: 0.2930806674 | Q40: 0.4368835653 | R40: 0.02063867704 | T40: Senegal | U40: 722 | V40: SEN | W40: 90 | X40: 180 | Y40: --- | AA40: 100 | AB40: 100 | AC40: No
B41: Source: Fitch database | L41: =L40/SUM($L$40:$N$40) -> 0.2700357673 | M41: =M40/SUM($L$40:$N$40) -> 0.2930806674 | N41: 0.4368835653 | T41: Seychelles | U41: 718 | V41: SYC | W41: 90 | X41: 180 | Y41: 365 | Z41: 25 | AA41: 50 | AB41: 100 | AC41: Yes | AD41: 24
B42: median values; latest available 2017-18 | L42: 0.75 | M42: 0.5 | N42: 0 | T42: Sierra Leone | U42: 724 | V42: SLE
B43: LLR=loan loss reserves; TL=total loans; Restr L=restructured loans | N43: =SUMPRODUCT(L41:N41,L42:N42) -> 0.3490671592 | T43: South Africa | U43: 199 | V43: ZAF | W43: 90 | X43: 180 | Y43: 360 | AC43: No
T44: South Sudan | U44: 733 | V44: SSD
T45: Tanzania | U45: 738 | V45: TZA | W45: 90 | X45: 180 | Y45: 360 | Z45: 20 | AA45: 50 | AB45: 100 | AC45: Yes | AD45: 36
B46: Minimum provisioning required (as % loan face value) as loans become: | T46: Togo | U46: 742 | V46: TGO | W46: 90 | X46: 180 | Y46: --- | AA46: 100 | AB46: 100 | AC46: No
B47: Country | D47: a. Sub-standard | E47: b. Doubtful | F47: c. Loss | T47: Uganda | U47: 746 | V47: UGA | W47: 90 | X47: 180 | Y47: 365 | Z47: 20 | AA47: 50 | AB47: 100 | AC47: Yes | AD47: 12
B48: Angola | C48: AGO | D48: 5 | E48: 50 | F48: 100 | T48: Zambia | U48: 754 | V48: ZMB
B49: Benin | C49: BEN | E49: 100 | F49: 100 | T49: Zimbabwe | U49: 698 | V49: ZWE | W49: 90 | X49: 180 | Y49: 360 | Z49: 20 | AA49: 50 | AB49: 100 | AC49: Yes | AD49: 12
B50: Botswana | C50: BWA | D50: 20 | E50: 50 | F50: 100
B51: Burkina Faso | C51: BFA | E51: 100 | F51: 100
B52: Burundi | C52: BDI | D52: 20 | E52: 50 | F52: 100
B53: Côte d'Ivoire | C53: CIV | E53: 100 | F53: 100
B54: Eswatini | C54: SWZ | D54: 15 | E54: 50 | F54: 100
B55: Gambia, The | C55: GMB | D55: 20 | E55: 50 | F55: 100
B56: Ghana | C56: GHA | D56: 25 | E56: 50 | F56: 100
B57: Guinea-Bissau | C57: GNB | E57: 100 | F57: 100
B58: Kenya | C58: KEN | D58: 20 | E58: 100 | F58: 100
B59: Lesotho | C59: LSO | D59: 20 | E59: 50 | F59: 100
B60: Liberia | C60: LBR | D60: 20 | E60: 50 | F60: 100
B61: Madagascar | C61: MDG | E61: 100
B62: Malawi | C62: MWI | D62: 16.67 | E62: 116.67
B63: Mali | C63: MLI | E63: 100 | F63: 100
B64: Mauritius | C64: MUS | D64: 20 | E64: 50 | F64: 100
B65: Namibia | C65: NAM | D65: 10 | E65: 50 | F65: 100
B66: Niger | C66: NER | E66: 100 | F66: 100
B67: Nigeria | C67: NGA | D67: 10 | E67: 50 | F67: 100
B68: Rwanda | C68: RWA | D68: 20 | E68: 50 | F68: 100
B69: São Tomé and Príncipe | C69: STP | D69: 25 | E69: 50 | F69: 100
B70: Senegal | C70: SEN | E70: 100 | F70: 100
B71: Seychelles | C71: SYC | D71: 25 | E71: 50 | F71: 100
B72: Tanzania | C72: TZA | D72: 20 | E72: 50 | F72: 100
B73: Togo | C73: TGO | E73: 100 | F73: 100
B74: Uganda | C74: UGA | D74: 20 | E74: 50 | F74: 100
B75: Zimbabwe | C75: ZWE | D75: 20 | E75: 50 | F75: 100
B76: median | D76: =MEDIAN(D48:D75) -> 20 | E76: =MEDIAN(E48:E75) -> 50 | F76: =MEDIAN(F48:F75) -> 100
B77: Source: WB Bank Regulation and Supervision Survey 2019

Sheet Input_Data_WB_Doing_Business
B2: This Input sheet contains data on legal cost to enforce contracts (l_cost) and remaining time to resolution (t) from the World Bank Doing Business Indicators database. As of June 2021, the World Bank has suspended the Doing Business report due to some data irregularities. The authors are aware of the risk and quality concerns over these indicators. However, there are no better alternatives presently. Downloaded on November 14, 2019. Difficulty/Necessity to update: Easy, could be updated. Link: https://www.doingbusiness.org/en/doingbusiness Instructions: Update the cells highlighted in yellow.
B3: 1 | C3: 2 | D3: 3 | E3: 4 | F3: 5 | G3: 6 | H3: 7 | I3: 8 | J3: 9 | K3: 10 | L3: 11 | M3: 12 | N3: 13 | O3: 14 | P3: 15 | Q3: 16 | R3: 17 | S3: 18 | T3: 19 | U3: 20 | V3: 21 | W3: 22 | X3: 23 | Y3: 24 | Z3: 25 | AA3: 26 | AB3: 27 | AC3: 28 | AD3: 29 | AE3: 30 | AF3: 31 | AG3: 32 | AH3: 33 | AI3: 34 | AJ3: 35 | AK3: 36 | AL3: 37 | AM3: 38 | AN3: 39
AP5: Chart. Enforcing contracts
G6: Enforcing contracts | AB6: Resolving insolvency | AS6: Time (days) | AW6: Cost (% of claim) | BD6: Time (days) | BI6: Cost (% of claim)
B7: Country code | C7: Economy | D7: Region | E7: Income group | F7: DB Year | G7: Rank-Enforcing contracts | H7: Score-Enforcing contracts (DB17-20 methodology) | I7: Score-Enforcing contracts (DB04-15 methodology) | J7: Procedures (number) (DB04-15 methodology) | K7: Score-Procedures (number) (DB04-15 methodology) | L7: Time (days) | M7: Score-Time (days) | N7: Filing and service (days) | O7: Trial and judgment (days) | P7: Enforcement of judgment (days) | Q7: Cost (% of claim) | R7: Score-Cost (% of claim) | S7: Attorney fees (% of claim) | T7: Court fees (% of claim) | U7: Enforcement fees (% of claim) | V7: Quality of judicial processes index (0-18) (DB17-20 methodology) | W7: Score-Quality of judicial processes index (0-18) (DB17-20 methodology) | X7: Court structure and proceedings (0-5) (DB17-20 methodology) | Y7: Case management (0-6) (DB17-20 methodology) | Z7: Court automation (0-4) (DB17-20 methodology) | AA7: Alternative dispute resolution (0-3) (DB17-20 methodology) | AB7: Rank-Resolving insolvency | AC7: Score-Resolving insolvency | AD7: Outcome (0 as piecemeal sale and 1 as going concern) | AE7: Time (years) | AF7: Cost (% of estate) | AG7: Recovery rate (cents on the dollar) | AH7: Score-Recovery rate (cents on the dollar) | AI7: Strength of insolvency framework index (0-16) | AJ7: Score-Strength of insolvency framework index (0-16) | AK7: Commencement of proceedings index (0-3) (DB15-20 methodology) | AL7: Management of debtor's assets index (0-6) (DB15-20 methodology) | AM7: Reorganization proceedings index (0-3) (DB15-20 methodology) | AN7: Creditor participation index (0-4) (DB15-20 methodology) | AP7: Rank - time | AQ7: Rank - cost | AS7: =L7 -> Time (days) | AT7: =N7 -> Filing and service (days) | AU7: =O7 -> Trial and judgment (days) | AV7: =P7 -> Enforcement of judgment (days) | AW7: =Q7 -> Cost (% of claim) | AX7: =S7 -> Attorney fees (% of claim) | AY7: =T7 -> Court fees (% of claim) | AZ7: =U7 -> Enforcement fees (% of claim) | BB7: Rank | BD7: Total time | BE7: Filing and service | BF7: Trial and judgment | BG7: Enforcement of judgment | BI7: Total cost | BJ7: Attorney fees | BK7: Court fees | BL7: Enforcement fees | BM7: Check - time | BN7: Check - cost
B8: AGO | C8: Angola | D8: Sub-Saharan Africa | E8: Lower middle income | F8: 2018 | H8: 28.11028 | L8: 1296 | M8: 3.60656 | N8: 86 | O8: 770 | P8: 440 | Q8: 44.4 | R8: 50.16873 | S8: 22.2 | T8: 22.2 | U8: 0 | V8: 5.5 | W8: 30.55556 | X8: 1.5 | Y8: 1.5 | Z8: 0 | AA8: 2.5 | AB8: 168 | AC8: 0 | AD8: 0 | AE8: No Practice | AF8: No Practice | AG8: 0 | AH8: 0 | AI8: 0 | AJ8: 0 | AK8: 2 | AL8: 4 | AM8: 0 | AN8: 0 | AP8: =IFERROR(RANK(AS8, $AS$8:$AS$57)+COUNTIF(AS$8:AS8, AS8)-1, "n.a.") -> 3 | AQ8: =IFERROR(RANK(AW8, $AW$8:$AW$57)+COUNTIF(AW$8:AW8, AW8)-1, "n.a.") -> 19 | AR8: =B8 -> AGO | AS8: =IF(ISNUMBER(L8), L8, "n.a.") -> 1296 | AT8: =IF(ISNUMBER(N8), N8, "n.a.") -> 86 | AU8: =IF(ISNUMBER(O8), O8, "n.a.") -> 770 | AV8: =IF(ISNUMBER(P8), P8, "n.a.") -> 440 | AW8: =IF(ISNUMBER(Q8), Q8, "n.a.") -> 44.4 | AX8: =IF(ISNUMBER(S8), S8, "n.a.") -> 22.2 | AY8: =IF(ISNUMBER(T8), T8, "n.a.") -> 22.2 | AZ8: =IF(ISNUMBER(U8), U8, "n.a.") -> 0 | BB8: 1 | BC8: =VLOOKUP($BB8, $AP$8:$AV$57, 3, FALSE) -> GNB | BD8: =VLOOKUP($BB8, $AP$8:$AV$57, 4, FALSE)/365 -> 4.890410959 | BE8: =VLOOKUP($BB8, $AP$8:$AV$57, 5, FALSE)/365 -> 0.2465753425 | BF8: =VLOOKUP($BB8, $AP$8:$AV$57, 6, FALSE)/365 -> 3 | BG8: =VLOOKUP($BB8, $AP$8:$AV$57, 7, FALSE)/365 -> 1.643835616 | BH8: =VLOOKUP($BB8, $AQ$8:$AZ$57, 2, FALSE) -> COM | BI8: =VLOOKUP($BB8, $AQ$8:$AZ$57, 7, FALSE) -> 89.4 | BJ8: =VLOOKUP($BB8, $AQ$8:$AZ$57, 8, FALSE) -> 30.1 | BK8: =VLOOKUP($BB8, $AQ$8:$AZ$57, 9, FALSE) -> 40.2 | BL8: =VLOOKUP($BB8, $AQ$8:$AZ$57, 10, FALSE) -> 19.1 | BM8: =BD8-SUM(BE8:BG8) -> 0 | BN8: =BI8-SUM(BJ8:BL8) -> 0
B9: BEN | C9: Benin | D9: Sub-Saharan Africa | E9: Low income | F9: 2018 | H9: 36.34269 | L9: 750 | M9: 48.36066 | N9: 30 | O9: 405 | P9: 315 | Q9: 64.7 | R9: 27.33408 | S9: 17.3 | T9: 36.5 | U9: 10.9 | V9: 6 | W9: 33.33333 | X9: 3 | Y9: 1 | Z9: 0 | AA9: 2 | AB9: 108 | AC9: 40.98775 | AD9: 0 | AE9: 4 | AF9: 21.5 | AG9: 23.9 | AH9: 25.72551 | AI9: 9 | AJ9: 56.25 | AK9: 2 | AL9: 5.5 | AM9: .5 | AN9: 1 | AP9: =IFERROR(RANK(AS9, $AS$8:$AS$57)+COUNTIF(AS$8:AS9, AS9)-1, "n.a.") -> 13 | AQ9: =IFERROR(RANK(AW9, $AW$8:$AW$57)+COUNTIF(AW$8:AW9, AW9)-1, "n.a.") -> 8 | AR9: BEN | AS9: =IF(ISNUMBER(L9), L9, "n.a.") -> 750 | AT9: =IF(ISNUMBER(N9), N9, "n.a.") -> 30 | AU9: =IF(ISNUMBER(O9), O9, "n.a.") -> 405 | AV9: =IF(ISNUMBER(P9), P9, "n.a.") -> 315 | AW9: =IF(ISNUMBER(Q9), Q9, "n.a.") -> 64.7 | AX9: =IF(ISNUMBER(S9), S9, "n.a.") -> 17.3 | AY9: =IF(ISNUMBER(T9), T9, "n.a.") -> 36.5 | AZ9: =IF(ISNUMBER(U9), U9, "n.a.") -> 10.9 | BB9: 2 | BC9: =VLOOKUP($BB9, $AP$8:$AV$57, 3, FALSE) -> LBR | BD9: =VLOOKUP($BB9, $AP$8:$AV$57, 4, FALSE)/365 -> 3.561643836 | BE9: =VLOOKUP($BB9, $AP$8:$AV$57, 5, FALSE)/365 -> 0.08219178082 | BF9: =VLOOKUP($BB9, $AP$8:$AV$57, 6, FALSE)/365 -> 2 | BG9: =VLOOKUP($BB9, $AP$8:$AV$57, 7, FALSE)/365 -> 1.479452055 | BH9: =VLOOKUP($BB9, $AQ$8:$AZ$57, 2, FALSE) -> ZWE | BI9: =VLOOKUP($BB9, $AQ$8:$AZ$57, 7, FALSE) -> 83.1 | BJ9: =VLOOKUP($BB9, $AQ$8:$AZ$57, 8, FALSE) -> 70 | BK9: =VLOOKUP($BB9, $AQ$8:$AZ$57, 9, FALSE) -> 8 | BL9: =VLOOKUP($BB9, $AQ$8:$AZ$57, 10, FALSE) -> 5.1 | BM9: =AS9-SUM(AT9:AV9) -> 0 | BN9: =AW9-SUM(AX9:AZ9) -> 0
B10: BWA | C10: Botswana | D10: Sub-Saharan Africa | E10: Upper middle income | F10: 2018 | H10: 49.98989 | L10: 660 | M10: 55.7377 | N10: 30 | O10: 550 | P10: 80 | Q10: 39.8 | R10: 55.34308 | S10: 35 | T10: 3.3 | U10: 1.5 | V10: 7 | W10: 38.88889 | X10: 2.5 | Y10: 2.5 | Z10: 0 | AA10: 2 | AB10: 84 | AC10: 48.1979 | AD10: 1 | AE10: 1.7 | AF10: 18 | AG10: 66.3 | AH10: 71.39579 | AI10: 4 | AJ10: 25 | AK10: 3 | AL10: 1 | AM10: 0 | AN10: 0 | AP10: =IFERROR(RANK(AS10, $AS$8:$AS$57)+COUNTIF(AS$8:AS10, AS10)-1, "n.a.") -> 17 | AQ10: =IFERROR(RANK(AW10, $AW$8:$AW$57)+COUNTIF(AW$8:AW10, AW10)-1, "n.a.") -> 22 | AR10: BWA | AS10: 660 | AT10: 30 | AU10: 550 | AV10: 80 | AW10: 39.8 | AX10: 35 | AY10: 3.3 | AZ10: 1.5 | BB10: 3 | BC10: AGO | BD10: 3.550684932 | BE10: 0.2356164384 | BF10: 2.109589041 | BG10: 1.205479452 | BH10: CAF | BI10: 82 | BJ10: 31.3 | BK10: 12.4 | BL10: 38.3 | BM10: 0 | BN10: 0
B11: BFA | C11: Burkina Faso | D11: Sub-Saharan Africa | E11: Low income | F11: 2018 | H11: 40.12635 | L11: 446 | M11: 73.27869 | N11: 21 | O11: 196 | P11: 229 | Q11: 81.7 | R11: 8.21147 | S11: 53.6 | T11: 8.8 | U11: 19.3 | V11: 7 | W11: 38.88889 | X11: 4 | Y11: 1 | Z11: 0 | AA11: 2 | AB11: 109 | AC11: 40.82018 | AD11: 0 | AE11: 4 | AF11: 21 | AG11: 23.6 | AH11: 25.39036 | AI11: 9 | AJ11: 56.25 | AK11: 2 | AL11: 5.5 | AM11: .5 | AN11: 1 | AP11: =IFERROR(RANK(AS11, $AS$8:$AS$57)+COUNTIF(AS$8:AS11, AS11)-1, "n.a.") -> 39 | AQ11: =IFERROR(RANK(AW11, $AW$8:$AW$57)+COUNTIF(AW$8:AW11, AW11)-1, "n.a.") -> 4 | AR11: BFA | AS11: 446 | AT11: 21 | AU11: 196 | AV11: 229 | AW11: 81.7 | AX11: 53.6 | AY11: 8.8 | AZ11: 19.3 | BB11: 4 | BC11: STP | BD11: 3.246575342 | BE11: 0.2465753425 | BF11: 2 | BG11: 1 | BH11: BFA | BI11: 81.7 | BJ11: 53.6 | BK11: 8.8 | BL11: 19.3 | BM11: 0 | BN11: 0
B12: BDI | C12: Burundi | D12: Sub-Saharan Africa | E12: Low income | F12: 2018 | H12: 42.97406 | L12: 832 | M12: 41.63934 | N12: 22 | O12: 395 | P12: 415 | Q12: 36.1 | R12: 59.50506 | S12: 20 | T12: 10 | U12: 6.1 | V12: 5 | W12: 27.77778 | X12: 3 | Y12: .5 | Z12: 0 | AA12: 1.5 | AB12: 147 | AC12: 30.6133 | AD12: 0 | AE12: 5 | AF12: 30 | AG12: 7.5 | AH12: 8.1016 | AI12: 8.5 | AJ12: 53.125 | AK12: 2.5 | AL12: 4 | AM12: 1 | AN12: 1 | AP12: =IFERROR(RANK(AS12, $AS$8:$AS$57)+COUNTIF(AS$8:AS12, AS12)-1, "n.a.") -> 10 | AQ12: =IFERROR(RANK(AW12, $AW$8:$AW$57)+COUNTIF(AW$8:AW12, AW12)-1, "n.a.") -> 27 | AR12: BDI | AS12: 832 | AT12: 22 | AU12: 395 | AV12: 415 | AW12: 36.1 | AX12: 20 | AY12: 10 | AZ12: 6.1 | BB12: 5 | BC12: GAB | BD12: 3.178082192 | BE12: 0.08219178082 | BF12: 2.219178082 | BG12: 0.8767123288 | BH12: COD | BI12: 80.6 | BJ12: 70 | BK12: 7.8 | BL12: 2.8 | BM12: 0 | BN12: 0
B13: CPV | C13: Cabo Verde | D13: Sub-Saharan Africa | E13: Lower middle income | F13: 2018 | H13: 64.83565 | L13: 425 | M13: 75 | N13: 45 | O13: 180 | P13: 200 | Q13: 19.8 | R13: 77.84027 | S13: 10 | T13: 3 | U13: 6.8 | V13: 7.5 | W13: 41.66667 | X13: 2.5 | Y13: 3 | Z13: 0 | AA13: 2 | AB13: 168 | AC13: 0 | AD13: 0 | AE13: No Practice | AF13: No Practice | AG13: 0 | AH13: 0 | AI13: 0 | AJ13: 0 | AK13: 2.5 | AL13: 4.5 | AM13: 1 | AN13: 2 | AP13: =IFERROR(RANK(AS13, $AS$8:$AS$57)+COUNTIF(AS$8:AS13, AS13)-1, "n.a.") -> 41 | AQ13: =IFERROR(RANK(AW13, $AW$8:$AW$57)+COUNTIF(AW$8:AW13, AW13)-1, "n.a.") -> 40 | AR13: CPV | AS13: 425 | AT13: 45 | AU13: 180 | AV13: 200 | AW13: 19.8 | AX13: 10 | AY13: 3 | AZ13: 6.8 | BB13: 6 | BC13: SWZ | BD13: 2.619178082 | BE13: 0.03835616438 | BF13: 2.498630137 | BG13: 0.08219178082 | BH13: MWI | BI13: 69.1 | BJ13: 50 | BK13: 5.3 | BL13: 13.8 | BM13: 0 | BN13: 0
B14: CMR | C14: Cameroon | D14: Sub-Saharan Africa | E14: Lower middle income | F14: 2018 | H14: 38.98544 | L14: 800 | M14: 44.2623 | N14: 30 | O14: 410 | P14: 360 | Q14: 46.6 | R14: 47.69404 | S14: 21.3 | T14: 11.8 | U14: 13.5 | V14: 4.5 | W14: 25 | X14: 2.5 | Y14: 0 | Z14: 0 | AA14: 2 | AB14: 129 | AC14: 36.62696 | AD14: 0 | AE14: 2.8 | AF14: 33.5 | AG14: 15.8 | AH14: 17.00391 | AI14: 9 | AJ14: 56.25 | AK14: 2 | AL14: 5.5 | AM14: .5 | AN14: 1 | AP14: =IFERROR(RANK(AS14, $AS$8:$AS$57)+COUNTIF(AS$8:AS14, AS14)-1, "n.a.") -> 11 | AQ14: =IFERROR(RANK(AW14, $AW$8:$AW$57)+COUNTIF(AW$8:AW14, AW14)-1, "n.a.") -> 16 | AR14: CMR | AS14: 800 | AT14: 30 | AU14: 410 | AV14: 360 | AW14: 46.6 | AX14: 21.3 | AY14: 11.8 | AZ14: 13.5 | BB14: 7 | BC14: MOZ | BD14: 2.602739726 | BE14: 0.2465753425 | BF14: 1.753424658 | BG14: 0.602739726 | BH14: RWA | BI14: 65.3 | BJ14: 28 | BK14: 14 | BL14: 23.3 | BM14: 0 | BN14: 0
B15: CAF | C15: Central African Republic | D15: Sub-Saharan Africa | E15: Low income | F15: 2018 | H15: 30.46317 | L15: 660 | M15: 55.7377 | N15: 30 | O15: 280 | P15: 350 | Q15: 82 | R15: 7.87402 | S15: 31.3 | T15: 12.4 | U15: 38.3 | V15: 5 | W15: 27.77778 | X15: 3 | Y15: 0 | Z15: 0 | AA15: 2 | AB15: 155 | AC15: 28.125 | AD15: 0 | AE15: 4.8 | AF15: 76 | AG15: 0 | AH15: 0 | AI15: 9 | AJ15: 56.25 | AK15: 2 | AL15: 5.5 | AM15: .5 | AN15: 1 | AP15: =IFERROR(RANK(AS15, $AS$8:$AS$57)+COUNTIF(AS$8:AS15, AS15)-1, "n.a.") -> 18 | AQ15: =IFERROR(RANK(AW15, $AW$8:$AW$57)+COUNTIF(AW$8:AW15, AW15)-1, "n.a.") -> 3 | AR15: CAF | AS15: 660 | AT15: 30 | AU15: 280 | AV15: 350 | AW15: 82 | AX15: 31.3 | AY15: 12.4 | AZ15: 38.3 | BB15: 8 | BC15: SYC | BD15: 2.506849315 | BE15: 0.2054794521 | BF15: 1.97260274 | BG15: 0.3287671233 | BH15: BEN | BI15: 64.7 | BJ15: 17.3 | BK15: 36.5 | BL15: 10.9 | BM15: 0 | BN15: 0
B16: TCD | C16: Chad | D16: Sub-Saharan Africa | E16: Low income | F16: 2018 | H16: 44.58398 | L16: 743 | M16: 48.93443 | N16: 35 | O16: 320 | P16: 388 | Q16: 45.7 | R16: 48.70641 | S16: 23.5 | T16: 13.8 | U16: 8.4 | V16: 6.5 | W16: 36.11111 | X16: 4.5 | Y16: 0 | Z16: 0 | AA16: 2 | AB16: 155 | AC16: 28.125 | AD16: 0 | AE16: 4 | AF16: 60 | AG16: 0 | AH16: 0 | AI16: 9 | AJ16: 56.25 | AK16: 2 | AL16: 5.5 | AM16: .5 | AN16: 1 | AP16: =IFERROR(RANK(AS16, $AS$8:$AS$57)+COUNTIF(AS$8:AS16, AS16)-1, "n.a.") -> 14 | AQ16: =IFERROR(RANK(AW16, $AW$8:$AW$57)+COUNTIF(AW$8:AW16, AW16)-1, "n.a.") -> 17 | AR16: TCD | AS16: 743 | AT16: 35 | AU16: 320 | AV16: 388 | AW16: 45.7 | AX16: 23.5 | AY16: 13.8 | AZ16: 8.4 | BB16: 9 | BC16: MDG | BD16: 2.38630137 | BE16: 0.05753424658 | BF16: 1.917808219 | BG16: 0.4109589041 | BH16: SWZ | BI16: 56.1 | BJ16: 52 | BK16: 1.1 | BL16: 3 | BM16: 0 | BN16: 0
B17: COM | C17: Comoros | D17: Sub-Saharan Africa | E17: Lower middle income | F17: 2018 | H17: 32.04614 | L17: 506 | M17: 68.36066 | N17: 21 | O17: 425 | P17: 60 | Q17: 89.4 | R17: 0 | S17: 30.1 | T17: 40.2 | U17: 19.1 | V17: 5 | W17: 27.77778 | X17: 3 | Y17: 0 | Z17: 0 | AA17: 2 | AB17: 168 | AC17: 0 | AD17: 0 | AE17: No Practice | AF17: No Practice | AG17: 0 | AH17: 0 | AI17: 0 | AJ17: 0 | AK17: 2 | AL17: 5.5 | AM17: .5 | AN17: 1 | AP17: =IFERROR(RANK(AS17, $AS$8:$AS$57)+COUNTIF(AS$8:AS17, AS17)-1, "n.a.") -> 31 | AQ17: =IFERROR(RANK(AW17, $AW$8:$AW$57)+COUNTIF(AW$8:AW17, AW17)-1, "n.a.") -> 1 | AR17: COM | AS17: 506 | AT17: 21 | AU17: 425 | AV17: 60 | AW17: 89.4 | AX17: 30.1 | AY17: 40.2 | AZ17: 19.1 | BB17: 10 | BC17: BDI | BD17: 2.279452055 | BE17: 0.0602739726 | BF17: 1.082191781 | BG17: 1.136986301 | BH17: MOZ | BI17: 53.3 | BJ17: 35 | BK17: 9.4 | BL17: 8.9 | BM17: 0 | BN17: 0
B18: COD | C18: Congo, Dem. Rep. | D18: Sub-Saharan Africa | E18: Low income | F18: 2018 | H18: 32.35422 | L18: 610 | M18: 59.83607 | N18: 20 | O18: 300 | P18: 290 | Q18: 80.6 | R18: 9.44882 | S18: 70 | T18: 7.8 | U18: 2.8 | V18: 5 | W18: 27.77778 | X18: 2.5 | Y18: .5 | Z18: 0 | AA18: 2 | AB18: 168 | AC18: 0 | AD18: 0 | AE18: No Practice | AF18: No Practice | AG18: 0 | AH18: 0 | AI18: 0 | AJ18: 0 | AK18: 2 | AL18: 5.5 | AM18: .5 | AN18: 1 | AP18: =IFERROR(RANK(AS18, $AS$8:$AS$57)+COUNTIF(AS$8:AS18, AS18)-1, "n.a.") -> 22 | AQ18: =IFERROR(RANK(AW18, $AW$8:$AW$57)+COUNTIF(AW$8:AW18, AW18)-1, "n.a.") -> 5 | AR18: COD | AS18: 610 | AT18: 20 | AU18: 300 | AV18: 290 | AW18: 80.6 | AX18: 70 | AY18: 7.8 | AZ18: 2.8 | BB18: 11 | BC18: CMR | BD18: 2.191780822 | BE18: 0.08219178082 | BF18: 1.123287671 | BG18: 0.9863013699 | BH18: COG | BI18: 53.2 | BJ18: 34.7 | BK18: 12.5 | BL18: 6 | BM18: 0 | BN18: 0
B19: COG | C19: Congo, Rep. | D19: Sub-Saharan Africa | E19: Lower middle income | F19: 2018 | H19: 43.06813 | L19: 560 | M19: 63.93443 | N19: 18 | O19: 242 | P19: 300 | Q19: 53.2 | R19: 40.26997 | S19: 34.7 | T19: 12.5 | U19: 6 | V19: 4.5 | W19: 25 | X19: 2.5 | Y19: 0 | Z19: 0 | AA19: 2 | AB19: 119 | AC19: 38.54577 | AD19: 0 | AE19: 3.3 | AF19: 25 | AG19: 19.4 | AH19: 20.84155 | AI19: 9 | AJ19: 56.25 | AK19: 2 | AL19: 5.5 | AM19: .5 | AN19: 1 | AP19: =IFERROR(RANK(AS19, $AS$8:$AS$57)+COUNTIF(AS$8:AS19, AS19)-1, "n.a.") -> 24 | AQ19: =IFERROR(RANK(AW19, $AW$8:$AW$57)+COUNTIF(AW$8:AW19, AW19)-1, "n.a.") -> 11 | AR19: COG | AS19: 560 | AT19: 18 | AU19: 242 | AV19: 300 | AW19: 53.2 | AX19: 34.7 | AY19: 12.5 | AZ19: 6 | BB19: 12 | BC19: GMB | BD19: 2.076712329 | BE19: 0.1178082192 | BF19: 1.342465753 | BG19: 0.6164383562 | BH19: NER | BI19: 52.6 | BJ19: 23 | BK19: 12 | BL19: 17.6 | BM19: 0 | BN19: 0
B20: CIV | C20: Côte d'Ivoire | D20: Sub-Saharan Africa | E20: Lower middle income | F20: 2018 | H20: 55.74378 | L20: 525 | M20: 66.80328 | N20: 25 | O20: 150 | P20: 350 | Q20: 41.7 | R20: 53.20585 | S20: 16.7 | T20: 15 | U20: 10 | V20: 8.5 | W20: 47.22222 | X20: 4.5 | Y20: 1.5 | Z20: 0 | AA20: 2.5 | AB20: 85 | AC20: 47.93594 | AD20: 0 | AE20: 2.2 | AF20: 18 | AG20: 36.8 | AH20: 39.62189 | AI20: 9 | AJ20: 56.25 | AK20: 2 | AL20: 5.5 | AM20: .5 | AN20: 1 | AP20: =IFERROR(RANK(AS20, $AS$8:$AS$57)+COUNTIF(AS$8:AS20, AS20)-1, "n.a.") -> 26 | AQ20: =IFERROR(RANK(AW20, $AW$8:$AW$57)+COUNTIF(AW$8:AW20, AW20)-1, "n.a.") -> 21 | AR20: CIV | AS20: 525 | AT20: 25 | AU20: 150 | AV20: 350 | AW20: 41.7 | AX20: 16.7 | AY20: 15 | AZ20: 10 | BB20: 13 | BC20: BEN | BD20: 2.054794521 | BE20: 0.08219178082 | BF20: 1.109589041 | BG20: 0.8630136986 | BH20: MLI | BI20: 52 | BJ20: 30 | BK20: 15 | BL20: 7 | BM20: 0 | BN20: 0
B21: GNQ | C21: Equatorial Guinea | D21: Sub-Saharan Africa | E21: Upper middle income | F21: 2018 | H21: 55.24868 | L21: 475 | M21: 70.90164 | N21: 20 | O21: 365 | P21: 90 | Q21: 19.5 | R21: 78.17773 | S21: 10 | T21: 5.5 | U21: 4 | V21: 3 | W21: 16.66667 | X21: 1 | Y21: .5 | Z21: 0 | AA21: 1.5 | AB21: 168 | AC21: 0 | AD21: 0 | AE21: No Practice | AF21: No Practice | AG21: 0 | AH21: 0 | AI21: 0 | AJ21: 0 | AK21: 2 | AL21: 5.5 | AM21: .5 | AN21: 1 | AP21: =IFERROR(RANK(AS21, $AS$8:$AS$57)+COUNTIF(AS$8:AS21, AS21)-1, "n.a.") -> 35 | AQ21: =IFERROR(RANK(AW21, $AW$8:$AW$57)+COUNTIF(AW$8:AW21, AW21)-1, "n.a.") -> 41 | AR21: GNQ | AS21: 475 | AT21: 20 | AU21: 365 | AV21: 90 | AW21: 19.5 | AX21: 10 | AY21: 5.5 | AZ21: 4 | BB21: 14 | BC21: TCD | BD21: 2.035616438 | BE21: 0.09589041096 | BF21: 0.8767123288 | BG21: 1.063013699 | BH21: STP | BI21: 50.5 | BJ21: 23.4 | BK21: 11.4 | BL21: 15.7 | BM21: 0 | BN21: 0
B22: ERI | C22: Eritrea | D22: Sub-Saharan Africa | E22: Low income | F22: 2018 | H22: 55.92621 | L22: 490 | M22: 69.67213 | N22: 40 | O22: 270 | P22: 180 | Q22: 16.6 | R22: 81.43982 | S22: 9 | T22: 3.6 | U22: 4 | V22: 3 | W22: 16.66667 | X22: 1.5 | Y22: 0 | Z22: 0 | AA22: 1.5 | AB22: 168 | AC22: 0 | AD22: 0 | AE22: No Practice | AF22: No Practice | AG22: 0 | AH22: 0 | AI22: 0 | AJ22: 0 | AK22: 2 | AL22: 2 | AM22: 0 | AN22: 1 | AP22: =IFERROR(RANK(AS22, $AS$8:$AS$57)+COUNTIF(AS$8:AS22, AS22)-1, "n.a.") -> 32 | AQ22: =IFERROR(RANK(AW22, $AW$8:$AW$57)+COUNTIF(AW$8:AW22, AW22)-1, "n.a.") -> 42 | AR22: ERI | AS22: 490 | AT22: 40 | AU22: 270 | AV22: 180 | AW22: 16.6 | AX22: 9 | AY22: 3.6 | AZ22: 4 | BB22: 15 | BC22: SEN | BD22: 2.02739726 | BE22: 0.09589041096 | BF22: 1.068493151 | BG22: 0.8630136986 | BH22: TGO | BI22: 47.5 | BJ22: 19 | BK22: 11.1 | BL22: 17.4 | BM22: 0 | BN22: 0
B23: SWZ | C23: Eswatini | D23: Sub-Saharan Africa | E23: Lower middle income | F23: 2018 | H23: 36.71665 | L23: 956 | M23: 31.47541 | N23: 14 | O23: 912 | P23: 30 | Q23: 56.1 | R23: 37.00787 | S23: 52 | T23: 1.1 | U23: 3 | V23: 7.5 | W23: 41.66667 | X23: 3 | Y23: 2 | Z23: .5 | AA23: 2 | AB23: 117 | AC23: 38.87409 | AD23: 0 | AE23: 2 | AF23: 14.5 | AG23: 37.4 | AH23: 40.24818 | AI23: 6 | AJ23: 37.5 | AK23: 3 | AL23: 2 | AM23: 0 | AN23: 1 | AP23: =IFERROR(RANK(AS23, $AS$8:$AS$57)+COUNTIF(AS$8:AS23, AS23)-1, "n.a.") -> 6 | AQ23: =IFERROR(RANK(AW23, $AW$8:$AW$57)+COUNTIF(AW$8:AW23, AW23)-1, "n.a.") -> 9 | AR23: SWZ | AS23: 956 | AT23: 14 | AU23: 912 | AV23: 30 | AW23: 56.1 | AX23: 52 | AY23: 1.1 | AZ23: 3 | BB23: 16 | BC23: GHA | BD23: 1.945205479 | BE23: 0.04109589041 | BF23: 1 | BG23: 0.904109589 | BH23: CMR | BI23: 46.6 | BJ23: 21.3 | BK23: 11.8 | BL23: 13.5 | BM23: 0 | BN23: 0
B24: ETH | C24: Ethiopia | D24: Sub-Saharan Africa | E24: Low income | F24: 2018 | H24: 59.98787 | L24: 530 | M24: 66.39344 | N24: 30 | O24: 290 | P24: 210 | Q24: 15.2 | R24: 83.01462 | S24: 10 | T24: 4.8 | U24: 0.4 | V24: 5.5 | W24: 30.55556 | X24: 3 | Y24: 1 | Z24: 0 | AA24: 1.5 | AB24: 149 | AC24: 30.33778 | AD24: 0 | AE24: 3 | AF24: 14.5 | AG24: 27.3 | AH24: 29.42556 | AI24: 5 | AJ24: 31.25 | AK24: 2 | AL24: 2 | AM24: 0 | AN24: 1 | AP24: =IFERROR(RANK(AS24, $AS$8:$AS$57)+COUNTIF(AS$8:AS24, AS24)-1, "n.a.") -> 25 | AQ24: =IFERROR(RANK(AW24, $AW$8:$AW$57)+COUNTIF(AW$8:AW24, AW24)-1, "n.a.") -> 44 | AR24: ETH | AS24: 530 | AT24: 30 | AU24: 290 | AV24: 210 | AW24: 15.2 | AX24: 10 | AY24: 4.8 | AZ24: 0.4 | BB24: 17 | BC24: BWA | BD24: 1.808219178 | BE24: 0.08219178082 | BF24: 1.506849315 | BG24: 0.2191780822 | BH24: TCD | BI24: 45.7 | BJ24: 23.5 | BK24: 13.8 | BL24: 8.4 | BM24: 0 | BN24: 0
B25: GAB | C25: Gabon | D25: Sub-Saharan Africa | E25: Upper middle income | F25: 2018 | H25: 32.83538 | L25: 1160 | M25: 14.7541 | N25: 30 | O25: 810 | P25: 320 | Q25: 34.3 | R25: 61.52981 | S25: 16.2 | T25: 4.1 | U25: 14 | V25: 4 | W25: 22.22222 | X25: 1.5 | Y25: 0 | Z25: 0 | AA25: 2.5 | AB25: 130 | AC25: 35.94063 | AD25: 0 | AE25: 5 | AF25: 14.5 | AG25: 14.5 | AH25: 15.63127 | AI25: 9 | AJ25: 56.25 | AK25: 2 | AL25: 5.5 | AM25: .5 | AN25: 1 | AP25: =IFERROR(RANK(AS25, $AS$8:$AS$57)+COUNTIF(AS$8:AS25, AS25)-1, "n.a.") -> 5 | AQ25: =IFERROR(RANK(AW25, $AW$8:$AW$57)+COUNTIF(AW$8:AW25, AW25)-1, "n.a.") -> 30 | AR25: GAB | AS25: 1160 | AT25: 30 | AU25: 810 | AV25: 320 | AW25: 34.3 | AX25: 16.2 | AY25: 4.1 | AZ25: 14 | BB25: 18 | BC25: CAF | BD25: 1.808219178 | BE25: 0.08219178082 | BF25: 0.7671232877 | BG25: 0.9589041096 | BH25: GIN | BI25: 45 | BJ25: 20 | BK25: 15 | BL25: 10 | BM25: 0 | BN25: 0
B26: GMB | C26: Gambia, The | D26: Sub-Saharan Africa | E26: Low income | F26: 2018 | H26: 50.88268 | L26: 758 | M26: 47.70492 | N26: 43 | O26: 490 | P26: 225 | Q26: 20.4 | R26: 77.16535 | S26: 17 | T26: 1.4 | U26: 2 | V26: 5 | W26: 27.77778 | X26: 2.5 | Y26: 0 | Z26: 0 | AA26: 2.5 | AB26: 128 | AC26: 36.82171 | AD26: 0 | AE26: 2 | AF26: 14.5 | AG26: 27.8 | AH26: 29.89343 | AI26: 7 | AJ26: 43.75 | AK26: 3 | AL26: 3 | AM26: 1 | AN26: 0 | AP26: =IFERROR(RANK(AS26, $AS$8:$AS$57)+COUNTIF(AS$8:AS26, AS26)-1, "n.a.") -> 12 | AQ26: =IFERROR(RANK(AW26, $AW$8:$AW$57)+COUNTIF(AW$8:AW26, AW26)-1, "n.a.") -> 39 | AR26: GMB | AS26: 758 | AT26: 43 | AU26: 490 | AV26: 225 | AW26: 20.4 | AX26: 17 | AY26: 1.4 | AZ26: 2 | BB26: 19 | BC26: MLI | BD26: 1.698630137 | BE26: 0.04109589041 | BF26: 0.6575342466 | BG26: 1 | BH26: AGO | BI26: 44.4 | BJ26: 22.2 | BK26: 22.2 | BL26: 0 | BM26: 0 | BN26: 0
B27: GHA | C27: Ghana | D27: Sub-Saharan Africa | E27: Lower middle income | F27: 2018 | H27: 53.99706 | L27: 710 | M27: 51.63934 | N27: 15 | O27: 365 | P27: 330 | Q27: 23 | R27: 74.24072 | S27: 10 | T27: 3 | U27: 10 | V27: 6.5 | W27: 36.11111 | X27: 3 | Y27: 1 | Z27: 0 | AA27: 2.5 | AB27: 161 | AC27: 25.4119 | AD27: 0 | AE27: 1.9 | AF27: 22 | AG27: 24 | AH27: 25.82381 | AI27: 4 | AJ27: 25 | AK27: 2 | AL27: 2 | AM27: 0 | AN27: 0 | AP27: =IFERROR(RANK(AS27, $AS$8:$AS$57)+COUNTIF(AS$8:AS27, AS27)-1, "n.a.") -> 16 | AQ27: =IFERROR(RANK(AW27, $AW$8:$AW$57)+COUNTIF(AW$8:AW27, AW27)-1, "n.a.") -> 38 | AR27: GHA | AS27: 710 | AT27: 15 | AU27: 365 | AV27: 330 | AW27: 23 | AX27: 10 | AY27: 3 | AZ27: 10 | BB27: 20 | BC27: LSO | BD27: 1.684931507 | BE27: 0.1232876712 | BF27: 0.8219178082 | BG27: 0.7397260274 | BH27: KEN | BI27: 41.8 | BJ27: 27.5 | BK27: 11.6 | BL27: 2.7 | BM27: 0 | BN27: 0
B28: GIN | C28: Guinea | D28: Sub-Saharan Africa | E28: Low income | F28: 2018 | H28: 52.94603 | L28: 311 | M28: 84.34426 | N28: 21 | O28: 140 | P28: 150 | Q28: 45 | R28: 49.49381 | S28: 20 | T28: 15 | U28: 10 | V28: 4.5 | W28: 25 | X28: 2.5 | Y28: 0 | Z28: 0 | AA28: 2 | AB28: 118 | AC28: 38.59294 | AD28: 0 | AE28: 3.8 | AF28: 10 | AG28: 19.4 | AH28: 20.93588 | AI28: 9 | AJ28: 56.25 | AK28: 2 | AL28: 5.5 | AM28: .5 | AN28: 1 | AP28: =IFERROR(RANK(AS28, $AS$8:$AS$57)+COUNTIF(AS$8:AS28, AS28)-1, "n.a.") -> 43 | AQ28: =IFERROR(RANK(AW28, $AW$8:$AW$57)+COUNTIF(AW$8:AW28, AW28)-1, "n.a.") -> 18 | AR28: GIN | AS28: 311 | AT28: 21 | AU28: 140 | AV28: 150 | AW28: 45 | AX28: 20 | AY28: 15 | AZ28: 10 | BB28: 21 | BC28: ZMB | BD28: 1.673972603 | BE28: 0.05753424658 | BF28: 1.287671233 | BG28: 0.3287671233 | BH28: CIV | BI28: 41.7 | BJ28: 16.7 | BK28: 15 | BL28: 10 | BM28: 0 | BN28: 0
B29: GNB | C29: Guinea-Bissau | D29: Sub-Saharan Africa | E29: Low income | F29: 2018 | H29: 37.68696 | L29: 1785 | M29: 0 | N29: 90 | O29: 1095 | P29: 600 | Q29: 28 | R29: 68.61642 | S29: 15 | T29: 12 | U29: 1 | V29: 8 | W29: 44.44444 | X29: 4.5 | Y29: 1.5 | Z29: 0 | AA29: 2 | AB29: 168 | AC29: 0 | AD29: 0 | AE29: No Practice | AF29: No Practice | AG29: 0 | AH29: 0 | AI29: 0 | AJ29: 0 | AK29: 2 | AL29: 5.5 | AM29: .5 | AN29: 1 | AP29: =IFERROR(RANK(AS29, $AS$8:$AS$57)+COUNTIF(AS$8:AS29, AS29)-1, "n.a.") -> 1 | AQ29: =IFERROR(RANK(AW29, $AW$8:$AW$57)+COUNTIF(AW$8:AW29, AW29)-1, "n.a.") -> 36 | AR29: GNB | AS29: 1785 | AT29: 90 | AU29: 1095 | AV29: 600 | AW29: 28 | AX29: 15 | AY29: 12 | AZ29: 1 | BB29: 22 | BC29: COD | BD29: 1.671232877 | BE29: 0.05479452055 | BF29: 0.8219178082 | BG29: 0.7945205479 | BH29: BWA | BI29: 39.8 | BJ29: 35 | BK29: 3.3 | BL29: 1.5 | BM29: 0 | BN29: 0
B30: KEN | C30: Kenya | D30: Sub-Saharan Africa | E30: Lower middle income | F30: 2018 | H30: 58.27156 | L30: 465 | M30: 71.72131 | N30: 40 | O30: 365 | P30: 60 | Q30: 41.8 | R30: 53.09336 | S30: 27.5 | T30: 11.6 | U30: 2.7 | V30: 9 | W30: 50 | X30: 4.5 | Y30: 2 | Z30: .5 | AA30: 2 | AB30: 50 | AC30: 62.41023 | AD30: 1 | AE30: 4.5 | AF30: 22 | AG30: 31.8 | AH30: 34.19545 | AI30: 14.5 | AJ30: 90.625 | AK30: 3 | AL30: 5.5 | AM30: 3 | AN30: 3 | AP30: =IFERROR(RANK(AS30, $AS$8:$AS$57)+COUNTIF(AS$8:AS30, AS30)-1, "n.a.") -> 36 | AQ30: =IFERROR(RANK(AW30, $AW$8:$AW$57)+COUNTIF(AW$8:AW30, AW30)-1, "n.a.") -> 20 | AR30: KEN | AS30: 465 | AT30: 40 | AU30: 365 | AV30: 60 | AW30: 41.8 | AX30: 27.5 | AY30: 11.6 | AZ30: 2.7 | BB30: 23 | BC30: ZAF | BD30: 1.643835616 | BE30: 0.08219178082 | BF30: 1.342465753 | BG30: 0.2191780822 | BH30: SLE | BI30: 39.5 | BJ30: 15 | BK30: 4.5 | BL30: 20 | BM30: 0 | BN30: 0
B31: LSO | C31: Lesotho | D31: Sub-Saharan Africa | E31: Lower middle income | F31: 2018 | H31: 57.18428 | L31: 615 | M31: 59.42623 | N31: 45 | O31: 300 | P31: 270 | Q31: 31.3 | R31: 64.90439 | S31: 25 | T31: 3.6 | U31: 2.7 | V31: 8.5 | W31: 47.22222 | X31: 4.5 | Y31: 1 | Z31: .5 | AA31: 2.5 | AB31: 126 | AC31: 36.99232 | AD31: 0 | AE31: 2.6 | AF31: 20 | AG31: 28.1 | AH31: 30.23463 | AI31: 7 | AJ31: 43.75 | AK31: 3 | AL31: 3 | AM31: 0 | AN31: 1 | AP31: =IFERROR(RANK(AS31, $AS$8:$AS$57)+COUNTIF(AS$8:AS31, AS31)-1, "n.a.") -> 20 | AQ31: =IFERROR(RANK(AW31, $AW$8:$AW$57)+COUNTIF(AW$8:AW31, AW31)-1, "n.a.") -> 33 | AR31: LSO | AS31: 615 | AT31: 45 | AU31: 300 | AV31: 270 | AW31: 31.3 | AX31: 25 | AY31: 3.6 | AZ31: 2.7 | BB31: 24 | BC31: COG | BD31: 1.534246575 | BE31: 0.04931506849 | BF31: 0.6630136986 | BG31: 0.8219178082 | BH31: NGA | BI31: 38.9 | BJ31: 21.6 | BK31: 11.8 | BL31: 5.5 | BM31: 0 | BN31: 0
B32: LBR | C32: Liberia | D32: Sub-Saharan Africa | E32: Low income | F32: 2018 | H32: 35.22925 | L32: 1300 | M32: 3.27869 | N32: 30 | O32: 730 | P32: 540 | Q32: 35 | R32: 60.74241 | S32: 25.1 | T32: 6.9 | U32: 3 | V32: 7.5 | W32: 41.66667 | X32: 4 | Y32: 2 | Z32: 0 | AA32: 1.5 | AB32: 110 | AC32: 40.62491 | AD32: 0 | AE32: 3 | AF32: 30 | AG32: 17.4 | AH32: 18.74982 | AI32: 10 | AJ32: 62.5 | AK32: 2.5 | AL32: 6 | AM32: .5 | AN32: 1 | AP32: =IFERROR(RANK(AS32, $AS$8:$AS$57)+COUNTIF(AS$8:AS32, AS32)-1, "n.a.") -> 2 | AQ32: =IFERROR(RANK(AW32, $AW$8:$AW$57)+COUNTIF(AW$8:AW32, AW32)-1, "n.a.") -> 29 | AR32: LBR | AS32: 1300 | AT32: 30 | AU32: 730 | AV32: 540 | AW32: 35 | AX32: 25.1 | AY32: 6.9 | AZ32: 3 | BB32: 25 | BC32: ETH | BD32: 1.452054795 | BE32: 0.08219178082 | BF32: 0.7945205479 | BG32: 0.5753424658 | BH32: ZMB | BI32: 38.7 | BJ32: 23.7 | BK32: 5 | BL32: 10 | BM32: 0 | BN32: 0
B33: MDG | C33: Madagascar | D33: Sub-Saharan Africa | E33: Low income | F33: 2018 | H33: 42.84587 | L33: 871 | M33: 38.44262 | N33: 21 | O33: 700 | P33: 150 | Q33: 33.6 | R33: 62.31721 | S33: 11 | T33: 7 | U33: 15.6 | V33: 5 | W33: 27.77778 | X33: 2.5 | Y33: 0 | Z33: 0 | AA33: 2.5 | AB33: 135 | AC33: 34.79524 | AD33: 0 | AE33: 3 | AF33: 8.5 | AG33: 12.4 | AH33: 13.34048 | AI33: 9 | AJ33: 56.25 | AK33: 2 | AL33: 5.5 | AM33: .5 | AN33: 1 | AP33: =IFERROR(RANK(AS33, $AS$8:$AS$57)+COUNTIF(AS$8:AS33, AS33)-1, "n.a.") -> 9 | AQ33: =IFERROR(RANK(AW33, $AW$8:$AW$57)+COUNTIF(AW$8:AW33, AW33)-1, "n.a.") -> 31 | AR33: MDG | AS33: 871 | AT33: 21 | AU33: 700 | AV33: 150 | AW33: 33.6 | AX33: 11 | AY33: 7 | AZ33: 15.6 | BB33: 26 | BC33: CIV | BD33: 1.438356164 | BE33: 0.06849315068 | BF33: 0.4109589041 | BG33: 0.9589041096 | BH33: SEN | BI33: 36.4 | BJ33: 28 | BK33: 8 | BL33: 0.4 | BM33: 0 | BN33: 0
B34: MWI | C34: Malawi | D34: Sub-Saharan Africa | E34: Low income | F34: 2018 | H34: 45.55203 | L34: 522 | M34: 67.04918 | N34: 42 | O34: 360 | P34: 120 | Q34: 69.1 | R34: 22.3847 | S34: 50 | T34: 5.3 | U34: 13.8 | V34: 8.5 | W34: 47.22222 | X34: 4.5 | Y34: 1 | Z34: 1.5 | AA34: 1.5 | AB34: 134 | AC34: 34.94337 | AD34: 0 | AE34: 2.6 | AF34: 25 | AG34: 15.6 | AH34: 16.76174 | AI34: 8.5 | AJ34: 53.125 | AK34: 3 | AL34: 4 | AM34: .5 | AN34: 1 | AP34: =IFERROR(RANK(AS34, $AS$8:$AS$57)+COUNTIF(AS$8:AS34, AS34)-1, "n.a.") -> 27 | AQ34: =IFERROR(RANK(AW34, $AW$8:$AW$57)+COUNTIF(AW$8:AW34, AW34)-1, "n.a.") -> 6 | AR34: MWI | AS34: 522 | AT34: 42 | AU34: 360 | AV34: 120 | AW34: 69.1 | AX34: 50 | AY34: 5.3 | AZ34: 13.8 | BB34: 27 | BC34: MWI | BD34: 1.430136986 | BE34: 0.1150684932 | BF34: 0.9863013699 | BG34: 0.3287671233 | BH34: BDI | BI34: 36.1 | BJ34: 20 | BK34: 10 | BL34: 6.1 | BM34: 0 | BN34: 0
B35: MLI | C35: Mali | D35: Sub-Saharan Africa | E35: Low income | F35: 2018 | H35: 41.87873 | L35: 620 | M35: 59.01639 | N35: 15 | O35: 240 | P35: 365 | Q35: 52 | R35: 41.6198 | S35: 30 | T35: 15 | U35: 7 | V35: 4.5 | W35: 25 | X35: 2.5 | Y35: 0 | Z35: 0 | AA35: 2 | AB35: 102 | AC35: 43.37002 | AD35: 0 | AE35: 3.6 | AF35: 18 | AG35: 28.3 | AH35: 30.49004 | AI35: 9 | AJ35: 56.25 | AK35: 2 | AL35: 5.5 | AM35: .5 | AN35: 1 | AP35: =IFERROR(RANK(AS35, $AS$8:$AS$57)+COUNTIF(AS$8:AS35, AS35)-1, "n.a.") -> 19 | AQ35: =IFERROR(RANK(AW35, $AW$8:$AW$57)+COUNTIF(AW$8:AW35, AW35)-1, "n.a.") -> 13 | AR35: MLI | AS35: 620 | AT35: 15 | AU35: 240 | AV35: 365 | AW35: 52 | AX35: 30 | AY35: 15 | AZ35: 7 | BB35: 28 | BC35: MUS | BD35: 1.421917808 | BE35: 0.04109589041 | BF35: 0.8904109589 | BG35: 0.4904109589 | BH35: NAM | BI35: 35.8 | BJ35: 29 | BK35: 6 | BL35: 0.8 | BM35: 0 | BN35: 0
B36: MRT | C36: Mauritania | D36: Sub-Saharan Africa | E36: Lower middle income | F36: 2018 | H36: 60.43391 | L36: 370 | M36: 79.5082 | N36: 40 | O36: 190 | P36: 140 | Q36: 23.2 | R36: 74.01575 | S36: 17.9 | T36: 2.3 | U36: 3 | V36: 5 | W36: 27.77778 | X36: 2 | Y36: 0 | Z36: 1 | AA36: 2 | AB36: 168 | AC36: 0 | AD36: 0 | AE36: No Practice | AF36: No Practice | AG36: 0 | AH36: 0 | AI36: 0 | AJ36: 0 | AK36: 2 | AL36: 4 | AM36: 0 | AN36: 0 | AP36: =IFERROR(RANK(AS36, $AS$8:$AS$57)+COUNTIF(AS$8:AS36, AS36)-1, "n.a.") -> n.a. | AQ36: =IFERROR(RANK(AW36, $AW$8:$AW$57)+COUNTIF(AW$8:AW36, AW36)-1, "n.a.") -> n.a. | AR36: MRT | BB36: 29 | BC36: SLE | BD36: 1.410958904 | BE36: 0.08219178082 | BF36: 1.082191781 | BG36: 0.2465753425 | BH36: LBR | BI36: 35 | BJ36: 25.1 | BK36: 6.9 | BL36: 3 | BM36: 0 | BN36: 0
B37: MUS | C37: Mauritius | D37: Sub-Saharan Africa | E37: Upper middle income | F37: 2018 | H37: 69.57684 | L37: 519 | M37: 67.29508 | N37: 15 | O37: 325 | P37: 179 | Q37: 25 | R37: 71.991 | S37: 22 | T37: 2 | U37: 1 | V37: 12.5 | W37: 69.44444 | X37: 5 | Y37: 2 | Z37: 3 | AA37: 2.5 | AB37: 28 | AC37: 73.75221 | AD37: 1 | AE37: 1.7 | AF37: 14.5 | AG37: 67.4 | AH37: 72.50442 | AI37: 12 | AJ37: 75 | AK37: 3 | AL37: 5.5 | AM37: .5 | AN37: 3 | AP37: =IFERROR(RANK(AS37, $AS$8:$AS$57)+COUNTIF(AS$8:AS37, AS37)-1, "n.a.") -> 28 | AQ37: =IFERROR(RANK(AW37, $AW$8:$AW$57)+COUNTIF(AW$8:AW37, AW37)-1, "n.a.") -> 37 | AR37: MUS | AS37: 519 | AT37: 15 | AU37: 325 | AV37: 179 | AW37: 25 | AX37: 22 | AY37: 2 | AZ37: 1 | BB37: 30 | BC37: TZA | BD37: 1.410958904 | BE37: 0.1643835616 | BF37: 1 | BG37: 0.2465753425 | BH37: GAB | BI37: 34.3 | BJ37: 16.2 | BK37: 4.1 | BL37: 14 | BM37: 0 | BN37: 0
B38: MOZ | C38: Mozambique | D38: Sub-Saharan Africa | E38: Low income | F38: 2018 | H38: 39.78231 | L38: 950 | M38: 31.96721 | N38: 90 | O38: 640 | P38: 220 | Q38: 53.3 | R38: 40.15748 | S38: 35 | T38: 9.4 | U38: 8.9 | V38: 8.5 | W38: 47.22222 | X38: 4 | Y38: 2 | Z38: 0 | AA38: 2.5 | AB38: 86 | AC38: 47.82089 | AD38: 0 | AE38: 1.5 | AF38: 20.5 | AG38: 30.8 | AH38: 33.14179 | AI38: 10 | AJ38: 62.5 | AK38: 2.5 | AL38: 4 | AM38: 1.5 | AN38: 2 | AP38: =IFERROR(RANK(AS38, $AS$8:$AS$57)+COUNTIF(AS$8:AS38, AS38)-1, "n.a.") -> 7 | AQ38: =IFERROR(RANK(AW38, $AW$8:$AW$57)+COUNTIF(AW$8:AW38, AW38)-1, "n.a.") -> 10 | AR38: MOZ | AS38: 950 | AT38: 90 | AU38: 640 | AV38: 220 | AW38: 53.3 | AX38: 35 | AY38: 9.4 | AZ38: 8.9 | BB38: 31 | BC38: COM | BD38: 1.38630137 | BE38: 0.05753424658 | BF38: 1.164383562 | BG38: 0.1643835616 | BH38: MDG | BI38: 33.6 | BJ38: 11 | BK38: 7 | BL38: 15.6 | BM38: 0 | BN38: 0
B39: NAM | C39: Namibia | D39: Sub-Saharan Africa | E39: Upper middle income | F39: 2018 | H39: 61.58382 | L39: 460 | M39: 72.13115 | N39: 10 | O39: 400 | P39: 50 | Q39: 35.8 | R39: 59.84252 | S39: 29 | T39: 6 | U39: 0.8 | V39: 9.5 | W39: 52.77778 | X39: 1.5 | Y39: 4 | Z39: 2 | AA39: 2 | AB39: 127 | AC39: 36.92769 | AD39: 0 | AE39: 2.5 | AF39: 14.5 | AG39: 33.8 | AH39: 36.35537 | AI39: 6 | AJ39: 37.5 | AK39: 3 | AL39: 2 | AM39: 0 | AN39: 1 | AP39: =IFERROR(RANK(AS39, $AS$8:$AS$57)+COUNTIF(AS$8:AS39, AS39)-1, "n.a.") -> 37 | AQ39: =IFERROR(RANK(AW39, $AW$8:$AW$57)+COUNTIF(AW$8:AW39, AW39)-1, "n.a.") -> 28 | AR39: NAM | AS39: 460 | AT39: 10 | AU39: 400 | AV39: 50 | AW39: 35.8 | AX39: 29 | AY39: 6 | AZ39: 0.8 | BB39: 32 | BC39: ERI | BD39: 1.342465753 | BE39: 0.1095890411 | BF39: 0.7397260274 | BG39: 0.4931506849 | BH39: ZAF | BI39: 33.2 | BJ39: 22.6 | BK39: 7.6 | BL39: 3 | BM39: 0 | BN39: 0
B40: NER | C40: Niger | D40: Sub-Saharan Africa | E40: Low income | F40: 2018 | H40: 49.62279 | L40: 430 | M40: 74.59016 | N40: 30 | O40: 250 | P40: 150 | Q40: 52.6 | R40: 40.94488 | S40: 23 | T40: 12 | U40: 17.6 | V40: 6 | W40: 33.33333 | X40: 3 | Y40: 1 | Z40: 0 | AA40: 2 | AB40: 114 | AC40: 39.34974 | AD40: 0 | AE40: 5 | AF40: 18 | AG40: 20.9 | AH40: 22.44948 | AI40: 9 | AJ40: 56.25 | AK40: 2 | AL40: 5.5 | AM40: .5 | AN40: 1 | AP40: =IFERROR(RANK(AS40, $AS$8:$AS$57)+COUNTIF(AS$8:AS40, AS40)-1, "n.a.") -> 40 | AQ40: =IFERROR(RANK(AW40, $AW$8:$AW$57)+COUNTIF(AW$8:AW40, AW40)-1, "n.a.") -> 12 | AR40: NER | AS40: 430 | AT40: 30 | AU40: 250 | AV40: 150 | AW40: 52.6 | AX40: 23 | AY40: 12 | AZ40: 17.6 | BB40: 33 | BC40: UGA | BD40: 1.342465753 | BE40: 0.05479452055 | BF40: 1 | BG40: 0.2876712329 | BH40: LSO | BI40: 31.3 | BJ40: 25 | BK40: 3.6 | BL40: 2.7 | BM40: 0 | BN40: 0
B41: NGA | C41: Nigeria | D41: Sub-Saharan Africa | E41: Lower middle income | F41: 2018 | H41: 57.61417 | L41: 453.67 | M41: 72.65 | N41: 35.63 | O41: 288 | P41: 130.04 | Q41: 38.9 | R41: 56.38695 | S41: 21.6 | T41: 11.8 | U41: 5.5 | V41: 7.885 | W41: 43.80556 | X41: 4.155 | Y41: 1.23 | Z41: 0 | AA41: 2.5 | AB41: 148 | AC41: 30.59011 | AD41: 0 | AE41: 2 | AF41: 22 | AG41: 27.8 | AH41: 29.93022 | AI41: 5 | AJ41: 31.25 | AK41: 2 | AL41: 2 | AM41: 0 | AN41: 1 | AP41: =IFERROR(RANK(AS41, $AS$8:$AS$57)+COUNTIF(AS$8:AS41, AS41)-1, "n.a.") -> 38 | AQ41: =IFERROR(RANK(AW41, $AW$8:$AW$57)+COUNTIF(AW$8:AW41, AW41)-1, "n.a.") -> 24 | AR41: NGA | AS41: 453.67 | AT41: 35.63 | AU41: 288 | AV41: 130.04 | AW41: 38.9 | AX41: 21.6 | AY41: 11.8 | AZ41: 5.5 | BB41: 34 | BC41: TGO | BD41: 1.336986301 | BE41: 0.06301369863 | BF41: 0.7808219178 | BG41: 0.4931506849 | BH41: UGA | BI41: 31.3 | BJ41: 15 | BK41: 6.7 | BL41: 9.6 | BM41: 0 | BN41: 0
C42: Nigeria Kano | D42: Sub-Saharan Africa | E42: Lower middle income | F42: 2018 | H42: 60.21761 | L42: 476 | M42: 70.81967 | N42: 21 | O42: 365 | P42: 90 | Q42: 28.4 | R42: 68.16648 | S42: 10 | T42: 11.3 | U42: 7.1 | V42: 7.5 | W42: 41.66667 | X42: 3 | Y42: 2 | Z42: 0 | AA42: 2.5 | AC42: 30.59011 | AD42: 0 | AE42: 2 | AF42: 22 | AG42: 27.8 | AH42: 29.93022 | AI42: 5 | AJ42: 31.25 | AK42: 2 | AL42: 2 | AM42: 0 | AN42: 1 | BB42: 35 | BC42: GNQ | BD42: 1.301369863 | BE42: 0.05479452055 | BF42: 1 | BG42: 0.2465753425 | BH42: SSD | BI42: 30 | BJ42: 15 | BK42: 10 | BL42: 5 | BM42: =AS42-SUM(AT42:AV42) -> 0 | BN42: =AW42-SUM(AX42:AZ42) -> 0
C43: Nigeria Lagos | D43: Sub-Saharan Africa | E43: Lower middle income | F43: 2018 | H43: 56.83652 | L43: 447 | M43: 73.19672 | N43: 40 | O43: 265 | P43: 142 | Q43: 42 | R43: 52.86839 | S43: 25 | T43: 12 | U43: 5 | V43: 8 | W43: 44.44444 | X43: 4.5 | Y43: 1 | Z43: 0 | AA43: 2.5 | AC43: 30.59011 | AD43: 0 | AE43: 2 | AF43: 22 | AG43: 27.8 | AH43: 29.93022 | AI43: 5 | AJ43: 31.25 | AK43: 2 | AL43: 2 | AM43: 0 | AN43: 1 | BB43: 36 | BC43: KEN | BD43: 1.273972603 | BE43: 0.1095890411 | BF43: 1 | BG43: 0.1643835616 | BH43: GNB | BI43: 28 | BJ43: 15 | BK43: 12 | BL43: 1 | BM43: 0 | BN43: 0
B44: RWA | C44: Rwanda | D44: Sub-Saharan Africa | E44: Low income | F44: 2018 | H44: 65.14018 | L44: 230 | M44: 90.98361 | N44: 20 | O44: 120 | P44: 90 | Q44: 65.3 | R44: 26.65917 | S44: 28 | T44: 14 | U44: 23.3 | V44: 14 | W44: 77.77778 | X44: 3 | Y44: 4.5 | Z44: 4 | AA44: 2.5 | AB44: 62 | AC44: 57.24621 | AD44: 0 | AE44: 2.5 | AF44: 29 | AG44: 19.3 | AH44: 20.74242 | AI44: 15 | AJ44: 93.75 | AK44: 3 | AL44: 5 | AM44: 3 | AN44: 4 | AP44: =IFERROR(RANK(AS44, $AS$8:$AS$57)+COUNTIF(AS$8:AS44, AS44)-1, "n.a.") -> 44 | AQ44: =IFERROR(RANK(AW44, $AW$8:$AW$57)+COUNTIF(AW$8:AW44, AW44)-1, "n.a.") -> 7 | AR44: =B44 -> RWA | AS44: 230 | AT44: 20 | AU44: 120 | AV44: 90 | AW44: 65.3 | AX44: 28 | AY44: 14 | AZ44: 23.3 | BB44: 37 | BC44: NAM | BD44: 1.260273973 | BE44: 0.02739726027 | BF44: 1.095890411 | BG44: 0.1369863014 | BH44: MUS | BI44: 25 | BJ44: 22 | BK44: 2 | BL44: 1 | BM44: 0 | BN44: 0
B45: STP | C45: São Tomé and Príncipe | D45: Sub-Saharan Africa | E45: Lower middle income | F45: 2018 | H45: 27.004 | L45: 1185 | M45: 12.70492 | N45: 90 | O45: 730 | P45: 365 | Q45: 50.5 | R45: 43.30709 | S45: 23.4 | T45: 11.4 | U45: 15.7 | V45: 4.5 | W45: 25 | X45: 1.5 | Y45: 1.5 | Z45: 0 | AA45: 1.5 | AB45: 168 | AC45: 0 | AD45: 0 | AE45: No Practice | AF45: No Practice | AG45: 0 | AH45: 0 | AI45: 0 | AJ45: 0 | AK45: 2 | AL45: 4 | AM45: 0 | AN45: 0 | AP45: =IFERROR(RANK(AS45, $AS$8:$AS$57)+COUNTIF(AS$8:AS45, AS45)-1, "n.a.") -> 4 | AQ45: =IFERROR(RANK(AW45, $AW$8:$AW$57)+COUNTIF(AW$8:AW45, AW45)-1, "n.a.") -> 14 | AR45: STP | AS45: 1185 | AT45: 90 | AU45: 730 | AV45: 365 | AW45: 50.5 | AX45: 23.4 | AY45: 11.4 | AZ45: 15.7 | BB45: 38 | BC45: NGA | BD45: 1.242931507 | BE45: 0.09761643836 | BF45: 0.7890410959 | BG45: 0.3562739726 | BH45: GHA | BI45: 23 | BJ45: 10 | BK45: 3 | BL45: 10 | BM45: =AS45-SUM(AT45:AV45) -> 0 | BN45: =AW45-SUM(AX45:AZ45) -> 0
B46: SEN | C46: Senegal | D46: Sub-Saharan Africa | E46: Lower middle income | F46: 2018 | H46: 48.15301 | L46: 740 | M46: 49.18033 | N46: 35 | O46: 390 | P46: 315 | Q46: 36.4 | R46: 59.1676 | S46: 28 | T46: 8 | U46: 0.4 | V46: 6.5 | W46: 36.11111 | X46: 3 | Y46: 1 | Z46: 0 | AA46: 2.5 | AB46: 96 | AC46: 44.25882 | AD46: 0 | AE46: 3 | AF46: 20 | AG46: 30 | AH46: 32.26764 | AI46: 9 | AJ46: 56.25 | AK46: 2 | AL46: 5.5 | AM46: .5 | AN46: 1 | AP46: =IFERROR(RANK(AS46, $AS$8:$AS$57)+COUNTIF(AS$8:AS46, AS46)-1, "n.a.") -> 15 | AQ46: =IFERROR(RANK(AW46, $AW$8:$AW$57)+COUNTIF(AW$8:AW46, AW46)-1, "n.a.") -> 26 | AR46: SEN | AS46: 740 | AT46: 35 | AU46: 390 | AV46: 315 | AW46: 36.4 | AX46: 28 | AY46: 8 | AZ46: 0.4 | BB46: 39 | BC46: BFA | BD46: 1.221917808 | BE46: 0.05753424658 | BF46: 0.5369863014 | BG46: 0.6273972603 | BH46: GMB | BI46: 20.4 | BJ46: 17 | BK46: 1.4 | BL46: 2 | BM46: 0 | BN46: 0
B47: SYC | C47: Seychelles | D47: Sub-Saharan Africa | E47: High income | F47: 2018 | H47: 51.24561 | L47: 915 | M47: 34.83607 | N47: 75 | O47: 720 | P47: 120 | Q47: 15.4 | R47: 82.78965 | S47: 10 | T47: 3 | U47: 2.4 | V47: 6.5 | W47: 36.11111 | X47: 3 | Y47: 1 | Z47: .5 | AA47: 2 | AB47: 75 | AC47: 52.15849 | AD47: 0 | AE47: 2 | AF47: 11 | AG47: 38.8 | AH47: 41.81698 | AI47: 10 | AJ47: 62.5 | AK47: 2.5 | AL47: 5 | AM47: .5 | AN47: 2 | AP47: =IFERROR(RANK(AS47, $AS$8:$AS$57)+COUNTIF(AS$8:AS47, AS47)-1, "n.a.") -> 8 | AQ47: =IFERROR(RANK(AW47, $AW$8:$AW$57)+COUNTIF(AW$8:AW47, AW47)-1, "n.a.") -> 43 | AR47: SYC | AS47: 915 | AT47: 75 | AU47: 720 | AV47: 120 | AW47: 15.4 | AX47: 10 | AY47: 3 | AZ47: 2.4 | BB47: 40 | BC47: NER | BD47: 1.178082192 | BE47: 0.08219178082 | BF47: 0.6849315068 | BG47: 0.4109589041 | BH47: CPV | BI47: 19.8 | BJ47: 10 | BK47: 3 | BL47: 6.8 | BM47: 0 | BN47: 0
B48: SLE | C48: Sierra Leone | D48: Sub-Saharan Africa | E48: Low income | F48: 2018 | H48: 55.91598 | L48: 515 | M48: 67.62295 | N48: 30 | O48: 395 | P48: 90 | Q48: 39.5 | R48: 55.68054 | S48: 15 | T48: 4.5 | U48: 20 | V48: 8 | W48: 44.44444 | X48: 4.5 | Y48: 2 | Z48: 0 | AA48: 1.5 | AB48: 162 | AC48: 24.734 | AD48: 0 | AE48: 2.3 | AF48: 42 | AG48: 11.1 | AH48: 11.968 | AI48: 6 | AJ48: 37.5 | AK48: 2 | AL48: 3 | AM48: 0 | AN48: 1 | AP48: =IFERROR(RANK(AS48, $AS$8:$AS$57)+COUNTIF(AS$8:AS48, AS48)-1, "n.a.") -> 29 | AQ48: =IFERROR(RANK(AW48, $AW$8:$AW$57)+COUNTIF(AW$8:AW48, AW48)-1, "n.a.") -> 23 | AR48: SLE | AS48: 515 | AT48: 30 | AU48: 395 | AV48: 90 | AW48: 39.5 | AX48: 15 | AY48: 4.5 | AZ48: 20 | BB48: 41 | BC48: CPV | BD48: 1.164383562 | BE48: 0.1232876712 | BF48: 0.4931506849 | BG48: 0.5479452055 | BH48: GNQ | BI48: 19.5 | BJ48: 10 | BK48: 5.5 | BL48: 4 | BM48: 0 | BN48: 0
B49: SOM | C49: Somalia | D49: Sub-Saharan Africa | E49: Low income | F49: 2018 | H49: 54.5818 | L49: 575 | M49: 62.70492 | N49: 30 | O49: 365 | P49: 180 | Q49: 21.4 | R49: 76.04049 | S49: 10 | T49: 6.4 | U49: 5 | V49: 4.5 | W49: 25 | X49: 2.5 | Y49: 0 | Z49: 0 | AA49: 2 | AB49: 168 | AC49: 0 | AD49: 0 | AE49: No Practice | AF49: No Practice | AG49: 0 | AH49: 0 | AI49: 0 | AJ49: 0 | AK49: 0 | AL49: 0 | AM49: 0 | AN49: 0 | AP49: =IFERROR(RANK(AS49, $AS$8:$AS$57)+COUNTIF(AS$8:AS49, AS49)-1, "n.a.") -> n.a. | AQ49: =IFERROR(RANK(AW49, $AW$8:$AW$57)+COUNTIF(AW$8:AW49, AW49)-1, "n.a.") -> n.a. | AR49: SOM | BB49: 42 | BC49: ZWE | BD49: 1.123287671 | BE49: 0.03835616438 | BF49: 0.6767123288 | BG49: 0.4082191781 | BH49: ERI | BI49: 16.6 | BJ49: 9 | BK49: 3.6 | BL49: 4 | BM49: 0 | BN49: 0
B50: ZAF | C50: South Africa | D50: Sub-Saharan Africa | E50: Upper middle income | F50: 2018 | H50: 54.10393 | L50: 600 | M50: 60.65574 | N50: 30 | O50: 490 | P50: 80 | Q50: 33.2 | R50: 62.76715 | S50: 22.6 | T50: 7.6 | U50: 3 | V50: 7 | W50: 38.88889 | X50: 2 | Y50: 2 | Z50: .5 | AA50: 2.5 | AB50: 68 | AC50: 54.591 | AD50: 0 | AE50: 2 | AF50: 18 | AG50: 34.7 | AH50: 37.30701 | AI50: 11.5 | AJ50: 71.875 | AK50: 3 | AL50: 6 | AM50: .5 | AN50: 2 | AP50: =IFERROR(RANK(AS50, $AS$8:$AS$57)+COUNTIF(AS$8:AS50, AS50)-1, "n.a.") -> 23 | AQ50: =IFERROR(RANK(AW50, $AW$8:$AW$57)+COUNTIF(AW$8:AW50, AW50)-1, "n.a.") -> 32 | AR50: ZAF | AS50: 600 | AT50: 30 | AU50: 490 | AV50: 80 | AW50: 33.2 | AX50: 22.6 | AY50: 7.6 | AZ50: 3 | BB50: 43 | BC50: GIN | BD50: 0.8520547945 | BE50: 0.05753424658 | BF50: 0.3835616438 | BG50: 0.4109589041 | BH50: SYC | BI50: 15.4 | BJ50: 10 | BK50: 3 | BL50: 2.4 | BM50: 0 | BN50: 0
B51: SSD | C51: South Sudan | D51: Sub-Saharan Africa | E51: Low income | F51: 2018 | H51: 58.98623 | L51: 228 | M51: 91.14754 | N51: 28 | O51: 155 | P51: 45 | Q51: 30 | R51: 66.3667 | S51: 15 | T51: 10 | U51: 5 | V51: 3.5 | W51: 19.44444 | X51: 1.5 | Y51: 0 | Z51: 0 | AA51: 2 | AB51: 168 | AC51: 0 | AD51: 0 | AE51: No Practice | AF51: No Practice | AG51: 0 | AH51: 0 | AI51: 0 | AJ51: 0 | AK51: 2.5 | AL51: 2 | AM51: .5 | AN51: 1 | AP51: =IFERROR(RANK(AS51, $AS$8:$AS$57)+COUNTIF(AS$8:AS51, AS51)-1, "n.a.") -> 45 | AQ51: =IFERROR(RANK(AW51, $AW$8:$AW$57)+COUNTIF(AW$8:AW51, AW51)-1, "n.a.") -> 35 | AR51: SSD | AS51: 228 | AT51: 28 | AU51: 155 | AV51: 45 | AW51: 30 | AX51: 15 | AY51: 10 | AZ51: 5 | BB51: 44 | BC51: RWA | BD51: 0.6301369863 | BE51: 0.05479452055 | BF51: 0.3287671233 | BG51: 0.2465753425 | BH51: ETH | BI51: 15.2 | BJ51: 10 | BK51: 4.8 | BL51: 0.4 | BM51: 0 | BN51: 0
B52: SDN | C52: Sudan | D52: Sub-Saharan Africa | E52: Lower middle income | F52: 2018 | H52: 46.90911 | L52: 810 | M52: 43.44262 | N52: 90 | O52: 310 | P52: 410 | Q52: 19.8 | R52: 77.84027 | S52: 12.3 | T52: 5 | U52: 2.5 | V52: 3.5 | W52: 19.44444 | X52: 2 | Y52: 0 | Z52: 0 | AA52: 1.5 | AB52: 152 | AC52: 28.77866 | AD52: 0 | AE52: 2 | AF52: 20 | AG52: 30.2 | AH52: 32.55732 | AI52: 4 | AJ52: 25 | AK52: 2 | AL52: 2 | AM52: 0 | AN52: 0 | AP52: =IFERROR(RANK(AS52, $AS$8:$AS$57)+COUNTIF(AS$8:AS52, AS52)-1, "n.a.") -> n.a. | AQ52: =IFERROR(RANK(AW52, $AW$8:$AW$57)+COUNTIF(AW$8:AW52, AW52)-1, "n.a.") -> n.a. | AR52: SDN | BB52: 45 | BC52: SSD | BD52: 0.6246575342 | BE52: 0.07671232877 | BF52: 0.4246575342 | BG52: 0.1232876712 | BH52: TZA | BI52: 14.3 | BJ52: 10 | BK52: 4.3 | BL52: 0 | BM52: 0 | BN52: 0
B53: TZA | C53: Tanzania | D53: Sub-Saharan Africa | E53: Low income | F53: 2018 | H53: 61.66109 | L53: 515 | M53: 67.62295 | N53: 60 | O53: 365 | P53: 90 | Q53: 14.3 | R53: 84.027 | S53: 10 | T53: 4.3 | U53: 0 | V53: 6 | W53: 33.33333 | X53: 3 | Y53: 1.5 | Z53: 0 | AA53: 1.5 | AB53: 116 | AC53: 39.09725 | AD53: 0 | AE53: 3 | AF53: 22 | AG53: 20.4 | AH53: 21.9445 | AI53: 9 | AJ53: 56.25 | AK53: 3 | AL53: 4 | AM53: 1 | AN53: 1 | AP53: =IFERROR(RANK(AS53, $AS$8:$AS$57)+COUNTIF(AS$8:AS53, AS53)-1, "n.a.") -> 30 | AQ53: =IFERROR(RANK(AW53, $AW$8:$AW$57)+COUNTIF(AW$8:AW53, AW53)-1, "n.a.") -> 45 | AR53: TZA | AS53: 515 | AT53: 60 | AU53: 365 | AV53: 90 | AW53: 14.3 | AX53: 10 | AY53: 4.3 | AZ53: 0
B54: TGO | C54: Togo | D54: Sub-Saharan Africa | E54: Low income | F54: 2018 | H54: 48.0985 | L54: 488 | M54: 69.83607 | N54: 23 | O54: 285 | P54: 180 | Q54: 47.5 | R54: 46.68166 | S54: 19 | T54: 11.1 | U54: 17.4 | V54: 5 | W54: 27.77778 | X54: 3 | Y54: 0 | Z54: 0 | AA54: 2 | AB54: 88 | AC54: 46.99037 | AD54: 0 | AE54: 3 | AF54: 15 | AG54: 35.1 | AH54: 37.73075 | AI54: 9 | AJ54: 56.25 | AK54: 2 | AL54: 5.5 | AM54: .5 | AN54: 1 | AP54: =IFERROR(RANK(AS54, $AS$8:$AS$57)+COUNTIF(AS$8:AS54, AS54)-1, "n.a.") -> 34 | AQ54: =IFERROR(RANK(AW54, $AW$8:$AW$57)+COUNTIF(AW$8:AW54, AW54)-1, "n.a.") -> 15 | AR54: TGO | AS54: 488 | AT54: 23 | AU54: 285 | AV54: 180 | AW54: 47.5 | AX54: 19 | AY54: 11.1 | AZ54: 17.4
B55: UGA | C55: Uganda | D55: Sub-Saharan Africa | E55: Low income | F55: 2018 | H55: 60.59958 | L55: 490 | M55: 69.67213 | N55: 20 | O55: 365 | P55: 105 | Q55: 31.3 | R55: 64.90439 | S55: 15 | T55: 6.7 | U55: 9.6 | V55: 8.5 | W55: 47.22222 | X55: 4 | Y55: 1.5 | Z55: .5 | AA55: 2.5 | AB55: 99 | AC55: 43.56855 | AD55: 1 | AE55: 2.2 | AF55: 29.5 | AG55: 40.3 | AH55: 43.3871 | AI55: 7 | AJ55: 43.75 | AK55: 2.5 | AL55: 3 | AM55: .5 | AN55: 1 | AP55: =IFERROR(RANK(AS55, $AS$8:$AS$57)+COUNTIF(AS$8:AS55, AS55)-1, "n.a.") -> 33 | AQ55: =IFERROR(RANK(AW55, $AW$8:$AW$57)+COUNTIF(AW$8:AW55, AW55)-1, "n.a.") -> 34 | AR55: UGA | AS55: 490 | AT55: 20 | AU55: 365 | AV55: 105 | AW55: 31.3 | AX55: 15 | AY55: 6.7 | AZ55: 9.6
B56: ZMB | C56: Zambia | D56: Sub-Saharan Africa | E56: Lower middle income | F56: 2018 | H56: 51.74114 | L56: 611 | M56: 59.7541 | N56: 21 | O56: 470 | P56: 120 | Q56: 38.7 | R56: 56.58043 | S56: 23.7 | T56: 5 | U56: 10 | V56: 7 | W56: 38.88889 | X56: 4.5 | Y56: 1 | Z56: 0 | AA56: 1.5 | AB56: 79 | AC56: 49.32693 | AD56: 0 | AE56: 1 | AF56: 9 | AG56: 51 | AH56: 54.90387 | AI56: 7 | AJ56: 43.75 | AK56: 3 | AL56: 4 | AM56: 0 | AN56: 0 | AP56: =IFERROR(RANK(AS56, $AS$8:$AS$57)+COUNTIF(AS$8:AS56, AS56)-1, "n.a.") -> 21 | AQ56: =IFERROR(RANK(AW56, $AW$8:$AW$57)+COUNTIF(AW$8:AW56, AW56)-1, "n.a.") -> 25 | AR56: ZMB | AS56: 611 | AT56: 21 | AU56: 470 | AV56: 120 | AW56: 38.7 | AX56: 23.7 | AY56: 5 | AZ56: 10
B57: ZWE | C57: Zimbabwe | D57: Sub-Saharan Africa | E57: Lower middle income | F57: 2018 | H57: 38.73317 | L57: 410 | M57: 76.22951 | N57: 14 | O57: 247 | P57: 149 | Q57: 83.1 | R57: 6.63667 | S57: 70 | T57: 8 | U57: 5.1 | V57: 6 | W57: 33.33333 | X57: 3 | Y57: 1 | Z57: 0 | AA57: 2 | AB57: 142 | AC57: 32.8811 | AD57: 0 | AE57: 3.3 | AF57: 22 | AG57: 17.5 | AH57: 18.8872 | AI57: 7.5 | AJ57: 46.875 | AK57: 3 | AL57: 4 | AM57: .5 | AN57: 0 | AP57: =IFERROR(RANK(AS57, $AS$8:$AS$57)+COUNTIF(AS$8:AS57, AS57)-1, "n.a.") -> 42 | AQ57: =IFERROR(RANK(AW57, $AW$8:$AW$57)+COUNTIF(AW$8:AW57, AW57)-1, "n.a.") -> 2 | AR57: ZWE | AS57: 410 | AT57: 14 | AU57: 247 | AV57: 149 | AW57: 83.1 | AX57: 70 | AY57: 8 | AZ57: 5.1

Sheet Input_Parameters
B2: This Input sheet specifies the parameters and assumptions for the simulation. It can also be used for policy experiments, e.g. simulation of a negative haircut ratio in scenario 2, or reducing the time and cost associated with contract enforcement. Step 1: Select the main country of interest. Step 2: Select several comparators (up to 5) to the main country of interest. Step 3: Select the initial base year for the shock in NPL ratios. By default, this template uses 2018, and halves the 2018 NPL ratios. Step 4: Specify parameters and assumptions for all scenarios. Step 4.1: common assumptions that will be used for the calculations of all three scenarios (scenario 1 without haircut, scenario 2 with fixed haircut ratio, scenario 3 with model-based haircut ratios). Step 4.2: assumption for scenario 2 on the fixed haircut ratio applied uniformly to all countries. Step 4.3: assumptions for scenario 3 with country-specific model-based haircut ratios. Step 5: Calibration of policy experiments that modify the resolution time and legal cost to enforce contracts (compared to the baseline parameters). Difficulty/Necessity to update: Necessary to update. Instructions: Select options from drop-down lists or enter hard-coded numbers according to the color code to the right. DO NOT make changes to cells that are not highlighted yellow or green. | I2: Color code:
I3: Click the cell to activate the drop-down list -> select option
I4: Enter hard-coded number
B7: Step 1. Select country | D7: Benin
C8: IFS Code | D8: =IFERROR(VLOOKUP($D$7, Hide_List!$A$3:$C$47, 2, FALSE), "") -> 638
C9: ISO 3 | D9: =IFERROR(VLOOKUP($D$7, Hide_List!$A$3:$C$47, 3, FALSE), "") -> BEN
B11: Step 2. Select comparators | D11: Botswana | E11: Eswatini | F11: Lesotho | G11: Namibia | H11: South Africa
C12: IFS Code | D12: =IFERROR(VLOOKUP(D$11, Hide_List!$A$3:$C$47, 2, FALSE), "") -> 616 | E12: =IFERROR(VLOOKUP(E$11, Hide_List!$A$3:$C$47, 2, FALSE), "") -> 734 | F12: =IFERROR(VLOOKUP(F$11, Hide_List!$A$3:$C$47, 2, FALSE), "") -> 666 | G12: =IFERROR(VLOOKUP(G$11, Hide_List!$A$3:$C$47, 2, FALSE), "") -> 728 | H12: =IFERROR(VLOOKUP(H$11, Hide_List!$A$3:$C$47, 2, FALSE), "") -> 199
C13: ISO 3 | D13: =IFERROR(VLOOKUP(D$11, Hide_List!$A$3:$C$47, 3, FALSE), "") -> BWA | E13: =IFERROR(VLOOKUP(E$11, Hide_List!$A$3:$C$47, 3, FALSE), "") -> SWZ | F13: =IFERROR(VLOOKUP(F$11, Hide_List!$A$3:$C$47, 3, FALSE), "") -> LSO | G13: =IFERROR(VLOOKUP(G$11, Hide_List!$A$3:$C$47, 3, FALSE), "") -> NAM | H13: =IFERROR(VLOOKUP(H$11, Hide_List!$A$3:$C$47, 3, FALSE), "") -> ZAF
B15: Step 3. Select the initial year | D15: 2018
B16: Enter year if selected "Other" in Step 3 (cell D15). | E16: year
B17: * At present the template contains nominal GDP, NPLs, and provisions data for both 2018 and 2019. The GDP data is from the IMF World Economic Outlook database, while the NPLs and provisions data are from the IMF Financial Soundness Indicators database (gap filled with data from authorities and IMF reports). It is worth noting that at the time of creating this template, there were less data points for 2019. Therefore, if 2019 is selected, less countries will be shown in the results compared to 2018.
B18: * It is also possible to introduce data beyond 2019 by selecting "Other" in cell D15, and enter the year (e.g. 2022) in cell D16. Additionally, sheets "Input_Data_WEO" and "Input_Data_FSI" needs to be updated to introduce data for the year specified.
B20: Step 4. Scenarios and Assumptions | C20: Scenario 1: Baseline scenario, no haircut
C21: Scenario 2: Fixed haircut applied uniformly to all countries, e.g. 10% haircut ratio
C22: Scenario 3: Country-specific model-based haircuts
B24: Section 4.1 Common assumptions for all scenarios
B25: 4.1.1 Target NPL ratios | D25: 0.5 | E25: =VLOOKUP(D25, Hide_List!$Y$2:$Z$5, 2, FALSE) -> Reduce NPL ratio to 50% of initial level.
B26: Specify the target ratio in cell D26 if selected "Other" in 4.1.1 (cell D25) | E26: in percentage | F26: * 1/ Leave cell D26 blank unless selected "Other" in 4.1.1 (cell D25); 2/ The customized target ratio should be lower than the ratio of the initial year.
F27: E.g. enter "6" to set a target ratio of 6% for all countries.
B28: 4.1.2 NPL risk weight (WNPL) | D28: Option 1 | E28: =VLOOKUP($D$28, Hide_List!$BG$2:$BH$4, 2, FALSE) -> 1 | G28: *Default is 100% based on Basel II/III.
B29: Specify risk weight in cell D29 if selected "Customize" in 4.1.2 (cell D28) | E29: in percentage | F29: * Leave cell D29 blank unless selected "Options 3: Customize" in 4.1.2 (cell D28).
B30: Option 1: Default, 100% | F30: E.g. enter "75" to set WNPL to 75%.
B31: Option 2: Alternative, 150%
B32: Option 3: Customize
B34: 4.1.3 Set risk weight of performing loans (WPL) | D34: Option 1 | E34: =VLOOKUP($D$34, Hide_List!$AH$2:$AI$4, 2, FALSE) -> 1 | G34: * Default is 100%.
B35: Specify in cell D35 if selected "Customize" in 4.1.3 (cell D34) | E35: in percentage | F35: * Leave cell D35 blank unless selected "Options 3: Customize" in 4.1.3 (cell D34).
B36: Option 1: Fixed, 100% | F36: E.g. enter "150" to set WPL to 150%.
B37: Option 2: Fixed, 75%
B38: Option 3: Customize
B40: 4.1.4 Set the ratio of CRWA/RWA | D40: Option 1 | E40: =VLOOKUP($D$40, Hide_List!$AK$2:$AL$4, 2, FALSE) -> 1 | G40: * Default is 100%.
B41: Specify in cell D41 if selected "Customize" in 4.1.3 (cell D40) | E41: in percentage | F41: * Leave cell D41 blank unless selected "Options 3: Customize" in 4.1.4 (cell D40).
B42: Option 1: Fixed, 100% | F42: E.g. enter "80" to set CRWA/RWA to 80%.
B43: Option 2: Calculated based on bank-level data from Fitch
B44: Option 3: Customize
B46: 4.1.5 Target regulatory CAR | D46: Default | E46: 0.12 | F46: * Default is 12%. According to Basel III, the total minimum adequacy ratio of both Tier 1 and Tier 2 capital and including the CCB should be 12.5%. We use 12% for simplification.
B47: Specify ratio in cell D47 if selected "Other" in 4.1.5 (cell D46) | E47: in percentage | F47: * Leave cell D47 blank if selected "Default" in 4.1.5 (cell D46).
F48: E.g. enter "10" to set regulatory CAR to 10%.
B49: 4.1.6 Set loan loss provisions (LLR) for loss scenarios | D49: Option 1 | E49: =VLOOKUP(D49, Hide_List!$AN$2:$AO$4, 2, FALSE) -> Average provision rate using FSIs
B50: Option 1: Average provision rate based on the FSI database
B51: Option 2: Weighted average of provision rates by NPL categories (sub-standard, doubtful, loss) using Fitch database, assuming NPLs disposal in the following order: loss, doubtful, and substandard loans
B52: Option 3: Weighted average of provision rates by NPL categories (sub-standard, doubtful, loss) using Fitch database, assuming NPLs disposal in the following order: substandard, doubtful, and loss loans
B55: Section 4.2 Assumptions for Scenario 2, fixed haircut
B57: 4.2.1 Set the fixed haircut for all countries | D57: Default | E57: 0.1 | F57: of net NPLs sold | G57: *Default is 10%.
B58: Specify if selected "Other" in 4.2.1 (cell D57) | E58: in percentage | F58: * 1/ Leave cell D58 blank if selected "Default" in 4.2.1 (cell D57).
F59: 2/ A negative number could be entered, indicating a negative haircut when banks sell their NPL portfolio at a premium.
F60: E.g. enter "5" to set an ad hoc haircut ratio of 5% for all countries.
B61: Section 4.3 Assumptions for Scenario 3, country-specific model-based haircut
B63: 4.3.1 Resolution time | D63: Option 1 | E63: =IFERROR(VLOOKUP(D63, Hide_List!$AB$3:$AC$5, 2, FALSE), "") -> Time to enforce contracts
B64: Option 1: Time to enforce contracts
B65: Option 2: Time to resolve insolvency
B66: Option 3: Average time of enforcing contracts and resolving insolvency
B68: 4.3.2 NPL recovery
B69: 4.3.2.1 Probability of consensual recovery | D69: Default | E69: 0.6666666667 | F69: * Default is 2/3
B70: Specify in cell D70 if selected "Other" in 4.3.2.1 (cell D69) | E70: in percentage | F70: * Leave cell D70 blank if selected "Default" in 4.3.2.1 (cell D69).
F71: E.g. enter "50" to set the probability of consensual recovery to 50%.
B72: 4.3.2.2 Set the portion of the loan that can be recovered (in PV) through consensual negotiation | D72: Default | E72: 0.35 | F72: * Default is 35%. See justification in the How to Note.
B73: Specify portion in cell D73 if selected "Other" in 4.3.2.2 (cell D72) | E73: in percentage | F73: * Leave cell D73 blank if selected "Default" in 4.3.2.2 (cell D72).
F74: E.g. enter "40" to set the portion of the loan that can be recovered through consensual negotiation to 40%.
B75: 4.3.3 Set the IRR used by investors | D75: 0.1 | E75: in percentage | F75: * Default is 10%.
B77: 4.3.4 Set management fees | D77: Default | E77: 0.05 | F77: * Default is 5%.
B78: Specify in cell D78 if selected "Other" in 4.3.4 (cell D77) | E78: in percentage | F78: * Leave cell D78 blank if selected "Default" in 4.3.4 (cell D77).
F79: E.g. enter "10" to set the management fees to 10% of gross NPL sold.
B80: 4.3.5 Collateral
B81: 4.3.5.1 Set the portion of collateralized NPLs | D81: Default | E81: 0.8 | F81: * Default is 80%.
B82: Specify in cell D82 if selected "Other" in 4.3.5.1 (cell D81) | E82: in percentage | F82: * Leave cell D82 blank if selected "Default" in 4.3.5.1 (cell D81).
F83: E.g. enter "60" to set the portion of collateralized NPLs to 60%.
B84: 4.3.5.2 Set the annual depreciation rate of the collateral | D84: Default | E84: 0.05 | F84: * Default is 5%.
B85: Specify in cell D85 if selected "Other" in 4.3.5.2 (cell D84) | E85: in percentage | F85: * Leave cell D85 blank if selected "Default" in 4.3.5.2 (cell D84).
F86: E.g. enter "8" to set the annual depreciation rate to 8%.
B87: 4.3.6 Legal cost to enforce contracts | D87: Default | F87: * Default is the country-specific cost from the World Bank Doing Business Database. Selecting "Other" and input a customized number will apply an ad hoc value to all countries.
B88: Specify in cell D88 if selected "Other" in 4.3.5.2 (cell D87) | E88: (% of claim) | F88: * Leave cell D88 blank if selected "Default" in 4.3.6 (cell D87).
F89: E.g. enter "10" to set the legal cost to enforce contracts to 10%.
B90: Step 5. Policy Experiments based on Scenario 3
B92: 5.1 Adjust the resolution time
B93: Adjust | C93: =E63 -> Time to enforce contracts | D93: No adjustment | H93: * First, select simulation type using the drop-down menu in cell D93. Then input number in option 1 or 2. For example, select "Option 1" in cell D93, and then enter "0.5" in cell F94 to reduce all countries' recovery time by 0.5 years. If "No adjustment" is selected, the baseline parameters are used.
C94: Option 1. by a certain number of years (Note: positive number = reduction in the resolution time; negative number = increase) | E94: Input the number of years: | F94: 1 | G94: year(s) | H94: * E.g. Setting the number of years as 1 means that the recovery time for all countries will be reduced by 1 year. However, this is capped by the SSA best performer's practice. If a country's recovery time falls below the best performer's after the reduction, the best performer's recovery time will be used instead.
C95: Option 2. by a percentage (Note: positive number = reduction in the resolution time; negative number = increase) | E95: Input the percentage: | F95: 0.4 | H95: * E.g. entering "40" means that the recovery time for all countries is reduced by 40%. However, this is capped by the SSA best performer's practice. If a country's recovery time falls below the best performer's after the deduction, the best performer's recovery time will be used instead.
C96: Option 3. to best performer's | D96: (Preset) | F96: =Calculation_Haircut!$Y$93 -> 0.4684931507 | G96: year(s) | H96: * Default is set as the best performer from the World Bank database. Choosing this option means that the recovery time for all countries will be changed to SSA best performer's value.
B98: 5.2 Adjust the legal cost to enforce contracts
B99: Adjust the cost | C99: No adjustment | H99: * First, select simulation type using the drop-down menu in cell C99. Then input number in option 1 as needed. For example, select "Option 1" in cell D93, and then enter "10" in cell E100 to reduce all countries' legal enforcement cost by 10%. If "No adjustment" is selected, the baseline parameters are used.
B100: Option 1. by a percentage (Note: positive number = reduction in the cost; negative number = increase) | D100: Input the percentage: | E100: 0.05 | H100: * E.g. entering "5" means that all countries' legal enforcement costs will be reduced by 5%, but this is capped by the SSA best performer's actual costs. If a country's legal enforcement cost is smaller than the best performer's after the reduction, the best performer's value will be used instead.
B101: Option 2. to best performer's | D101: (Preset) | E101: =Calculation_Haircut!$V$93 -> 0.071625 | F101: (% of claim) | H101: * Default is 7% of claim from the World Bank database. Choosing this option means that all countries' legal enforcement costs will be changed to the SSA best performer's value.

Sheet Hide_List (hidden)
A1: Country | B1: Country Code | C1: Country 3 digit ISO code | E1: Country | F1: Country Code | G1: Country 3 digit ISO code | I1: Country | J1: Country Code | K1: Country 3 digit ISO code | M1: Country | N1: Country Code | O1: Country 3 digit ISO code | Q1: Country | R1: Country Code | S1: Country 3 digit ISO code | U1: Country | V1: Country Code | W1: Country 3 digit ISO code | Y1: Target NPL ratio | Z1: Description | AB1: Time to recover | AE1: Probability of consensual recovery | AH1: WPL | AK1: CRWA/RWA | AN1: LLR | AS1: Underprovisioning Scenario | BB1: Fixed haircut | BG1: WNPL | BJ1: Time simulations | BL1: Legal fees simulations | BO1: Year
A2: Select country | E2: Comparator 1 | I2: Comparator 2 | M2: Comparator 3 | Q2: Comparator 4 | U2: Comparator 5 | Y2: 0.75 | Z2: Reduce NPL ratio to 75% of initial level. | AB2: Options | AE2: Select probability | AH2: Option 1 | AI2: 1 | AK2: Option 1 | AL2: 1 | AN2: Option 1 | AO2: Average provision rate using FSIs | AS2: 1 | AT2: Fixed Haircut | BB2: Default | BG2: Option 1 | BH2: 1 | BJ2: No adjustment | BL2: No adjustment | BO2: 2018
A3: Angola | B3: 614 | C3: AGO | E3: Angola | F3: 614 | G3: AGO | I3: Angola | J3: 614 | K3: AGO | M3: Angola | N3: 614 | O3: AGO | Q3: Angola | R3: 614 | S3: AGO | U3: Angola | V3: 614 | W3: AGO | Y3: 0.5 | Z3: Reduce NPL ratio to 50% of initial level. | AB3: Option 1 | AC3: Time to enforce contracts | AE3: Default | AF3: 1 | AH3: Option 2 | AI3: 0.75 | AK3: Option 2 | AL3: Calculated based on bank-level data from Fitch | AN3: Option 2 | AO3: Weighted average of provision rates by categories of NPLs (sub-standard, doubtful, loss) using Fitch database, assuming NPLs disposal in the following order: loss, doubtful, and substandard loans | AS3: 2 | AT3: Under-provisioned loss=Total Expected Loss - Actual Provisioning (LLR) | BB3: Other | BG3: Option 2 | BH3: 1.5 | BJ3: Option 1 | BL3: Option 1 | BO3: 2019
A4: Benin | B4: 638 | C4: BEN | E4: Benin | F4: 638 | G4: BEN | I4: Benin | J4: 638 | K4: BEN | M4: Benin | N4: 638 | O4: BEN | Q4: Benin | R4: 638 | S4: BEN | U4: Benin | V4: 638 | W4: BEN | Y4: 0.25 | Z4: Reduce NPL ratio to 25% of initial level. | AB4: Option 2 | AC4: Time to resolve insolvency | AE4: Alternative | AF4: 1.5 | AH4: Option 3 | AI4: Customize | AK4: Option 3 | AL4: Customize | AN4: Option 3 | AO4: Weighted average of provision rates by categories of NPLs (sub-standard, doubtful, loss) using Fitch database, assuming NPLs disposal in the following order: substandard, doubtful, and loss loans | BG4: Option 3 | BH4: Customize | BJ4: Option 2 | BL4: Option 2 | BO4: Other
A5: Botswana | B5: 616 | C5: BWA | E5: Botswana | F5: 616 | G5: BWA | I5: Botswana | J5: 616 | K5: BWA | M5: Botswana | N5: 616 | O5: BWA | Q5: Botswana | R5: 616 | S5: BWA | U5: Botswana | V5: 616 | W5: BWA | Y5: Other | Z5: Customize target NPL ratio. | AB5: Option 3 | AC5: Average time of enforcing debt contracts and resolving insolvency | AE5: Customize | AF5: Customize | BJ5: Option 3
A6: Burkina Faso | B6: 748 | C6: BFA | E6: Burkina Faso | F6: 748 | G6: BFA | I6: Burkina Faso | J6: 748 | K6: BFA | M6: Burkina Faso | N6: 748 | O6: BFA | Q6: Burkina Faso | R6: 748 | S6: BFA | U6: Burkina Faso | V6: 748 | W6: BFA | AN6: Option 2 | AO6: Weighted average provision rate based on imperfect bank-level data from Fitch
A7: Burundi | B7: 618 | C7: BDI | E7: Burundi | F7: 618 | G7: BDI | I7: Burundi | J7: 618 | K7: BDI | M7: Burundi | N7: 618 | O7: BDI | Q7: Burundi | R7: 618 | S7: BDI | U7: Burundi | V7: 618 | W7: BDI
A8: Cameroon | B8: 622 | C8: CMR | E8: Cameroon | F8: 622 | G8: CMR | I8: Cameroon | J8: 622 | K8: CMR | M8: Cameroon | N8: 622 | O8: CMR | Q8: Cameroon | R8: 622 | S8: CMR | U8: Cameroon | V8: 622 | W8: CMR
A9: Cabo Verde | B9: 624 | C9: CPV | E9: Cabo Verde | F9: 624 | G9: CPV | I9: Cabo Verde | J9: 624 | K9: CPV | M9: Cabo Verde | N9: 624 | O9: CPV | Q9: Cabo Verde | R9: 624 | S9: CPV | U9: Cabo Verde | V9: 624 | W9: CPV
A10: Central African Republic | B10: 626 | C10: CAF | E10: Central African Republic | F10: 626 | G10: CAF | I10: Central African Republic | J10: 626 | K10: CAF | M10: Central African Republic | N10: 626 | O10: CAF | Q10: Central African Republic | R10: 626 | S10: CAF | U10: Central African Republic | V10: 626 | W10: CAF
A11: Chad | B11: 628 | C11: TCD | E11: Chad | F11: 628 | G11: TCD | I11: Chad | J11: 628 | K11: TCD | M11: Chad | N11: 628 | O11: TCD | Q11: Chad | R11: 628 | S11: TCD | U11: Chad | V11: 628 | W11: TCD
A12: Comoros | B12: 632 | C12: COM | E12: Comoros | F12: 632 | G12: COM | I12: Comoros | J12: 632 | K12: COM | M12: Comoros | N12: 632 | O12: COM | Q12: Comoros | R12: 632 | S12: COM | U12: Comoros | V12: 632 | W12: COM
A13: Congo, Democratic Republic of the | B13: 636 | C13: COD | E13: Congo, Democratic Republic of the | F13: 636 | G13: COD | I13: Congo, Democratic Republic of the | J13: 636 | K13: COD | M13: Congo, Democratic Republic of the | N13: 636 | O13: COD | Q13: Congo, Democratic Republic of the | R13: 636 | S13: COD | U13: Congo, Democratic Republic of the | V13: 636 | W13: COD
A14: Congo, Republic of | B14: 634 | C14: COG | E14: Congo, Republic of | F14: 634 | G14: COG | I14: Congo, Republic of | J14: 634 | K14: COG | M14: Congo, Republic of | N14: 634 | O14: COG | Q14: Congo, Republic of | R14: 634 | S14: COG | U14: Congo, Republic of | V14: 634 | W14: COG
A15: Côte d'Ivoire | B15: 662 | C15: CIV | E15: Côte d'Ivoire | F15: 662 | G15: CIV | I15: Côte d'Ivoire | J15: 662 | K15: CIV | M15: Côte d'Ivoire | N15: 662 | O15: CIV | Q15: Côte d'Ivoire | R15: 662 | S15: CIV | U15: Côte d'Ivoire | V15: 662 | W15: CIV
A16: Equatorial Guinea | B16: 642 | C16: GNQ | E16: Equatorial Guinea | F16: 642 | G16: GNQ | I16: Equatorial Guinea | J16: 642 | K16: GNQ | M16: Equatorial Guinea | N16: 642 | O16: GNQ | Q16: Equatorial Guinea | R16: 642 | S16: GNQ | U16: Equatorial Guinea | V16: 642 | W16: GNQ
A17: Eritrea | B17: 643 | C17: ERI | E17: Eritrea | F17: 643 | G17: ERI | I17: Eritrea | J17: 643 | K17: ERI | M17: Eritrea | N17: 643 | O17: ERI | Q17: Eritrea | R17: 643 | S17: ERI | U17: Eritrea | V17: 643 | W17: ERI
A18: Eswatini | B18: 734 | C18: SWZ | E18: Eswatini | F18: 734 | G18: SWZ | I18: Eswatini | J18: 734 | K18: SWZ | M18: Eswatini | N18: 734 | O18: SWZ | Q18: Eswatini | R18: 734 | S18: SWZ | U18: Eswatini | V18: 734 | W18: SWZ
A19: Ethiopia | B19: 644 | C19: ETH | E19: Ethiopia | F19: 644 | G19: ETH | I19: Ethiopia | J19: 644 | K19: ETH | M19: Ethiopia | N19: 644 | O19: ETH | Q19: Ethiopia | R19: 644 | S19: ETH | U19: Ethiopia | V19: 644 | W19: ETH
A20: Gabon | B20: 646 | C20: GAB | E20: Gabon | F20: 646 | G20: GAB | I20: Gabon | J20: 646 | K20: GAB | M20: Gabon | N20: 646 | O20: GAB | Q20: Gabon | R20: 646 | S20: GAB | U20: Gabon | V20: 646 | W20: GAB
A21: Gambia, The | B21: 648 | C21: GMB | E21: Gambia, The | F21: 648 | G21: GMB | I21: Gambia, The | J21: 648 | K21: GMB | M21: Gambia, The | N21: 648 | O21: GMB | Q21: Gambia, The | R21: 648 | S21: GMB | U21: Gambia, The | V21: 648 | W21: GMB
A22: Ghana | B22: 652 | C22: GHA | E22: Ghana | F22: 652 | G22: GHA | I22: Ghana | J22: 652 | K22: GHA | M22: Ghana | N22: 652 | O22: GHA | Q22: Ghana | R22: 652 | S22: GHA | U22: Ghana | V22: 652 | W22: GHA
A23: Guinea | B23: 656 | C23: GIN | E23: Guinea | F23: 656 | G23: GIN | I23: Guinea | J23: 656 | K23: GIN | M23: Guinea | N23: 656 | O23: GIN | Q23: Guinea | R23: 656 | S23: GIN | U23: Guinea | V23: 656 | W23: GIN
A24: Guinea-Bissau | B24: 654 | C24: GNB | E24: Guinea-Bissau | F24: 654 | G24: GNB | I24: Guinea-Bissau | J24: 654 | K24: GNB | M24: Guinea-Bissau | N24: 654 | O24: GNB | Q24: Guinea-Bissau | R24: 654 | S24: GNB | U24: Guinea-Bissau | V24: 654 | W24: GNB
A25: Kenya | B25: 664 | C25: KEN | E25: Kenya | F25: 664 | G25: KEN | I25: Kenya | J25: 664 | K25: KEN | M25: Kenya | N25: 664 | O25: KEN | Q25: Kenya | R25: 664 | S25: KEN | U25: Kenya | V25: 664 | W25: KEN
A26: Lesotho | B26: 666 | C26: LSO | E26: Lesotho | F26: 666 | G26: LSO | I26: Lesotho | J26: 666 | K26: LSO | M26: Lesotho | N26: 666 | O26: LSO | Q26: Lesotho | R26: 666 | S26: LSO | U26: Lesotho | V26: 666 | W26: LSO
A27: Liberia | B27: 668 | C27: LBR | E27: Liberia | F27: 668 | G27: LBR | I27: Liberia | J27: 668 | K27: LBR | M27: Liberia | N27: 668 | O27: LBR | Q27: Liberia | R27: 668 | S27: LBR | U27: Liberia | V27: 668 | W27: LBR
A28: Madagascar | B28: 674 | C28: MDG | E28: Madagascar | F28: 674 | G28: MDG | I28: Madagascar | J28: 674 | K28: MDG | M28: Madagascar | N28: 674 | O28: MDG | Q28: Madagascar | R28: 674 | S28: MDG | U28: Madagascar | V28: 674 | W28: MDG
A29: Malawi | B29: 676 | C29: MWI | E29: Malawi | F29: 676 | G29: MWI | I29: Malawi | J29: 676 | K29: MWI | M29: Malawi | N29: 676 | O29: MWI | Q29: Malawi | R29: 676 | S29: MWI | U29: Malawi | V29: 676 | W29: MWI
A30: Mali | B30: 678 | C30: MLI | E30: Mali | F30: 678 | G30: MLI | I30: Mali | J30: 678 | K30: MLI | M30: Mali | N30: 678 | O30: MLI | Q30: Mali | R30: 678 | S30: MLI | U30: Mali | V30: 678 | W30: MLI
A31: Mauritius | B31: 684 | C31: MUS | E31: Mauritius | F31: 684 | G31: MUS | I31: Mauritius | J31: 684 | K31: MUS | M31: Mauritius | N31: 684 | O31: MUS | Q31: Mauritius | R31: 684 | S31: MUS | U31: Mauritius | V31: 684 | W31: MUS
A32: Mozambique | B32: 688 | C32: MOZ | E32: Mozambique | F32: 688 | G32: MOZ | I32: Mozambique | J32: 688 | K32: MOZ | M32: Mozambique | N32: 688 | O32: MOZ | Q32: Mozambique | R32: 688 | S32: MOZ | U32: Mozambique | V32: 688 | W32: MOZ
A33: Namibia | B33: 728 | C33: NAM | E33: Namibia | F33: 728 | G33: NAM | I33: Namibia | J33: 728 | K33: NAM | M33: Namibia | N33: 728 | O33: NAM | Q33: Namibia | R33: 728 | S33: NAM | U33: Namibia | V33: 728 | W33: NAM
A34: Niger | B34: 692 | C34: NER | E34: Niger | F34: 692 | G34: NER | I34: Niger | J34: 692 | K34: NER | M34: Niger | N34: 692 | O34: NER | Q34: Niger | R34: 692 | S34: NER | U34: Niger | V34: 692 | W34: NER
A35: Nigeria | B35: 694 | C35: NGA | E35: Nigeria | F35: 694 | G35: NGA | I35: Nigeria | J35: 694 | K35: NGA | M35: Nigeria | N35: 694 | O35: NGA | Q35: Nigeria | R35: 694 | S35: NGA | U35: Nigeria | V35: 694 | W35: NGA
A36: Rwanda | B36: 714 | C36: RWA | E36: Rwanda | F36: 714 | G36: RWA | I36: Rwanda | J36: 714 | K36: RWA | M36: Rwanda | N36: 714 | O36: RWA | Q36: Rwanda | R36: 714 | S36: RWA | U36: Rwanda | V36: 714 | W36: RWA
A37: São Tomé and Príncipe | B37: 716 | C37: STP | E37: São Tomé and Príncipe | F37: 716 | G37: STP | I37: São Tomé and Príncipe | J37: 716 | K37: STP | M37: São Tomé and Príncipe | N37: 716 | O37: STP | Q37: São Tomé and Príncipe | R37: 716 | S37: STP | U37: São Tomé and Príncipe | V37: 716 | W37: STP
A38: Senegal | B38: 722 | C38: SEN | E38: Senegal | F38: 722 | G38: SEN | I38: Senegal | J38: 722 | K38: SEN | M38: Senegal | N38: 722 | O38: SEN | Q38: Senegal | R38: 722 | S38: SEN | U38: Senegal | V38: 722 | W38: SEN
A39: Seychelles | B39: 718 | C39: SYC | E39: Seychelles | F39: 718 | G39: SYC | I39: Seychelles | J39: 718 | K39: SYC | M39: Seychelles | N39: 718 | O39: SYC | Q39: Seychelles | R39: 718 | S39: SYC | U39: Seychelles | V39: 718 | W39: SYC
A40: Sierra Leone | B40: 724 | C40: SLE | E40: Sierra Leone | F40: 724 | G40: SLE | I40: Sierra Leone | J40: 724 | K40: SLE | M40: Sierra Leone | N40: 724 | O40: SLE | Q40: Sierra Leone | R40: 724 | S40: SLE | U40: Sierra Leone | V40: 724 | W40: SLE
A41: South Africa | B41: 199 | C41: ZAF | E41: South Africa | F41: 199 | G41: ZAF | I41: South Africa | J41: 199 | K41: ZAF | M41: South Africa | N41: 199 | O41: ZAF | Q41: South Africa | R41: 199 | S41: ZAF | U41: South Africa | V41: 199 | W41: ZAF
A42: South Sudan | B42: 733 | C42: SSD | E42: South Sudan | F42: 733 | G42: SSD | I42: South Sudan | J42: 733 | K42: SSD | M42: South Sudan | N42: 733 | O42: SSD | Q42: South Sudan | R42: 733 | S42: SSD | U42: South Sudan | V42: 733 | W42: SSD
A43: Tanzania | B43: 738 | C43: TZA | E43: Tanzania | F43: 738 | G43: TZA | I43: Tanzania | J43: 738 | K43: TZA | M43: Tanzania | N43: 738 | O43: TZA | Q43: Tanzania | R43: 738 | S43: TZA | U43: Tanzania | V43: 738 | W43: TZA
A44: Togo | B44: 742 | C44: TGO | E44: Togo | F44: 742 | G44: TGO | I44: Togo | J44: 742 | K44: TGO | M44: Togo | N44: 742 | O44: TGO | Q44: Togo | R44: 742 | S44: TGO | U44: Togo | V44: 742 | W44: TGO
A45: Uganda | B45: 746 | C45: UGA | E45: Uganda | F45: 746 | G45: UGA | I45: Uganda | J45: 746 | K45: UGA | M45: Uganda | N45: 746 | O45: UGA | Q45: Uganda | R45: 746 | S45: UGA | U45: Uganda | V45: 746 | W45: UGA
A46: Zambia | B46: 754 | C46: ZMB | E46: Zambia | F46: 754 | G46: ZMB | I46: Zambia | J46: 754 | K46: ZMB | M46: Zambia | N46: 754 | O46: ZMB | Q46: Zambia | R46: 754 | S46: ZMB | U46: Zambia | V46: 754 | W46: ZMB
A47: Zimbabwe | B47: 698 | C47: ZWE | E47: Zimbabwe | F47: 698 | G47: ZWE | I47: Zimbabwe | J47: 698 | K47: ZWE | M47: Zimbabwe | N47: 698 | O47: ZWE | Q47: Zimbabwe | R47: 698 | S47: ZWE | U47: Zimbabwe | V47: 698 | W47: ZWE

Sheet Output_Panel
B1: Results
B2: 1. Descriptive Statistics
B72: 2. Scenario 3: Country-Specific Model-Based Haircuts
B74: Table. Country-Specific Model-Based Haircuts
B75: (Percent of gross NPL sold)
B76: Country | E76: Country | H76: Country | K76: Country
B77: =IF(ISBLANK(Calculation_SSA!EJ62), "n.a.", Calculation_SSA!EJ62) -> Eswatini | D77: =IFERROR(Calculation_SSA!EK62/100, "") -> 0.4742597141 | E77: =IF(ISBLANK(Calculation_SSA!EJ73), "n.a.", Calculation_SSA!EJ73) -> Guinea | G77: =IFERROR(Calculation_SSA!EK73/100, "") -> 0.06513040071 | H77: =IF(ISBLANK(Calculation_SSA!EJ84), "n.a.", Calculation_SSA!EJ84) -> Côte d'Ivoire | J77: =IFERROR(Calculation_SSA!EK84/100, "") -> -0.0176738359 | K77: =IF(ISBLANK(Calculation_SSA!EJ95), "n.a.", Calculation_SSA!EJ95) -> São Tomé and Príncipe | M77: =IFERROR(Calculation_SSA!EK95/100, "") -> -0.1681781606
B78: =IF(ISBLANK(Calculation_SSA!EJ63), "n.a.", Calculation_SSA!EJ63) -> Seychelles | D78: =IFERROR(Calculation_SSA!EK63/100, "") -> 0.3691030036 | E78: =IF(ISBLANK(Calculation_SSA!EJ74), "n.a.", Calculation_SSA!EJ74) -> Chad | G78: =IFERROR(Calculation_SSA!EK74/100, "") -> 0.05664000214 | H78: =IF(ISBLANK(Calculation_SSA!EJ85), "n.a.", Calculation_SSA!EJ85) -> Guinea-Bissau | J78: =IFERROR(Calculation_SSA!EK85/100, "") -> -0.01886009711 | K78: =IF(ISBLANK(Calculation_SSA!EJ96), "n.a.", Calculation_SSA!EJ96) -> Kenya | M78: =IFERROR(Calculation_SSA!EK96/100, "") -> -0.1888616367
B79: =IF(ISBLANK(Calculation_SSA!EJ64), "n.a.", Calculation_SSA!EJ64) -> Namibia | D79: =IFERROR(Calculation_SSA!EK64/100, "") -> 0.2876300872 | E79: =IF(ISBLANK(Calculation_SSA!EJ75), "n.a.", Calculation_SSA!EJ75) -> Mauritius | G79: =IFERROR(Calculation_SSA!EK75/100, "") -> 0.05477753715 | H79: =IF(ISBLANK(Calculation_SSA!EJ86), "n.a.", Calculation_SSA!EJ86) -> Angola | J79: =IFERROR(Calculation_SSA!EK86/100, "") -> -0.01928757798 | K79: =IF(ISBLANK(Calculation_SSA!EJ97), "n.a.", Calculation_SSA!EJ97) -> Burundi | M79: =IFERROR(Calculation_SSA!EK97/100, "") -> -0.2369228094
B80: =IF(ISBLANK(Calculation_SSA!EJ65), "n.a.", Calculation_SSA!EJ65) -> Malawi | D80: =IFERROR(Calculation_SSA!EK65/100, "") -> 0.2739827208 | E80: =IF(ISBLANK(Calculation_SSA!EJ76), "n.a.", Calculation_SSA!EJ76) -> Ethiopia | G80: =IFERROR(Calculation_SSA!EK76/100, "") -> 0.05472727273 | H80: =IF(ISBLANK(Calculation_SSA!EJ87), "n.a.", Calculation_SSA!EJ87) -> Gambia, The | J80: =IFERROR(Calculation_SSA!EK87/100, "") -> -0.02497980738 | K80: =IF(ISBLANK(Calculation_SSA!EJ98), "n.a.", Calculation_SSA!EJ98) -> Zambia | M80: =IFERROR(Calculation_SSA!EK98/100, "") -> -0.2483668334
B81: =IF(ISBLANK(Calculation_SSA!EJ66), "n.a.", Calculation_SSA!EJ66) -> Equatorial Guinea | D81: =IFERROR(Calculation_SSA!EK66/100, "") -> 0.2102368056 | E81: =IF(ISBLANK(Calculation_SSA!EJ77), "n.a.", Calculation_SSA!EJ77) -> Uganda | G81: =IFERROR(Calculation_SSA!EK77/100, "") -> 0.05195550241 | H81: =IF(ISBLANK(Calculation_SSA!EJ88), "n.a.", Calculation_SSA!EJ88) -> Sierra Leone | J81: =IFERROR(Calculation_SSA!EK88/100, "") -> -0.03764772727 | K81: =IF(ISBLANK(Calculation_SSA!EJ99), "n.a.", Calculation_SSA!EJ99) -> Central African Republic | M81: =IFERROR(Calculation_SSA!EK99/100, "") -> -0.2732110307
B82: =IF(ISBLANK(Calculation_SSA!EJ67), "n.a.", Calculation_SSA!EJ67) -> Congo, Republic of | D82: =IFERROR(Calculation_SSA!EK67/100, "") -> 0.1973883375 | E82: =IF(ISBLANK(Calculation_SSA!EJ78), "n.a.", Calculation_SSA!EJ78) -> Benin | G82: =IFERROR(Calculation_SSA!EK78/100, "") -> 0.03195079688 | H82: =IF(ISBLANK(Calculation_SSA!EJ89), "n.a.", Calculation_SSA!EJ89) -> Senegal | J82: =IFERROR(Calculation_SSA!EK89/100, "") -> -0.04368957148 | K82: =IF(ISBLANK(Calculation_SSA!EJ100), "n.a.", Calculation_SSA!EJ100) -> Cameroon | M82: =IFERROR(Calculation_SSA!EK100/100, "") -> -0.2922285626
B83: =IF(ISBLANK(Calculation_SSA!EJ68), "n.a.", Calculation_SSA!EJ68) -> Botswana | D83: =IFERROR(Calculation_SSA!EK68/100, "") -> 0.1932327607 | E83: =IF(ISBLANK(Calculation_SSA!EJ79), "n.a.", Calculation_SSA!EJ79) -> Burkina Faso | G83: =IFERROR(Calculation_SSA!EK79/100, "") -> 0.02832794692 | H83: =IF(ISBLANK(Calculation_SSA!EJ90), "n.a.", Calculation_SSA!EJ90) -> Togo | J83: =IFERROR(Calculation_SSA!EK90/100, "") -> -0.123199494 | K83: =IF(ISBLANK(Calculation_SSA!EJ101), "n.a.", Calculation_SSA!EJ101) -> Gabon | M83: =IFERROR(Calculation_SSA!EK101/100, "") -> -0.3104344816
B84: =IF(ISBLANK(Calculation_SSA!EJ69), "n.a.", Calculation_SSA!EJ69) -> Mali | D84: =IFERROR(Calculation_SSA!EK69/100, "") -> 0.1675405414 | E84: =IF(ISBLANK(Calculation_SSA!EJ80), "n.a.", Calculation_SSA!EJ80) -> Comoros | G84: =IFERROR(Calculation_SSA!EK80/100, "") -> 0.01940694512 | H84: =IF(ISBLANK(Calculation_SSA!EJ91), "n.a.", Calculation_SSA!EJ91) -> Ghana | J84: =IFERROR(Calculation_SSA!EK91/100, "") -> -0.1364560272 | K84: =IF(ISBLANK(Calculation_SSA!EJ102), "n.a.", Calculation_SSA!EJ102) ->  | M84: =IFERROR(Calculation_SSA!EK102/100, "") -> 
B85: =IF(ISBLANK(Calculation_SSA!EJ70), "n.a.", Calculation_SSA!EJ70) -> South Africa | D85: =IFERROR(Calculation_SSA!EK70/100, "") -> 0.1398341005 | E85: =IF(ISBLANK(Calculation_SSA!EJ81), "n.a.", Calculation_SSA!EJ81) -> Tanzania | G85: =IFERROR(Calculation_SSA!EK81/100, "") -> 0.01675699724 | H85: =IF(ISBLANK(Calculation_SSA!EJ92), "n.a.", Calculation_SSA!EJ92) -> Cabo Verde | J85: =IFERROR(Calculation_SSA!EK92/100, "") -> -0.1415227273 | K85: =IF(ISBLANK(Calculation_SSA!EJ103), "n.a.", Calculation_SSA!EJ103) ->  | M85: =IFERROR(Calculation_SSA!EK103/100, "") -> 
B86: =IF(ISBLANK(Calculation_SSA!EJ71), "n.a.", Calculation_SSA!EJ71) -> Niger | D86: =IFERROR(Calculation_SSA!EK71/100, "") -> 0.09520284477 | E86: =IF(ISBLANK(Calculation_SSA!EJ82), "n.a.", Calculation_SSA!EJ82) -> Madagascar | G86: =IFERROR(Calculation_SSA!EK82/100, "") -> -0.01053423346 | H86: =IF(ISBLANK(Calculation_SSA!EJ93), "n.a.", Calculation_SSA!EJ93) -> Liberia | J86: =IFERROR(Calculation_SSA!EK93/100, "") -> -0.1443031606 | K86: =IF(ISBLANK(Calculation_SSA!EJ104), "n.a.", Calculation_SSA!EJ104) ->  | M86: =IFERROR(Calculation_SSA!EK104/100, "") -> 
B87: =IF(ISBLANK(Calculation_SSA!EJ72), "n.a.", Calculation_SSA!EJ72) -> Lesotho | D87: =IFERROR(Calculation_SSA!EK72/100, "") -> 0.07954129575 | E87: =IF(ISBLANK(Calculation_SSA!EJ83), "n.a.", Calculation_SSA!EJ83) -> Rwanda | G87: =IFERROR(Calculation_SSA!EK83/100, "") -> -0.01578697727 | H87: =IF(ISBLANK(Calculation_SSA!EJ94), "n.a.", Calculation_SSA!EJ94) -> Nigeria | J87: =IFERROR(Calculation_SSA!EK94/100, "") -> -0.1662226363 | K87: =IF(ISBLANK(Calculation_SSA!EJ105), "n.a.", Calculation_SSA!EJ105) ->  | M87: =IFERROR(Calculation_SSA!EK105/100, "") -> 
J88: SSA Median | L88: =MEDIAN(D77:D87,G77:G87,J77:J87,M77:M87) -> 0.003111381891
B89: Notes: | C89: Positive | D89: Negative
B91: Table. Country-Specific Model-Based Haircuts
B92: (Percent of net NPL sold)
B93: Country | E93: Country | H93: Country | K93: Country
B94: =IF(ISBLANK(Calculation_SSA!EB62), "n.a.", Calculation_SSA!EB62) -> Eswatini | D94: =IFERROR(Calculation_SSA!EC62/100, "") -> 0.5863740212 | E94: =IF(ISBLANK(Calculation_SSA!EB73), "n.a", Calculation_SSA!EB73) -> Guinea | G94: =IFERROR(Calculation_SSA!EC73/100, "") -> 0.144292271 | H94: =IF(ISBLANK(Calculation_SSA!EB84), "m.a", Calculation_SSA!EB84) -> Guinea-Bissau | J94: =IFERROR(Calculation_SSA!EC84/100, "") -> -0.04750762402 | K94: =IF(ISBLANK(Calculation_SSA!EB95), "n.a.", Calculation_SSA!EB95) -> São Tomé and Príncipe | M94: =IFERROR(Calculation_SSA!EC95/100, "") -> -0.87592792
B95: =IF(ISBLANK(Calculation_SSA!EB63), "n.a.", Calculation_SSA!EB63) -> Malawi | D95: =IFERROR(Calculation_SSA!EC63/100, "") -> 0.4682421189 | E95: =IF(ISBLANK(Calculation_SSA!EB74), "n.a", Calculation_SSA!EB74) -> Chad | G95: =IFERROR(Calculation_SSA!EC74/100, "") -> 0.1302855988 | H95: =IF(ISBLANK(Calculation_SSA!EB85), "m.a", Calculation_SSA!EB85) -> Rwanda | J95: =IFERROR(Calculation_SSA!EC85/100, "") -> -0.04957272912 | K95: =IF(ISBLANK(Calculation_SSA!EB96), "n.a.", Calculation_SSA!EB96) -> Kenya | M95: =IFERROR(Calculation_SSA!EC96/100, "") -> -0.9518703625
B96: =IF(ISBLANK(Calculation_SSA!EB64), "n.a.", Calculation_SSA!EB64) -> Seychelles | D96: =IFERROR(Calculation_SSA!EC64/100, "") -> 0.4569412939 | E96: =IF(ISBLANK(Calculation_SSA!EB75), "n.a", Calculation_SSA!EB75) -> Mauritius | G96: =IFERROR(Calculation_SSA!EC75/100, "") -> 0.1160417466 | H96: =IF(ISBLANK(Calculation_SSA!EB86), "m.a", Calculation_SSA!EB86) -> Angola | J96: =IFERROR(Calculation_SSA!EC86/100, "") -> -0.05217927598 | K96: =IF(ISBLANK(Calculation_SSA!EB97), "n.a.", Calculation_SSA!EB97) -> Burundi | M96: =IFERROR(Calculation_SSA!EC97/100, "") -> -1.476849917
B97: =IF(ISBLANK(Calculation_SSA!EB65), "n.a.", Calculation_SSA!EB65) -> Namibia | D97: =IFERROR(Calculation_SSA!EC65/100, "") -> 0.4211874385 | E97: =IF(ISBLANK(Calculation_SSA!EB76), "n.a", Calculation_SSA!EB76) -> Uganda | G97: =IFERROR(Calculation_SSA!EC76/100, "") -> 0.1131057736 | H97: =IF(ISBLANK(Calculation_SSA!EB87), "m.a", Calculation_SSA!EB87) -> Gambia, The | J97: =IFERROR(Calculation_SSA!EC87/100, "") -> -0.06231438437 | K97: =IF(ISBLANK(Calculation_SSA!EB98), "n.a.", Calculation_SSA!EB98) -> Zambia | M97: =IFERROR(Calculation_SSA!EC98/100, "") -> -1.823137995
B98: =IF(ISBLANK(Calculation_SSA!EB66), "n.a.", Calculation_SSA!EB66) -> Congo, Republic of | D98: =IFERROR(Calculation_SSA!EC66/100, "") -> 0.3541957174 | E98: =IF(ISBLANK(Calculation_SSA!EB77), "n.a", Calculation_SSA!EB77) -> Ethiopia | G98: =IFERROR(Calculation_SSA!EC77/100, "") -> 0.1094545455 | H98: =IF(ISBLANK(Calculation_SSA!EB88), "m.a", Calculation_SSA!EB88) -> Sierra Leone | J98: =IFERROR(Calculation_SSA!EC88/100, "") -> -0.1086514496 | K98: =IF(ISBLANK(Calculation_SSA!EB99), "n.a.", Calculation_SSA!EB99) -> Cameroon | M98: =IFERROR(Calculation_SSA!EC99/100, "") -> -3.602481774
B99: =IF(ISBLANK(Calculation_SSA!EB67), "n.a.", Calculation_SSA!EB67) -> Botswana | D99: =IFERROR(Calculation_SSA!EC67/100, "") -> 0.3372564336 | E99: =IF(ISBLANK(Calculation_SSA!EB78), "n.a", Calculation_SSA!EB78) -> Burkina Faso | G99: =IFERROR(Calculation_SSA!EC78/100, "") -> 0.090692767 | H99: =IF(ISBLANK(Calculation_SSA!EB89), "m.a", Calculation_SSA!EB89) -> Senegal | J99: =IFERROR(Calculation_SSA!EC89/100, "") -> -0.1246821208 | K99: =IF(ISBLANK(Calculation_SSA!EB100), "n.a.", Calculation_SSA!EB100) -> Gabon | M99: =IFERROR(Calculation_SSA!EC100/100, "") -> -3.826917369
B100: =IF(ISBLANK(Calculation_SSA!EB68), "n.a.", Calculation_SSA!EB68) -> Equatorial Guinea | D100: =IFERROR(Calculation_SSA!EC68/100, "") -> 0.3256281919 | E100: =IF(ISBLANK(Calculation_SSA!EB79), "n.a", Calculation_SSA!EB79) -> Benin | G100: =IFERROR(Calculation_SSA!EC79/100, "") -> 0.08173168048 | H100: =IF(ISBLANK(Calculation_SSA!EB90), "m.a", Calculation_SSA!EB90) -> Ghana | J100: =IFERROR(Calculation_SSA!EC90/100, "") -> -0.4789759047 | K100: =IF(ISBLANK(Calculation_SSA!EB101), "n.a.", Calculation_SSA!EB101) -> Central African Republic | M100: =IFERROR(Calculation_SSA!EC101/100, "") -> -22.0576761
B101: =IF(ISBLANK(Calculation_SSA!EB69), "n.a.", Calculation_SSA!EB69) -> Mali | D101: =IFERROR(Calculation_SSA!EC69/100, "") -> 0.3152886588 | E101: =IF(ISBLANK(Calculation_SSA!EB80), "n.a", Calculation_SSA!EB80) -> Comoros | G101: =IFERROR(Calculation_SSA!EC80/100, "") -> 0.06000360133 | H101: =IF(ISBLANK(Calculation_SSA!EB91), "m.a", Calculation_SSA!EB91) -> Cabo Verde | J101: =IFERROR(Calculation_SSA!EC91/100, "") -> -0.4880094044 | K101: =IF(ISBLANK(Calculation_SSA!EB102), "n.a.", Calculation_SSA!EB102) ->  | M101: =IFERROR(Calculation_SSA!EC102/100, "") -> 
B102: =IF(ISBLANK(Calculation_SSA!EB70), "n.a.", Calculation_SSA!EB70) -> South Africa | D102: =IFERROR(Calculation_SSA!EC70/100, "") -> 0.2572338928 | E102: =IF(ISBLANK(Calculation_SSA!EB81), "n.a", Calculation_SSA!EB81) -> Tanzania | G102: =IFERROR(Calculation_SSA!EC81/100, "") -> 0.0361411118 | H102: =IF(ISBLANK(Calculation_SSA!EB92), "m.a", Calculation_SSA!EB92) -> Togo | J102: =IFERROR(Calculation_SSA!EC92/100, "") -> -0.4943834972 | K102: =IF(ISBLANK(Calculation_SSA!EB103), "n.a.", Calculation_SSA!EB103) ->  | M102: =IFERROR(Calculation_SSA!EC103/100, "") -> 
B103: =IF(ISBLANK(Calculation_SSA!EB71), "n.a.", Calculation_SSA!EB71) -> Niger | D103: =IFERROR(Calculation_SSA!EC71/100, "") -> 0.2087893532 | E103: =IF(ISBLANK(Calculation_SSA!EB82), "n.a", Calculation_SSA!EB82) -> Madagascar | G103: =IFERROR(Calculation_SSA!EC82/100, "") -> -0.02717587918 | H103: =IF(ISBLANK(Calculation_SSA!EB93), "m.a", Calculation_SSA!EB93) -> Liberia | J103: =IFERROR(Calculation_SSA!EC93/100, "") -> -0.5795307657 | K103: =IF(ISBLANK(Calculation_SSA!EB104), "n.a.", Calculation_SSA!EB104) ->  | M103: =IFERROR(Calculation_SSA!EC104/100, "") -> 
B104: =IF(ISBLANK(Calculation_SSA!EB72), "n.a.", Calculation_SSA!EB72) -> Lesotho | D104: =IFERROR(Calculation_SSA!EC72/100, "") -> 0.1654048486 | E104: =IF(ISBLANK(Calculation_SSA!EB83), "n.a", Calculation_SSA!EB83) -> Côte d'Ivoire | G104: =IFERROR(Calculation_SSA!EC83/100, "") -> -0.04724375374 | H104: =IF(ISBLANK(Calculation_SSA!EB94), "m.a", Calculation_SSA!EB94) -> Nigeria | J104: =IFERROR(Calculation_SSA!EC94/100, "") -> -0.7272919277 | K104: =IF(ISBLANK(Calculation_SSA!EB105), "n.a.", Calculation_SSA!EB105) ->  | M104: =IFERROR(Calculation_SSA!EC105/100, "") -> 
J105: SSA Median | L105: =MEDIAN(D94:D104,G94:G104,J94:J104,M94:M104) -> 0.004482616312
B106: Notes: | C106: 1/Positive | D106: Negative
C107: 2/ Extreme haircut values may be due to the fact that some countries report very low net NPL figures to FSI.
B125: 3. Capital Relief and Additional Performing Loans from NPLs Disposal
B127: 3.1 Selected countries: Capital Relief and Additional Performing Loans
B142: 2. Sub-Saharan Africa
B163: 3.2 Sub-Saharan Africa: Capital Relief and Additional Performing Loans
B233: 4. Sensitivity Analysis for Scenario 2: Fixed Haircut
B252: 5. Sensitivity Analysis for Scenario 3: Model-based Country-specific Haircut

Sheet Calculation_SSA
A1: Year= | B1: =IF(Year="Other", AltYear, Year) -> 2018 | J1: w | K1: NPL Risk Weights = | L1: =IF(Input_Parameters!$D$28="Option 1", Input_Parameters!$E$28, IF(Input_Parameters!$D$28="Option 2", Input_Parameters!$E$28, IF(Input_Parameters!$D$28="Option 3", Input_Parameters!$D$29, "n.a."))) -> 1 | M1: Target CAR= | N1: =IF(Input_Parameters!$D$46="Default", Input_Parameters!$E$46, Input_Parameters!$D$47) -> 0.12 | Y1: % of GDP | AG1: For chart | EM1: Country Classifications
H2: llr computed based on buckets | BD2: % of GDP | BE2: ="% of GDP, SSA median = "&ROUND(BE5, 1) -> % of GDP, SSA median = 0.4 | BF2: % of GDP | BG2: ="% of GDP, SSA median = "&ROUND(BG5, 1) -> % of GDP, SSA median = 0.1 | BH2: % of GDP | BI2: ="% of GDP, SSA median = "&ROUND(BI5, 2) -> % of GDP, SSA median = 0.24 | BJ2: % of initial performing loans (RHS) | BK2: ="% of initial performing loans, SSA median = "&ROUND(BK5, 1)&" (RHS)" -> % of initial performing loans, SSA median = 1.9 (RHS) | BL2: % of initial performing loans (RHS) | BM2: ="% of initial performing loans, SSA median = "&ROUND(BM5, 1)&" (RHS)" -> % of initial performing loans, SSA median = 0.3 (RHS) | BN2: % of initial performing loans (RHS) | BO2: ="% of initial performing loans, SSA median = "&ROUND(BO5, 1)&" (RHS)" -> % of initial performing loans, SSA median = 1.8 (RHS) | BQ2: % of gross NPL sold | BR2: ="% of gross NPL sold, SSA median = "&ROUND(BR5, 1) -> % of gross NPL sold, SSA median = 38.9 | BS2: % of gross NPL sold | BT2: ="% of gross NPL sold, SSA median = "&ROUND(BT5, 1) -> % of gross NPL sold, SSA median = 6.5 | CF2: Capital Relief (% of GDP) | CO2: Changes in NPL ratios (%) | DN2: % GDP | DO2: % GDP | DR2: % GDP | DS2: % GDP | DT2: % GDP | DU2: % GDP | DW2: Haircut | EE2: Unprovisioned loss per unit of gross NPL sold | EM2: Fragile states | EN2: LICs excl. fragile states | EO2: MICs
C3: Gross NPL (volume, NC million) | D3: Gross Loans (volume, NC million) | E3: NPL ratio (percent of total gross loans) | F3: Provisions at year end (NC million) | G3: Target Gross NPL (NC million) | H3: Provisions on Sold NPLs (using FSI or buckets, NC million) | I3: Target NPL ratio (percent of total gross loans) | J3: Net NPL (volume, NC million) | K3: Gross excess NPL (in excess of target, NC million) | L3: Net NPL sold (NC million) | M3: RWA reduced assuming NPL reduced to target (NC million) | N3: Tied-up capital (capital relief without haircut, NC million) | O3: Unprovisioned loss per unit of NPL sold 1/ | P3: Capital relief with haircut (NC million) | Q3: Credit RWA reloading capacity (no haircut, NC million) | R3: Credit RWA reloading capacity (w haircut, NC million) | S3: Risk weight of non-performing loans (WNPL) | T3: Risk weight of performing loans (WPL) | U3: Credit RWA / RWA | V3: Additional performing loans (without haircut, NC million) | W3: Additional performing loans (with haircut, NC million) | X3: GDP (NC millions) | Y3: Net NPL sold (% GDP) | Z3: Capital relief without haircut (% GDP) | AA3: Capital relief with haircut (% GDP) | AB3: Additional performing loans (%GDP) without haircut | AC3: Additional performing loans (%GDP) with haircut | AD3: Provision rate (llr) on NPL sold | AE3: Implied Model-Based Haircut (percent of net NPL sold) | AG3: Rank | AI3: Additional performing loans (%GDP) without haircut | AJ3: Additional performing loans (%GDP) with haircut | AK3: Additional performing loans (% of performing loans) without haircut | AL3: Additional performing loans (% of performing loans) with haircut | AM3: Rank | AO3: Additional performing loans (% of gross NPL sold) without haircut | AP3: Additional performing loans (% of gross NPL sold) with haircut | AR3: Rank | AT3: Additional performing loans (%GDP) without haircut | AU3: Additional performing loans (%GDP) with haircut | AV3: Additional performing loans (% of performing loans) without haircut | AW3: Additional performing loans (% of performing loans) with haircut | AY3: Additional performing loans (% of gross NPL sold) without haircut | AZ3: Additional performing loans (% of gross NPL sold) with haircut | BB3: Rank | BD3: Scenario 1: w/o haircut, % of GDP | BE3: ="SSA median = "&ROUND(BE5, 1) -> SSA median = 0.4 | BF3: Scenario 2: w/ fixed haircut, % of GDP | BG3: ="SSA median = "&ROUND(BG5, 1) -> SSA median = 0.1 | BH3: Scenario 3: w/ country-specific haircut, % of GDP | BI3: ="SSA median = "&ROUND(BI5, 1) -> SSA median = 0.2 | BJ3: Scenario 1: w/o haircut, % of performing loans | BK3: ="SSA median = "&ROUND(BK5, 1) -> SSA median = 1.9 | BL3: Scenario 2: w/ fixed haircut % of performing loans | BM3: ="SSA median = "&ROUND(BM5, 1) -> SSA median = 0.3 | BN3: Scenario 3: w/ country-specific haircut % of performing loans | BO3: ="SSA median = "&ROUND(BO5, 1) -> SSA median = 1.8 | BQ3: Scenario 1: w/o haircut, % of gross NPL sold | BR3: ="SSA median = "&ROUND(BR5, 1) -> SSA median = 38.9 | BS3: Scenario 2: w/ fixed haircut % of gross NPL sold | BT3: ="SSA median = "&ROUND(BT5, 1) -> SSA median = 6.5 | BV3: Rank | BX3: =N3 -> Tied-up capital (capital relief without haircut, NC million) | BY3: =AA3 -> Capital relief with haircut (% GDP) | CA3: Rank | CC3: =BX3 -> Tied-up capital (capital relief without haircut, NC million) | CD3: =BY3 -> Capital relief with haircut (% GDP) | CF3: Rank | CH3: Scenario 1: w/o haircut | CI3: ="SSA median = "&ROUND(CI5, 2) -> SSA median = 0.04 | CJ3: Scenario 2: w/ fixed haircut | CK3: ="SSA median = "&ROUND(CK5, 2) -> SSA median = 0.01 | CL3: Scenario 3: w/ country-specific haircut | CM3: ="SSA median = "&ROUND(CM5, 1) -> SSA median = 0 | CO3: Rank | CQ3: =E3 -> NPL ratio (percent of total gross loans) | CR3: =I3 -> Target NPL ratio (percent of total gross loans) | CS3: Changes in NPL ratios | CT3: Net NPL sold (% total loans) | CV3: Rank | CX3: =CQ3 -> NPL ratio (percent of total gross loans) | CY3: =CR3 -> Target NPL ratio (percent of total gross loans) | CZ3: Targeted reduction in gross NPLs | DA3: ="SSA median reduction in gross NPLs = "&ROUND(DA5, 1) -> SSA median reduction in gross NPLs = 5.9 | DB3: Targeted reduction in net NPLs | DC3: ="SSA median reduction in net NPLs = "&ROUND(DC5, 1) -> SSA median reduction in net NPLs = 1.7 | DE3: Rank | DG3: NPLs as % of GDP | DH3: Net NPL sold as % of GDP | DI3: Targeted reduction in gross NPLs, % of GDP | DJ3: Net NPLs as % of GDP | DL3: Rank | DN3: Gross NPLs | DO3: ="SSA median gross NPLs = "&ROUND(DO5, 1) -> SSA median gross NPLs = 2.1 | DP3: Net NPLs | DQ3: ="SSA median net NPLs = "&ROUND(DQ5, 1) -> SSA median net NPLs = 0.9 | DR3: Targeted reduction in net NPLs | DS3: ="SSA median reduction in net NPLs = "&ROUND(DS5, 1) -> SSA median reduction in net NPLs = 0.4 | DT3: Targeted reduction in gross NPLs | DU3: ="SSA median reduction in gross NPLs = "&ROUND(DU5, 1) -> SSA median reduction in gross NPLs = 1.1 | DW3: Rank | DY3: Haircut | EA3: Rank | EC3: Haircut | EE3: Rank | EF3: Country | EG3: Unprovisioned loss per unit of gross NPL sold | EI3: Rank | EJ3: Country | EK3: Unprovisioned loss per unit of gross NPL sold | EN3: MICs | EO3: MICs excl. fragile states | EP3: LICs | EQ3: LICs excluding countries in fragile situations | ER3: Countries in fragile situations
A4: Scenario 2: unprovisioning scenario, fixed haircut applied uniformly to all countries, e.g. 10% haircut ratio
A5: Angola | B5: AGO | C5: =IF(ISNUMBER(VLOOKUP($B5, LoanProv, MATCH(Calculation_SSA!C$3, 'Calculation_Loans & provisions'!$B$3:$I$3, 0), FALSE)), VLOOKUP($B5, LoanProv, MATCH(Calculation_SSA!C$3, 'Calculation_Loans & provisions'!$B$3:$I$3, 0), FALSE), "") -> 1171456.87 | D5: =IF(ISNUMBER(VLOOKUP($B5, LoanProv, MATCH(Calculation_SSA!D$3, 'Calculation_Loans & provisions'!$B$3:$I$3, 0), FALSE)), VLOOKUP($B5, LoanProv, MATCH(Calculation_SSA!D$3, 'Calculation_Loans & provisions'!$B$3:$I$3, 0), FALSE), "") -> 5040582.52 | E5: =IF(ISNUMBER(VLOOKUP($B5, LoanProv, MATCH(Calculation_SSA!E$3, 'Calculation_Loans & provisions'!$B$3:$I$3, 0), FALSE)), VLOOKUP($B5, LoanProv, MATCH(Calculation_SSA!E$3, 'Calculation_Loans & provisions'!$B$3:$I$3, 0), FALSE), "") -> 0.2324050574 | F5: =IF(ISNUMBER(VLOOKUP($B5, LoanProv, MATCH(Calculation_SSA!F$3, 'Calculation_Loans & provisions'!$B$3:$I$3, 0), FALSE)), VLOOKUP($B5, LoanProv, MATCH(Calculation_SSA!F$3, 'Calculation_Loans & provisions'!$B$3:$I$3, 0), FALSE), "") -> 738438.87 | G5: =IFERROR(I5*D5, "") -> 585728.435 | H5: =IFERROR(AD5*K5, "") -> 369219.435 | I5: =IF(ISNUMBER(Input_Parameters!$D$25), IF(ISNUMBER(E5), Input_Parameters!$D$25*E5, ""), Input_Parameters!$D$26) -> 0.1162025287 | J5: =IF(ISNUMBER(VLOOKUP($B5, LoanProv, MATCH(Calculation_SSA!J$3, 'Calculation_Loans & provisions'!$B$3:$I$3, 0), FALSE)), VLOOKUP($B5, LoanProv, MATCH(Calculation_SSA!J$3, 'Calculation_Loans & provisions'!$B$3:$I$3, 0), FALSE), "") -> 433018 | K5: =IFERROR(IF(C5-G5>0,C5-G5,0), "") -> 585728.435 | L5: =IFERROR((C5-G5)-H5, "") -> 216509 | M5: =IFERROR(L5*S5, "") -> 216509 | N5: =IFERROR($N$1*S5*L5*(1/U5), "") -> 25981.08 | O5: =IF(Input_Parameters!$D$57="Default", Input_Parameters!$E$57, Input_Parameters!$D$58) -> 0.1 | P5: =IFERROR(N5-L5*O5, "") -> 4330.18 | Q5: =IFERROR(N5*(1/(T5*$N$1)), "") -> 216509 | R5: =IFERROR(P5*(1/(T5*$N$1)), "") -> 36084.83333 | S5: =IF(ISNUMBER($L$1), $L$1, "n.a.") -> 1 | T5: =IF(Input_Parameters!$D$34="Option 1", Input_Parameters!$E$34, IF(Input_Parameters!$D$34="Option 2", Input_Parameters!$E$34, IF(Input_Parameters!$D$34="Option 3", Input_Parameters!$D$35, ""))) -> 1 | U5: =IF(Input_Parameters!$D$40="Option 1", Input_Parameters!$E$40, IF(Input_Parameters!$D$40="Option 2", VLOOKUP($B5, CRWA, Input_Data_Fitch!G$266, FALSE), IF(Input_Parameters!$D$40="Option 3", Input_Parameters!$D$41, ""))) -> 1 | V5: =IFERROR(N5*(1/(T5*$N$1))*U5, "") -> 216509 | W5: =IFERROR(P5*(1/(T5*$N$1))*U5, "") -> 36084.83333 | X5: =IFERROR(VLOOKUP($B5, NGDP, 2, FALSE),"") -> 26777992.44 | Y5: =IFERROR(L5/X5, "n.a.") -> 0.008085333524 | Z5: =IFERROR(N5/X5,"") -> 0.0009702400229 | AA5: =IFERROR(P5/X5,"") -> 0.0001617066705 | AB5: =IFERROR(V5/X5, "") -> 0.008085333524 | AC5: =IFERROR(W5/X5, "") -> 0.001347555587 | AD5: =IF(Input_Parameters!$D$49="Option 1", VLOOKUP($B5, Calculation_Haircut!$BR$95:$CC$139, Calculation_Haircut!BZ$91, FALSE), IF(Input_Parameters!$D$49="Option 2", VLOOKUP($B5, Calculation_Haircut!$BR$95:$CC$139, Calculation_Haircut!CB$91, FALSE), IF(Input_Parameters!$D$49="Option 3", VLOOKUP($B5, Calculation_Haircut!$BR$95:$CC$139, Calculation_Haircut!CC$91, FALSE), "n.a."))) -> 0.6303594173 | AE5: =O5 -> 0.1 | AG5: =IFERROR(RANK(AB5, $AB$5:$AB$49)+COUNTIF($AB$5:AB5, AB5)-1, "") -> 9 | AH5: =B5 -> AGO | AI5: =IFERROR(AB5*100, "") -> 0.8085333524 | AJ5: =IFERROR(AC5*100, "") -> 0.1347555587 | AK5: =IFERROR(V5/($D5*(1-$E5))*100, "") -> 5.595812067 | AL5: =IFERROR(W5/($D5*(1-$E5))*100, "") -> 0.9326353445 | AM5: =IFERROR(RANK(AO5, $AO$5:$AO$49)+COUNTIF($AO$5:AO5, AO5)-1, "") -> 23 | AN5: =AH5 -> AGO | AO5: =IFERROR(V5/$K5*100, "") -> 36.96405827 | AP5: =IFERROR(W5/$K5*100, "") -> 6.160676378 | AR5: 1 | AS5: =IFERROR(VLOOKUP($AR5, $AG$5:$AL$49, 2, FALSE), "") -> MUS | AT5: =IFERROR(VLOOKUP($AR5, $AG$5:$AL$49, 3, FALSE), "") -> 2.267554854 | AU5: =IFERROR(VLOOKUP($AR5, $AG$5:$AL$49, 4, FALSE), "") -> 0.3779258089 | AV5: =IFERROR(VLOOKUP($AR5, $AG$5:$AL$49, 5, FALSE), "") -> 1.646702793 | AW5: =IFERROR(VLOOKUP($AR5, $AG$5:$AL$49, 6, FALSE), "") -> 0.2744504655 | AX5: =IFERROR(VLOOKUP($AR5, $AM$5:$AP$49, 2, FALSE), "") -> SWZ | AY5: =IFERROR(VLOOKUP($AR5, $AM$5:$AP$49, 3, FALSE), "") -> 80.88006921 | AZ5: =IFERROR(VLOOKUP($AR5, $AM$5:$AP$49, 4, FALSE), "") -> 13.48001154 | BB5: =AR5 -> 1 | BC5: =AS5 -> MUS | BD5: =AT5 -> 2.267554854 | BE5: =MEDIAN($BD$5:$BD$49) -> 0.3574731643 | BF5: =AU5 -> 0.3779258089 | BG5: =MEDIAN($BF$5:$BF$49) -> 0.05957886072 | BH5: =IFERROR(VLOOKUP($BC5, $AS$62:$AW$106, 3, FALSE), "") -> 0.07479630673 | BI5: =MEDIAN($BH$5:$BH$49) -> 0.2354039149 | BJ5: =AV5 -> 1.646702793 | BK5: =MEDIAN($BJ$5:$BJ$49) -> 1.855477703 | BL5: =AW5 -> 0.2744504655 | BM5: =MEDIAN($BL$5:$BL$49) -> 0.3092462839 | BN5: =IFERROR(VLOOKUP($BC5, $AS$62:$AW$106, 5, FALSE), "") -> 0.05431722501 | BO5: =MEDIAN($BN$5:$BN$49) -> 1.787835282 | BP5: =AX5 -> SWZ | BQ5: =AY5 -> 80.88006921 | BR5: =MEDIAN($BQ$5:$BQ$49) -> 38.92773915 | BS5: =AZ5 -> 13.48001154 | BT5: =MEDIAN($BS$5:$BS$49) -> 6.487956525 | BV5: =IFERROR(RANK(Z5, $Z$5:$Z$49)+COUNTIF($Z$5:Z5, Z5)-1, "") -> 9 | BW5: =B5 -> AGO | BX5: =IFERROR(Z5*100, "") -> 0.09702400229 | BY5: =IFERROR(AA5*100, "") -> 0.01617066705 | CA5: 1 | CB5: =IFERROR(VLOOKUP($CA5, $BV$5:$BY$49, 2, FALSE), "") -> MUS | CC5: =IFERROR(VLOOKUP($CA5, $BV$5:$BY$49, 3, FALSE), "") -> 0.2721065824 | CD5: =IFERROR(VLOOKUP($CA5, $BV$5:$BY$49, 4, FALSE), "") -> 0.04535109707 | CF5: =CA5 -> 1 | CG5: =CB5 -> MUS | CH5: 0.2721065824 | CI5: =MEDIAN($CH$5:$CH$49) -> 0.04289677972 | CJ5: =CD5 -> 0.04535109707 | CK5: =MEDIAN($CJ$5:$CJ$49) -> 0.007149463287 | CL5: =IFERROR(VLOOKUP($CG5, $CB$62:$CD$106, 3, FALSE), "") -> 0.008975556808 | CM5: =MEDIAN($CL$5:$CL$49) -> 0.02824846979 | CO5: =IFERROR(RANK(CS5, $CS$5:$CS$49)+COUNTIF($CS$5:CS5, CS5)-1, "") -> 6 | CP5: =B5 -> AGO | CQ5: =IF(ISNUMBER(E5), E5*100, "") -> 23.24050574 | CR5: =IF(ISNUMBER(I5), I5*100, "") -> 11.62025287 | CS5: =IFERROR(CQ5-CR5, "") -> 11.62025287 | CT5: =IF(ISNUMBER(L5), L5/D5*100, "") -> 4.295317042 | CV5: 1 | CW5: =IFERROR(VLOOKUP($CV5, $CO$5:$CS$49, 2, FALSE), "") -> GNQ | CX5: =IFERROR(VLOOKUP($CV5, $CO$5:$CS$49, 3, FALSE), "") -> 36.67750458 | CY5: =IFERROR(VLOOKUP($CV5, $CO$5:$CS$49, 4, FALSE), "") -> 18.33875229 | CZ5: =IFERROR(VLOOKUP($CV5, $CO$5:$CS$49, 5, FALSE), "") -> 18.33875229 | DA5: =MEDIAN($CZ$5:$CZ$49) -> 5.906754399 | DB5: =IFERROR(VLOOKUP($CV5, $CO$5:$CT$49, 6, FALSE), "") -> 11.84013177 | DC5: =MEDIAN($DB$5:$DB$49) -> 1.704526831 | DE5: =IFERROR(RANK(DG5, $DG$5:$DG$49)+COUNTIF($DG$5:DG5, DG5)-1, "n.a.") -> 8 | DF5: =B5 -> AGO | DG5: =IFERROR(C5/X5*100, "n.a.") -> 4.374700129 | DH5: =IF(ISNUMBER(Y5), Y5*100, "") -> 0.8085333524 | DI5: =IFERROR(K5/X5*100, "n.a.") -> 2.187350065 | DJ5: =IFERROR(J5/X5*100, "n.a.") -> 1.617066705 | DL5: 1 | DM5: =IFERROR(VLOOKUP($DL5, $DE$5:$DG$49, 2, FALSE), "n.a.") -> MUS | DN5: =IFERROR(VLOOKUP($DL5, $DE$5:$DG$49, 3, FALSE), "") -> 9.607260178 | DO5: =MEDIAN($DN$5:$DN$49) -> 2.144428242 | DP5: =IFERROR(VLOOKUP($DL5, $DE$5:$DJ$49, 6, FALSE), "") -> 4.535109707 | DQ5: =MEDIAN($DP$5:$DP$49) -> 0.8503479243 | DR5: =IFERROR(VLOOKUP($DL5, $DE$5:$DH$49, 4, FALSE), "") -> 2.267554854 | DS5: =MEDIAN($DR$5:$DR$49) -> 0.3574731643 | DT5: =IFERROR(VLOOKUP($DL5, $DE$5:$DI$49, 5, FALSE), "") -> 4.803630089 | DU5: =MEDIAN($DT$5:$DT$49) -> 1.072214121 | EM5: Angola | EN5: 1 | EO5: 1
A6: Benin | B6: BEN | C6: =IF(ISNUMBER(VLOOKUP($B6, LoanProv, MATCH(Calculation_SSA!C$3, 'Calculation_Loans & provisions'!$B$3:$I$3, 0), FALSE)), VLOOKUP($B6, LoanProv, MATCH(Calculation_SSA!C$3, 'Calculation_Loans & provisions'!$B$3:$I$3, 0), FALSE), "") -> 345669.0508 | D6: =IF(ISNUMBER(VLOOKUP($B6, LoanProv, MATCH(Calculation_SSA!D$3, 'Calculation_Loans & provisions'!$B$3:$I$3, 0), FALSE)), VLOOKUP($B6, LoanProv, MATCH(Calculation_SSA!D$3, 'Calculation_Loans & provisions'!$B$3:$I$3, 0), FALSE), "") -> 1597221.844 | E6: =IF(ISNUMBER(VLOOKUP($B6, LoanProv, MATCH(Calculation_SSA!E$3, 'Calculation_Loans & provisions'!$B$3:$I$3, 0), FALSE)), VLOOKUP($B6, LoanProv, MATCH(Calculation_SSA!E$3, 'Calculation_Loans & provisions'!$B$3:$I$3, 0), FALSE), "") -> 0.2164189352 | F6: =IF(ISNUMBER(VLOOKUP($B6, LoanProv, MATCH(Calculation_SSA!F$3, 'Calculation_Loans & provisions'!$B$3:$I$3, 0), FALSE)), VLOOKUP($B6, LoanProv, MATCH(Calculation_SSA!F$3, 'Calculation_Loans & provisions'!$B$3:$I$3, 0), FALSE), "") -> 210539.0551 | G6: =IFERROR(I6*D6, "") -> 172834.5254 | H6: 105269.5276 | I6: =IF(ISNUMBER(Input_Parameters!$D$25), IF(ISNUMBER(E6), Input_Parameters!$D$25*E6, ""), Input_Parameters!$D$26) -> 0.1082094676 | J6: =IF(ISNUMBER(VLOOKUP($B6, LoanProv, MATCH(Calculation_SSA!J$3, 'Calculation_Loans & provisions'!$B$3:$I$3, 0), FALSE)), VLOOKUP($B6, LoanProv, MATCH(Calculation_SSA!J$3, 'Calculation_Loans & provisions'!$B$3:$I$3, 0), FALSE), "") -> 135129.9957 | K6: =IFERROR(IF(C6-G6>0,C6-G6,0), "") -> 172834.5254 | L6: =IFERROR((C6-G6)-H6, "") -> 67564.99783 | M6: =IFERROR(L6*S6, "") -> 67564.99783 | N6: =IFERROR($N$1*S6*L6*(1/U6), "") -> 8107.79974 | O6: =IF(Input_Parameters!$D$57="Default", Input_Parameters!$E$57, Input_Parameters!$D$58) -> 0.1 | P6: =IFERROR(N6-L6*O6, "") -> 1351.299957 | Q6: =IFERROR(N6*(1/(T6*$N$1)), "") -> 67564.99783 | R6: =IFERROR(P6*(1/(T6*$N$1)), "") -> 11260.83297 | S6: =IF(ISNUMBER($L$1), $L$1, "n.a.") -> 1 | T6: =IF(Input_Parameters!$D$34="Option 1", Input_Parameters!$E$34, IF(Input_Parameters!$D$34="Option 2", Input_Parameters!$E$34, IF(Input_Parameters!$D$34="Option 3", Input_Parameters!$D$35, ""))) -> 1 | U6: =IF(Input_Parameters!$D$40="Option 1", Input_Parameters!$E$40, IF(Input_Parameters!$D$40="Option 2", VLOOKUP($B6, CRWA, Input_Data_Fitch!G$266, FALSE), IF(Input_Parameters!$D$40="Option 3", Input_Parameters!$D$41, ""))) -> 1 | V6: =IFERROR(N6*(1/(T6*$N$1))*U6, "") -> 67564.99783 | W6: =IFERROR(P6*(1/(T6*$N$1))*U6, "") -> 11260.83297 | X6: 7915660.272 | Y6: =IFERROR(L6/X6, "n.a.") -> 0.008535611119 | Z6: =IFERROR(N6/X6,"") -> 0.001024273334 | AA6: =IFERROR(P6/X6,"") -> 0.0001707122224 | AB6: =IFERROR(V6/X6, "") -> 0.008535611119 | AC6: =IFERROR(W6/X6, "") -> 0.001422601853 | AD6: =IF(Input_Parameters!$D$49="Option 1", VLOOKUP($B6, Calculation_Haircut!$BR$95:$CC$139, Calculation_Haircut!BZ$91, FALSE), IF(Input_Parameters!$D$49="Option 2", VLOOKUP($B6, Calculation_Haircut!$BR$95:$CC$139, Calculation_Haircut!CB$91, FALSE), IF(Input_Parameters!$D$49="Option 3", VLOOKUP($B6, Calculation_Haircut!$BR$95:$CC$139, Calculation_Haircut!CC$91, FALSE), "n.a."))) -> 0.6090769615 | AE6: 0.1 | AG6: =IFERROR(RANK(AB6, $AB$5:$AB$49)+COUNTIF($AB$5:AB6, AB6)-1, "") -> 7 | AH6: BEN | AI6: 0.8535611119 | AJ6: 0.1422601853 | AK6: 5.398493629 | AL6: 0.8997489382 | AM6: =IFERROR(RANK(AO6, $AO$5:$AO$49)+COUNTIF($AO$5:AO6, AO6)-1, "") -> 20 | AN6: =AH6 -> BEN | AO6: =IFERROR(V6/$K6*100, "") -> 39.09230385 | AP6: =IFERROR(W6/$K6*100, "") -> 6.515383976 | AR6: 2 | AS6: =IFERROR(VLOOKUP($AR6, $AG$5:$AL$49, 2, FALSE), "") -> GNQ | AT6: =IFERROR(VLOOKUP($AR6, $AG$5:$AL$49, 3, FALSE), "") -> 2.060378361 | AU6: =IFERROR(VLOOKUP($AR6, $AG$5:$AL$49, 4, FALSE), "") -> 0.3433963936 | AV6: =IFERROR(VLOOKUP($AR6, $AG$5:$AL$49, 5, FALSE), "") -> 18.69814462 | AW6: =IFERROR(VLOOKUP($AR6, $AG$5:$AL$49, 6, FALSE), "") -> 3.116357436 | AX6: =IFERROR(VLOOKUP($AR6, $AM$5:$AP$49, 2, FALSE), "") -> SYC | AY6: =IFERROR(VLOOKUP($AR6, $AM$5:$AP$49, 3, FALSE), "") -> 80.77689816 | AZ6: =IFERROR(VLOOKUP($AR6, $AM$5:$AP$49, 4, FALSE), "") -> 13.46281636 | BB6: 2 | BC6: GNQ | BD6: 2.060378361 | BE6: =MEDIAN($BD$5:$BD$49) -> 0.3574731643 | BF6: =AU6 -> 0.3433963936 | BG6: =MEDIAN($BF$5:$BF$49) -> 0.05957886072 | BH6: =IFERROR(VLOOKUP($BC6, $AS$62:$AW$106, 3, FALSE), "") -> -3.530598976 | BI6: =MEDIAN($BH$5:$BH$49) -> 0.2354039149 | BJ6: =AV6 -> 18.69814462 | BK6: =MEDIAN($BJ$5:$BJ$49) -> 1.855477703 | BL6: =AW6 -> 3.116357436 | BM6: =MEDIAN($BL$5:$BL$49) -> 0.3092462839 | BN6: -32.04054725 | BO6: =MEDIAN($BN$5:$BN$49) -> 1.787835282 | BP6: =AX6 -> SYC | BQ6: =AY6 -> 80.77689816 | BR6: =MEDIAN($BQ$5:$BQ$49) -> 38.92773915 | BS6: =AZ6 -> 13.46281636 | BT6: =MEDIAN($BS$5:$BS$49) -> 6.487956525 | BV6: =IFERROR(RANK(Z6, $Z$5:$Z$49)+COUNTIF($Z$5:Z6, Z6)-1, "") -> 7 | BW6: BEN | BX6: 0.1024273334 | BY6: 0.01707122224 | CA6: 2 | CB6: GNQ | CC6: 0.2472454034 | CD6: 0.04120756723 | CF6: =CA6 -> 2 | CG6: GNQ | CH6: 0.2472454034 | CI6: =MEDIAN($CH$5:$CH$49) -> 0.04289677972 | CJ6: 0.04120756723 | CK6: =MEDIAN($CJ$5:$CJ$49) -> 0.007149463287 | CL6: -0.4236718771 | CM6: =MEDIAN($CL$5:$CL$49) -> 0.02824846979 | CO6: =IFERROR(RANK(CS6, $CS$5:$CS$49)+COUNTIF($CS$5:CS6, CS6)-1, "") -> 7 | CP6: BEN | CQ6: 21.64189352 | CR6: 10.82094676 | CS6: =IFERROR(CQ6-CR6, "") -> 10.82094676 | CT6: 4.230157387 | CV6: 2 | CW6: =IFERROR(VLOOKUP($CV6, $CO$5:$CS$49, 2, FALSE), "") -> TCD | CX6: =IFERROR(VLOOKUP($CV6, $CO$5:$CS$49, 3, FALSE), "") -> 28.62624659 | CY6: =IFERROR(VLOOKUP($CV6, $CO$5:$CS$49, 4, FALSE), "") -> 14.3131233 | CZ6: =IFERROR(VLOOKUP($CV6, $CO$5:$CS$49, 5, FALSE), "") -> 14.3131233 | DA6: =MEDIAN($CZ$5:$CZ$49) -> 5.906754399 | DB6: =IFERROR(VLOOKUP($CV6, $CO$5:$CT$49, 6, FALSE), "") -> 6.222447772 | DC6: =MEDIAN($DB$5:$DB$49) -> 1.704526831 | DE6: =IFERROR(RANK(DG6, $DG$5:$DG$49)+COUNTIF($DG$5:DG6, DG6)-1, "n.a.") -> 9 | DF6: BEN | DG6: 4.36690104 | DH6: 0.8535611119 | DI6: 2.18345052 | DJ6: 1.707122224 | DL6: 2 | DM6: =IFERROR(VLOOKUP($DL6, $DE$5:$DG$49, 2, FALSE), "n.a.") -> CPV | DN6: =IFERROR(VLOOKUP($DL6, $DE$5:$DG$49, 3, FALSE), "") -> 7.65485698 | DO6: =MEDIAN($DN$5:$DN$49) -> 2.144428242 | DP6: =IFERROR(VLOOKUP($DL6, $DE$5:$DJ$49, 6, FALSE), "") -> 2.219908524 | DQ6: =MEDIAN($DP$5:$DP$49) -> 0.8503479243 | DR6: =IFERROR(VLOOKUP($DL6, $DE$5:$DH$49, 4, FALSE), "") -> 1.10995424 | DS6: =MEDIAN($DR$5:$DR$49) -> 0.3574731643 | DT6: =IFERROR(VLOOKUP($DL6, $DE$5:$DI$49, 5, FALSE), "") -> 3.827428414 | DU6: =MEDIAN($DT$5:$DT$49) -> 1.072214121 | EM6: Benin | EP6: 1 | EQ6: 1
A7: Botswana | B7: BWA | C7: =IF(ISNUMBER(VLOOKUP($B7, LoanProv, MATCH(Calculation_SSA!C$3, 'Calculation_Loans & provisions'!$B$3:$I$3, 0), FALSE)), VLOOKUP($B7, LoanProv, MATCH(Calculation_SSA!C$3, 'Calculation_Loans & provisions'!$B$3:$I$3, 0), FALSE), "") -> 3165.835 | D7: =IF(ISNUMBER(VLOOKUP($B7, LoanProv, MATCH(Calculation_SSA!D$3, 'Calculation_Loans & provisions'!$B$3:$I$3, 0), FALSE)), VLOOKUP($B7, LoanProv, MATCH(Calculation_SSA!D$3, 'Calculation_Loans & provisions'!$B$3:$I$3, 0), FALSE), "") -> 55911.03761 | E7: =IF(ISNUMBER(VLOOKUP($B7, LoanProv, MATCH(Calculation_SSA!E$3, 'Calculation_Loans & provisions'!$B$3:$I$3, 0), FALSE)), VLOOKUP($B7, LoanProv, MATCH(Calculation_SSA!E$3, 'Calculation_Loans & provisions'!$B$3:$I$3, 0), FALSE), "") -> 0.05426319239 | F7: =IF(ISNUMBER(VLOOKUP($B7, LoanProv, MATCH(Calculation_SSA!F$3, 'Calculation_Loans & provisions'!$B$3:$I$3, 0), FALSE)), VLOOKUP($B7, LoanProv, MATCH(Calculation_SSA!F$3, 'Calculation_Loans & provisions'!$B$3:$I$3, 0), FALSE), "") -> 1351.954 | G7: 1516.955695 | H7: 704.1456587 | I7: =IF(ISNUMBER(Input_Parameters!$D$25), IF(ISNUMBER(E7), Input_Parameters!$D$25*E7, ""), Input_Parameters!$D$26) -> 0.0271315962 | J7: =IF(ISNUMBER(VLOOKUP($B7, LoanProv, MATCH(Calculation_SSA!J$3, 'Calculation_Loans & provisions'!$B$3:$I$3, 0), FALSE)), VLOOKUP($B7, LoanProv, MATCH(Calculation_SSA!J$3, 'Calculation_Loans & provisions'!$B$3:$I$3, 0), FALSE), "") -> 1813.881 | K7: =IFERROR(IF(C7-G7>0,C7-G7,0), "") -> 1648.879305 | L7: 944.7336459 | M7: 944.7336459 | N7: 113.3680375 | O7: =IF(Input_Parameters!$D$57="Default", Input_Parameters!$E$57, Input_Parameters!$D$58) -> 0.1 | P7: =IFERROR(N7-L7*O7, "") -> 18.89467292 | Q7: 944.7336459 | R7: 157.4556076 | S7: 1 | T7: =IF(Input_Parameters!$D$34="Option 1", Input_Parameters!$E$34, IF(Input_Parameters!$D$34="Option 2", Input_Parameters!$E$34, IF(Input_Parameters!$D$34="Option 3", Input_Parameters!$D$35, ""))) -> 1 | U7: =IF(Input_Parameters!$D$40="Option 1", Input_Parameters!$E$40, IF(Input_Parameters!$D$40="Option 2", VLOOKUP($B7, CRWA, Input_Data_Fitch!G$266, FALSE), IF(Input_Parameters!$D$40="Option 3", Input_Parameters!$D$41, ""))) -> 1 | V7: 944.7336459 | W7: =IFERROR(P7*(1/(T7*$N$1))*U7, "") -> 157.4556076 | X7: 190365.3 | Y7: 0.004962740824 | Z7: 0.0005955288989 | AA7: 9.925481649e-05 | AB7: =IFERROR(V7/X7, "") -> 0.004962740824 | AC7: 0.0008271234707 | AD7: =IF(Input_Parameters!$D$49="Option 1", VLOOKUP($B7, Calculation_Haircut!$BR$95:$CC$139, Calculation_Haircut!BZ$91, FALSE), IF(Input_Parameters!$D$49="Option 2", VLOOKUP($B7, Calculation_Haircut!$BR$95:$CC$139, Calculation_Haircut!CB$91, FALSE), IF(Input_Parameters!$D$49="Option 3", VLOOKUP($B7, Calculation_Haircut!$BR$95:$CC$139, Calculation_Haircut!CC$91, FALSE), "n.a."))) -> 0.4270449976 | AE7: 0.1 | AG7: =IFERROR(RANK(AB7, $AB$5:$AB$49)+COUNTIF($AB$5:AB7, AB7)-1, "") -> 16 | AH7: BWA | AI7: 0.4962740824 | AJ7: 0.08271234707 | AK7: 1.786658454 | AL7: 0.297776409 | AM7: =IFERROR(RANK(AO7, $AO$5:$AO$49)+COUNTIF($AO$5:AO7, AO7)-1, "") -> 6 | AN7: BWA | AO7: 57.29550024 | AP7: 9.54925004 | AR7: 3 | AS7: CPV | AT7: 1.10995424 | AU7: 0.1849923734 | AV7: 2.016598715 | AW7: 0.3360997858 | AX7: NAM | AY7: 68.29028145 | AZ7: 11.38171357 | BB7: 3 | BC7: CPV | BD7: 1.10995424 | BE7: 0.3574731643 | BF7: 0.1849923734 | BG7: 0.05957886072 | BH7: 5.623855137 | BI7: 0.2354039149 | BJ7: =AV7 -> 2.016598715 | BK7: 1.855477703 | BL7: =AW7 -> 0.3360997858 | BM7: 0.3092462839 | BN7: 10.21759153 | BO7: 1.787835282 | BP7: NAM | BQ7: 68.29028145 | BR7: 38.92773915 | BS7: 11.38171357 | BT7: 6.487956525 | BV7: =IFERROR(RANK(Z7, $Z$5:$Z$49)+COUNTIF($Z$5:Z7, Z7)-1, "") -> 16 | BW7: BWA | BX7: 0.05955288989 | BY7: 0.009925481649 | CA7: 3 | CB7: CPV | CC7: 0.1331945088 | CD7: 0.0221990848 | CF7: 3 | CG7: CPV | CH7: 0.1331945088 | CI7: 0.04289677972 | CJ7: 0.0221990848 | CK7: 0.007149463287 | CL7: 0.6748626164 | CM7: 0.02824846979 | CO7: =IFERROR(RANK(CS7, $CS$5:$CS$49)+COUNTIF($CS$5:CS7, CS7)-1, "") -> 35 | CP7: BWA | CQ7: 5.426319239 | CR7: 2.71315962 | CS7: 2.71315962 | CT7: 1.689708663 | CV7: 3 | CW7: GNB | CX7: 26.34062634 | CY7: 13.17031317 | CZ7: 13.17031317 | DA7: 5.906754399 | DB7: 5.228495224 | DC7: 1.704526831 | DE7: =IFERROR(RANK(DG7, $DG$5:$DG$49)+COUNTIF($DG$5:DG7, DG7)-1, "n.a.") -> 27 | DF7: BWA | DG7: 1.66303155 | DH7: 0.4962740824 | DI7: 0.866165895 | DJ7: 0.9528422459 | DL7: 3 | DM7: GNQ | DN7: 6.382491197 | DO7: 2.144428242 | DP7: 4.120756723 | DQ7: 0.8503479243 | DR7: 2.060378361 | DS7: 0.3574731643 | DT7: 3.191245599 | DU7: 1.072214121 | EM7: Botswana | EN7: 1 | EO7: 1
A8: Burkina Faso | B8: BFA | C8: =IF(ISNUMBER(VLOOKUP($B8, LoanProv, MATCH(Calculation_SSA!C$3, 'Calculation_Loans & provisions'!$B$3:$I$3, 0), FALSE)), VLOOKUP($B8, LoanProv, MATCH(Calculation_SSA!C$3, 'Calculation_Loans & provisions'!$B$3:$I$3, 0), FALSE), "") -> 213445.7064 | D8: =IF(ISNUMBER(VLOOKUP($B8, LoanProv, MATCH(Calculation_SSA!D$3, 'Calculation_Loans & provisions'!$B$3:$I$3, 0), FALSE)), VLOOKUP($B8, LoanProv, MATCH(Calculation_SSA!D$3, 'Calculation_Loans & provisions'!$B$3:$I$3, 0), FALSE), "") -> 2865667.621 | E8: =IF(ISNUMBER(VLOOKUP($B8, LoanProv, MATCH(Calculation_SSA!E$3, 'Calculation_Loans & provisions'!$B$3:$I$3, 0), FALSE)), VLOOKUP($B8, LoanProv, MATCH(Calculation_SSA!E$3, 'Calculation_Loans & provisions'!$B$3:$I$3, 0), FALSE), "") -> 0.07448376246 | F8: =IF(ISNUMBER(VLOOKUP($B8, LoanProv, MATCH(Calculation_SSA!F$3, 'Calculation_Loans & provisions'!$B$3:$I$3, 0), FALSE)), VLOOKUP($B8, LoanProv, MATCH(Calculation_SSA!F$3, 'Calculation_Loans & provisions'!$B$3:$I$3, 0), FALSE), "") -> 146775.7961 | G8: 106722.8532 | H8: 73387.89805 | I8: =IF(ISNUMBER(Input_Parameters!$D$25), IF(ISNUMBER(E8), Input_Parameters!$D$25*E8, ""), Input_Parameters!$D$26) -> 0.03724188123 | J8: =IF(ISNUMBER(VLOOKUP($B8, LoanProv, MATCH(Calculation_SSA!J$3, 'Calculation_Loans & provisions'!$B$3:$I$3, 0), FALSE)), VLOOKUP($B8, LoanProv, MATCH(Calculation_SSA!J$3, 'Calculation_Loans & provisions'!$B$3:$I$3, 0), FALSE), "") -> 66669.91029 | K8: =IFERROR(IF(C8-G8>0,C8-G8,0), "") -> 106722.8532 | L8: 33334.95515 | M8: 33334.95515 | N8: 4000.194618 | O8: =IF(Input_Parameters!$D$57="Default", Input_Parameters!$E$57, Input_Parameters!$D$58) -> 0.1 | P8: 666.6991029 | Q8: 33334.95515 | R8: 5555.825858 | S8: 1 | T8: =IF(Input_Parameters!$D$34="Option 1", Input_Parameters!$E$34, IF(Input_Parameters!$D$34="Option 2", Input_Parameters!$E$34, IF(Input_Parameters!$D$34="Option 3", Input_Parameters!$D$35, ""))) -> 1 | U8: =IF(Input_Parameters!$D$40="Option 1", Input_Parameters!$E$40, IF(Input_Parameters!$D$40="Option 2", VLOOKUP($B8, CRWA, Input_Data_Fitch!G$266, FALSE), IF(Input_Parameters!$D$40="Option 3", Input_Parameters!$D$41, ""))) -> 1 | V8: 33334.95515 | W8: 5555.825858 | X8: 8997919.264 | Y8: 0.003704740415 | Z8: 0.0004445688498 | AA8: 7.40948083e-05 | AB8: 0.003704740415 | AC8: 0.0006174567358 | AD8: =IF(Input_Parameters!$D$49="Option 1", VLOOKUP($B8, Calculation_Haircut!$BR$95:$CC$139, Calculation_Haircut!BZ$91, FALSE), IF(Input_Parameters!$D$49="Option 2", VLOOKUP($B8, Calculation_Haircut!$BR$95:$CC$139, Calculation_Haircut!CB$91, FALSE), IF(Input_Parameters!$D$49="Option 3", VLOOKUP($B8, Calculation_Haircut!$BR$95:$CC$139, Calculation_Haircut!CC$91, FALSE), "n.a."))) -> 0.6876493258 | AE8: 0.1 | AG8: =IFERROR(RANK(AB8, $AB$5:$AB$49)+COUNTIF($AB$5:AB8, AB8)-1, "") -> 20 | AH8: BFA | AI8: 0.3704740415 | AJ8: 0.06174567358 | AK8: 1.256869003 | AL8: 0.2094781672 | AM8: =IFERROR(RANK(AO8, $AO$5:$AO$49)+COUNTIF($AO$5:AO8, AO8)-1, "") -> 28 | AN8: BFA | AO8: 31.23506742 | AP8: 5.20584457 | AR8: 4 | AS8: MLI | AT8: 0.9632985259 | AU8: 0.1605497543 | AV8: 4.150422281 | AW8: 0.6917370469 | AX8: GNQ | AY8: 64.56345329 | AZ8: 10.76057555 | BB8: 4 | BC8: MLI | BD8: 0.9632985259 | BE8: 0.3574731643 | BF8: 0.1605497543 | BG8: 0.05957886072 | BH8: -1.567677309 | BI8: 0.2354039149 | BJ8: 4.150422281 | BK8: 1.855477703 | BL8: 0.6917370469 | BM8: 0.3092462839 | BN8: -6.754420005 | BO8: 1.787835282 | BP8: GNQ | BQ8: 64.56345329 | BR8: 38.92773915 | BS8: 10.76057555 | BT8: 6.487956525 | BV8: =IFERROR(RANK(Z8, $Z$5:$Z$49)+COUNTIF($Z$5:Z8, Z8)-1, "") -> 20 | BW8: BFA | BX8: 0.04445688498 | BY8: 0.00740948083 | CA8: 4 | CB8: MLI | CC8: 0.1155958231 | CD8: 0.01926597052 | CF8: 4 | CG8: MLI | CH8: 0.1155958231 | CI8: 0.04289677972 | CJ8: 0.01926597052 | CK8: 0.007149463287 | CL8: -0.1881212771 | CM8: 0.02824846979 | CO8: =IFERROR(RANK(CS8, $CS$5:$CS$49)+COUNTIF($CS$5:CS8, CS8)-1, "") -> 30 | CP8: BFA | CQ8: 7.448376246 | CR8: 3.724188123 | CS8: 3.724188123 | CT8: 1.163252671 | CV8: 4 | CW8: STP | CX8: 24.60065261 | CY8: 12.30032631 | CZ8: 12.30032631 | DA8: 5.906754399 | DB8: 2.361662725 | DC8: 1.704526831 | DE8: =IFERROR(RANK(DG8, $DG$5:$DG$49)+COUNTIF($DG$5:DG8, DG8)-1, "n.a.") -> 17 | DF8: BFA | DG8: 2.372167388 | DH8: 0.3704740415 | DI8: 1.186083694 | DJ8: 0.740948083 | DL8: 4 | DM8: TGO | DN8: 5.986593273 | DO8: 2.144428242 | DP8: 1.491848467 | DQ8: 0.8503479243 | DR8: 0.7459242333 | DS8: 0.3574731643 | DT8: 2.993296636 | DU8: 1.072214121 | EM8: Burkina Faso | EP8: 1 | EQ8: 1
A9: Burundi | B9: BDI | C9: =IF(ISNUMBER(VLOOKUP($B9, LoanProv, MATCH(Calculation_SSA!C$3, 'Calculation_Loans & provisions'!$B$3:$I$3, 0), FALSE)), VLOOKUP($B9, LoanProv, MATCH(Calculation_SSA!C$3, 'Calculation_Loans & provisions'!$B$3:$I$3, 0), FALSE), "") -> 100765.2 | D9: =IF(ISNUMBER(VLOOKUP($B9, LoanProv, MATCH(Calculation_SSA!D$3, 'Calculation_Loans & provisions'!$B$3:$I$3, 0), FALSE)), VLOOKUP($B9, LoanProv, MATCH(Calculation_SSA!D$3, 'Calculation_Loans & provisions'!$B$3:$I$3, 0), FALSE), "") -> 710109.9 | E9: =IF(ISNUMBER(VLOOKUP($B9, LoanProv, MATCH(Calculation_SSA!E$3, 'Calculation_Loans & provisions'!$B$3:$I$3, 0), FALSE)), VLOOKUP($B9, LoanProv, MATCH(Calculation_SSA!E$3, 'Calculation_Loans & provisions'!$B$3:$I$3, 0), FALSE), "") -> 0.1419008522 | F9: =IF(ISNUMBER(VLOOKUP($B9, LoanProv, MATCH(Calculation_SSA!F$3, 'Calculation_Loans & provisions'!$B$3:$I$3, 0), FALSE)), VLOOKUP($B9, LoanProv, MATCH(Calculation_SSA!F$3, 'Calculation_Loans & provisions'!$B$3:$I$3, 0), FALSE), "") -> 84600 | G9: 50382.6 | H9: 42300 | I9: =IF(ISNUMBER(Input_Parameters!$D$25), IF(ISNUMBER(E9), Input_Parameters!$D$25*E9, ""), Input_Parameters!$D$26) -> 0.07095042612 | J9: =IF(ISNUMBER(VLOOKUP($B9, LoanProv, MATCH(Calculation_SSA!J$3, 'Calculation_Loans & provisions'!$B$3:$I$3, 0), FALSE)), VLOOKUP($B9, LoanProv, MATCH(Calculation_SSA!J$3, 'Calculation_Loans & provisions'!$B$3:$I$3, 0), FALSE), "") -> 16165.2 | K9: 50382.6 | L9: 8082.6 | M9: 8082.6 | N9: 969.912 | O9: =IF(Input_Parameters!$D$57="Default", Input_Parameters!$E$57, Input_Parameters!$D$58) -> 0.1 | P9: 161.652 | Q9: 8082.6 | R9: 1347.1 | S9: 1 | T9: =IF(Input_Parameters!$D$34="Option 1", Input_Parameters!$E$34, IF(Input_Parameters!$D$34="Option 2", Input_Parameters!$E$34, IF(Input_Parameters!$D$34="Option 3", Input_Parameters!$D$35, ""))) -> 1 | U9: =IF(Input_Parameters!$D$40="Option 1", Input_Parameters!$E$40, IF(Input_Parameters!$D$40="Option 2", VLOOKUP($B9, CRWA, Input_Data_Fitch!G$266, FALSE), IF(Input_Parameters!$D$40="Option 3", Input_Parameters!$D$41, ""))) -> 1 | V9: 8082.6 | W9: 1347.1 | X9: 5678741.525 | Y9: 0.00142330831 | Z9: 0.0001707969971 | AA9: 2.846616619e-05 | AB9: 0.00142330831 | AC9: 0.0002372180516 | AD9: =IF(Input_Parameters!$D$49="Option 1", VLOOKUP($B9, Calculation_Haircut!$BR$95:$CC$139, Calculation_Haircut!BZ$91, FALSE), IF(Input_Parameters!$D$49="Option 2", VLOOKUP($B9, Calculation_Haircut!$BR$95:$CC$139, Calculation_Haircut!CB$91, FALSE), IF(Input_Parameters!$D$49="Option 3", VLOOKUP($B9, Calculation_Haircut!$BR$95:$CC$139, Calculation_Haircut!CC$91, FALSE), "n.a."))) -> 0.8395755678 | AE9: 0.1 | AG9: =IFERROR(RANK(AB9, $AB$5:$AB$49)+COUNTIF($AB$5:AB9, AB9)-1, "") -> 33 | AH9: BDI | AI9: 0.142330831 | AJ9: 0.02372180516 | AK9: 1.326441339 | AL9: 0.2210735566 | AM9: =IFERROR(RANK(AO9, $AO$5:$AO$49)+COUNTIF($AO$5:AO9, AO9)-1, "") -> 36 | AN9: BDI | AO9: 16.04244322 | AP9: 2.673740537 | AR9: 5 | AS9: COG | AT9: 0.8913439648 | AU9: 0.1485573275 | AV9: 6.198583854 | AW9: 1.033097309 | AX9: MWI | AY9: 58.51304481 | AZ9: 9.752174135 | BB9: 5 | BC9: COG | BD9: 0.8913439648 | BE9: 0.3574731643 | BF9: 0.1485573275 | BG9: 0.05957886072 | BH9: =IFERROR(VLOOKUP($BC9, $AS$62:$AW$106, 3, FALSE), "") -> -1.739574494 | BI9: 0.2354039149 | BJ9: 6.198583854 | BK9: 1.855477703 | BL9: 1.033097309 | BM9: 0.3092462839 | BN9: -12.09734827 | BO9: 1.787835282 | BP9: MWI | BQ9: 58.51304481 | BR9: 38.92773915 | BS9: 9.752174135 | BT9: 6.487956525 | BV9: =IFERROR(RANK(Z9, $Z$5:$Z$49)+COUNTIF($Z$5:Z9, Z9)-1, "") -> 33 | BW9: BDI | BX9: 0.01707969971 | BY9: 0.002846616619 | CA9: 5 | CB9: COG | CC9: 0.1069612758 | CD9: 0.0178268793 | CF9: 5 | CG9: COG | CH9: 0.1069612758 | CI9: 0.04289677972 | CJ9: 0.0178268793 | CK9: 0.007149463287 | CL9: -0.2087489393 | CM9: 0.02824846979 | CO9: =IFERROR(RANK(CS9, $CS$5:$CS$49)+COUNTIF($CS$5:CS9, CS9)-1, "") -> 14 | CP9: BDI | CQ9: 14.19008522 | CR9: 7.095042612 | CS9: 7.095042612 | CT9: 1.138218183 | CV9: 5 | CW9: COM | CX9: 24.1 | CY9: 12.05 | CZ9: 12.05 | DA9: 5.906754399 | DB9: 3.897327552 | DC9: 1.704526831 | DE9: =IFERROR(RANK(DG9, $DG$5:$DG$49)+COUNTIF($DG$5:DG9, DG9)-1, "n.a.") -> 25 | DF9: BDI | DG9: 1.774428358 | DH9: 0.142330831 | DI9: 0.8872141791 | DJ9: 0.2846616619 | DL9: 5 | DM9: GAB | DN9: 4.948859836 | DO9: 2.144428242 | DP9: 0.4014449726 | DQ9: 0.8503479243 | DR9: 0.2007224863 | DS9: 0.3574731643 | DT9: 2.474429918 | DU9: 1.072214121 | EM9: Burundi | EP9: 1 | ER9: 1
A10: Cameroon | B10: CMR | C10: =IF(ISNUMBER(VLOOKUP($B10, LoanProv, MATCH(Calculation_SSA!C$3, 'Calculation_Loans & provisions'!$B$3:$I$3, 0), FALSE)), VLOOKUP($B10, LoanProv, MATCH(Calculation_SSA!C$3, 'Calculation_Loans & provisions'!$B$3:$I$3, 0), FALSE), "") -> 463654 | D10: =IF(ISNUMBER(VLOOKUP($B10, LoanProv, MATCH(Calculation_SSA!D$3, 'Calculation_Loans & provisions'!$B$3:$I$3, 0), FALSE)), VLOOKUP($B10, LoanProv, MATCH(Calculation_SSA!D$3, 'Calculation_Loans & provisions'!$B$3:$I$3, 0), FALSE), "") -> 3741342 | E10: =IF(ISNUMBER(VLOOKUP($B10, LoanProv, MATCH(Calculation_SSA!E$3, 'Calculation_Loans & provisions'!$B$3:$I$3, 0), FALSE)), VLOOKUP($B10, LoanProv, MATCH(Calculation_SSA!E$3, 'Calculation_Loans & provisions'!$B$3:$I$3, 0), FALSE), "") -> 0.1239271898 | F10: =IF(ISNUMBER(VLOOKUP($B10, LoanProv, MATCH(Calculation_SSA!F$3, 'Calculation_Loans & provisions'!$B$3:$I$3, 0), FALSE)), VLOOKUP($B10, LoanProv, MATCH(Calculation_SSA!F$3, 'Calculation_Loans & provisions'!$B$3:$I$3, 0), FALSE), "") -> 426043 | G10: 231827 | H10: 213021.5 | I10: =IF(ISNUMBER(Input_Parameters!$D$25), IF(ISNUMBER(E10), Input_Parameters!$D$25*E10, ""), Input_Parameters!$D$26) -> 0.06196359488 | J10: =IF(ISNUMBER(VLOOKUP($B10, LoanProv, MATCH(Calculation_SSA!J$3, 'Calculation_Loans & provisions'!$B$3:$I$3, 0), FALSE)), VLOOKUP($B10, LoanProv, MATCH(Calculation_SSA!J$3, 'Calculation_Loans & provisions'!$B$3:$I$3, 0), FALSE), "") -> 37611 | K10: 231827 | L10: 18805.5 | M10: 18805.5 | N10: 2256.66 | O10: =IF(Input_Parameters!$D$57="Default", Input_Parameters!$E$57, Input_Parameters!$D$58) -> 0.1 | P10: 376.11 | Q10: 18805.5 | R10: 3134.25 | S10: 1 | T10: =IF(Input_Parameters!$D$34="Option 1", Input_Parameters!$E$34, IF(Input_Parameters!$D$34="Option 2", Input_Parameters!$E$34, IF(Input_Parameters!$D$34="Option 3", Input_Parameters!$D$35, ""))) -> 1 | U10: =IF(Input_Parameters!$D$40="Option 1", Input_Parameters!$E$40, IF(Input_Parameters!$D$40="Option 2", VLOOKUP($B10, CRWA, Input_Data_Fitch!G$266, FALSE), IF(Input_Parameters!$D$40="Option 3", Input_Parameters!$D$41, ""))) -> 1 | V10: 18805.5 | W10: 3134.25 | X10: 21492534 | Y10: 0.0008749782599 | Z10: 0.0001049973912 | AA10: 1.74995652e-05 | AB10: 0.0008749782599 | AC10: 0.00014582971 | AD10: =IF(Input_Parameters!$D$49="Option 1", VLOOKUP($B10, Calculation_Haircut!$BR$95:$CC$139, Calculation_Haircut!BZ$91, FALSE), IF(Input_Parameters!$D$49="Option 2", VLOOKUP($B10, Calculation_Haircut!$BR$95:$CC$139, Calculation_Haircut!CB$91, FALSE), IF(Input_Parameters!$D$49="Option 3", VLOOKUP($B10, Calculation_Haircut!$BR$95:$CC$139, Calculation_Haircut!CC$91, FALSE), "n.a."))) -> 0.918881321 | AE10: 0.1 | AG10: =IFERROR(RANK(AB10, $AB$5:$AB$49)+COUNTIF($AB$5:AB10, AB10)-1, "") -> 36 | AH10: CMR | AI10: 0.08749782599 | AJ10: 0.014582971 | AK10: 0.5737428334 | AL10: 0.09562380556 | AM10: =IFERROR(RANK(AO10, $AO$5:$AO$49)+COUNTIF($AO$5:AO10, AO10)-1, "") -> 38 | AN10: CMR | AO10: 8.111867901 | AP10: 1.351977984 | AR10: 6 | AS10: ZAF | AT10: 0.8554356071 | AU10: 0.1425726012 | AV10: 1.052527224 | AW10: 0.175421204 | AX10: BWA | AY10: 57.29550024 | AZ10: 9.54925004 | BB10: 6 | BC10: ZAF | BD10: 0.8554356071 | BE10: 0.3574731643 | BF10: 0.1425726012 | BG10: 0.05957886072 | BH10: -0.9782896536 | BI10: 0.2354039149 | BJ10: 1.052527224 | BK10: 1.855477703 | BL10: 0.175421204 | BM10: 0.3092462839 | BN10: -1.203686736 | BO10: 1.787835282 | BP10: BWA | BQ10: 57.29550024 | BR10: 38.92773915 | BS10: 9.54925004 | BT10: 6.487956525 | BV10: =IFERROR(RANK(Z10, $Z$5:$Z$49)+COUNTIF($Z$5:Z10, Z10)-1, "") -> 36 | BW10: CMR | BX10: 0.01049973912 | BY10: 0.00174995652 | CA10: 6 | CB10: ZAF | CC10: 0.1026522729 | CD10: 0.01710871214 | CF10: 6 | CG10: ZAF | CH10: 0.1026522729 | CI10: 0.04289677972 | CJ10: 0.01710871214 | CK10: 0.007149463287 | CL10: -0.1173947584 | CM10: 0.02824846979 | CO10: =IFERROR(RANK(CS10, $CS$5:$CS$49)+COUNTIF($CS$5:CS10, CS10)-1, "") -> 19 | CP10: CMR | CQ10: 12.39271898 | CR10: 6.196359488 | CS10: 6.196359488 | CT10: 0.5026404964 | CV10: 6 | CW10: AGO | CX10: 23.24050574 | CY10: 11.62025287 | CZ10: 11.62025287 | DA10: 5.906754399 | DB10: 4.295317042 | DC10: 1.704526831 | DE10: =IFERROR(RANK(DG10, $DG$5:$DG$49)+COUNTIF($DG$5:DG10, DG10)-1, "n.a.") -> 20 | DF10: CMR | DG10: 2.15727936 | DH10: 0.08749782599 | DI10: 1.07863968 | DJ10: 0.174995652 | DL10: 6 | DM10: STP | DN10: 4.833377067 | DO10: 2.144428242 | DP10: 0.9280083969 | DQ10: 0.8503479243 | DR10: 0.4640042058 | DS10: 0.3574731643 | DT10: 2.416688572 | DU10: 1.072214121 | EM10: Cameroon | EN10: 1 | EO10: 1
A11: Cabo Verde | B11: CPV | C11: =IF(ISNUMBER(VLOOKUP($B11, LoanProv, MATCH(Calculation_SSA!C$3, 'Calculation_Loans & provisions'!$B$3:$I$3, 0), FALSE)), VLOOKUP($B11, LoanProv, MATCH(Calculation_SSA!C$3, 'Calculation_Loans & provisions'!$B$3:$I$3, 0), FALSE), "") -> 14061.81526 | D11: =IF(ISNUMBER(VLOOKUP($B11, LoanProv, MATCH(Calculation_SSA!D$3, 'Calculation_Loans & provisions'!$B$3:$I$3, 0), FALSE)), VLOOKUP($B11, LoanProv, MATCH(Calculation_SSA!D$3, 'Calculation_Loans & provisions'!$B$3:$I$3, 0), FALSE), "") -> 115170.8343 | E11: =IF(ISNUMBER(VLOOKUP($B11, LoanProv, MATCH(Calculation_SSA!E$3, 'Calculation_Loans & provisions'!$B$3:$I$3, 0), FALSE)), VLOOKUP($B11, LoanProv, MATCH(Calculation_SSA!E$3, 'Calculation_Loans & provisions'!$B$3:$I$3, 0), FALSE), "") -> 0.1220952824 | F11: =IF(ISNUMBER(VLOOKUP($B11, LoanProv, MATCH(Calculation_SSA!F$3, 'Calculation_Loans & provisions'!$B$3:$I$3, 0), FALSE)), VLOOKUP($B11, LoanProv, MATCH(Calculation_SSA!F$3, 'Calculation_Loans & provisions'!$B$3:$I$3, 0), FALSE), "") -> 9983.888832 | G11: 7030.907767 | H11: 4991.944318 | I11: =IF(ISNUMBER(Input_Parameters!$D$25), IF(ISNUMBER(E11), Input_Parameters!$D$25*E11, ""), Input_Parameters!$D$26) -> 0.06104764121 | J11: =IF(ISNUMBER(VLOOKUP($B11, LoanProv, MATCH(Calculation_SSA!J$3, 'Calculation_Loans & provisions'!$B$3:$I$3, 0), FALSE)), VLOOKUP($B11, LoanProv, MATCH(Calculation_SSA!J$3, 'Calculation_Loans & provisions'!$B$3:$I$3, 0), FALSE), "") -> 4077.926424 | K11: 7030.907489 | L11: 2038.963172 | M11: 2038.963172 | N11: 244.6755806 | O11: =IF(Input_Parameters!$D$57="Default", Input_Parameters!$E$57, Input_Parameters!$D$58) -> 0.1 | P11: 40.77926344 | Q11: 2038.963172 | R11: 339.8271953 | S11: 1 | T11: =IF(Input_Parameters!$D$34="Option 1", Input_Parameters!$E$34, IF(Input_Parameters!$D$34="Option 2", Input_Parameters!$E$34, IF(Input_Parameters!$D$34="Option 3", Input_Parameters!$D$35, ""))) -> 1 | U11: =IF(Input_Parameters!$D$40="Option 1", Input_Parameters!$E$40, IF(Input_Parameters!$D$40="Option 2", VLOOKUP($B11, CRWA, Input_Data_Fitch!G$266, FALSE), IF(Input_Parameters!$D$40="Option 3", Input_Parameters!$D$41, ""))) -> 1 | V11: 2038.963172 | W11: 339.8271953 | X11: 183697.9488 | Y11: 0.0110995424 | Z11: 0.001331945088 | AA11: 0.000221990848 | AB11: 0.0110995424 | AC11: 0.001849923734 | AD11: =IF(Input_Parameters!$D$49="Option 1", VLOOKUP($B11, Calculation_Haircut!$BR$95:$CC$139, Calculation_Haircut!BZ$91, FALSE), IF(Input_Parameters!$D$49="Option 2", VLOOKUP($B11, Calculation_Haircut!$BR$95:$CC$139, Calculation_Haircut!CB$91, FALSE), IF(Input_Parameters!$D$49="Option 3", VLOOKUP($B11, Calculation_Haircut!$BR$95:$CC$139, Calculation_Haircut!CC$91, FALSE), "n.a."))) -> 0.71 | AE11: 0.1 | AG11: =IFERROR(RANK(AB11, $AB$5:$AB$49)+COUNTIF($AB$5:AB11, AB11)-1, "") -> 3 | AH11: CPV | AI11: 1.10995424 | AJ11: 0.1849923734 | AK11: 2.016598715 | AL11: 0.3360997858 | AM11: =IFERROR(RANK(AO11, $AO$5:$AO$49)+COUNTIF($AO$5:AO11, AO11)-1, "") -> 29 | AN11: CPV | AO11: 29 | AP11: 4.833333333 | AR11: 7 | AS11: BEN | AT11: 0.8535611119 | AU11: 0.1422601853 | AV11: 5.398493629 | AW11: 0.8997489382 | AX11: COG | AY11: 55.72860648 | AZ11: 9.28810108 | BB11: 7 | BC11: BEN | BD11: 0.8535611119 | BE11: 0.3574731643 | BF11: 0.1422601853 | BG11: 0.05957886072 | BH11: 0.2722029113 | BI11: 0.2354039149 | BJ11: 5.398493629 | BK11: 1.855477703 | BL11: 0.8997489382 | BM11: 0.3092462839 | BN11: 1.721593993 | BO11: 1.787835282 | BP11: COG | BQ11: 55.72860648 | BR11: 38.92773915 | BS11: 9.28810108 | BT11: 6.487956525 | BV11: =IFERROR(RANK(Z11, $Z$5:$Z$49)+COUNTIF($Z$5:Z11, Z11)-1, "") -> 3 | BW11: CPV | BX11: 0.1331945088 | BY11: 0.0221990848 | CA11: 7 | CB11: BEN | CC11: 0.1024273334 | CD11: 0.01707122224 | CF11: 7 | CG11: BEN | CH11: 0.1024273334 | CI11: 0.04289677972 | CJ11: 0.01707122224 | CK11: 0.007149463287 | CL11: 0.03266434936 | CM11: 0.02824846979 | CO11: =IFERROR(RANK(CS11, $CS$5:$CS$49)+COUNTIF($CS$5:CS11, CS11)-1, "") -> 21 | CP11: CPV | CQ11: 12.20952824 | CR11: 6.104764121 | CS11: 6.104764121 | CT11: 1.770381525 | CV11: 7 | CW11: BEN | CX11: 21.64189352 | CY11: 10.82094676 | CZ11: 10.82094676 | DA11: 5.906754399 | DB11: 4.230157387 | DC11: 1.704526831 | DE11: =IFERROR(RANK(DG11, $DG$5:$DG$49)+COUNTIF($DG$5:DG11, DG11)-1, "n.a.") -> 2 | DF11: CPV | DG11: 7.65485698 | DH11: 1.10995424 | DI11: 3.827428414 | DJ11: 2.219908524 | DL11: 7 | DM11: SEN | DN11: 4.574153614 | DO11: 2.144428242 | DP11: 1.602818511 | DQ11: 0.8503479243 | DR11: 0.8014092555 | DS11: 0.3574731643 | DT11: 2.287076807 | DU11: 1.072214121 | EM11: Cabo Verde | EN11: 1 | EO11: 1
A12: Central African Republic | B12: CAF | C12: =IF(ISNUMBER(VLOOKUP($B12, LoanProv, MATCH(Calculation_SSA!C$3, 'Calculation_Loans & provisions'!$B$3:$I$3, 0), FALSE)), VLOOKUP($B12, LoanProv, MATCH(Calculation_SSA!C$3, 'Calculation_Loans & provisions'!$B$3:$I$3, 0), FALSE), "") -> 26804 | D12: =IF(ISNUMBER(VLOOKUP($B12, LoanProv, MATCH(Calculation_SSA!D$3, 'Calculation_Loans & provisions'!$B$3:$I$3, 0), FALSE)), VLOOKUP($B12, LoanProv, MATCH(Calculation_SSA!D$3, 'Calculation_Loans & provisions'!$B$3:$I$3, 0), FALSE), "") -> 171918 | E12: =IF(ISNUMBER(VLOOKUP($B12, LoanProv, MATCH(Calculation_SSA!E$3, 'Calculation_Loans & provisions'!$B$3:$I$3, 0), FALSE)), VLOOKUP($B12, LoanProv, MATCH(Calculation_SSA!E$3, 'Calculation_Loans & provisions'!$B$3:$I$3, 0), FALSE), "") -> 0.1559115392 | F12: =IF(ISNUMBER(VLOOKUP($B12, LoanProv, MATCH(Calculation_SSA!F$3, 'Calculation_Loans & provisions'!$B$3:$I$3, 0), FALSE)), VLOOKUP($B12, LoanProv, MATCH(Calculation_SSA!F$3, 'Calculation_Loans & provisions'!$B$3:$I$3, 0), FALSE), "") -> 26472 | G12: 13402 | H12: 13236 | I12: =IF(ISNUMBER(Input_Parameters!$D$25), IF(ISNUMBER(E12), Input_Parameters!$D$25*E12, ""), Input_Parameters!$D$26) -> 0.07795576961 | J12: =IF(ISNUMBER(VLOOKUP($B12, LoanProv, MATCH(Calculation_SSA!J$3, 'Calculation_Loans & provisions'!$B$3:$I$3, 0), FALSE)), VLOOKUP($B12, LoanProv, MATCH(Calculation_SSA!J$3, 'Calculation_Loans & provisions'!$B$3:$I$3, 0), FALSE), "") -> 332 | K12: 13402 | L12: 166 | M12: 166 | N12: 19.92 | O12: =IF(Input_Parameters!$D$57="Default", Input_Parameters!$E$57, Input_Parameters!$D$58) -> 0.1 | P12: 3.32 | Q12: 166 | R12: 27.66666667 | S12: 1 | T12: =IF(Input_Parameters!$D$34="Option 1", Input_Parameters!$E$34, IF(Input_Parameters!$D$34="Option 2", Input_Parameters!$E$34, IF(Input_Parameters!$D$34="Option 3", Input_Parameters!$D$35, ""))) -> 1 | U12: =IF(Input_Parameters!$D$40="Option 1", Input_Parameters!$E$40, IF(Input_Parameters!$D$40="Option 2", VLOOKUP($B12, CRWA, Input_Data_Fitch!G$266, FALSE), IF(Input_Parameters!$D$40="Option 3", Input_Parameters!$D$41, ""))) -> 1 | V12: 166 | W12: 27.66666667 | X12: 1265640.415 | Y12: 0.0001311588963 | Z12: 1.573906756e-05 | AA12: 2.623177927e-06 | AB12: 0.0001311588963 | AC12: 2.185981605e-05 | AD12: =IF(Input_Parameters!$D$49="Option 1", VLOOKUP($B12, Calculation_Haircut!$BR$95:$CC$139, Calculation_Haircut!BZ$91, FALSE), IF(Input_Parameters!$D$49="Option 2", VLOOKUP($B12, Calculation_Haircut!$BR$95:$CC$139, Calculation_Haircut!CB$91, FALSE), IF(Input_Parameters!$D$49="Option 3", VLOOKUP($B12, Calculation_Haircut!$BR$95:$CC$139, Calculation_Haircut!CC$91, FALSE), "n.a."))) -> 0.987613789 | AE12: 0.1 | AG12: =IFERROR(RANK(AB12, $AB$5:$AB$49)+COUNTIF($AB$5:AB12, AB12)-1, "") -> 40 | AH12: CAF | AI12: 0.01311588963 | AJ12: 0.002185981605 | AK12: 0.1143928222 | AL12: 0.01906547037 | AM12: =IFERROR(RANK(AO12, $AO$5:$AO$49)+COUNTIF($AO$5:AO12, AO12)-1, "") -> 40 | AN12: CAF | AO12: 1.238621101 | AP12: 0.2064368502 | AR12: 8 | AS12: GNB | AT12: 0.827715953 | AU12: 0.1379526588 | AV12: 7.098207553 | AW12: 1.183034592 | AX12: ZAF | AY12: 54.36068277 | AZ12: 9.060113796 | BB12: 8 | BC12: GNB | BD12: 0.827715953 | BE12: 0.3574731643 | BF12: 0.1379526588 | BG12: 0.05957886072 | BH12: 1.155406105 | BI12: 0.2354039149 | BJ12: 7.098207553 | BK12: 1.855477703 | BL12: 1.183034592 | BM12: 0.3092462839 | BN12: 9.908365683 | BO12: 1.787835282 | BP12: ZAF | BQ12: 54.36068277 | BR12: 38.92773915 | BS12: 9.060113796 | BT12: 6.487956525 | BV12: =IFERROR(RANK(Z12, $Z$5:$Z$49)+COUNTIF($Z$5:Z12, Z12)-1, "") -> 40 | BW12: CAF | BX12: 0.001573906756 | BY12: 0.0002623177927 | CA12: 8 | CB12: GNB | CC12: 0.09932591436 | CD12: 0.01655431906 | CF12: 8 | CG12: GNB | CH12: 0.09932591436 | CI12: 0.04289677972 | CJ12: 0.01655431906 | CK12: 0.007149463287 | CL12: 0.1386487327 | CM12: 0.02824846979 | CO12: =IFERROR(RANK(CS12, $CS$5:$CS$49)+COUNTIF($CS$5:CS12, CS12)-1, "") -> 13 | CP12: CAF | CQ12: 15.59115392 | CR12: 7.795576961 | CS12: 7.795576961 | CT12: 0.09655766121 | CV12: 8 | CW12: COG | CX12: 18.19747057 | CY12: 9.098735284 | CZ12: 9.098735284 | DA12: 5.906754399 | DB12: 5.070598381 | DC12: 1.704526831 | DE12: =IFERROR(RANK(DG12, $DG$5:$DG$49)+COUNTIF($DG$5:DG12, DG12)-1, "n.a.") -> 22 | DF12: CAF | DG12: 2.117821119 | DH12: 0.01311588963 | DI12: 1.058910559 | DJ12: 0.02623177927 | DL12: 8 | DM12: AGO | DN12: 4.374700129 | DO12: 2.144428242 | DP12: 1.617066705 | DQ12: 0.8503479243 | DR12: 0.8085333524 | DS12: 0.3574731643 | DT12: 2.187350065 | DU12: 1.072214121 | EM12: Central African Rep. | EP12: 1 | ER12: 1
A13: Chad | B13: TCD | C13: =IF(ISNUMBER(VLOOKUP($B13, LoanProv, MATCH(Calculation_SSA!C$3, 'Calculation_Loans & provisions'!$B$3:$I$3, 0), FALSE)), VLOOKUP($B13, LoanProv, MATCH(Calculation_SSA!C$3, 'Calculation_Loans & provisions'!$B$3:$I$3, 0), FALSE), "") -> 207017 | D13: =IF(ISNUMBER(VLOOKUP($B13, LoanProv, MATCH(Calculation_SSA!D$3, 'Calculation_Loans & provisions'!$B$3:$I$3, 0), FALSE)), VLOOKUP($B13, LoanProv, MATCH(Calculation_SSA!D$3, 'Calculation_Loans & provisions'!$B$3:$I$3, 0), FALSE), "") -> 723172 | E13: =IF(ISNUMBER(VLOOKUP($B13, LoanProv, MATCH(Calculation_SSA!E$3, 'Calculation_Loans & provisions'!$B$3:$I$3, 0), FALSE)), VLOOKUP($B13, LoanProv, MATCH(Calculation_SSA!E$3, 'Calculation_Loans & provisions'!$B$3:$I$3, 0), FALSE), "") -> 0.2862624659 | F13: =IF(ISNUMBER(VLOOKUP($B13, LoanProv, MATCH(Calculation_SSA!F$3, 'Calculation_Loans & provisions'!$B$3:$I$3, 0), FALSE)), VLOOKUP($B13, LoanProv, MATCH(Calculation_SSA!F$3, 'Calculation_Loans & provisions'!$B$3:$I$3, 0), FALSE), "") -> 117019 | G13: 103508.5 | H13: 58509.5 | I13: =IF(ISNUMBER(Input_Parameters!$D$25), IF(ISNUMBER(E13), Input_Parameters!$D$25*E13, ""), Input_Parameters!$D$26) -> 0.143131233 | J13: =IF(ISNUMBER(VLOOKUP($B13, LoanProv, MATCH(Calculation_SSA!J$3, 'Calculation_Loans & provisions'!$B$3:$I$3, 0), FALSE)), VLOOKUP($B13, LoanProv, MATCH(Calculation_SSA!J$3, 'Calculation_Loans & provisions'!$B$3:$I$3, 0), FALSE), "") -> 89998 | K13: 103508.5 | L13: 44999 | M13: 44999 | N13: 5399.88 | O13: =IF(Input_Parameters!$D$57="Default", Input_Parameters!$E$57, Input_Parameters!$D$58) -> 0.1 | P13: 899.98 | Q13: 44999 | R13: 7499.833333 | S13: 1 | T13: =IF(Input_Parameters!$D$34="Option 1", Input_Parameters!$E$34, IF(Input_Parameters!$D$34="Option 2", Input_Parameters!$E$34, IF(Input_Parameters!$D$34="Option 3", Input_Parameters!$D$35, ""))) -> 1 | U13: =IF(Input_Parameters!$D$40="Option 1", Input_Parameters!$E$40, IF(Input_Parameters!$D$40="Option 2", VLOOKUP($B13, CRWA, Input_Data_Fitch!G$266, FALSE), IF(Input_Parameters!$D$40="Option 3", Input_Parameters!$D$41, ""))) -> 1 | V13: 44999 | W13: 7499.833333 | X13: 6127318.177 | Y13: 0.00734399597 | Z13: 0.0008812795164 | AA13: 0.0001468799194 | AB13: 0.00734399597 | AC13: 0.001223999328 | AD13: =IF(Input_Parameters!$D$49="Option 1", VLOOKUP($B13, Calculation_Haircut!$BR$95:$CC$139, Calculation_Haircut!BZ$91, FALSE), IF(Input_Parameters!$D$49="Option 2", VLOOKUP($B13, Calculation_Haircut!$BR$95:$CC$139, Calculation_Haircut!CB$91, FALSE), IF(Input_Parameters!$D$49="Option 3", VLOOKUP($B13, Calculation_Haircut!$BR$95:$CC$139, Calculation_Haircut!CC$91, FALSE), "n.a."))) -> 0.5652627562 | AE13: 0.1 | AG13: =IFERROR(RANK(AB13, $AB$5:$AB$49)+COUNTIF($AB$5:AB13, AB13)-1, "") -> 12 | AH13: TCD | AI13: 0.734399597 | AJ13: 0.1223999328 | AK13: 8.71811762 | AL13: 1.453019603 | AM13: =IFERROR(RANK(AO13, $AO$5:$AO$49)+COUNTIF($AO$5:AO13, AO13)-1, "") -> 17 | AN13: TCD | AO13: 43.47372438 | AP13: 7.24562073 | AR13: 9 | AS13: AGO | AT13: 0.8085333524 | AU13: 0.1347555587 | AV13: 5.595812067 | AW13: 0.9326353445 | AX13: MLI | AY13: 53.13877831 | AZ13: 8.856463051 | BB13: 9 | BC13: AGO | BD13: 0.8085333524 | BE13: 0.3574731643 | BF13: 0.1347555587 | BG13: 0.05957886072 | BH13: 1.160105727 | BI13: 0.2354039149 | BJ13: 5.595812067 | BK13: 1.855477703 | BL13: 0.9326353445 | BM13: 0.3092462839 | BN13: 8.029023918 | BO13: 1.787835282 | BP13: MLI | BQ13: 53.13877831 | BR13: 38.92773915 | BS13: 8.856463051 | BT13: 6.487956525 | BV13: =IFERROR(RANK(Z13, $Z$5:$Z$49)+COUNTIF($Z$5:Z13, Z13)-1, "") -> 12 | BW13: TCD | BX13: 0.08812795164 | BY13: 0.01468799194 | CA13: 9 | CB13: AGO | CC13: 0.09702400229 | CD13: 0.01617066705 | CF13: 9 | CG13: AGO | CH13: 0.09702400229 | CI13: 0.04289677972 | CJ13: 0.01617066705 | CK13: 0.007149463287 | CL13: 0.1392126872 | CM13: 0.02824846979 | CO13: =IFERROR(RANK(CS13, $CS$5:$CS$49)+COUNTIF($CS$5:CS13, CS13)-1, "") -> 2 | CP13: TCD | CQ13: 28.62624659 | CR13: 14.3131233 | CS13: 14.3131233 | CT13: 6.222447772 | CV13: 9 | CW13: GHA | CX13: 18.18715299 | CY13: 9.093576497 | CZ13: 9.093576497 | DA13: 5.906754399 | DB13: 2.590680052 | DC13: 1.704526831 | DE13: =IFERROR(RANK(DG13, $DG$5:$DG$49)+COUNTIF($DG$5:DG13, DG13)-1, "n.a.") -> 14 | DF13: TCD | DG13: 3.378590666 | DH13: 0.734399597 | DI13: 1.689295333 | DJ13: 1.468799194 | DL13: 9 | DM13: BEN | DN13: 4.36690104 | DO13: 2.144428242 | DP13: 1.707122224 | DQ13: 0.8503479243 | DR13: 0.8535611119 | DS13: 0.3574731643 | DT13: 2.18345052 | DU13: 1.072214121 | EM13: Chad | EP13: 1 | ER13: 1
A14: Comoros | B14: COM | C14: =IF(ISNUMBER(VLOOKUP($B14, LoanProv, MATCH(Calculation_SSA!C$3, 'Calculation_Loans & provisions'!$B$3:$I$3, 0), FALSE)), VLOOKUP($B14, LoanProv, MATCH(Calculation_SSA!C$3, 'Calculation_Loans & provisions'!$B$3:$I$3, 0), FALSE), "") -> 19280 | D14: =IF(ISNUMBER(VLOOKUP($B14, LoanProv, MATCH(Calculation_SSA!D$3, 'Calculation_Loans & provisions'!$B$3:$I$3, 0), FALSE)), VLOOKUP($B14, LoanProv, MATCH(Calculation_SSA!D$3, 'Calculation_Loans & provisions'!$B$3:$I$3, 0), FALSE), "") -> 80000 | E14: =IF(ISNUMBER(VLOOKUP($B14, LoanProv, MATCH(Calculation_SSA!E$3, 'Calculation_Loans & provisions'!$B$3:$I$3, 0), FALSE)), VLOOKUP($B14, LoanProv, MATCH(Calculation_SSA!E$3, 'Calculation_Loans & provisions'!$B$3:$I$3, 0), FALSE), "") -> 0.241 | F14: =IF(ISNUMBER(VLOOKUP($B14, LoanProv, MATCH(Calculation_SSA!F$3, 'Calculation_Loans & provisions'!$B$3:$I$3, 0), FALSE)), VLOOKUP($B14, LoanProv, MATCH(Calculation_SSA!F$3, 'Calculation_Loans & provisions'!$B$3:$I$3, 0), FALSE), "") -> 13044.27592 | G14: 9640 | H14: 6522.137958 | I14: =IF(ISNUMBER(Input_Parameters!$D$25), IF(ISNUMBER(E14), Input_Parameters!$D$25*E14, ""), Input_Parameters!$D$26) -> 0.1205 | J14: =IF(ISNUMBER(VLOOKUP($B14, LoanProv, MATCH(Calculation_SSA!J$3, 'Calculation_Loans & provisions'!$B$3:$I$3, 0), FALSE)), VLOOKUP($B14, LoanProv, MATCH(Calculation_SSA!J$3, 'Calculation_Loans & provisions'!$B$3:$I$3, 0), FALSE), "") -> 6235.724084 | K14: 9640 | L14: 3117.862042 | M14: 3117.862042 | N14: 374.143445 | O14: =IF(Input_Parameters!$D$57="Default", Input_Parameters!$E$57, Input_Parameters!$D$58) -> 0.1 | P14: 62.35724084 | Q14: 3117.862042 | R14: 519.6436736 | S14: 1 | T14: =IF(Input_Parameters!$D$34="Option 1", Input_Parameters!$E$34, IF(Input_Parameters!$D$34="Option 2", Input_Parameters!$E$34, IF(Input_Parameters!$D$34="Option 3", Input_Parameters!$D$35, ""))) -> 1 | U14: =IF(Input_Parameters!$D$40="Option 1", Input_Parameters!$E$40, IF(Input_Parameters!$D$40="Option 2", VLOOKUP($B14, CRWA, Input_Data_Fitch!G$266, FALSE), IF(Input_Parameters!$D$40="Option 3", Input_Parameters!$D$41, ""))) -> 1 | V14: 3117.862042 | W14: 519.6436736 | X14: 490958 | Y14: 0.006350567751 | Z14: 0.0007620681301 | AA14: 0.000127011355 | AB14: 0.006350567751 | AC14: 0.001058427958 | AD14: =IF(Input_Parameters!$D$49="Option 1", VLOOKUP($B14, Calculation_Haircut!$BR$95:$CC$139, Calculation_Haircut!BZ$91, FALSE), IF(Input_Parameters!$D$49="Option 2", VLOOKUP($B14, Calculation_Haircut!$BR$95:$CC$139, Calculation_Haircut!CB$91, FALSE), IF(Input_Parameters!$D$49="Option 3", VLOOKUP($B14, Calculation_Haircut!$BR$95:$CC$139, Calculation_Haircut!CC$91, FALSE), "n.a."))) -> 0.6765703276 | AE14: 0.1 | AG14: =IFERROR(RANK(AB14, $AB$5:$AB$49)+COUNTIF($AB$5:AB14, AB14)-1, "") -> 15 | AH14: COM | AI14: 0.6350567751 | AJ14: 0.1058427958 | AK14: 5.13481891 | AL14: 0.8558031516 | AM14: =IFERROR(RANK(AO14, $AO$5:$AO$49)+COUNTIF($AO$5:AO14, AO14)-1, "") -> 26 | AN14: COM | AO14: 32.34296724 | AP14: 5.39049454 | AR14: 10 | AS14: SEN | AT14: 0.8014092555 | AU14: 0.1335682093 | AV14: 2.632812659 | AW14: 0.4388021099 | AX14: ETH | AY14: 50 | AZ14: 8.333333333 | BB14: 10 | BC14: SEN | BD14: 0.8014092555 | BE14: 0.3574731643 | BF14: 0.1335682093 | BG14: 0.05957886072 | BH14: 1.634087636 | BI14: 0.2354039149 | BJ14: 2.632812659 | BK14: 1.855477703 | BL14: 0.4388021099 | BM14: 0.3092462839 | BN14: 5.368351544 | BO14: 1.787835282 | BP14: ETH | BQ14: 50 | BR14: 38.92773915 | BS14: 8.333333333 | BT14: 6.487956525 | BV14: =IFERROR(RANK(Z14, $Z$5:$Z$49)+COUNTIF($Z$5:Z14, Z14)-1, "") -> 15 | BW14: COM | BX14: 0.07620681301 | BY14: 0.0127011355 | CA14: 10 | CB14: SEN | CC14: 0.09616911066 | CD14: 0.01602818511 | CF14: 10 | CG14: SEN | CH14: 0.09616911066 | CI14: 0.04289677972 | CJ14: 0.01602818511 | CK14: 0.007149463287 | CL14: 0.1960905163 | CM14: 0.02824846979 | CO14: =IFERROR(RANK(CS14, $CS$5:$CS$49)+COUNTIF($CS$5:CS14, CS14)-1, "") -> 5 | CP14: COM | CQ14: 24.1 | CR14: 12.05 | CS14: 12.05 | CT14: 3.897327552 | CV14: 10 | CW14: TGO | CX14: 17.82561353 | CY14: 8.912806767 | CZ14: 8.912806767 | DA14: 5.906754399 | DB14: 2.221055699 | DC14: 1.704526831 | DE14: =IFERROR(RANK(DG14, $DG$5:$DG$49)+COUNTIF($DG$5:DG14, DG14)-1, "n.a.") -> 11 | DF14: COM | DG14: 3.92701616 | DH14: 0.6350567751 | DI14: 1.96350808 | DJ14: 1.27011355 | DL14: 10 | DM14: GNB | DN14: 4.169948656 | DO14: 2.144428242 | DP14: 1.655431906 | DQ14: 0.8503479243 | DR14: 0.827715953 | DS14: 0.3574731643 | DT14: 2.084974328 | DU14: 1.072214121 | EM14: Comoros | EP14: 1 | ER14: 1
A15: Congo, Democratic Republic of the | B15: COD | C15: =IF(ISNUMBER(VLOOKUP($B15, LoanProv, MATCH(Calculation_SSA!C$3, 'Calculation_Loans & provisions'!$B$3:$I$3, 0), FALSE)), VLOOKUP($B15, LoanProv, MATCH(Calculation_SSA!C$3, 'Calculation_Loans & provisions'!$B$3:$I$3, 0), FALSE), "") ->  | D15: =IF(ISNUMBER(VLOOKUP($B15, LoanProv, MATCH(Calculation_SSA!D$3, 'Calculation_Loans & provisions'!$B$3:$I$3, 0), FALSE)), VLOOKUP($B15, LoanProv, MATCH(Calculation_SSA!D$3, 'Calculation_Loans & provisions'!$B$3:$I$3, 0), FALSE), "") ->  | E15: =IF(ISNUMBER(VLOOKUP($B15, LoanProv, MATCH(Calculation_SSA!E$3, 'Calculation_Loans & provisions'!$B$3:$I$3, 0), FALSE)), VLOOKUP($B15, LoanProv, MATCH(Calculation_SSA!E$3, 'Calculation_Loans & provisions'!$B$3:$I$3, 0), FALSE), "") -> 0.168 | F15: =IF(ISNUMBER(VLOOKUP($B15, LoanProv, MATCH(Calculation_SSA!F$3, 'Calculation_Loans & provisions'!$B$3:$I$3, 0), FALSE)), VLOOKUP($B15, LoanProv, MATCH(Calculation_SSA!F$3, 'Calculation_Loans & provisions'!$B$3:$I$3, 0), FALSE), "") ->  | I15: =IF(ISNUMBER(Input_Parameters!$D$25), IF(ISNUMBER(E15), Input_Parameters!$D$25*E15, ""), Input_Parameters!$D$26) -> 0.084 | J15: =IF(ISNUMBER(VLOOKUP($B15, LoanProv, MATCH(Calculation_SSA!J$3, 'Calculation_Loans & provisions'!$B$3:$I$3, 0), FALSE)), VLOOKUP($B15, LoanProv, MATCH(Calculation_SSA!J$3, 'Calculation_Loans & provisions'!$B$3:$I$3, 0), FALSE), "") ->  | O15: =IF(Input_Parameters!$D$57="Default", Input_Parameters!$E$57, Input_Parameters!$D$58) -> 0.1 | S15: 1 | T15: =IF(Input_Parameters!$D$34="Option 1", Input_Parameters!$E$34, IF(Input_Parameters!$D$34="Option 2", Input_Parameters!$E$34, IF(Input_Parameters!$D$34="Option 3", Input_Parameters!$D$35, ""))) -> 1 | U15: =IF(Input_Parameters!$D$40="Option 1", Input_Parameters!$E$40, IF(Input_Parameters!$D$40="Option 2", VLOOKUP($B15, CRWA, Input_Data_Fitch!G$266, FALSE), IF(Input_Parameters!$D$40="Option 3", Input_Parameters!$D$41, ""))) -> 1 | X15: 76495500.37 | Y15: n.a. | AD15: =IF(Input_Parameters!$D$49="Option 1", VLOOKUP($B15, Calculation_Haircut!$BR$95:$CC$139, Calculation_Haircut!BZ$91, FALSE), IF(Input_Parameters!$D$49="Option 2", VLOOKUP($B15, Calculation_Haircut!$BR$95:$CC$139, Calculation_Haircut!CB$91, FALSE), IF(Input_Parameters!$D$49="Option 3", VLOOKUP($B15, Calculation_Haircut!$BR$95:$CC$139, Calculation_Haircut!CC$91, FALSE), "n.a."))) -> n.a. | AE15: 0.1 | AG15: =IFERROR(RANK(AB15, $AB$5:$AB$49)+COUNTIF($AB$5:AB15, AB15)-1, "") ->  | AH15: COD | AM15: =IFERROR(RANK(AO15, $AO$5:$AO$49)+COUNTIF($AO$5:AO15, AO15)-1, "") ->  | AN15: COD | AR15: 11 | AS15: TGO | AT15: 0.7459242333 | AU15: 0.1243207055 | AV15: 2.702856443 | AW15: 0.4504760739 | AX15: LSO | AY15: 48.08885374 | AZ15: 8.014808957 | BB15: 11 | BC15: TGO | BD15: 0.7459242333 | BE15: 0.3574731643 | BF15: 0.1243207055 | BG15: 0.05957886072 | BH15: 3.819029493 | BI15: 0.2354039149 | BJ15: 2.702856443 | BK15: 1.855477703 | BL15: 0.4504760739 | BM15: 0.3092462839 | BN15: 13.83825329 | BO15: 1.787835282 | BP15: LSO | BQ15: 48.08885374 | BR15: 38.92773915 | BS15: 8.014808957 | BT15: 6.487956525 | BV15: =IFERROR(RANK(Z15, $Z$5:$Z$49)+COUNTIF($Z$5:Z15, Z15)-1, "") ->  | BW15: COD | CA15: 11 | CB15: TGO | CC15: 0.08951090799 | CD15: 0.01491848467 | CF15: 11 | CG15: TGO | CH15: 0.08951090799 | CI15: 0.04289677972 | CJ15: 0.01491848467 | CK15: 0.007149463287 | CL15: 0.4582835391 | CM15: 0.02824846979 | CO15: =IFERROR(RANK(CS15, $CS$5:$CS$49)+COUNTIF($CS$5:CS15, CS15)-1, "") -> 12 | CP15: COD | CQ15: 16.8 | CR15: 8.4 | CS15: 8.4 | CV15: 11 | CW15: NER | CX15: 17.01954139 | CY15: 8.509770697 | CZ15: 8.509770697 | DA15: 5.906754399 | DB15: 3.880247562 | DC15: 1.704526831 | DE15: =IFERROR(RANK(DG15, $DG$5:$DG$49)+COUNTIF($DG$5:DG15, DG15)-1, "n.a.") -> n.a. | DF15: COD | DG15: n.a. | DI15: n.a. | DJ15: n.a. | DL15: 11 | DM15: COM | DN15: 3.92701616 | DO15: 2.144428242 | DP15: 1.27011355 | DQ15: 0.8503479243 | DR15: 0.6350567751 | DS15: 0.3574731643 | DT15: 1.96350808 | DU15: 1.072214121 | EM15: Congo, Dem. Rep. of | EP15: 1 | ER15: 1
